{"text_format":"1","workbook":"xlsx","n_sheets":14,"sheets":["↓","Tập đoàn","TTCty","TKKT","CTBC","CTTM","Map mã","Dòng tiền","Vốn vay","Khác","✅","Công ty","~ctbc","~cttm"],"not_rendered":{"charts":0,"images":0,"macros":1,"external_links":1,"defined_names":22,"comments":2,"pivot_tables":0},"unopened":[],"bounds":{"document_bytes":16777216,"sheet_cells":100000,"rows_first":2000,"rows_last":500,"rows_between":2000,"halvings":0,"cell_chars":16384,"cell_head_chars":4096},"cells_cut":0,"cells_raw":0,"read":"whole","date_system":"1900"}

{"sheet":"↓","index":0,"n_rows":117,"n_cols":14,"rows_kept":117,"cut":false,"hidden":true,"merged":[]}
["CHỌN",null,"TẬP ĐOÀN","BCTC","NHÓM TM","CÔNG TY","FS","BS","PL","TMBC","CF","LĨNH VỰC","KHU VỰC","KỲ BÁO CÁO"]
[true,{"$f":"A2:A3","v":true},{"$f":"L_TĐ[TẬP ĐOÀN]","v":"APH"},{"$f":"_xlfn.UNIQUE(L_FS[KHOẢN MỤC])","v":"_"},{"$f":"NH_TM[NH TM]","v":"N1"},{"$f":"_xlfn.LET(_xlpm.a,L_CTY[MÃ],_xlpm.a&IF(Chọn_mã_có_tên,\";\"&_xlfn.XLOOKUP(_xlpm.a,_xlpm.a,L_CTY[KÝ HIỆU]),\"\"))","v":"10_;APH"},{"$f":"_xlfn.LET(_xlpm.a,_xlfn._xlws.FILTER(L_FS[MÃ],L_FS[HT]=TRUE),_xlpm.a&IF(Chọn_mã_có_tên,\";\"&_xlfn.XLOOKUP(_xlpm.a,L_FS[MÃ],L_FS[CHỈ TIÊU]),\"\"))","v":"000_;Tài khoản ngoại bảng"},{"$f":"_xlfn.LET(_xlpm.a,_xlfn._xlws.FILTER(L_FS[MÃ],(L_FS[BS]<>0)*(L_FS[HT]=TRUE)),_xlpm.a&IF(Chọn_mã_có_tên,\";\"&_xlfn.XLOOKUP(_xlpm.a,L_FS[MÃ],L_FS[CHỈ TIÊU]),\"\"))","v":"111_;Tiền"},{"$f":"_xlfn.LET(_xlpm.a,_xlfn._xlws.FILTER(L_FS[MÃ],(L_FS[PL]<>0)*(L_FS[HT]=TRUE)),_xlpm.a&IF(Chọn_mã_có_tên,\";\"&_xlfn.XLOOKUP(_xlpm.a,L_FS[MÃ],L_FS[CHỈ TIÊU]),\"\"))","v":"001_;Doanh thu bán hàng & cung cấp dịch vụ"},{"$f":"_xlfn.LET(_xlpm.a,L_TM[MÃ],_xlpm.a&IF(Chọn_mã_có_tên,\";\"&_xlfn.XLOOKUP(_xlpm.a,_xlpm.a,L_TM[CHỈ TIÊU]),\"\"))","v":"010_;Tiền và tương đương tiền"},{"$f":"_xlfn.LET(_xlpm.a,L_CF[MÃ],_xlpm.a&IF(Chọn_mã_có_tên,_xlfn.XLOOKUP(_xlpm.a,_xlpm.a,L_CF[CHỈ TIÊU]),\"\"))","v":"01_Lợi nhuận trước thuế"},{"$f":"L_LV[LĨNH VỰC]","v":"Hoạt động sản xuất"},{"$f":"L_KV[KHU VỰC]","v":"Miền Bắc"},{"$f":"L_KY[KỲ BÁO CÁO]","v":"Q2501"}]
[false,false,"AAA","KQKD","N2","20_;AAA","001_;Doanh thu bán hàng & cung cấp dịch vụ","112_;Các khoản tương đương tiền","002_;Các khoản giảm trừ","021_;Đầu tư nắm giữ đến ngày đáo hạn ngắn hạn","_ĐIỀU CHỈNH CHO CÁC KHOẢN","Hoạt động kinh doanh thương  mại","Miền Nam","Q2502"]
[null,null,"HII",0,"N3","30_;HII","002_;Các khoản giảm trừ","121_;Chứng khoán kinh doanh","011_;Giá vốn hàng bán","022_;Đầu tư nắm giữ đến ngày đáo hạn dài hạn","02_Khấu hao tài sản cố định và BĐSĐT","Kinh doanh nhà xưởng, cho thuê đất và hạ tầng KCN","Miền Trung","Q2503"]
[null,null,"NHH","TS ngắn","N4","15_;ATT","011_;Giá vốn hàng bán","122_;Dự phòng giảm giá chứng khoán kinh doanh *","021_;Lãi/lỗ bán, thanh lý BĐS đầu tư","023_;Đầu tư vào công ty con","02ᵇKhấu hao tài sản sinh học","Hoạt động khác",null,"Q2504"]
[null,null,"PBAT","TS dài","N5","46_;ATZ","021_;Lãi/lỗ bán, thanh lý BĐS đầu tư","123_;Đầu tư nắm giữ đến ngày đáo hạn ngắn hạn","022_;Doanh thu hoạt động tài chính","024_;Đầu tư vào công ty liên kết","02ᶜPhân bổ lợi thế thương mại","Điều chỉnh và loại trừ",null,"Q2601"]
[null,null,"APC","Nợ ngắn","N6","22_;ATS","022_;Doanh thu hoạt động tài chính","124_;Dự phòng đầu tư nắm giữ đến ngày đáo hạn ngắn hạn *","023_;Chi phí tài chính","025_;Đầu tư góp vốn vào đơn vị khác","03_Các khoản dự phòng",null,null,"Q2602"]
[null,null,"AP1","Nợ dài","BP","39_;AVP","023_;Chi phí tài chính","125_;Đầu tư ngắn hạn khác","025_;Chi phí bán hàng","026_;Chứng khoán kinh doanh","04_(Lãi)/lỗ CLTG do đánh giá lại các khoản mục tiền tệ gốc ngoại tệ",null,null,"Q2603"]
[null,null,null,"Vốn khác","N¹¹","17_;APC","024_;- Trong đó: chi phí đi vay","126_;Dự phòng tổn thất các khoản đầu tư ngắn hạn khác *","026_;Chi phí quản lý doanh nghiệp","027_;Dự phòng giảm giá chứng khoán kinh doanh *","05_(Lãi)/lỗ từ hoạt động đầu tư, tài chính",null,null,"Q2604"]
[null,null,null,"Vốn góp","N¹²","85_;AP1","025_;Chi phí bán hàng","131_;Phải thu ngắn hạn của khách hàng","027_;Phần lãi (lỗ) trong cty liên kết, liên doanh","028_;Dự phòng đầu tư tài chính dài hạn *","06_Chi phí đi vay"]
[null,null,null,null,null,"31_;LĐ","026_;Chi phí quản lý doanh nghiệp","132_;Trả trước cho người bán ngắn hạn","031_;Thu nhập khác","031_;Phải thu ngắn hạn của khách hàng","07_Các khoản điều chỉnh khác"]
[null,null,null,null,null,"40_;NHH","027_;Phần lãi (lỗ) trong cty liên kết, liên doanh","133_;Phải thu nội bộ ngắn hạn","032_;Chi phí khác","031s;Phải thu ngắn hạn của khách hàng","08_LỢI NHUẬN/(LỖ) TỪ HĐKD TRƯỚC THAY ĐỔI VLĐ"]
[null,null,null,null,null,"36_;ACP","031_;Thu nhập khác","134_;Phải thu theo tiến độ HĐXD","051_;Chi phí thuế TNDN hiện hành","032_;Phải thu dài hạn của khách hàng","09_(Tăng)/giảm các khoản phải thu"]
[null,null,null,null,null,"24_;ATI","032_;Chi phí khác","135_;Các khoản phải thu khác","052_;Chi phí thuế TNDN hoãn lại","032s;Phải thu dài hạn của khách hàng","10_(Tăng)/giảm hàng tồn kho"]
[null,null,null,null,null,"87_;VIE","051_;Chi phí thuế TNDN hiện hành","136_;Dự phòng phải thu ngắn hạn khó đòi *","062_;Lợi nhuận sau thuế của CĐ không ks","033_;Trả trước cho người bán ngắn hạn","11_Tăng/(giảm) các khoản phải trả"]
[null,null,null,null,null,"61_;PBAT","052_;Chi phí thuế TNDN hoãn lại","137_;Tài sản thiếu chờ xử lý",null,"033s;Trả trước cho người bán ngắn hạn","12_(Tăng)/giảm chi phí chờ phân bổ"]
[null,null,null,null,null,"62_;Ankor","062_;Lợi nhuận sau thuế của CĐ không ks","141_;Hàng tồn kho",null,"034_;Trả trước cho người bán dài hạn","13_(Tăng)/giảm chứng khoán kinh doanh"]
[null,null,null,null,null,"83_;APA","111_;Tiền","142_;Dự phòng giảm giá hàng tồn kho *",null,"034s;Trả trước cho người bán dài hạn","14_Chi phí đi vay đã trả"]
[null,null,null,null,null,"29_;AFC","112_;Các khoản tương đương tiền","151_;Con vật nuôi lấy sản phẩm một lần ngắn hạn",null,"041_;Phải thu khác ngắn hạn","15_Thuế thu nhập doanh nghiệp đã nộp"]
[null,null,null,null,null,"28_;APS","121_;Chứng khoán kinh doanh","152_;Cây trồng theo mùa vụ hoặc lấy SP một lần ngắn hạn",null,"041s;Phải thu khác ngắn hạn","16_Tiền thu khác từ hoạt động kinh doanh"]
[null,null,null,null,null,"68_;VBC","122_;Dự phòng giảm giá chứng khoán kinh doanh *","153_;Dự phòng tổn thất tài sản sinh học ngắn hạn",null,"042_;Phải thu khác dài hạn","17_Tiền chi khác cho hoạt động kinh doanh"]
[null,null,null,null,null,"42_;SUN","123_;Đầu tư nắm giữ đến ngày đáo hạn ngắn hạn","161_;Chi phí chờ phân bổ ngắn hạn",null,"042s;Phải thu khác dài hạn","20_LƯU CHUYỂN TIỀN THUẦN TỪ HOẠT ĐỘNG KINH DOANH"]
[null,null,null,null,null,"26_;Anbio","124_;Dự phòng đầu tư nắm giữ đến ngày đáo hạn ngắn hạn *","162_;Thuế GTGT được khấu trừ",null,"043_;Dự phòng phải thu ngắn hạn khó đòi *","21_Tiền chi để mua sắm, xây dựng TSCĐ và các TSDH khác"]
[null,null,null,null,null,"57_;VMC","125_;Đầu tư ngắn hạn khác","163_;Thuế và các khoản phải thu Nhà nước",null,"044_;Dự phòng phải thu dài hạn khó đòi *","22_Tiền thu từ thanh lý, nhượng bán TSCĐ và các TSDH khác"]
[null,null,null,null,null,"19_;AĐ","126_;Dự phòng tổn thất các khoản đầu tư ngắn hạn khác *","164_;Giao dịch mua bán lại trái phiếu Chính phủ",null,"050_;Tài sản thiếu chờ xử lý","23_Tiền chi cho vay, mua các công cụ nợ của đơn vị khác"]
[null,null,null,null,null,"78_;PNV","131_;Phải thu ngắn hạn của khách hàng","165_;Tài sản ngắn hạn khác",null,"051_;Nợ xấu","24_Tiền thu hồi cho vay, bán lại các công cụ nợ của đơn vị khác"]
[null,null,null,null,null,null,"132_;Trả trước cho người bán ngắn hạn","211_;Phải thu dài hạn của khách hàng",null,"061_;Tài sản khác ngắn hạn","25_Tiền chi đầu tư góp vốn vào đơn vị khác"]
[null,null,null,null,null,null,"133_;Phải thu nội bộ ngắn hạn","212_;Trả trước cho người bán dài hạn",null,"062_;Tài sản khác dài hạn","26_Tiền thu hồi đầu tư góp vốn vào đơn vị khác"]
[null,null,null,null,null,null,"134_;Phải thu theo tiến độ HĐXD","213_;Vốn kinh doanh ở đơn vị trực thuộc",null,"063_;Phải thu nội bộ ngắn hạn","27_Tiền thu lãi cho vay"]
[null,null,null,null,null,null,"135_;Các khoản phải thu khác","214_;Phải thu nội bộ dài hạn",null,"064_;Phải thu nội bộ dài hạn","27ᵇTiền thu lãi cổ tức và lợi nhuận được chia"]
[null,null,null,null,null,null,"136_;Dự phòng phải thu ngắn hạn khó đòi *","215_;Phải thu dài hạn khác",null,"065_;Phải thu theo tiến độ HĐXD","30_LƯU CHUYỂN TIỀN THUẦN TỪ HOẠT ĐỘNG ĐẦU TƯ"]
[null,null,null,null,null,null,"137_;Tài sản thiếu chờ xử lý","216_;Dự phòng phải thu dài hạn khó đòi *",null,"071_;Hàng tồn kho","31_Tiền thu từ phát hành cổ phiếu, nhận vốn góp của CSH"]
[null,null,null,null,null,null,"141_;Hàng tồn kho","222_;Nguyên giá TSCĐ hữu hình",null,"072_;Dự phòng giảm giá hàng tồn kho *","32_Tiền trả lại vốn góp cho các CSH, mua lại cổ phiếu đã phát hành"]
[null,null,null,null,null,null,"142_;Dự phòng giảm giá hàng tồn kho *","223_;Giá trị hao mòn lũy kế TSCĐ hữu hình",null,"081_;Chi phí SXKD dở dang dài hạn","33_Tiền thu từ đi vay"]
[null,null,null,null,null,null,"151_;Con vật nuôi lấy sản phẩm một lần ngắn hạn","225_;Nguyên giá TSCĐ thuê tài chính",null,"082_;Chi phí XDCB dở dang","34_Tiền trả nợ gốc vay"]
[null,null,null,null,null,null,"152_;Cây trồng theo mùa vụ hoặc lấy SP một lần ngắn hạn","226_;Giá trị hao mòn lũy kế TSCĐ thuê tài chính",null,"091_;TSCĐ hữu hình - Nguyên giá","35_Tiền trả nợ gốc thuê tài chính"]
[null,null,null,null,null,null,"153_;Dự phòng tổn thất tài sản sinh học ngắn hạn","228_;Nguyên giá TSCĐ vô hình",null,"091s;NG TSCĐ HH đã KH hết đang sử dụng","36_Cổ tức, lợi nhuận đã trả cho chủ sở hữu"]
[null,null,null,null,null,null,"161_;Chi phí chờ phân bổ ngắn hạn","229_;Giá trị hao mòn lũy kế TSCĐ vô hình",null,"092_;TSCĐ hữu hình - Hao mòn lũy kế *","40_LƯU CHUYỂN TIỀN THUẦN TỪ HOẠT ĐỘNG TÀI CHÍNH"]
[null,null,null,null,null,null,"162_;Thuế GTGT được khấu trừ","232_;Con vật nuôi cho SP định kỳ chưa đến gđ trưởng thành",null,"101_;TSCĐ vô hình - Nguyên giá","50_LƯU CHUYỂN TIỀN THUẦN TRONG KỲ"]
[null,null,null,null,null,null,"163_;Thuế và các khoản phải thu Nhà nước","234_;Con vật nuôi cho SP định kỳ đến giai đoạn trưởng thành (nguyên giá)",null,"101s;NG TSCĐ VH đã KH hết đang sử dụng","60_TIỀN VÀ TƯƠNG ĐƯƠNG TIỀN ĐẦU KỲ"]
[null,null,null,null,null,null,"164_;Giao dịch mua bán lại trái phiếu Chính phủ","235_;Con vật nuôi cho SP định kỳ đến giai đoạn trưởng thành (KH lũy kế)",null,"102_;TSCĐ vô hình - Hao mòn lũy kế *","61_Ảnh hưởng của thay đổi tỷ giá hối đoái quy đổi ngoại tệ"]
[null,null,null,null,null,null,"165_;Tài sản ngắn hạn khác","236_;Con vật nuôi lấy sản phẩm một lần dài hạn",null,"111_;TSCĐ thuê tài chính - Nguyên giá","70_Tiền và tương đương tiền cuối kỳ"]
[null,null,null,null,null,null,"211_;Phải thu dài hạn của khách hàng","237_;Cây trồng theo mùa vụ hoặc lấy sản phẩm một lần dài hạn",null,"112_;TSCĐ thuê tài chính - Hao mòn lũy kế *",""]
[null,null,null,null,null,null,"212_;Trả trước cho người bán dài hạn","238_;Dự phòng tổn thất tài sản sinh học dài hạn *",null,"121_;Tài sản sinh học khác","01_Lợi nhuận trước thuế"]
[null,null,null,null,null,null,"213_;Vốn kinh doanh ở đơn vị trực thuộc","241_;Nguyên giá BĐS đầu tư",null,"122_;Con vật cho SP định kỳ đạt đến GĐ trưởng thành - Nguyên giá","02_Khấu hao tài sản cố định và BĐSĐT"]
[null,null,null,null,null,null,"214_;Phải thu nội bộ dài hạn","242_;Giá trị hao mòn lũy kế BĐS đầu tư *",null,"123_;Con vật cho SP định kỳ đạt đến GĐ trưởng thành - Khấu hao lũy kế","03_Các khoản dự phòng"]
[null,null,null,null,null,null,"215_;Phải thu dài hạn khác","251_;Chi phí sản xuất, kinh doanh dở dang dài hạn",null,"131_;BĐS đầu tư - Nguyên giá","04_(Lãi)/lỗ CLTG do đánh giá lại các khoản mục tiền tệ gốc ngoại tệ"]
[null,null,null,null,null,null,"216_;Dự phòng phải thu dài hạn khó đòi *","252_;Chi phí xây dựng cơ bản dở dang",null,"132_;BĐS đầu tư - Hao mòn lũy kế *","05_(Lãi)/lỗ từ hoạt động đầu tư, tài chính"]
[null,null,null,null,null,null,"222_;Nguyên giá TSCĐ hữu hình","261_;Đầu tư vào công ty con",null,"141_;Chi phí chờ phân bổ ngắn hạn","06_Chi phí đi vay"]
[null,null,null,null,null,null,"223_;Giá trị hao mòn lũy kế TSCĐ hữu hình","262_;Đầu tư vào công ty liên doanh, liên kết",null,"142_;Chi phí chờ phân bổ dài hạn","07_Các khoản điều chỉnh khác"]
[null,null,null,null,null,null,"225_;Nguyên giá TSCĐ thuê tài chính","263_;Đầu tư góp vốn vào đơn vị khác",null,"151_;Lợi thế thương mại",""]
[null,null,null,null,null,null,"226_;Giá trị hao mòn lũy kế TSCĐ thuê tài chính","264_;Dự phòng tổn thất đầu tư vào đơn vị khác dài hạn *",null,"161_;Vay và nợ thuê tài chính ngắn hạn",""]
[null,null,null,null,null,null,"228_;Nguyên giá TSCĐ vô hình","265_;Đầu tư nắm giữ đến ngày đáo hạn dài hạn",null,"162_;Vay và nợ thuê tài chính dài hạn",""]
[null,null,null,null,null,null,"229_;Giá trị hao mòn lũy kế TSCĐ vô hình","266_;Dự phòng đầu tư nắm giữ đến ngày đáo hạn dài hạn *",null,"171_;Phải trả người bán ngắn hạn",""]
[null,null,null,null,null,null,"232_;Con vật nuôi cho SP định kỳ chưa đến gđ trưởng thành","271_;Chi phí chờ phân bổ dài hạn",null,"171s;Phải trả người bán ngắn hạn",""]
[null,null,null,null,null,null,"234_;Con vật nuôi cho SP định kỳ đến giai đoạn trưởng thành (nguyên giá)","272_;Tài sản thuế thu nhập hoãn lại",null,"172_;Phải trả người bán dài hạn",""]
[null,null,null,null,null,null,"235_;Con vật nuôi cho SP định kỳ đến giai đoạn trưởng thành (KH lũy kế)","273_;Thiết bị, vật tư, phụ tùng thay thế dài hạn",null,"172s;Phải trả người bán dài hạn",""]
[null,null,null,null,null,null,"236_;Con vật nuôi lấy sản phẩm một lần dài hạn","274_;Tài sản dài hạn khác",null,"173_;Người mua trả trước ngắn hạn"]
[null,null,null,null,null,null,"237_;Cây trồng theo mùa vụ hoặc lấy sản phẩm một lần dài hạn","279_;Lợi thế thương mại",null,"173s;Người mua trả trước ngắn hạn"]
[null,null,null,null,null,null,"238_;Dự phòng tổn thất tài sản sinh học dài hạn *","311_;Phải trả người bán ngắn hạn",null,"174_;Người mua trả trước dài hạn"]
[null,null,null,null,null,null,"241_;Nguyên giá BĐS đầu tư","312_;Người mua trả trước ngắn hạn",null,"174s;Người mua trả trước dài hạn"]
[null,null,null,null,null,null,"242_;Giá trị hao mòn lũy kế BĐS đầu tư *","313_;Phải trả về cổ tức, lợi nhuận",null,"181_;Phải trả về cổ tức, lợi nhuận"]
[null,null,null,null,null,null,"251_;Chi phí sản xuất, kinh doanh dở dang dài hạn","314_;Thuế và các khoản phải nộp Nhà nước ngắn hạn",null,"182_;Quỹ khen thưởng, phúc lợi"]
[null,null,null,null,null,null,"252_;Chi phí xây dựng cơ bản dở dang","315_;Phải trả người lao động",null,"191_;Thuế và các khoản phải nộp Nhà nước"]
[null,null,null,null,null,null,"261_;Đầu tư vào công ty con","316_;Chi phí phải trả ngắn hạn",null,"192_;Thuế GTGT được khấu trừ"]
[null,null,null,null,null,null,"262_;Đầu tư vào công ty liên doanh, liên kết","317_;Phải trả nội bộ ngắn hạn",null,"201_;Chi phí phải trả ngắn hạn"]
[null,null,null,null,null,null,"263_;Đầu tư góp vốn vào đơn vị khác","318_;Phải trả theo tiến độ HĐXD ngắn hạn",null,"202_;Chi phí phải trả dài hạn"]
[null,null,null,null,null,null,"264_;Dự phòng tổn thất đầu tư vào đơn vị khác dài hạn *","319_;Doanh thu chờ phân bổ ngắn hạn",null,"211_;Phải trả ngắn hạn khác"]
[null,null,null,null,null,null,"265_;Đầu tư nắm giữ đến ngày đáo hạn dài hạn","320_;Các khoản phải trả ngắn hạn khác",null,"211s;Phải trả ngắn hạn khác"]
[null,null,null,null,null,null,"266_;Dự phòng đầu tư nắm giữ đến ngày đáo hạn dài hạn *","321_;Vay và nợ thuê tài chính ngắn hạn",null,"212_;Phải trả dài hạn khác"]
[null,null,null,null,null,null,"271_;Chi phí chờ phân bổ dài hạn","322_;Dự phòng phải trả ngắn hạn",null,"212s;Phải trả dài hạn khác"]
[null,null,null,null,null,null,"272_;Tài sản thuế thu nhập hoãn lại","323_;Quỹ khen thưởng, phúc lợi",null,"213_;Phải trả nội bộ ngắn hạn"]
[null,null,null,null,null,null,"273_;Thiết bị, vật tư, phụ tùng thay thế dài hạn","324_;Quỹ bình ổn giá",null,"214_;Phải trả nội bộ dài hạn"]
[null,null,null,null,null,null,"274_;Tài sản dài hạn khác","325_;Giao dịch mua bán lại trái phiếu Chính phủ",null,"215_;Phải trả theo tiến độ HĐXD"]
[null,null,null,null,null,null,"279_;Lợi thế thương mại","331_;Phải trả người bán dài hạn",null,"221_;Doanh thu chờ phân bổ ngắn hạn"]
[null,null,null,null,null,null,"311_;Phải trả người bán ngắn hạn","332_;Người mua trả trước dài hạn",null,"222_;Doanh thu chờ phân bổ dài hạn"]
[null,null,null,null,null,null,"312_;Người mua trả trước ngắn hạn","333_;Thuế và các khoản phải nộp Nhà nước dài hạn",null,"231_;Trái phiếu thường"]
[null,null,null,null,null,null,"313_;Phải trả về cổ tức, lợi nhuận","334_;Chi phí phải trả dài hạn",null,"232_;Trái phiếu chuyển đổi"]
[null,null,null,null,null,null,"314_;Thuế và các khoản phải nộp Nhà nước ngắn hạn","335_;Phải trả nội bộ về vốn kinh doanh",null,"241_;Cổ phiếu ưu đãi phân loại là nợ phải trả"]
[null,null,null,null,null,null,"315_;Phải trả người lao động","336_;Phải trả nội bộ dài hạn",null,"251_;Dự phòng phải trả ngắn hạn"]
[null,null,null,null,null,null,"316_;Chi phí phải trả ngắn hạn","337_;Doanh thu chờ phân bổ dài hạn",null,"252_;Dự phòng phải trả dài hạn"]
[null,null,null,null,null,null,"317_;Phải trả nội bộ ngắn hạn","338_;Phải trả dài hạn khác",null,"261_;Tài sản thuế TNDN hoãn lại"]
[null,null,null,null,null,null,"318_;Phải trả theo tiến độ HĐXD ngắn hạn","339_;Vay và nợ thuê tài chính dài hạn",null,"262_;Thuế TNDN hoãn lại phải trả"]
[null,null,null,null,null,null,"319_;Doanh thu chờ phân bổ ngắn hạn","340_;Trái phiếu chuyển đổi",null,"270_;Vốn chủ sở hữu"]
[null,null,null,null,null,null,"320_;Các khoản phải trả ngắn hạn khác","341_;Cổ phiếu ưu đãi",null,"270s;Vốn chủ sở hữu (năm trước)"]
[null,null,null,null,null,null,"321_;Vay và nợ thuê tài chính ngắn hạn","342_;Thuế thu nhập hoãn lại phải trả",null,"271_;Quỹ không thuộc CSH"]
[null,null,null,null,null,null,"322_;Dự phòng phải trả ngắn hạn","343_;Dự phòng phải trả dài hạn",null,"272_;Nguồn kinh phí"]
[null,null,null,null,null,null,"323_;Quỹ khen thưởng, phúc lợi","344_;Quỹ phát triển khoa học và công nghệ",null,"281_;Chênh lệch đánh giá lại tài sản"]
[null,null,null,null,null,null,"324_;Quỹ bình ổn giá","412_;Thặng dư vốn cổ phần",null,"291_;Chênh lệch tỷ giá"]
[null,null,null,null,null,null,"325_;Giao dịch mua bán lại trái phiếu Chính phủ","413_;Quyền chọn chuyển đổi trái phiếu",null,"311_;Doanh thu bán hàng"]
[null,null,null,null,null,null,"331_;Phải trả người bán dài hạn","414_;Vốn khác của chủ sở hữu",null,"311s;Doanh thu bán hàng"]
[null,null,null,null,null,null,"332_;Người mua trả trước dài hạn","415_;Cổ phiếu mua lại của chính mình *",null,"312_;Giảm trừ doanh thu"]
[null,null,null,null,null,null,"333_;Thuế và các khoản phải nộp Nhà nước dài hạn","416_;Chênh lệch đánh giá lại tài sản",null,"320_;Giá vốn hàng bán"]
[null,null,null,null,null,null,"334_;Chi phí phải trả dài hạn","417_;Chênh lệch tỷ giá hối đoái",null,"320s;Giá vốn hàng bán"]
[null,null,null,null,null,null,"335_;Phải trả nội bộ về vốn kinh doanh","418_;Quỹ đầu tư phát triển",null,"331_;Doanh thu tài chính"]
[null,null,null,null,null,null,"336_;Phải trả nội bộ dài hạn","419_;Quỹ khác thuộc vốn chủ sở hữu",null,"332_;Chi phí tài chính"]
[null,null,null,null,null,null,"337_;Doanh thu chờ phân bổ dài hạn","41a_;Cổ phiếu phổ thông có quyền biểu quyết",null,"341_;Chi phí bán hàng"]
[null,null,null,null,null,null,"338_;Phải trả dài hạn khác","41b_;Cổ phiếu ưu đãi",null,"342_;Chi phí QLDN"]
[null,null,null,null,null,null,"339_;Vay và nợ thuê tài chính dài hạn","429_;Lợi ích của cổ đông không kiểm soát",null,"351_;Thu nhập khác"]
[null,null,null,null,null,null,"340_;Trái phiếu chuyển đổi","42a_;LNST chưa phân phối lũy kế đến cuối kỳ trước",null,"352_;Chi phí khác"]
[null,null,null,null,null,null,"341_;Cổ phiếu ưu đãi","42b_;LNST chưa phân phối kỳ này",null,"361_;Chi phí thuế TNDN hiện hành"]
[null,null,null,null,null,null,"342_;Thuế thu nhập hoãn lại phải trả",null,null,"362_;Chi phí thuế TNDN hoãn lại"]
[null,null,null,null,null,null,"343_;Dự phòng phải trả dài hạn",null,null,"370_;Chi phí SXKD theo yếu tố"]
[null,null,null,null,null,null,"344_;Quỹ phát triển khoa học và công nghệ",null,null,"381_;Doanh thu bộ phận"]
[null,null,null,null,null,null,"412_;Thặng dư vốn cổ phần",null,null,"382_;LN sau thuế bộ phận"]
[null,null,null,null,null,null,"413_;Quyền chọn chuyển đổi trái phiếu",null,null,"383_;Tài sản bộ phận"]
[null,null,null,null,null,null,"414_;Vốn khác của chủ sở hữu",null,null,"384_;Nợ phải trả bộ phận"]
[null,null,null,null,null,null,"415_;Cổ phiếu mua lại của chính mình *",null,null,"404_;CP lãi vay bị khống chế chuyển năm sau"]
[null,null,null,null,null,null,"416_;Chênh lệch đánh giá lại tài sản",null,null,"407_;Cam kết đi thuê"]
[null,null,null,null,null,null,"417_;Chênh lệch tỷ giá hối đoái",null,null,"409_;Chuyển lỗ"]
[null,null,null,null,null,null,"418_;Quỹ đầu tư phát triển",null,null,"425_;Số người lao động"]
[null,null,null,null,null,null,"419_;Quỹ khác thuộc vốn chủ sở hữu",null,null,"441_;Cam kết cho thuê"]
[null,null,null,null,null,null,"41a_;Cổ phiếu phổ thông có quyền biểu quyết",null,null,"029_;Dự phòng đầu tư nắm giữ đến ngày đáo hạn ngắn hạn *"]
[null,null,null,null,null,null,"41b_;Cổ phiếu ưu đãi",null,null,"059_;Dự phòng đầu tư nắm giữ đến ngày đáo hạn dài hạn *"]
[null,null,null,null,null,null,"429_;Lợi ích của cổ đông không kiểm soát",null,null,";0"]
[null,null,null,null,null,null,"42a_;LNST chưa phân phối lũy kế đến cuối kỳ trước",null,null,";0"]
[null,null,null,null,null,null,"42b_;LNST chưa phân phối kỳ này"]

{"sheet":"Tập đoàn","index":1,"n_rows":28,"n_cols":12,"rows_kept":28,"cut":false,"hidden":false,"merged":[[0,0,3,0]]}
[{"$f":"'✅'!A1","v":"AnPhat Holding"}]
[]
[null,null,"TẬP ĐOÀN"]
[]
["BCTC hợp nhất²",null,"TẬP ĐOÀN","CTY MẸ","KH CTY MẸ","_","KH CTY MẸ",null,{"$f":"_xlfn.LET(_xlpm.a,_xlfn.TEXTJOIN(\";\",TRUE,L_TĐ[TẬP ĐOÀN]),_xlpm.b,L_TĐ[TẬP ĐOÀN],_xlpm.c,ROWS(_xlpm.a),_xlpm.d,ROWS(_xlpm.b),_xlpm.e,_xlpm.c+_xlpm.d,IF(_xlfn.SEQUENCE(_xlpm.e)<=_xlpm.c,INDEX(_xlpm.a,_xlfn.SEQUENCE(_xlpm.c),{1}),INDEX(_xlpm.b,_xlfn.SEQUENCE(_xlpm.e)-_xlpm.c,{1})))","v":"APH;AAA;HII;NHH;PBAT;APC;AP1"},null,"Kiểm tra trùng","Kiểm tra lồng"]
[null,null,"APH","10_",{"$f":"_xlfn.XLOOKUP(L_TĐ[[#This Row],[CTY MẸ]],L_CTY[MÃ],L_CTY[KÝ HIỆU])","v":"APH"},null,{"$f":"_xlfn.XLOOKUP(L_TĐ[CTY MẸ],L_CTY[MÃ],L_CTY[KÝ HIỆU],\"-\")","v":"APH"},null,"APH",null,{"$f":"_Trùng(L_TĐ[TẬP ĐOÀN])","v":"null"},{"$f":"_Lồng(L_TĐ[TẬP ĐOÀN])","v":"null"}]
[null,null,"AAA","20_",{"$f":"_xlfn.XLOOKUP(L_TĐ[[#This Row],[CTY MẸ]],L_CTY[MÃ],L_CTY[KÝ HIỆU])","v":"AAA"},null,"AAA",null,"AAA"]
["Tập đoàn",null,"HII","30_",{"$f":"_xlfn.XLOOKUP(L_TĐ[[#This Row],[CTY MẸ]],L_CTY[MÃ],L_CTY[KÝ HIỆU])","v":"HII"},null,"HII",null,"HII"]
[null,null,"NHH","40_",{"$f":"_xlfn.XLOOKUP(L_TĐ[[#This Row],[CTY MẸ]],L_CTY[MÃ],L_CTY[KÝ HIỆU])","v":"NHH"},null,"NHH",null,"NHH"]
["Danh mục công ty",null,"PBAT","61_",{"$f":"_xlfn.XLOOKUP(L_TĐ[[#This Row],[CTY MẸ]],L_CTY[MÃ],L_CTY[KÝ HIỆU])","v":"PBAT"},null,"PBAT",null,"PBAT"]
[null,null,"APC","17_",{"$f":"_xlfn.XLOOKUP(L_TĐ[[#This Row],[CTY MẸ]],L_CTY[MÃ],L_CTY[KÝ HIỆU])","v":"APC"},null,"APC",null,"APC"]
["Thông tin công ty",null,"AP1","85_",{"$f":"_xlfn.XLOOKUP(L_TĐ[[#This Row],[CTY MẸ]],L_CTY[MÃ],L_CTY[KÝ HIỆU])","v":"AP1"},null,"AP1",null,"AP1"]
[]
["Tài khoản kế toán"]
[]
["Chỉ tiêu báo cáo"]
[]
["Chỉ tiêu thuyết minh"]
[]
["Map chỉ tiêu BC-TM"]
[]
["Chỉ tiêu dòng tiền"]
[]
["Phân loại vốn vay"]
[]
["Danh mục khác"]
[]
["Tùy chọn"]

{"sheet":"TTCty","index":2,"n_rows":30,"n_cols":12,"rows_kept":30,"cut":false,"hidden":false,"merged":[[0,0,3,0]]}
[{"$f":"'✅'!A1","v":"AnPhat Holding"},null,{"$f":"Range2(L_CT2[MÃ])","v":"C6:C30"}]
[]
[null,null,{"$f":"COUNTA(L_CT2[MÃ])","v":25},null,"THÔNG TIN CÔNG TY"]
[null,null,"⏬",null,null,null,null,null,null,null,null,"Kiểm tra trùng"]
["BCTC hợp nhất",null,"MÃ","TÊN THEO DANH SÁCH","TÊN CÔNG TY","ĐỊA CHỈ","NGÀNH NGHỀ KINH DOANH","COMPANY NAME","ADDRESS","BUSINESS SECTOR",null,"MÃ"]
[null,null,"10_",{"$f":"_xlfn.XLOOKUP(L_CT2[[#This Row],[MÃ]],L_CTY[MÃ],L_CTY[TÊN CÔNG TY],\"-\")","v":"Công ty CP Tập đoàn An Phát Holdings"},"Công ty CP Tập đoàn An Phát Holdings","Hải Phòng",null,"An Phat Holdings Joint Stock Company","Hai Phong","",null,{"$f":"_Trùng(L_CT2[MÃ])","v":"null"}]
[null,null,"20_",{"$f":"_xlfn.XLOOKUP(L_CT2[[#This Row],[MÃ]],L_CTY[MÃ],L_CTY[TÊN CÔNG TY],\"-\")","v":"Công ty CP Nhựa An Phát Xanh"},"Công ty CP Nhựa An Phát Xanh","Hải Phòng",null,"An Phat Bioplastics Joint Stock Company","Hai Phong",""]
["Tập đoàn",null,"30_",{"$f":"_xlfn.XLOOKUP(L_CT2[[#This Row],[MÃ]],L_CTY[MÃ],L_CTY[TÊN CÔNG TY],\"-\")","v":"Công ty CP An Tiến Industries"},"Công ty CP An Tiến Industries","Yên Bái","Sản xuất sản phẩm từ nhựa plastic, chi tiết sản xuất sản phẩm nhựa","An Tien Industries Joint Stock Company","Yen Bai","Manufacturing plastic products, additives and stone powder"]
[null,null,"15_",{"$f":"_xlfn.XLOOKUP(L_CT2[[#This Row],[MÃ]],L_CTY[MÃ],L_CTY[TÊN CÔNG TY],\"-\")","v":"Công ty CP An Thành Biscol"},"Công ty CP An Thành Bicsol","Hải Phòng","Kinh doanh hạt nhựa","An Thanh Bicsol Joint Stock Company","Hai Phong","Plastic beads trading"]
["Danh mục công ty",null,"46_",{"$f":"_xlfn.XLOOKUP(L_CT2[[#This Row],[MÃ]],L_CTY[MÃ],L_CTY[TÊN CÔNG TY],\"-\")","v":"Công ty CP Liên vận An Tín"},"Công ty CP Liên vận An Tín","Hải Phòng",null,"An Tin Inter - Transport Joint Stock Company","Hai Phong"]
[null,null,"22_",{"$f":"_xlfn.XLOOKUP(L_CT2[[#This Row],[MÃ]],L_CTY[MÃ],L_CTY[TÊN CÔNG TY],\"-\")","v":"An Thanh Bicsol Singapore PTE. Ltd"},"An Thanh Bicsol Singapore PTE. Ltd","Singapore",null,"An Thanh Bicsol Singapore PTE. Ltd","Singapore"]
["Thông tin công ty",null,"39_",{"$f":"_xlfn.XLOOKUP(L_CT2[[#This Row],[MÃ]],L_CTY[MÃ],L_CTY[TÊN CÔNG TY],\"-\")","v":"Công ty CP Nhựa Bao bì An Vinh"},"Công ty CP Nhựa Bao bì An Vinh","Hải Phòng","Sản suất sản phẩm nhựa bao bì","An Vinh Packaging Joint Stock Company","Hai Phong","Manufactoring and trading plastic products"]
[null,null,"17_",{"$f":"_xlfn.XLOOKUP(L_CT2[[#This Row],[MÃ]],L_CTY[MÃ],L_CTY[TÊN CÔNG TY],\"-\")","v":"Công ty CP KCN Kỹ thuật cao An Phát"},"Công ty CP KCN Kỹ thuật cao An Phát","Hải Phòng","Phát triển hạ tầng khu công nghiệp ","An Phat High-Technology Industrial Park Joint Stock Company","Hai Phong","Industrial park infrastructure development"]
["Tài khoản kế toán",null,"85_",{"$f":"_xlfn.XLOOKUP(L_CT2[[#This Row],[MÃ]],L_CTY[MÃ],L_CTY[TÊN CÔNG TY],\"-\")","v":"Công ty CP KCN Kỹ thuật cao An Phát 1"},"Công ty CP KCN Kỹ thuật cao An Phát 1","Hải Phòng","Phát triển hạ tầng khu công nghiệp ","An Phat High-Tech Industrial Park No.1 Joint Stock Company","Hai Phong","Industrial park infrastructure development"]
[null,null,"31_",{"$f":"_xlfn.XLOOKUP(L_CT2[[#This Row],[MÃ]],L_CTY[MÃ],L_CTY[TÊN CÔNG TY],\"-\")","v":"Công ty CP Khu CN Lương Điền Ngọc Liên"},"Công ty CP KCN Lương Điền Ngọc Liên","Hải Phòng","Phát triển hạ tầng khu công nghiệp ","Luong Dien Ngoc Lien Industrial Park Joint Stock Company","Hai Phong","Industrial park infrastructure development"]
["Chỉ tiêu báo cáo",null,"40_",{"$f":"_xlfn.XLOOKUP(L_CT2[[#This Row],[MÃ]],L_CTY[MÃ],L_CTY[TÊN CÔNG TY],\"-\")","v":"Công ty CP Nhựa Hà Nội"},"Công ty CP Nhựa Hà Nội","Hà Nội","Sản xuất linh kiện, phụ kiện nhựa ngành ô tô, xe máy, linh kiện nhựa điện tử","Hanoi Plastic Joint Stock Company","Ha Noi","Manufacturing, trading industrial plastic parts and molds"]
[null,null,"36_",{"$f":"_xlfn.XLOOKUP(L_CT2[[#This Row],[MÃ]],L_CTY[MÃ],L_CTY[TÊN CÔNG TY],\"-\")","v":"Công ty CP VLXD công nghệ cao An Cường"},{"$f":"IFERROR(_xlfn.XLOOKUP(L_CT2[[#This Row],[MÃ]],L_CTY[MÃ],L_CTY[TÊN CÔNG TY]),\"-\")","v":"Công ty CP VLXD công nghệ cao An Cường"},"Hải Phòng","Sản xuất vật liệu xây dựng, vật liệu trang trí nội thất","An Cuong High-tech Building Materials Joint Stock Company","Hai Phong","Manufacturing construction materials, interior decoration materials"]
["Chỉ tiêu thuyết minh",null,"24_",{"$f":"_xlfn.XLOOKUP(L_CT2[[#This Row],[MÃ]],L_CTY[MÃ],L_CTY[TÊN CÔNG TY],\"-\")","v":"Công ty TNHH An Trung Industries"},{"$f":"IFERROR(_xlfn.XLOOKUP(L_CT2[[#This Row],[MÃ]],L_CTY[MÃ],L_CTY[TÊN CÔNG TY]),\"-\")","v":"Công ty TNHH An Trung Industries"},"Hải Phòng","Sản xuất hạt nhựa, các sản phẩm nhựa ","An Trung Industries Company Limited","Hai Phong","Manufacturing plastic beads and plastic products"]
[null,null,"87_",{"$f":"_xlfn.XLOOKUP(L_CT2[[#This Row],[MÃ]],L_CTY[MÃ],L_CTY[TÊN CÔNG TY],\"-\")","v":"Công ty TNHH PT XNK và Đầu tư - VIEXIM"},{"$f":"IFERROR(_xlfn.XLOOKUP(L_CT2[[#This Row],[MÃ]],L_CTY[MÃ],L_CTY[TÊN CÔNG TY]),\"-\")","v":"Công ty TNHH PT XNK và Đầu tư - VIEXIM"},"Hưng Yên","Sản xuất linh kiện, phụ kiện nhựa ngành ô tô, xe máy, linh kiện nhựa điện tử","Export Import Development Investment Company Limited","Hung Yen","Manufacturing and trading plastic products"]
["Map chỉ tiêu BC-TM",null,"57_",{"$f":"_xlfn.XLOOKUP(L_CT2[[#This Row],[MÃ]],L_CTY[MÃ],L_CTY[TÊN CÔNG TY],\"-\")","v":"Công ty TNHH MTV CKCX và CTKM Việt Nam"},"Công ty TNHH MTV Cơ khí chính xác và chế tạo khuôn mẫu Việt Nam","Hải Phòng",null,"Vietnam Pattern Manufacture and Precision Mechanical Company Limited","Hai Phong"]
[null,null,"61_",{"$f":"_xlfn.XLOOKUP(L_CT2[[#This Row],[MÃ]],L_CTY[MÃ],L_CTY[TÊN CÔNG TY],\"-\")","v":"Công ty CP Sản xuất PBAT An Phát"},"Công ty CP Sản xuất PBAT An Phát","Hải Phòng","Sản xuất plastic và cao su tổng hợp dạng nguyên sinh ","PBAT An Phat Joint Stock Company","Hai Phong","Manufacturing products from plastic and synthetic rubber in primary forms"]
["Chỉ tiêu dòng tiền",null,"62_",{"$f":"_xlfn.XLOOKUP(L_CT2[[#This Row],[MÃ]],L_CTY[MÃ],L_CTY[TÊN CÔNG TY],\"-\")","v":"Ankor Bioplastics"},"Ankor Bioplastics Co.Ltd","Hàn Quốc","Sản xuất hạt nhựa, các sản phẩm nhựa phân hủy","Ankor Bioplastics Co.Ltd","Korea","Manufacturing products from plastic and degradable plastic"]
[null,null,"83_",{"$f":"_xlfn.XLOOKUP(L_CT2[[#This Row],[MÃ]],L_CTY[MÃ],L_CTY[TÊN CÔNG TY],\"-\")","v":"An Phat International INC"},"An Phat International INC ","USA","Đầu tư, kinh doanh các sản phẩm màng mỏng và các sản phẩm nhựa khác","An Phat International INC ","USA","Investing, trading low density films and other plastic products"]
["Phân loại vốn vay",null,"29_",{"$f":"_xlfn.XLOOKUP(L_CT2[[#This Row],[MÃ]],L_CTY[MÃ],L_CTY[TÊN CÔNG TY],\"-\")","v":"AFC EcoPlastics LLC"},"AFC EcoPlastics LLC ","USA","Kinh doanh hạt nhựa","AFC EcoPlastics LLC ","USA","Plastic beads trading"]
[null,null,"19_",{"$f":"_xlfn.XLOOKUP(L_CT2[[#This Row],[MÃ]],L_CTY[MÃ],L_CTY[TÊN CÔNG TY],\"-\")","v":"Công ty CP dịch vụ xăng dầu An Đông"},"Công ty CP dịch vụ xăng dầu An Đông","Hải Phòng",null,null,"Hai Phong"]
["Danh mục khác",null,"28_",{"$f":"_xlfn.XLOOKUP(L_CT2[[#This Row],[MÃ]],L_CTY[MÃ],L_CTY[TÊN CÔNG TY],\"-\")","v":"Công ty CP DV Suất ăn CN An Phát"},"Công ty CP DV Suất ăn CN An Phát","Hải Phòng",null,"An Phat Catering Services Joint Stock Company ","Hai Phong",""]
[null,null,"68_",{"$f":"_xlfn.XLOOKUP(L_CT2[[#This Row],[MÃ]],L_CTY[MÃ],L_CTY[TÊN CÔNG TY],\"-\")","v":"Công ty CP nhựa Bao Bì Vinh"},"Công ty CP nhựa Bao Bì Vinh","Nghệ An",null,"Vinh Plastic and Bags Joint Stock Company","Nghe An",""]
["Tùy chọn",null,"42_",{"$f":"_xlfn.XLOOKUP(L_CT2[[#This Row],[MÃ]],L_CTY[MÃ],L_CTY[TÊN CÔNG TY],\"-\")","v":"Công ty CP SX Tổng hợp Sunrise Việt Nam"},"Công ty CP SX Tổng hợp Sunrise Việt Nam","Hải Phòng",null,"Sunrise Vietnam Production Joint Stock Company","Hai Phong",""]
[null,null,"26_",{"$f":"_xlfn.XLOOKUP(L_CT2[[#This Row],[MÃ]],L_CTY[MÃ],L_CTY[TÊN CÔNG TY],\"-\")","v":"Công ty CP Anbio"},"Công ty CP Anbio","Hải Phòng",null,"Anbio Joint Stock Company","Hai Phong",""]
[null,null,"78_",{"$f":"_xlfn.XLOOKUP(L_CT2[[#This Row],[MÃ]],L_CTY[MÃ],L_CTY[TÊN CÔNG TY],\"-\")","v":"Công ty CP Giải pháp và  Dịch vụ phần mềm Nam Việt"},"Công ty CP Giải pháp và  Dịch vụ phần mềm Nam Việt","Hà Nội",null,null,"Ha Noi",""]

{"sheet":"TKKT","index":3,"n_rows":56,"n_cols":10,"rows_kept":56,"cut":false,"hidden":false,"merged":[[0,0,3,0]]}
[{"$f":"'✅'!A1","v":"AnPhat Holding"}]
[]
[null,null,null,"TÀI KHOẢN KẾ TOÁN"]
[]
[{"$f":"'Công ty'!A5","v":"BCTC hợp nhất"},null,"MÃ TK","Tên tài khoản","±","Loại","Mã FS","Tên chỉ tiêu BCTC",null,"Trùng"]
[null,null,"111*","Tiền mặt",null,null,null,{"$f":"_xlfn.XLOOKUP(L_TB[[#This Row],[Mã FS]],L_FS[MÃ],L_FS[CHỈ TIÊU],\"-\")","v":"-"},null,{"$f":"_Trùng(L_TB[MÃ TK])","v":"null"}]
[null,null,"112*","Tiền gửi không kỳ hạn",null,null,null,{"$f":"_xlfn.XLOOKUP(L_TB[[#This Row],[Mã FS]],L_FS[MÃ],L_FS[CHỈ TIÊU],\"-\")","v":"-"}]
["Tập đoàn",null,"113*","Tiền đang chuyển",null,null,null,{"$f":"_xlfn.XLOOKUP(L_TB[[#This Row],[Mã FS]],L_FS[MÃ],L_FS[CHỈ TIÊU],\"-\")","v":"-"}]
[null,null,"128*","Đầu tư nắm giữ đến ngày đáo hạn",null,null,null,{"$f":"_xlfn.XLOOKUP(L_TB[[#This Row],[Mã FS]],L_FS[MÃ],L_FS[CHỈ TIÊU],\"-\")","v":"-"}]
["Danh mục công ty",null,"131*","Phải thu của khách hàng",null,null,null,{"$f":"_xlfn.XLOOKUP(L_TB[[#This Row],[Mã FS]],L_FS[MÃ],L_FS[CHỈ TIÊU],\"-\")","v":"-"}]
[null,null,"133*","Thuế giá trị gia tăng được khấu trừ",null,null,null,{"$f":"_xlfn.XLOOKUP(L_TB[[#This Row],[Mã FS]],L_FS[MÃ],L_FS[CHỈ TIÊU],\"-\")","v":"-"}]
["Thông tin công ty",null,"138*","Phải thu khác",null,null,null,{"$f":"_xlfn.XLOOKUP(L_TB[[#This Row],[Mã FS]],L_FS[MÃ],L_FS[CHỈ TIÊU],\"-\")","v":"-"}]
[null,null,"141*","Tạm ứng",null,null,null,{"$f":"_xlfn.XLOOKUP(L_TB[[#This Row],[Mã FS]],L_FS[MÃ],L_FS[CHỈ TIÊU],\"-\")","v":"-"}]
["Tài khoản kế toán",null,"151*","Hàng mua đang đi trên đường",null,null,null,{"$f":"_xlfn.XLOOKUP(L_TB[[#This Row],[Mã FS]],L_FS[MÃ],L_FS[CHỈ TIÊU],\"-\")","v":"-"}]
[null,null,"152*","Nguyên liệu, vật liệu",null,null,null,{"$f":"_xlfn.XLOOKUP(L_TB[[#This Row],[Mã FS]],L_FS[MÃ],L_FS[CHỈ TIÊU],\"-\")","v":"-"}]
["Chỉ tiêu báo cáo",null,"153*","Công cụ, dụng cụ",null,null,null,{"$f":"_xlfn.XLOOKUP(L_TB[[#This Row],[Mã FS]],L_FS[MÃ],L_FS[CHỈ TIÊU],\"-\")","v":"-"}]
[null,null,"154*","Chi phí sản xuất kinh doanh dở dang",null,null,null,{"$f":"_xlfn.XLOOKUP(L_TB[[#This Row],[Mã FS]],L_FS[MÃ],L_FS[CHỈ TIÊU],\"-\")","v":"-"}]
["Chỉ tiêu thuyết minh",null,"155*","Sản phẩm",null,null,null,{"$f":"_xlfn.XLOOKUP(L_TB[[#This Row],[Mã FS]],L_FS[MÃ],L_FS[CHỈ TIÊU],\"-\")","v":"-"}]
[null,null,"156*","Hàng hóa",null,null,null,{"$f":"_xlfn.XLOOKUP(L_TB[[#This Row],[Mã FS]],L_FS[MÃ],L_FS[CHỈ TIÊU],\"-\")","v":"-"}]
["Map chỉ tiêu BC-TM",null,"157*","Hàng gửi đi bán",null,null,null,{"$f":"_xlfn.XLOOKUP(L_TB[[#This Row],[Mã FS]],L_FS[MÃ],L_FS[CHỈ TIÊU],\"-\")","v":"-"}]
[null,null,"211*","Tài sản cố định hữu hình",null,null,null,{"$f":"_xlfn.XLOOKUP(L_TB[[#This Row],[Mã FS]],L_FS[MÃ],L_FS[CHỈ TIÊU],\"-\")","v":"-"}]
["Chỉ tiêu dòng tiền",null,"213*","TSCĐ vô hình",null,null,null,{"$f":"_xlfn.XLOOKUP(L_TB[[#This Row],[Mã FS]],L_FS[MÃ],L_FS[CHỈ TIÊU],\"-\")","v":"-"}]
[null,null,"214*","Hao mòn tài sản cố định",null,null,null,{"$f":"_xlfn.XLOOKUP(L_TB[[#This Row],[Mã FS]],L_FS[MÃ],L_FS[CHỈ TIÊU],\"-\")","v":"-"}]
["Phân loại vốn vay",null,"221*","Đầu tư chứng khoán dài hạn",null,null,null,{"$f":"_xlfn.XLOOKUP(L_TB[[#This Row],[Mã FS]],L_FS[MÃ],L_FS[CHỈ TIÊU],\"-\")","v":"-"}]
[null,null,"222*","Đầu tư vào công ty liên doanh, liên kết",null,null,null,{"$f":"_xlfn.XLOOKUP(L_TB[[#This Row],[Mã FS]],L_FS[MÃ],L_FS[CHỈ TIÊU],\"-\")","v":"-"}]
["Danh mục khác",null,"228*","Đầu tư khác",null,null,null,{"$f":"_xlfn.XLOOKUP(L_TB[[#This Row],[Mã FS]],L_FS[MÃ],L_FS[CHỈ TIÊU],\"-\")","v":"-"}]
[null,null,"229*","Dự phòng tổn thất tài sản",null,null,null,{"$f":"_xlfn.XLOOKUP(L_TB[[#This Row],[Mã FS]],L_FS[MÃ],L_FS[CHỈ TIÊU],\"-\")","v":"-"}]
["Tùy chọn",null,"241*","Xây dựng cơ bản dở dang",null,null,null,{"$f":"_xlfn.XLOOKUP(L_TB[[#This Row],[Mã FS]],L_FS[MÃ],L_FS[CHỈ TIÊU],\"-\")","v":"-"}]
[null,null,"242*","Chi phí chờ phân bổ",null,null,null,{"$f":"_xlfn.XLOOKUP(L_TB[[#This Row],[Mã FS]],L_FS[MÃ],L_FS[CHỈ TIÊU],\"-\")","v":"-"}]
[null,null,"243*","Tài sản thuế thu nhập hoãn lại",null,null,null,{"$f":"_xlfn.XLOOKUP(L_TB[[#This Row],[Mã FS]],L_FS[MÃ],L_FS[CHỈ TIÊU],\"-\")","v":"-"}]
[null,null,"244*","Cầm cố, thế chấp, ký quỹ, ký cược",null,null,null,{"$f":"_xlfn.XLOOKUP(L_TB[[#This Row],[Mã FS]],L_FS[MÃ],L_FS[CHỈ TIÊU],\"-\")","v":"-"}]
[null,null,"331*","Phải trả cho người bán",null,null,null,{"$f":"_xlfn.XLOOKUP(L_TB[[#This Row],[Mã FS]],L_FS[MÃ],L_FS[CHỈ TIÊU],\"-\")","v":"-"}]
[null,null,"332*","Phải trả cổ tức, lợi nhuận",null,null,null,{"$f":"_xlfn.XLOOKUP(L_TB[[#This Row],[Mã FS]],L_FS[MÃ],L_FS[CHỈ TIÊU],\"-\")","v":"-"}]
[null,null,"333*","Thuế và các khoản phải nộp nhà nước",null,null,null,{"$f":"_xlfn.XLOOKUP(L_TB[[#This Row],[Mã FS]],L_FS[MÃ],L_FS[CHỈ TIÊU],\"-\")","v":"-"}]
[null,null,"334*","Phải trả người lao động",null,null,null,{"$f":"_xlfn.XLOOKUP(L_TB[[#This Row],[Mã FS]],L_FS[MÃ],L_FS[CHỈ TIÊU],\"-\")","v":"-"}]
[null,null,"335*","Chi phí phải trả",null,null,null,{"$f":"_xlfn.XLOOKUP(L_TB[[#This Row],[Mã FS]],L_FS[MÃ],L_FS[CHỈ TIÊU],\"-\")","v":"-"}]
[null,null,"338*","Phải trả và phải nộp khác",null,null,null,{"$f":"_xlfn.XLOOKUP(L_TB[[#This Row],[Mã FS]],L_FS[MÃ],L_FS[CHỈ TIÊU],\"-\")","v":"-"}]
[null,null,"341*","Vay và nợ thuê tài chính",null,null,null,{"$f":"_xlfn.XLOOKUP(L_TB[[#This Row],[Mã FS]],L_FS[MÃ],L_FS[CHỈ TIÊU],\"-\")","v":"-"}]
[null,null,"353*","Quỹ khen thưởng, phúc lợi",null,null,null,{"$f":"_xlfn.XLOOKUP(L_TB[[#This Row],[Mã FS]],L_FS[MÃ],L_FS[CHỈ TIÊU],\"-\")","v":"-"}]
[null,null,"411*","Vốn đầu tư của chủ sở hữu",null,null,null,{"$f":"_xlfn.XLOOKUP(L_TB[[#This Row],[Mã FS]],L_FS[MÃ],L_FS[CHỈ TIÊU],\"-\")","v":"-"}]
[null,null,"414*","Quỹ đầu tư phát triển",null,null,null,{"$f":"_xlfn.XLOOKUP(L_TB[[#This Row],[Mã FS]],L_FS[MÃ],L_FS[CHỈ TIÊU],\"-\")","v":"-"}]
[null,null,"418*","Các quỹ khác thuộc vốn chủ sở hữu",null,null,null,{"$f":"_xlfn.XLOOKUP(L_TB[[#This Row],[Mã FS]],L_FS[MÃ],L_FS[CHỈ TIÊU],\"-\")","v":"-"}]
[null,null,"421*","Lợi nhuận chưa phân phối",null,null,null,{"$f":"_xlfn.XLOOKUP(L_TB[[#This Row],[Mã FS]],L_FS[MÃ],L_FS[CHỈ TIÊU],\"-\")","v":"-"}]
[null,null,"511*","Doanh thu bán hàng",null,null,null,{"$f":"_xlfn.XLOOKUP(L_TB[[#This Row],[Mã FS]],L_FS[MÃ],L_FS[CHỈ TIÊU],\"-\")","v":"-"}]
[null,null,"515*","Thu nhập hoạt động tài chính",null,null,null,{"$f":"_xlfn.XLOOKUP(L_TB[[#This Row],[Mã FS]],L_FS[MÃ],L_FS[CHỈ TIÊU],\"-\")","v":"-"}]
[null,null,"621*","Chi phí nguyên liệu, vật liệu trực tiếp",null,null,null,{"$f":"_xlfn.XLOOKUP(L_TB[[#This Row],[Mã FS]],L_FS[MÃ],L_FS[CHỈ TIÊU],\"-\")","v":"-"}]
[null,null,"622*","Chi phí nhân công trực tiếp",null,null,null,{"$f":"_xlfn.XLOOKUP(L_TB[[#This Row],[Mã FS]],L_FS[MÃ],L_FS[CHỈ TIÊU],\"-\")","v":"-"}]
[null,null,"627*","Chi phí sản xuất chung",null,null,null,{"$f":"_xlfn.XLOOKUP(L_TB[[#This Row],[Mã FS]],L_FS[MÃ],L_FS[CHỈ TIÊU],\"-\")","v":"-"}]
[null,null,"632*","Giá vốn hàng bán",null,null,null,{"$f":"_xlfn.XLOOKUP(L_TB[[#This Row],[Mã FS]],L_FS[MÃ],L_FS[CHỈ TIÊU],\"-\")","v":"-"}]
[null,null,"635*","Chi phí hoạt động tài chính",null,null,null,{"$f":"_xlfn.XLOOKUP(L_TB[[#This Row],[Mã FS]],L_FS[MÃ],L_FS[CHỈ TIÊU],\"-\")","v":"-"}]
[null,null,"641*","Chi phí bán hàng",null,null,null,{"$f":"_xlfn.XLOOKUP(L_TB[[#This Row],[Mã FS]],L_FS[MÃ],L_FS[CHỈ TIÊU],\"-\")","v":"-"}]
[null,null,"642*","Chi phí quản lý doanh nghiệp",null,null,null,{"$f":"_xlfn.XLOOKUP(L_TB[[#This Row],[Mã FS]],L_FS[MÃ],L_FS[CHỈ TIÊU],\"-\")","v":"-"}]
[null,null,"711*","Thu nhập khác",null,null,null,{"$f":"_xlfn.XLOOKUP(L_TB[[#This Row],[Mã FS]],L_FS[MÃ],L_FS[CHỈ TIÊU],\"-\")","v":"-"}]
[null,null,"811*","Chi phí khác",null,null,null,{"$f":"_xlfn.XLOOKUP(L_TB[[#This Row],[Mã FS]],L_FS[MÃ],L_FS[CHỈ TIÊU],\"-\")","v":"-"}]
[null,null,"821*","Chi phí thuế thu nhập doanh nghiệp",null,null,null,{"$f":"_xlfn.XLOOKUP(L_TB[[#This Row],[Mã FS]],L_FS[MÃ],L_FS[CHỈ TIÊU],\"-\")","v":"-"}]
[null,null,"911*","Xác định kết quả kinh doanh",null,null,null,{"$f":"_xlfn.XLOOKUP(L_TB[[#This Row],[Mã FS]],L_FS[MÃ],L_FS[CHỈ TIÊU],\"-\")","v":"-"}]

{"sheet":"CTBC","index":4,"n_rows":122,"n_cols":15,"rows_kept":122,"cut":false,"hidden":false,"merged":[[0,0,3,0]]}
[{"$f":"'✅'!A1","v":"AnPhat Holding"},null,{"$f":"Range2(L_FS[KC])","v":"H6:H122"}]
[null,null,null,null,null,null,"Hạch toán",null,null,"Vay và nợ nội bộ"]
[null,null,null,"CHỈ TIÊU BÁO CÁO TÀI CHÍNH",null,null,null,"Kết chuyển",null,null,"Giao dịch nội bộ"]
[null,null,null,null,null,null,"⏬","⏬","⏬","⏬","⏬","⏬"]
[{"$f":"'Công ty'!A5","v":"BCTC hợp nhất"},null,"MÃ","CHỈ TIÊU","PL","BS","HT","KC","KHOẢN MỤC","BSⁿ","PLⁿ","MÃ TM","CHỈ TIÊU THUYẾT MINH",null,"Mã trùng"]
[null,null,"000_",{"$f":"_xlfn.XLOOKUP(L_FS[[#This Row],[MÃ]],'~ctbc'!C:C,'~ctbc'!D:D)","v":"Tài khoản ngoại bảng"},0,0,true,"000_","_",null,null,{"$f":"_xlfn.LET(_xlpm.a,_xlfn.TEXTJOIN(\";\",TRUE,IF((L_Map[MÃ BC]=L_FS[[#This Row],[MÃ]]),L_Map[MÃ TM],\"\")),IF(LEN(_xlpm.a)>1,_xlpm.a,\"\"))","v":""},{"$f":"_xlfn.TEXTJOIN(\"; \",TRUE,IF((L_Map[MÃ BC]=L_FS[[#This Row],[MÃ]])*(L_Map[BCR]=0),L_Map[CHỈ TIÊU THUYẾT MINH],\"\"))","v":""},null,{"$f":"_Trùng(L_FS[MÃ])","v":"null"}]
[null,null,"001_",{"$f":"_xlfn.XLOOKUP(L_FS[[#This Row],[MÃ]],'~ctbc'!C:C,'~ctbc'!D:D)","v":"Doanh thu bán hàng & cung cấp dịch vụ"},1,0,true,"42b_","KQKD",null,true,{"$f":"_xlfn.LET(_xlpm.a,_xlfn.TEXTJOIN(\";\",TRUE,IF((L_Map[MÃ BC]=L_FS[[#This Row],[MÃ]]),L_Map[MÃ TM],\"\")),IF(LEN(_xlpm.a)>1,_xlpm.a,\"\"))","v":"311_;311s"},{"$f":"_xlfn.TEXTJOIN(\"; \",TRUE,IF((L_Map[MÃ BC]=L_FS[[#This Row],[MÃ]])*(L_Map[BCR]=0),L_Map[CHỈ TIÊU THUYẾT MINH],\"\"))","v":"Doanh thu bán hàng"}]
["Tập đoàn",null,"002_",{"$f":"_xlfn.XLOOKUP(L_FS[[#This Row],[MÃ]],'~ctbc'!C:C,'~ctbc'!D:D)","v":"Các khoản giảm trừ"},-1,0,true,"42b_","KQKD",null,true,{"$f":"_xlfn.LET(_xlpm.a,_xlfn.TEXTJOIN(\";\",TRUE,IF((L_Map[MÃ BC]=L_FS[[#This Row],[MÃ]]),L_Map[MÃ TM],\"\")),IF(LEN(_xlpm.a)>1,_xlpm.a,\"\"))","v":"312_"},{"$f":"_xlfn.TEXTJOIN(\"; \",TRUE,IF((L_Map[MÃ BC]=L_FS[[#This Row],[MÃ]])*(L_Map[BCR]=0),L_Map[CHỈ TIÊU THUYẾT MINH],\"\"))","v":"Giảm trừ doanh thu"}]
[null,null,"011_",{"$f":"_xlfn.XLOOKUP(L_FS[[#This Row],[MÃ]],'~ctbc'!C:C,'~ctbc'!D:D)","v":"Giá vốn hàng bán"},-1,0,true,"42b_","KQKD",null,true,{"$f":"_xlfn.LET(_xlpm.a,_xlfn.TEXTJOIN(\";\",TRUE,IF((L_Map[MÃ BC]=L_FS[[#This Row],[MÃ]]),L_Map[MÃ TM],\"\")),IF(LEN(_xlpm.a)>1,_xlpm.a,\"\"))","v":"320_;320s;370_"},{"$f":"_xlfn.TEXTJOIN(\"; \",TRUE,IF((L_Map[MÃ BC]=L_FS[[#This Row],[MÃ]])*(L_Map[BCR]=0),L_Map[CHỈ TIÊU THUYẾT MINH],\"\"))","v":"Giá vốn hàng bán; Chi phí SXKD theo yếu tố"}]
["Danh mục công ty",null,"021_",{"$f":"_xlfn.XLOOKUP(L_FS[[#This Row],[MÃ]],'~ctbc'!C:C,'~ctbc'!D:D)","v":"Lãi/lỗ bán, thanh lý BĐS đầu tư"},1,0,true,"42b_","KQKD",null,true,{"$f":"_xlfn.LET(_xlpm.a,_xlfn.TEXTJOIN(\";\",TRUE,IF((L_Map[MÃ BC]=L_FS[[#This Row],[MÃ]]),L_Map[MÃ TM],\"\")),IF(LEN(_xlpm.a)>1,_xlpm.a,\"\"))","v":""},{"$f":"_xlfn.TEXTJOIN(\"; \",TRUE,IF((L_Map[MÃ BC]=L_FS[[#This Row],[MÃ]])*(L_Map[BCR]=0),L_Map[CHỈ TIÊU THUYẾT MINH],\"\"))","v":""}]
[null,null,"022_",{"$f":"_xlfn.XLOOKUP(L_FS[[#This Row],[MÃ]],'~ctbc'!C:C,'~ctbc'!D:D)","v":"Doanh thu hoạt động tài chính"},1,0,true,"42b_","KQKD",null,true,{"$f":"_xlfn.LET(_xlpm.a,_xlfn.TEXTJOIN(\";\",TRUE,IF((L_Map[MÃ BC]=L_FS[[#This Row],[MÃ]]),L_Map[MÃ TM],\"\")),IF(LEN(_xlpm.a)>1,_xlpm.a,\"\"))","v":"331_"},{"$f":"_xlfn.TEXTJOIN(\"; \",TRUE,IF((L_Map[MÃ BC]=L_FS[[#This Row],[MÃ]])*(L_Map[BCR]=0),L_Map[CHỈ TIÊU THUYẾT MINH],\"\"))","v":"Doanh thu tài chính"}]
["Thông tin công ty",null,"023_",{"$f":"_xlfn.XLOOKUP(L_FS[[#This Row],[MÃ]],'~ctbc'!C:C,'~ctbc'!D:D)","v":"Chi phí tài chính"},-1,0,true,"42b_","KQKD",null,true,{"$f":"_xlfn.LET(_xlpm.a,_xlfn.TEXTJOIN(\";\",TRUE,IF((L_Map[MÃ BC]=L_FS[[#This Row],[MÃ]]),L_Map[MÃ TM],\"\")),IF(LEN(_xlpm.a)>1,_xlpm.a,\"\"))","v":"332_"},{"$f":"_xlfn.TEXTJOIN(\"; \",TRUE,IF((L_Map[MÃ BC]=L_FS[[#This Row],[MÃ]])*(L_Map[BCR]=0),L_Map[CHỈ TIÊU THUYẾT MINH],\"\"))","v":"Chi phí tài chính"}]
[null,null,"024_",{"$f":"_xlfn.XLOOKUP(L_FS[[#This Row],[MÃ]],'~ctbc'!C:C,'~ctbc'!D:D)","v":"- Trong đó: chi phí đi vay"},0,0,true,"000_","KQKD",null,null,{"$f":"_xlfn.LET(_xlpm.a,_xlfn.TEXTJOIN(\";\",TRUE,IF((L_Map[MÃ BC]=L_FS[[#This Row],[MÃ]]),L_Map[MÃ TM],\"\")),IF(LEN(_xlpm.a)>1,_xlpm.a,\"\"))","v":""},{"$f":"_xlfn.TEXTJOIN(\"; \",TRUE,IF((L_Map[MÃ BC]=L_FS[[#This Row],[MÃ]])*(L_Map[BCR]=0),L_Map[CHỈ TIÊU THUYẾT MINH],\"\"))","v":"-"}]
["Tài khoản kế toán",null,"025_",{"$f":"_xlfn.XLOOKUP(L_FS[[#This Row],[MÃ]],'~ctbc'!C:C,'~ctbc'!D:D)","v":"Chi phí bán hàng"},-1,0,true,"42b_","KQKD",null,true,{"$f":"_xlfn.LET(_xlpm.a,_xlfn.TEXTJOIN(\";\",TRUE,IF((L_Map[MÃ BC]=L_FS[[#This Row],[MÃ]]),L_Map[MÃ TM],\"\")),IF(LEN(_xlpm.a)>1,_xlpm.a,\"\"))","v":"341_;370_"},{"$f":"_xlfn.TEXTJOIN(\"; \",TRUE,IF((L_Map[MÃ BC]=L_FS[[#This Row],[MÃ]])*(L_Map[BCR]=0),L_Map[CHỈ TIÊU THUYẾT MINH],\"\"))","v":"Chi phí bán hàng; Chi phí SXKD theo yếu tố"}]
[null,null,"026_",{"$f":"_xlfn.XLOOKUP(L_FS[[#This Row],[MÃ]],'~ctbc'!C:C,'~ctbc'!D:D)","v":"Chi phí quản lý doanh nghiệp"},-1,0,true,"42b_","KQKD",null,true,{"$f":"_xlfn.LET(_xlpm.a,_xlfn.TEXTJOIN(\";\",TRUE,IF((L_Map[MÃ BC]=L_FS[[#This Row],[MÃ]]),L_Map[MÃ TM],\"\")),IF(LEN(_xlpm.a)>1,_xlpm.a,\"\"))","v":"342_;370_"},{"$f":"_xlfn.TEXTJOIN(\"; \",TRUE,IF((L_Map[MÃ BC]=L_FS[[#This Row],[MÃ]])*(L_Map[BCR]=0),L_Map[CHỈ TIÊU THUYẾT MINH],\"\"))","v":"Chi phí QLDN; Chi phí SXKD theo yếu tố"}]
["Chỉ tiêu báo cáo",null,"027_",{"$f":"_xlfn.XLOOKUP(L_FS[[#This Row],[MÃ]],'~ctbc'!C:C,'~ctbc'!D:D)","v":"Phần lãi (lỗ) trong cty liên kết, liên doanh"},1,0,true,"42b_","KQKD",null,null,{"$f":"_xlfn.LET(_xlpm.a,_xlfn.TEXTJOIN(\";\",TRUE,IF((L_Map[MÃ BC]=L_FS[[#This Row],[MÃ]]),L_Map[MÃ TM],\"\")),IF(LEN(_xlpm.a)>1,_xlpm.a,\"\"))","v":""},{"$f":"_xlfn.TEXTJOIN(\"; \",TRUE,IF((L_Map[MÃ BC]=L_FS[[#This Row],[MÃ]])*(L_Map[BCR]=0),L_Map[CHỈ TIÊU THUYẾT MINH],\"\"))","v":""}]
[null,null,"031_",{"$f":"_xlfn.XLOOKUP(L_FS[[#This Row],[MÃ]],'~ctbc'!C:C,'~ctbc'!D:D)","v":"Thu nhập khác"},1,0,true,"42b_","KQKD",null,true,{"$f":"_xlfn.LET(_xlpm.a,_xlfn.TEXTJOIN(\";\",TRUE,IF((L_Map[MÃ BC]=L_FS[[#This Row],[MÃ]]),L_Map[MÃ TM],\"\")),IF(LEN(_xlpm.a)>1,_xlpm.a,\"\"))","v":"351_"},{"$f":"_xlfn.TEXTJOIN(\"; \",TRUE,IF((L_Map[MÃ BC]=L_FS[[#This Row],[MÃ]])*(L_Map[BCR]=0),L_Map[CHỈ TIÊU THUYẾT MINH],\"\"))","v":"Thu nhập khác"}]
["Chỉ tiêu thuyết minh",null,"032_",{"$f":"_xlfn.XLOOKUP(L_FS[[#This Row],[MÃ]],'~ctbc'!C:C,'~ctbc'!D:D)","v":"Chi phí khác"},-1,0,true,"42b_","KQKD",null,true,{"$f":"_xlfn.LET(_xlpm.a,_xlfn.TEXTJOIN(\";\",TRUE,IF((L_Map[MÃ BC]=L_FS[[#This Row],[MÃ]]),L_Map[MÃ TM],\"\")),IF(LEN(_xlpm.a)>1,_xlpm.a,\"\"))","v":"352_"},{"$f":"_xlfn.TEXTJOIN(\"; \",TRUE,IF((L_Map[MÃ BC]=L_FS[[#This Row],[MÃ]])*(L_Map[BCR]=0),L_Map[CHỈ TIÊU THUYẾT MINH],\"\"))","v":"Chi phí khác"}]
[null,null,"051_",{"$f":"_xlfn.XLOOKUP(L_FS[[#This Row],[MÃ]],'~ctbc'!C:C,'~ctbc'!D:D)","v":"Chi phí thuế TNDN hiện hành"},-1,0,true,"42b_","KQKD",null,null,{"$f":"_xlfn.LET(_xlpm.a,_xlfn.TEXTJOIN(\";\",TRUE,IF((L_Map[MÃ BC]=L_FS[[#This Row],[MÃ]]),L_Map[MÃ TM],\"\")),IF(LEN(_xlpm.a)>1,_xlpm.a,\"\"))","v":"361_"},{"$f":"_xlfn.TEXTJOIN(\"; \",TRUE,IF((L_Map[MÃ BC]=L_FS[[#This Row],[MÃ]])*(L_Map[BCR]=0),L_Map[CHỈ TIÊU THUYẾT MINH],\"\"))","v":"Chi phí thuế TNDN hiện hành"}]
["Map chỉ tiêu BC-TM",null,"052_",{"$f":"_xlfn.XLOOKUP(L_FS[[#This Row],[MÃ]],'~ctbc'!C:C,'~ctbc'!D:D)","v":"Chi phí thuế TNDN hoãn lại"},-1,0,true,"42b_","KQKD",null,null,{"$f":"_xlfn.LET(_xlpm.a,_xlfn.TEXTJOIN(\";\",TRUE,IF((L_Map[MÃ BC]=L_FS[[#This Row],[MÃ]]),L_Map[MÃ TM],\"\")),IF(LEN(_xlpm.a)>1,_xlpm.a,\"\"))","v":"362_"},{"$f":"_xlfn.TEXTJOIN(\"; \",TRUE,IF((L_Map[MÃ BC]=L_FS[[#This Row],[MÃ]])*(L_Map[BCR]=0),L_Map[CHỈ TIÊU THUYẾT MINH],\"\"))","v":"Chi phí thuế TNDN hoãn lại"}]
[null,null,"061_",{"$f":"_xlfn.XLOOKUP(L_FS[[#This Row],[MÃ]],'~ctbc'!C:C,'~ctbc'!D:D)","v":"Lợi nhuận sau thuế của CĐ cty mẹ"},0,0,false,null,null,null,null,{"$f":"_xlfn.LET(_xlpm.a,_xlfn.TEXTJOIN(\";\",TRUE,IF((L_Map[MÃ BC]=L_FS[[#This Row],[MÃ]]),L_Map[MÃ TM],\"\")),IF(LEN(_xlpm.a)>1,_xlpm.a,\"\"))","v":""},{"$f":"_xlfn.TEXTJOIN(\"; \",TRUE,IF((L_Map[MÃ BC]=L_FS[[#This Row],[MÃ]])*(L_Map[BCR]=0),L_Map[CHỈ TIÊU THUYẾT MINH],\"\"))","v":"-"}]
["Chỉ tiêu dòng tiền",null,"062_",{"$f":"_xlfn.XLOOKUP(L_FS[[#This Row],[MÃ]],'~ctbc'!C:C,'~ctbc'!D:D)","v":"Lợi nhuận sau thuế của CĐ không ks"},1,0,true,"429_","KQKD",null,null,{"$f":"_xlfn.LET(_xlpm.a,_xlfn.TEXTJOIN(\";\",TRUE,IF((L_Map[MÃ BC]=L_FS[[#This Row],[MÃ]]),L_Map[MÃ TM],\"\")),IF(LEN(_xlpm.a)>1,_xlpm.a,\"\"))","v":""},{"$f":"_xlfn.TEXTJOIN(\"; \",TRUE,IF((L_Map[MÃ BC]=L_FS[[#This Row],[MÃ]])*(L_Map[BCR]=0),L_Map[CHỈ TIÊU THUYẾT MINH],\"\"))","v":"-"}]
[null,null,"111_",{"$f":"_xlfn.XLOOKUP(L_FS[[#This Row],[MÃ]],'~ctbc'!C:C,'~ctbc'!D:D)","v":"Tiền"},0,-1,true,"111_","TS ngắn",null,null,{"$f":"_xlfn.LET(_xlpm.a,_xlfn.TEXTJOIN(\";\",TRUE,IF((L_Map[MÃ BC]=L_FS[[#This Row],[MÃ]]),L_Map[MÃ TM],\"\")),IF(LEN(_xlpm.a)>1,_xlpm.a,\"\"))","v":"010_"},{"$f":"_xlfn.TEXTJOIN(\"; \",TRUE,IF((L_Map[MÃ BC]=L_FS[[#This Row],[MÃ]])*(L_Map[BCR]=0),L_Map[CHỈ TIÊU THUYẾT MINH],\"\"))","v":"Tiền và tương đương tiền"}]
["Phân loại vốn vay",null,"112_",{"$f":"_xlfn.XLOOKUP(L_FS[[#This Row],[MÃ]],'~ctbc'!C:C,'~ctbc'!D:D)","v":"Các khoản tương đương tiền"},0,-1,true,"112_","TS ngắn",null,null,{"$f":"_xlfn.LET(_xlpm.a,_xlfn.TEXTJOIN(\";\",TRUE,IF((L_Map[MÃ BC]=L_FS[[#This Row],[MÃ]]),L_Map[MÃ TM],\"\")),IF(LEN(_xlpm.a)>1,_xlpm.a,\"\"))","v":"010_"},{"$f":"_xlfn.TEXTJOIN(\"; \",TRUE,IF((L_Map[MÃ BC]=L_FS[[#This Row],[MÃ]])*(L_Map[BCR]=0),L_Map[CHỈ TIÊU THUYẾT MINH],\"\"))","v":"Tiền và tương đương tiền"}]
[null,null,"121_",{"$f":"_xlfn.XLOOKUP(L_FS[[#This Row],[MÃ]],'~ctbc'!C:C,'~ctbc'!D:D)","v":"Chứng khoán kinh doanh"},0,-1,true,"121_","TS ngắn",null,true,{"$f":"_xlfn.LET(_xlpm.a,_xlfn.TEXTJOIN(\";\",TRUE,IF((L_Map[MÃ BC]=L_FS[[#This Row],[MÃ]]),L_Map[MÃ TM],\"\")),IF(LEN(_xlpm.a)>1,_xlpm.a,\"\"))","v":"026_"},{"$f":"_xlfn.TEXTJOIN(\"; \",TRUE,IF((L_Map[MÃ BC]=L_FS[[#This Row],[MÃ]])*(L_Map[BCR]=0),L_Map[CHỈ TIÊU THUYẾT MINH],\"\"))","v":"Chứng khoán kinh doanh"}]
["Danh mục khác",null,"122_",{"$f":"_xlfn.XLOOKUP(L_FS[[#This Row],[MÃ]],'~ctbc'!C:C,'~ctbc'!D:D)","v":"Dự phòng giảm giá chứng khoán kinh doanh *"},0,-1,true,"122_","TS ngắn",null,true,{"$f":"_xlfn.LET(_xlpm.a,_xlfn.TEXTJOIN(\";\",TRUE,IF((L_Map[MÃ BC]=L_FS[[#This Row],[MÃ]]),L_Map[MÃ TM],\"\")),IF(LEN(_xlpm.a)>1,_xlpm.a,\"\"))","v":"027_"},{"$f":"_xlfn.TEXTJOIN(\"; \",TRUE,IF((L_Map[MÃ BC]=L_FS[[#This Row],[MÃ]])*(L_Map[BCR]=0),L_Map[CHỈ TIÊU THUYẾT MINH],\"\"))","v":"Dự phòng giảm giá chứng khoán kinh doanh *"}]
[null,null,"123_",{"$f":"_xlfn.XLOOKUP(L_FS[[#This Row],[MÃ]],'~ctbc'!C:C,'~ctbc'!D:D)","v":"Đầu tư nắm giữ đến ngày đáo hạn ngắn hạn"},0,-1,true,"123_","TS ngắn",true,true,{"$f":"_xlfn.LET(_xlpm.a,_xlfn.TEXTJOIN(\";\",TRUE,IF((L_Map[MÃ BC]=L_FS[[#This Row],[MÃ]]),L_Map[MÃ TM],\"\")),IF(LEN(_xlpm.a)>1,_xlpm.a,\"\"))","v":"021_"},{"$f":"_xlfn.TEXTJOIN(\"; \",TRUE,IF((L_Map[MÃ BC]=L_FS[[#This Row],[MÃ]])*(L_Map[BCR]=0),L_Map[CHỈ TIÊU THUYẾT MINH],\"\"))","v":"Đầu tư nắm giữ đến ngày đáo hạn ngắn hạn"}]
["Tùy chọn",null,"124_",{"$f":"_xlfn.XLOOKUP(L_FS[[#This Row],[MÃ]],'~ctbc'!C:C,'~ctbc'!D:D)","v":"Dự phòng đầu tư nắm giữ đến ngày đáo hạn ngắn hạn *"},0,-1,true,"124_","TS ngắn",null,null,{"$f":"_xlfn.LET(_xlpm.a,_xlfn.TEXTJOIN(\";\",TRUE,IF((L_Map[MÃ BC]=L_FS[[#This Row],[MÃ]]),L_Map[MÃ TM],\"\")),IF(LEN(_xlpm.a)>1,_xlpm.a,\"\"))","v":""},{"$f":"_xlfn.TEXTJOIN(\"; \",TRUE,IF((L_Map[MÃ BC]=L_FS[[#This Row],[MÃ]])*(L_Map[BCR]=0),L_Map[CHỈ TIÊU THUYẾT MINH],\"\"))","v":""}]
[null,null,"125_",{"$f":"_xlfn.XLOOKUP(L_FS[[#This Row],[MÃ]],'~ctbc'!C:C,'~ctbc'!D:D)","v":"Đầu tư ngắn hạn khác"},0,-1,true,"125_","TS ngắn",null,null,{"$f":"_xlfn.LET(_xlpm.a,_xlfn.TEXTJOIN(\";\",TRUE,IF((L_Map[MÃ BC]=L_FS[[#This Row],[MÃ]]),L_Map[MÃ TM],\"\")),IF(LEN(_xlpm.a)>1,_xlpm.a,\"\"))","v":""},{"$f":"_xlfn.TEXTJOIN(\"; \",TRUE,IF((L_Map[MÃ BC]=L_FS[[#This Row],[MÃ]])*(L_Map[BCR]=0),L_Map[CHỈ TIÊU THUYẾT MINH],\"\"))","v":""}]
[null,null,"126_",{"$f":"_xlfn.XLOOKUP(L_FS[[#This Row],[MÃ]],'~ctbc'!C:C,'~ctbc'!D:D)","v":"Dự phòng tổn thất các khoản đầu tư ngắn hạn khác *"},0,-1,true,"126_","TS ngắn",null,null,{"$f":"_xlfn.LET(_xlpm.a,_xlfn.TEXTJOIN(\";\",TRUE,IF((L_Map[MÃ BC]=L_FS[[#This Row],[MÃ]]),L_Map[MÃ TM],\"\")),IF(LEN(_xlpm.a)>1,_xlpm.a,\"\"))","v":""},{"$f":"_xlfn.TEXTJOIN(\"; \",TRUE,IF((L_Map[MÃ BC]=L_FS[[#This Row],[MÃ]])*(L_Map[BCR]=0),L_Map[CHỈ TIÊU THUYẾT MINH],\"\"))","v":""}]
[null,null,"131_",{"$f":"_xlfn.XLOOKUP(L_FS[[#This Row],[MÃ]],'~ctbc'!C:C,'~ctbc'!D:D)","v":"Phải thu ngắn hạn của khách hàng"},0,-1,true,"131_","TS ngắn",true,true,{"$f":"_xlfn.LET(_xlpm.a,_xlfn.TEXTJOIN(\";\",TRUE,IF((L_Map[MÃ BC]=L_FS[[#This Row],[MÃ]]),L_Map[MÃ TM],\"\")),IF(LEN(_xlpm.a)>1,_xlpm.a,\"\"))","v":"031_;031s"},{"$f":"_xlfn.TEXTJOIN(\"; \",TRUE,IF((L_Map[MÃ BC]=L_FS[[#This Row],[MÃ]])*(L_Map[BCR]=0),L_Map[CHỈ TIÊU THUYẾT MINH],\"\"))","v":"Phải thu ngắn hạn của khách hàng"}]
[null,null,"132_",{"$f":"_xlfn.XLOOKUP(L_FS[[#This Row],[MÃ]],'~ctbc'!C:C,'~ctbc'!D:D)","v":"Trả trước cho người bán ngắn hạn"},0,-1,true,"132_","TS ngắn",true,true,{"$f":"_xlfn.LET(_xlpm.a,_xlfn.TEXTJOIN(\";\",TRUE,IF((L_Map[MÃ BC]=L_FS[[#This Row],[MÃ]]),L_Map[MÃ TM],\"\")),IF(LEN(_xlpm.a)>1,_xlpm.a,\"\"))","v":"033_;033s"},{"$f":"_xlfn.TEXTJOIN(\"; \",TRUE,IF((L_Map[MÃ BC]=L_FS[[#This Row],[MÃ]])*(L_Map[BCR]=0),L_Map[CHỈ TIÊU THUYẾT MINH],\"\"))","v":"Trả trước cho người bán ngắn hạn"}]
[null,null,"133_",{"$f":"_xlfn.XLOOKUP(L_FS[[#This Row],[MÃ]],'~ctbc'!C:C,'~ctbc'!D:D)","v":"Phải thu nội bộ ngắn hạn"},0,-1,true,"133_","TS ngắn",true,true,{"$f":"_xlfn.LET(_xlpm.a,_xlfn.TEXTJOIN(\";\",TRUE,IF((L_Map[MÃ BC]=L_FS[[#This Row],[MÃ]]),L_Map[MÃ TM],\"\")),IF(LEN(_xlpm.a)>1,_xlpm.a,\"\"))","v":"063_"},{"$f":"_xlfn.TEXTJOIN(\"; \",TRUE,IF((L_Map[MÃ BC]=L_FS[[#This Row],[MÃ]])*(L_Map[BCR]=0),L_Map[CHỈ TIÊU THUYẾT MINH],\"\"))","v":"Phải thu nội bộ ngắn hạn"}]
[null,null,"134_",{"$f":"_xlfn.XLOOKUP(L_FS[[#This Row],[MÃ]],'~ctbc'!C:C,'~ctbc'!D:D)","v":"Phải thu theo tiến độ HĐXD"},0,-1,true,"134_","TS ngắn",true,true,{"$f":"_xlfn.LET(_xlpm.a,_xlfn.TEXTJOIN(\";\",TRUE,IF((L_Map[MÃ BC]=L_FS[[#This Row],[MÃ]]),L_Map[MÃ TM],\"\")),IF(LEN(_xlpm.a)>1,_xlpm.a,\"\"))","v":"065_"},{"$f":"_xlfn.TEXTJOIN(\"; \",TRUE,IF((L_Map[MÃ BC]=L_FS[[#This Row],[MÃ]])*(L_Map[BCR]=0),L_Map[CHỈ TIÊU THUYẾT MINH],\"\"))","v":"Phải thu theo tiến độ HĐXD"}]
[null,null,"135_",{"$f":"_xlfn.XLOOKUP(L_FS[[#This Row],[MÃ]],'~ctbc'!C:C,'~ctbc'!D:D)","v":"Các khoản phải thu khác"},0,-1,true,"135_","TS ngắn",true,true,{"$f":"_xlfn.LET(_xlpm.a,_xlfn.TEXTJOIN(\";\",TRUE,IF((L_Map[MÃ BC]=L_FS[[#This Row],[MÃ]]),L_Map[MÃ TM],\"\")),IF(LEN(_xlpm.a)>1,_xlpm.a,\"\"))","v":"041_;041s"},{"$f":"_xlfn.TEXTJOIN(\"; \",TRUE,IF((L_Map[MÃ BC]=L_FS[[#This Row],[MÃ]])*(L_Map[BCR]=0),L_Map[CHỈ TIÊU THUYẾT MINH],\"\"))","v":"Phải thu khác ngắn hạn"}]
[null,null,"136_",{"$f":"_xlfn.XLOOKUP(L_FS[[#This Row],[MÃ]],'~ctbc'!C:C,'~ctbc'!D:D)","v":"Dự phòng phải thu ngắn hạn khó đòi *"},0,-1,true,"136_","TS ngắn",null,true,{"$f":"_xlfn.LET(_xlpm.a,_xlfn.TEXTJOIN(\";\",TRUE,IF((L_Map[MÃ BC]=L_FS[[#This Row],[MÃ]]),L_Map[MÃ TM],\"\")),IF(LEN(_xlpm.a)>1,_xlpm.a,\"\"))","v":"043_"},{"$f":"_xlfn.TEXTJOIN(\"; \",TRUE,IF((L_Map[MÃ BC]=L_FS[[#This Row],[MÃ]])*(L_Map[BCR]=0),L_Map[CHỈ TIÊU THUYẾT MINH],\"\"))","v":"Dự phòng phải thu ngắn hạn khó đòi *"}]
[null,null,"137_",{"$f":"_xlfn.XLOOKUP(L_FS[[#This Row],[MÃ]],'~ctbc'!C:C,'~ctbc'!D:D)","v":"Tài sản thiếu chờ xử lý"},0,-1,true,"137_","TS ngắn",null,true,{"$f":"_xlfn.LET(_xlpm.a,_xlfn.TEXTJOIN(\";\",TRUE,IF((L_Map[MÃ BC]=L_FS[[#This Row],[MÃ]]),L_Map[MÃ TM],\"\")),IF(LEN(_xlpm.a)>1,_xlpm.a,\"\"))","v":"050_"},{"$f":"_xlfn.TEXTJOIN(\"; \",TRUE,IF((L_Map[MÃ BC]=L_FS[[#This Row],[MÃ]])*(L_Map[BCR]=0),L_Map[CHỈ TIÊU THUYẾT MINH],\"\"))","v":"Tài sản thiếu chờ xử lý"}]
[null,null,"141_",{"$f":"_xlfn.XLOOKUP(L_FS[[#This Row],[MÃ]],'~ctbc'!C:C,'~ctbc'!D:D)","v":"Hàng tồn kho"},0,-1,true,"141_","TS ngắn",null,true,{"$f":"_xlfn.LET(_xlpm.a,_xlfn.TEXTJOIN(\";\",TRUE,IF((L_Map[MÃ BC]=L_FS[[#This Row],[MÃ]]),L_Map[MÃ TM],\"\")),IF(LEN(_xlpm.a)>1,_xlpm.a,\"\"))","v":"071_"},{"$f":"_xlfn.TEXTJOIN(\"; \",TRUE,IF((L_Map[MÃ BC]=L_FS[[#This Row],[MÃ]])*(L_Map[BCR]=0),L_Map[CHỈ TIÊU THUYẾT MINH],\"\"))","v":"Hàng tồn kho"}]
[null,null,"142_",{"$f":"_xlfn.XLOOKUP(L_FS[[#This Row],[MÃ]],'~ctbc'!C:C,'~ctbc'!D:D)","v":"Dự phòng giảm giá hàng tồn kho *"},0,-1,true,"142_","TS ngắn",null,true,{"$f":"_xlfn.LET(_xlpm.a,_xlfn.TEXTJOIN(\";\",TRUE,IF((L_Map[MÃ BC]=L_FS[[#This Row],[MÃ]]),L_Map[MÃ TM],\"\")),IF(LEN(_xlpm.a)>1,_xlpm.a,\"\"))","v":"072_"},{"$f":"_xlfn.TEXTJOIN(\"; \",TRUE,IF((L_Map[MÃ BC]=L_FS[[#This Row],[MÃ]])*(L_Map[BCR]=0),L_Map[CHỈ TIÊU THUYẾT MINH],\"\"))","v":"Dự phòng giảm giá hàng tồn kho *"}]
[null,null,"151_",{"$f":"_xlfn.XLOOKUP(L_FS[[#This Row],[MÃ]],'~ctbc'!C:C,'~ctbc'!D:D)","v":"Con vật nuôi lấy sản phẩm một lần ngắn hạn"},0,-1,true,"151_","TS ngắn",null,null,{"$f":"_xlfn.LET(_xlpm.a,_xlfn.TEXTJOIN(\";\",TRUE,IF((L_Map[MÃ BC]=L_FS[[#This Row],[MÃ]]),L_Map[MÃ TM],\"\")),IF(LEN(_xlpm.a)>1,_xlpm.a,\"\"))","v":"121_"},{"$f":"_xlfn.TEXTJOIN(\"; \",TRUE,IF((L_Map[MÃ BC]=L_FS[[#This Row],[MÃ]])*(L_Map[BCR]=0),L_Map[CHỈ TIÊU THUYẾT MINH],\"\"))","v":"Tài sản sinh học khác"}]
[null,null,"152_",{"$f":"_xlfn.XLOOKUP(L_FS[[#This Row],[MÃ]],'~ctbc'!C:C,'~ctbc'!D:D)","v":"Cây trồng theo mùa vụ hoặc lấy SP một lần ngắn hạn"},0,-1,true,"152_","TS ngắn",null,null,{"$f":"_xlfn.LET(_xlpm.a,_xlfn.TEXTJOIN(\";\",TRUE,IF((L_Map[MÃ BC]=L_FS[[#This Row],[MÃ]]),L_Map[MÃ TM],\"\")),IF(LEN(_xlpm.a)>1,_xlpm.a,\"\"))","v":"121_"},{"$f":"_xlfn.TEXTJOIN(\"; \",TRUE,IF((L_Map[MÃ BC]=L_FS[[#This Row],[MÃ]])*(L_Map[BCR]=0),L_Map[CHỈ TIÊU THUYẾT MINH],\"\"))","v":"Tài sản sinh học khác"}]
[null,null,"153_",{"$f":"_xlfn.XLOOKUP(L_FS[[#This Row],[MÃ]],'~ctbc'!C:C,'~ctbc'!D:D)","v":"Dự phòng tổn thất tài sản sinh học ngắn hạn"},0,-1,true,"153_","TS ngắn",null,null,{"$f":"_xlfn.LET(_xlpm.a,_xlfn.TEXTJOIN(\";\",TRUE,IF((L_Map[MÃ BC]=L_FS[[#This Row],[MÃ]]),L_Map[MÃ TM],\"\")),IF(LEN(_xlpm.a)>1,_xlpm.a,\"\"))","v":""},{"$f":"_xlfn.TEXTJOIN(\"; \",TRUE,IF((L_Map[MÃ BC]=L_FS[[#This Row],[MÃ]])*(L_Map[BCR]=0),L_Map[CHỈ TIÊU THUYẾT MINH],\"\"))","v":""}]
[null,null,"161_",{"$f":"_xlfn.XLOOKUP(L_FS[[#This Row],[MÃ]],'~ctbc'!C:C,'~ctbc'!D:D)","v":"Chi phí chờ phân bổ ngắn hạn"},0,-1,true,"161_","TS ngắn",true,true,{"$f":"_xlfn.LET(_xlpm.a,_xlfn.TEXTJOIN(\";\",TRUE,IF((L_Map[MÃ BC]=L_FS[[#This Row],[MÃ]]),L_Map[MÃ TM],\"\")),IF(LEN(_xlpm.a)>1,_xlpm.a,\"\"))","v":"141_"},{"$f":"_xlfn.TEXTJOIN(\"; \",TRUE,IF((L_Map[MÃ BC]=L_FS[[#This Row],[MÃ]])*(L_Map[BCR]=0),L_Map[CHỈ TIÊU THUYẾT MINH],\"\"))","v":"Chi phí chờ phân bổ ngắn hạn"}]
[null,null,"162_",{"$f":"_xlfn.XLOOKUP(L_FS[[#This Row],[MÃ]],'~ctbc'!C:C,'~ctbc'!D:D)","v":"Thuế GTGT được khấu trừ"},0,-1,true,"162_","TS ngắn",null,true,{"$f":"_xlfn.LET(_xlpm.a,_xlfn.TEXTJOIN(\";\",TRUE,IF((L_Map[MÃ BC]=L_FS[[#This Row],[MÃ]]),L_Map[MÃ TM],\"\")),IF(LEN(_xlpm.a)>1,_xlpm.a,\"\"))","v":""},{"$f":"_xlfn.TEXTJOIN(\"; \",TRUE,IF((L_Map[MÃ BC]=L_FS[[#This Row],[MÃ]])*(L_Map[BCR]=0),L_Map[CHỈ TIÊU THUYẾT MINH],\"\"))","v":""}]
[null,null,"163_",{"$f":"_xlfn.XLOOKUP(L_FS[[#This Row],[MÃ]],'~ctbc'!C:C,'~ctbc'!D:D)","v":"Thuế và các khoản phải thu Nhà nước"},0,-1,true,"163_","TS ngắn",null,true,{"$f":"_xlfn.LET(_xlpm.a,_xlfn.TEXTJOIN(\";\",TRUE,IF((L_Map[MÃ BC]=L_FS[[#This Row],[MÃ]]),L_Map[MÃ TM],\"\")),IF(LEN(_xlpm.a)>1,_xlpm.a,\"\"))","v":"191_;192_"},{"$f":"_xlfn.TEXTJOIN(\"; \",TRUE,IF((L_Map[MÃ BC]=L_FS[[#This Row],[MÃ]])*(L_Map[BCR]=0),L_Map[CHỈ TIÊU THUYẾT MINH],\"\"))","v":"Thuế và các khoản phải nộp Nhà nước; Thuế GTGT được khấu trừ"}]
[null,null,"164_",{"$f":"_xlfn.XLOOKUP(L_FS[[#This Row],[MÃ]],'~ctbc'!C:C,'~ctbc'!D:D)","v":"Giao dịch mua bán lại trái phiếu Chính phủ"},0,-1,true,"164_","TS ngắn",null,true,{"$f":"_xlfn.LET(_xlpm.a,_xlfn.TEXTJOIN(\";\",TRUE,IF((L_Map[MÃ BC]=L_FS[[#This Row],[MÃ]]),L_Map[MÃ TM],\"\")),IF(LEN(_xlpm.a)>1,_xlpm.a,\"\"))","v":""},{"$f":"_xlfn.TEXTJOIN(\"; \",TRUE,IF((L_Map[MÃ BC]=L_FS[[#This Row],[MÃ]])*(L_Map[BCR]=0),L_Map[CHỈ TIÊU THUYẾT MINH],\"\"))","v":""}]
[null,null,"165_",{"$f":"_xlfn.XLOOKUP(L_FS[[#This Row],[MÃ]],'~ctbc'!C:C,'~ctbc'!D:D)","v":"Tài sản ngắn hạn khác"},0,-1,true,"165_","TS ngắn",null,true,{"$f":"_xlfn.LET(_xlpm.a,_xlfn.TEXTJOIN(\";\",TRUE,IF((L_Map[MÃ BC]=L_FS[[#This Row],[MÃ]]),L_Map[MÃ TM],\"\")),IF(LEN(_xlpm.a)>1,_xlpm.a,\"\"))","v":"061_"},{"$f":"_xlfn.TEXTJOIN(\"; \",TRUE,IF((L_Map[MÃ BC]=L_FS[[#This Row],[MÃ]])*(L_Map[BCR]=0),L_Map[CHỈ TIÊU THUYẾT MINH],\"\"))","v":"Tài sản khác ngắn hạn"}]
[null,null,"211_",{"$f":"_xlfn.XLOOKUP(L_FS[[#This Row],[MÃ]],'~ctbc'!C:C,'~ctbc'!D:D)","v":"Phải thu dài hạn của khách hàng"},0,-1,true,"211_","TS dài",true,true,{"$f":"_xlfn.LET(_xlpm.a,_xlfn.TEXTJOIN(\";\",TRUE,IF((L_Map[MÃ BC]=L_FS[[#This Row],[MÃ]]),L_Map[MÃ TM],\"\")),IF(LEN(_xlpm.a)>1,_xlpm.a,\"\"))","v":"032_;032s"},{"$f":"_xlfn.TEXTJOIN(\"; \",TRUE,IF((L_Map[MÃ BC]=L_FS[[#This Row],[MÃ]])*(L_Map[BCR]=0),L_Map[CHỈ TIÊU THUYẾT MINH],\"\"))","v":"Phải thu dài hạn của khách hàng"}]
[null,null,"212_",{"$f":"_xlfn.XLOOKUP(L_FS[[#This Row],[MÃ]],'~ctbc'!C:C,'~ctbc'!D:D)","v":"Trả trước cho người bán dài hạn"},0,-1,true,"212_","TS dài",true,true,{"$f":"_xlfn.LET(_xlpm.a,_xlfn.TEXTJOIN(\";\",TRUE,IF((L_Map[MÃ BC]=L_FS[[#This Row],[MÃ]]),L_Map[MÃ TM],\"\")),IF(LEN(_xlpm.a)>1,_xlpm.a,\"\"))","v":"034_;034s"},{"$f":"_xlfn.TEXTJOIN(\"; \",TRUE,IF((L_Map[MÃ BC]=L_FS[[#This Row],[MÃ]])*(L_Map[BCR]=0),L_Map[CHỈ TIÊU THUYẾT MINH],\"\"))","v":"Trả trước cho người bán dài hạn"}]
[null,null,"213_",{"$f":"_xlfn.XLOOKUP(L_FS[[#This Row],[MÃ]],'~ctbc'!C:C,'~ctbc'!D:D)","v":"Vốn kinh doanh ở đơn vị trực thuộc"},0,-1,true,"213_","TS dài",null,true,{"$f":"_xlfn.LET(_xlpm.a,_xlfn.TEXTJOIN(\";\",TRUE,IF((L_Map[MÃ BC]=L_FS[[#This Row],[MÃ]]),L_Map[MÃ TM],\"\")),IF(LEN(_xlpm.a)>1,_xlpm.a,\"\"))","v":"064_"},{"$f":"_xlfn.TEXTJOIN(\"; \",TRUE,IF((L_Map[MÃ BC]=L_FS[[#This Row],[MÃ]])*(L_Map[BCR]=0),L_Map[CHỈ TIÊU THUYẾT MINH],\"\"))","v":"Phải thu nội bộ dài hạn"}]
[null,null,"214_",{"$f":"_xlfn.XLOOKUP(L_FS[[#This Row],[MÃ]],'~ctbc'!C:C,'~ctbc'!D:D)","v":"Phải thu nội bộ dài hạn"},0,-1,true,"214_","TS dài",true,true,{"$f":"_xlfn.LET(_xlpm.a,_xlfn.TEXTJOIN(\";\",TRUE,IF((L_Map[MÃ BC]=L_FS[[#This Row],[MÃ]]),L_Map[MÃ TM],\"\")),IF(LEN(_xlpm.a)>1,_xlpm.a,\"\"))","v":"064_"},{"$f":"_xlfn.TEXTJOIN(\"; \",TRUE,IF((L_Map[MÃ BC]=L_FS[[#This Row],[MÃ]])*(L_Map[BCR]=0),L_Map[CHỈ TIÊU THUYẾT MINH],\"\"))","v":"Phải thu nội bộ dài hạn"}]
[null,null,"215_",{"$f":"_xlfn.XLOOKUP(L_FS[[#This Row],[MÃ]],'~ctbc'!C:C,'~ctbc'!D:D)","v":"Phải thu dài hạn khác"},0,-1,true,"215_","TS dài",true,true,{"$f":"_xlfn.LET(_xlpm.a,_xlfn.TEXTJOIN(\";\",TRUE,IF((L_Map[MÃ BC]=L_FS[[#This Row],[MÃ]]),L_Map[MÃ TM],\"\")),IF(LEN(_xlpm.a)>1,_xlpm.a,\"\"))","v":"042_;042s"},{"$f":"_xlfn.TEXTJOIN(\"; \",TRUE,IF((L_Map[MÃ BC]=L_FS[[#This Row],[MÃ]])*(L_Map[BCR]=0),L_Map[CHỈ TIÊU THUYẾT MINH],\"\"))","v":"Phải thu khác dài hạn"}]
[null,null,"216_",{"$f":"_xlfn.XLOOKUP(L_FS[[#This Row],[MÃ]],'~ctbc'!C:C,'~ctbc'!D:D)","v":"Dự phòng phải thu dài hạn khó đòi *"},0,-1,true,"216_","TS dài",null,true,{"$f":"_xlfn.LET(_xlpm.a,_xlfn.TEXTJOIN(\";\",TRUE,IF((L_Map[MÃ BC]=L_FS[[#This Row],[MÃ]]),L_Map[MÃ TM],\"\")),IF(LEN(_xlpm.a)>1,_xlpm.a,\"\"))","v":"044_"},{"$f":"_xlfn.TEXTJOIN(\"; \",TRUE,IF((L_Map[MÃ BC]=L_FS[[#This Row],[MÃ]])*(L_Map[BCR]=0),L_Map[CHỈ TIÊU THUYẾT MINH],\"\"))","v":"Dự phòng phải thu dài hạn khó đòi *"}]
[null,null,"222_",{"$f":"_xlfn.XLOOKUP(L_FS[[#This Row],[MÃ]],'~ctbc'!C:C,'~ctbc'!D:D)","v":"Nguyên giá TSCĐ hữu hình"},0,-1,true,"222_","TS dài",null,true,{"$f":"_xlfn.LET(_xlpm.a,_xlfn.TEXTJOIN(\";\",TRUE,IF((L_Map[MÃ BC]=L_FS[[#This Row],[MÃ]]),L_Map[MÃ TM],\"\")),IF(LEN(_xlpm.a)>1,_xlpm.a,\"\"))","v":"091_;091s"},{"$f":"_xlfn.TEXTJOIN(\"; \",TRUE,IF((L_Map[MÃ BC]=L_FS[[#This Row],[MÃ]])*(L_Map[BCR]=0),L_Map[CHỈ TIÊU THUYẾT MINH],\"\"))","v":"TSCĐ hữu hình - Nguyên giá; NG TSCĐ HH đã KH hết đang sử dụng"}]
[null,null,"223_",{"$f":"_xlfn.XLOOKUP(L_FS[[#This Row],[MÃ]],'~ctbc'!C:C,'~ctbc'!D:D)","v":"Giá trị hao mòn lũy kế TSCĐ hữu hình"},0,-1,true,"223_","TS dài",null,true,{"$f":"_xlfn.LET(_xlpm.a,_xlfn.TEXTJOIN(\";\",TRUE,IF((L_Map[MÃ BC]=L_FS[[#This Row],[MÃ]]),L_Map[MÃ TM],\"\")),IF(LEN(_xlpm.a)>1,_xlpm.a,\"\"))","v":"092_"},{"$f":"_xlfn.TEXTJOIN(\"; \",TRUE,IF((L_Map[MÃ BC]=L_FS[[#This Row],[MÃ]])*(L_Map[BCR]=0),L_Map[CHỈ TIÊU THUYẾT MINH],\"\"))","v":"TSCĐ hữu hình - Hao mòn lũy kế *"}]
[null,null,"225_",{"$f":"_xlfn.XLOOKUP(L_FS[[#This Row],[MÃ]],'~ctbc'!C:C,'~ctbc'!D:D)","v":"Nguyên giá TSCĐ thuê tài chính"},0,-1,true,"225_","TS dài",null,true,{"$f":"_xlfn.LET(_xlpm.a,_xlfn.TEXTJOIN(\";\",TRUE,IF((L_Map[MÃ BC]=L_FS[[#This Row],[MÃ]]),L_Map[MÃ TM],\"\")),IF(LEN(_xlpm.a)>1,_xlpm.a,\"\"))","v":"111_"},{"$f":"_xlfn.TEXTJOIN(\"; \",TRUE,IF((L_Map[MÃ BC]=L_FS[[#This Row],[MÃ]])*(L_Map[BCR]=0),L_Map[CHỈ TIÊU THUYẾT MINH],\"\"))","v":"TSCĐ thuê tài chính - Nguyên giá"}]
[null,null,"226_",{"$f":"_xlfn.XLOOKUP(L_FS[[#This Row],[MÃ]],'~ctbc'!C:C,'~ctbc'!D:D)","v":"Giá trị hao mòn lũy kế TSCĐ thuê tài chính"},0,-1,true,"226_","TS dài",null,true,{"$f":"_xlfn.LET(_xlpm.a,_xlfn.TEXTJOIN(\";\",TRUE,IF((L_Map[MÃ BC]=L_FS[[#This Row],[MÃ]]),L_Map[MÃ TM],\"\")),IF(LEN(_xlpm.a)>1,_xlpm.a,\"\"))","v":"112_"},{"$f":"_xlfn.TEXTJOIN(\"; \",TRUE,IF((L_Map[MÃ BC]=L_FS[[#This Row],[MÃ]])*(L_Map[BCR]=0),L_Map[CHỈ TIÊU THUYẾT MINH],\"\"))","v":"TSCĐ thuê tài chính - Hao mòn lũy kế *"}]
[null,null,"228_",{"$f":"_xlfn.XLOOKUP(L_FS[[#This Row],[MÃ]],'~ctbc'!C:C,'~ctbc'!D:D)","v":"Nguyên giá TSCĐ vô hình"},0,-1,true,"228_","TS dài",null,true,{"$f":"_xlfn.LET(_xlpm.a,_xlfn.TEXTJOIN(\";\",TRUE,IF((L_Map[MÃ BC]=L_FS[[#This Row],[MÃ]]),L_Map[MÃ TM],\"\")),IF(LEN(_xlpm.a)>1,_xlpm.a,\"\"))","v":"101_;101s"},{"$f":"_xlfn.TEXTJOIN(\"; \",TRUE,IF((L_Map[MÃ BC]=L_FS[[#This Row],[MÃ]])*(L_Map[BCR]=0),L_Map[CHỈ TIÊU THUYẾT MINH],\"\"))","v":"TSCĐ vô hình - Nguyên giá; NG TSCĐ VH đã KH hết đang sử dụng"}]
[null,null,"229_",{"$f":"_xlfn.XLOOKUP(L_FS[[#This Row],[MÃ]],'~ctbc'!C:C,'~ctbc'!D:D)","v":"Giá trị hao mòn lũy kế TSCĐ vô hình"},0,-1,true,"229_","TS dài",null,true,{"$f":"_xlfn.LET(_xlpm.a,_xlfn.TEXTJOIN(\";\",TRUE,IF((L_Map[MÃ BC]=L_FS[[#This Row],[MÃ]]),L_Map[MÃ TM],\"\")),IF(LEN(_xlpm.a)>1,_xlpm.a,\"\"))","v":"102_"},{"$f":"_xlfn.TEXTJOIN(\"; \",TRUE,IF((L_Map[MÃ BC]=L_FS[[#This Row],[MÃ]])*(L_Map[BCR]=0),L_Map[CHỈ TIÊU THUYẾT MINH],\"\"))","v":"TSCĐ vô hình - Hao mòn lũy kế *"}]
[null,null,"232_",{"$f":"_xlfn.XLOOKUP(L_FS[[#This Row],[MÃ]],'~ctbc'!C:C,'~ctbc'!D:D)","v":"Con vật nuôi cho SP định kỳ chưa đến gđ trưởng thành"},0,-1,true,"232_","TS dài",null,null,{"$f":"_xlfn.LET(_xlpm.a,_xlfn.TEXTJOIN(\";\",TRUE,IF((L_Map[MÃ BC]=L_FS[[#This Row],[MÃ]]),L_Map[MÃ TM],\"\")),IF(LEN(_xlpm.a)>1,_xlpm.a,\"\"))","v":"121_"},{"$f":"_xlfn.TEXTJOIN(\"; \",TRUE,IF((L_Map[MÃ BC]=L_FS[[#This Row],[MÃ]])*(L_Map[BCR]=0),L_Map[CHỈ TIÊU THUYẾT MINH],\"\"))","v":"Tài sản sinh học khác"}]
[null,null,"234_",{"$f":"_xlfn.XLOOKUP(L_FS[[#This Row],[MÃ]],'~ctbc'!C:C,'~ctbc'!D:D)","v":"Con vật nuôi cho SP định kỳ đến giai đoạn trưởng thành (nguyên giá)"},0,-1,true,"234_","TS dài",null,null,{"$f":"_xlfn.LET(_xlpm.a,_xlfn.TEXTJOIN(\";\",TRUE,IF((L_Map[MÃ BC]=L_FS[[#This Row],[MÃ]]),L_Map[MÃ TM],\"\")),IF(LEN(_xlpm.a)>1,_xlpm.a,\"\"))","v":"122_"},{"$f":"_xlfn.TEXTJOIN(\"; \",TRUE,IF((L_Map[MÃ BC]=L_FS[[#This Row],[MÃ]])*(L_Map[BCR]=0),L_Map[CHỈ TIÊU THUYẾT MINH],\"\"))","v":"Con vật cho SP định kỳ đạt đến GĐ trưởng thành - Nguyên giá"}]
[null,null,"235_",{"$f":"_xlfn.XLOOKUP(L_FS[[#This Row],[MÃ]],'~ctbc'!C:C,'~ctbc'!D:D)","v":"Con vật nuôi cho SP định kỳ đến giai đoạn trưởng thành (KH lũy kế)"},0,-1,true,"235_","TS dài",null,null,{"$f":"_xlfn.LET(_xlpm.a,_xlfn.TEXTJOIN(\";\",TRUE,IF((L_Map[MÃ BC]=L_FS[[#This Row],[MÃ]]),L_Map[MÃ TM],\"\")),IF(LEN(_xlpm.a)>1,_xlpm.a,\"\"))","v":"123_"},{"$f":"_xlfn.TEXTJOIN(\"; \",TRUE,IF((L_Map[MÃ BC]=L_FS[[#This Row],[MÃ]])*(L_Map[BCR]=0),L_Map[CHỈ TIÊU THUYẾT MINH],\"\"))","v":"Con vật cho SP định kỳ đạt đến GĐ trưởng thành - Khấu hao lũy kế"}]
[null,null,"236_",{"$f":"_xlfn.XLOOKUP(L_FS[[#This Row],[MÃ]],'~ctbc'!C:C,'~ctbc'!D:D)","v":"Con vật nuôi lấy sản phẩm một lần dài hạn"},0,-1,true,"236_","TS dài",null,null,{"$f":"_xlfn.LET(_xlpm.a,_xlfn.TEXTJOIN(\";\",TRUE,IF((L_Map[MÃ BC]=L_FS[[#This Row],[MÃ]]),L_Map[MÃ TM],\"\")),IF(LEN(_xlpm.a)>1,_xlpm.a,\"\"))","v":""},{"$f":"_xlfn.TEXTJOIN(\"; \",TRUE,IF((L_Map[MÃ BC]=L_FS[[#This Row],[MÃ]])*(L_Map[BCR]=0),L_Map[CHỈ TIÊU THUYẾT MINH],\"\"))","v":""}]
[null,null,"237_",{"$f":"_xlfn.XLOOKUP(L_FS[[#This Row],[MÃ]],'~ctbc'!C:C,'~ctbc'!D:D)","v":"Cây trồng theo mùa vụ hoặc lấy sản phẩm một lần dài hạn"},0,-1,true,"237_","TS dài",null,null,{"$f":"_xlfn.LET(_xlpm.a,_xlfn.TEXTJOIN(\";\",TRUE,IF((L_Map[MÃ BC]=L_FS[[#This Row],[MÃ]]),L_Map[MÃ TM],\"\")),IF(LEN(_xlpm.a)>1,_xlpm.a,\"\"))","v":""},{"$f":"_xlfn.TEXTJOIN(\"; \",TRUE,IF((L_Map[MÃ BC]=L_FS[[#This Row],[MÃ]])*(L_Map[BCR]=0),L_Map[CHỈ TIÊU THUYẾT MINH],\"\"))","v":""}]
[null,null,"238_",{"$f":"_xlfn.XLOOKUP(L_FS[[#This Row],[MÃ]],'~ctbc'!C:C,'~ctbc'!D:D)","v":"Dự phòng tổn thất tài sản sinh học dài hạn *"},0,-1,true,"238_","TS dài",null,null,{"$f":"_xlfn.LET(_xlpm.a,_xlfn.TEXTJOIN(\";\",TRUE,IF((L_Map[MÃ BC]=L_FS[[#This Row],[MÃ]]),L_Map[MÃ TM],\"\")),IF(LEN(_xlpm.a)>1,_xlpm.a,\"\"))","v":""},{"$f":"_xlfn.TEXTJOIN(\"; \",TRUE,IF((L_Map[MÃ BC]=L_FS[[#This Row],[MÃ]])*(L_Map[BCR]=0),L_Map[CHỈ TIÊU THUYẾT MINH],\"\"))","v":""}]
[null,null,"241_",{"$f":"_xlfn.XLOOKUP(L_FS[[#This Row],[MÃ]],'~ctbc'!C:C,'~ctbc'!D:D)","v":"Nguyên giá BĐS đầu tư"},0,-1,true,"241_","TS dài",null,true,{"$f":"_xlfn.LET(_xlpm.a,_xlfn.TEXTJOIN(\";\",TRUE,IF((L_Map[MÃ BC]=L_FS[[#This Row],[MÃ]]),L_Map[MÃ TM],\"\")),IF(LEN(_xlpm.a)>1,_xlpm.a,\"\"))","v":"131_"},{"$f":"_xlfn.TEXTJOIN(\"; \",TRUE,IF((L_Map[MÃ BC]=L_FS[[#This Row],[MÃ]])*(L_Map[BCR]=0),L_Map[CHỈ TIÊU THUYẾT MINH],\"\"))","v":"BĐS đầu tư - Nguyên giá"}]
[null,null,"242_",{"$f":"_xlfn.XLOOKUP(L_FS[[#This Row],[MÃ]],'~ctbc'!C:C,'~ctbc'!D:D)","v":"Giá trị hao mòn lũy kế BĐS đầu tư *"},0,-1,true,"242_","TS dài",null,true,{"$f":"_xlfn.LET(_xlpm.a,_xlfn.TEXTJOIN(\";\",TRUE,IF((L_Map[MÃ BC]=L_FS[[#This Row],[MÃ]]),L_Map[MÃ TM],\"\")),IF(LEN(_xlpm.a)>1,_xlpm.a,\"\"))","v":"132_"},{"$f":"_xlfn.TEXTJOIN(\"; \",TRUE,IF((L_Map[MÃ BC]=L_FS[[#This Row],[MÃ]])*(L_Map[BCR]=0),L_Map[CHỈ TIÊU THUYẾT MINH],\"\"))","v":"BĐS đầu tư - Hao mòn lũy kế *"}]
[null,null,"251_",{"$f":"_xlfn.XLOOKUP(L_FS[[#This Row],[MÃ]],'~ctbc'!C:C,'~ctbc'!D:D)","v":"Chi phí sản xuất, kinh doanh dở dang dài hạn"},0,-1,true,"251_","TS dài",true,true,{"$f":"_xlfn.LET(_xlpm.a,_xlfn.TEXTJOIN(\";\",TRUE,IF((L_Map[MÃ BC]=L_FS[[#This Row],[MÃ]]),L_Map[MÃ TM],\"\")),IF(LEN(_xlpm.a)>1,_xlpm.a,\"\"))","v":"081_"},{"$f":"_xlfn.TEXTJOIN(\"; \",TRUE,IF((L_Map[MÃ BC]=L_FS[[#This Row],[MÃ]])*(L_Map[BCR]=0),L_Map[CHỈ TIÊU THUYẾT MINH],\"\"))","v":"Chi phí SXKD dở dang dài hạn"}]
[null,null,"252_",{"$f":"_xlfn.XLOOKUP(L_FS[[#This Row],[MÃ]],'~ctbc'!C:C,'~ctbc'!D:D)","v":"Chi phí xây dựng cơ bản dở dang"},0,-1,true,"252_","TS dài",null,true,{"$f":"_xlfn.LET(_xlpm.a,_xlfn.TEXTJOIN(\";\",TRUE,IF((L_Map[MÃ BC]=L_FS[[#This Row],[MÃ]]),L_Map[MÃ TM],\"\")),IF(LEN(_xlpm.a)>1,_xlpm.a,\"\"))","v":"082_"},{"$f":"_xlfn.TEXTJOIN(\"; \",TRUE,IF((L_Map[MÃ BC]=L_FS[[#This Row],[MÃ]])*(L_Map[BCR]=0),L_Map[CHỈ TIÊU THUYẾT MINH],\"\"))","v":"Chi phí XDCB dở dang"}]
[null,null,"261_",{"$f":"_xlfn.XLOOKUP(L_FS[[#This Row],[MÃ]],'~ctbc'!C:C,'~ctbc'!D:D)","v":"Đầu tư vào công ty con"},0,-1,true,"261_","TS dài",null,true,{"$f":"_xlfn.LET(_xlpm.a,_xlfn.TEXTJOIN(\";\",TRUE,IF((L_Map[MÃ BC]=L_FS[[#This Row],[MÃ]]),L_Map[MÃ TM],\"\")),IF(LEN(_xlpm.a)>1,_xlpm.a,\"\"))","v":"023_"},{"$f":"_xlfn.TEXTJOIN(\"; \",TRUE,IF((L_Map[MÃ BC]=L_FS[[#This Row],[MÃ]])*(L_Map[BCR]=0),L_Map[CHỈ TIÊU THUYẾT MINH],\"\"))","v":"Đầu tư vào công ty con"}]
[null,null,"262_",{"$f":"_xlfn.XLOOKUP(L_FS[[#This Row],[MÃ]],'~ctbc'!C:C,'~ctbc'!D:D)","v":"Đầu tư vào công ty liên doanh, liên kết"},0,-1,true,"262_","TS dài",null,true,{"$f":"_xlfn.LET(_xlpm.a,_xlfn.TEXTJOIN(\";\",TRUE,IF((L_Map[MÃ BC]=L_FS[[#This Row],[MÃ]]),L_Map[MÃ TM],\"\")),IF(LEN(_xlpm.a)>1,_xlpm.a,\"\"))","v":"024_"},{"$f":"_xlfn.TEXTJOIN(\"; \",TRUE,IF((L_Map[MÃ BC]=L_FS[[#This Row],[MÃ]])*(L_Map[BCR]=0),L_Map[CHỈ TIÊU THUYẾT MINH],\"\"))","v":"Đầu tư vào công ty liên kết"}]
[null,null,"263_",{"$f":"_xlfn.XLOOKUP(L_FS[[#This Row],[MÃ]],'~ctbc'!C:C,'~ctbc'!D:D)","v":"Đầu tư góp vốn vào đơn vị khác"},0,-1,true,"263_","TS dài",null,true,{"$f":"_xlfn.LET(_xlpm.a,_xlfn.TEXTJOIN(\";\",TRUE,IF((L_Map[MÃ BC]=L_FS[[#This Row],[MÃ]]),L_Map[MÃ TM],\"\")),IF(LEN(_xlpm.a)>1,_xlpm.a,\"\"))","v":"025_"},{"$f":"_xlfn.TEXTJOIN(\"; \",TRUE,IF((L_Map[MÃ BC]=L_FS[[#This Row],[MÃ]])*(L_Map[BCR]=0),L_Map[CHỈ TIÊU THUYẾT MINH],\"\"))","v":"Đầu tư góp vốn vào đơn vị khác"}]
[null,null,"264_",{"$f":"_xlfn.XLOOKUP(L_FS[[#This Row],[MÃ]],'~ctbc'!C:C,'~ctbc'!D:D)","v":"Dự phòng tổn thất đầu tư vào đơn vị khác dài hạn *"},0,-1,true,"264_","TS dài",null,true,{"$f":"_xlfn.LET(_xlpm.a,_xlfn.TEXTJOIN(\";\",TRUE,IF((L_Map[MÃ BC]=L_FS[[#This Row],[MÃ]]),L_Map[MÃ TM],\"\")),IF(LEN(_xlpm.a)>1,_xlpm.a,\"\"))","v":"028_"},{"$f":"_xlfn.TEXTJOIN(\"; \",TRUE,IF((L_Map[MÃ BC]=L_FS[[#This Row],[MÃ]])*(L_Map[BCR]=0),L_Map[CHỈ TIÊU THUYẾT MINH],\"\"))","v":"Dự phòng đầu tư tài chính dài hạn *"}]
[null,null,"265_",{"$f":"_xlfn.XLOOKUP(L_FS[[#This Row],[MÃ]],'~ctbc'!C:C,'~ctbc'!D:D)","v":"Đầu tư nắm giữ đến ngày đáo hạn dài hạn"},0,-1,true,"265_","TS dài",true,true,{"$f":"_xlfn.LET(_xlpm.a,_xlfn.TEXTJOIN(\";\",TRUE,IF((L_Map[MÃ BC]=L_FS[[#This Row],[MÃ]]),L_Map[MÃ TM],\"\")),IF(LEN(_xlpm.a)>1,_xlpm.a,\"\"))","v":"022_"},{"$f":"_xlfn.TEXTJOIN(\"; \",TRUE,IF((L_Map[MÃ BC]=L_FS[[#This Row],[MÃ]])*(L_Map[BCR]=0),L_Map[CHỈ TIÊU THUYẾT MINH],\"\"))","v":"Đầu tư nắm giữ đến ngày đáo hạn dài hạn"}]
[null,null,"266_",{"$f":"_xlfn.XLOOKUP(L_FS[[#This Row],[MÃ]],'~ctbc'!C:C,'~ctbc'!D:D)","v":"Dự phòng đầu tư nắm giữ đến ngày đáo hạn dài hạn *"},0,-1,true,"266_","TS dài",true,true,"022_","Đầu tư nắm giữ đến ngày đáo hạn dài hạn"]
[null,null,"271_",{"$f":"_xlfn.XLOOKUP(L_FS[[#This Row],[MÃ]],'~ctbc'!C:C,'~ctbc'!D:D)","v":"Chi phí chờ phân bổ dài hạn"},0,-1,true,"271_","TS dài",null,true,{"$f":"_xlfn.LET(_xlpm.a,_xlfn.TEXTJOIN(\";\",TRUE,IF((L_Map[MÃ BC]=L_FS[[#This Row],[MÃ]]),L_Map[MÃ TM],\"\")),IF(LEN(_xlpm.a)>1,_xlpm.a,\"\"))","v":"142_"},{"$f":"_xlfn.TEXTJOIN(\"; \",TRUE,IF((L_Map[MÃ BC]=L_FS[[#This Row],[MÃ]])*(L_Map[BCR]=0),L_Map[CHỈ TIÊU THUYẾT MINH],\"\"))","v":"Chi phí chờ phân bổ dài hạn"}]
[null,null,"272_",{"$f":"_xlfn.XLOOKUP(L_FS[[#This Row],[MÃ]],'~ctbc'!C:C,'~ctbc'!D:D)","v":"Tài sản thuế thu nhập hoãn lại"},0,-1,true,"272_","TS dài",null,true,{"$f":"_xlfn.LET(_xlpm.a,_xlfn.TEXTJOIN(\";\",TRUE,IF((L_Map[MÃ BC]=L_FS[[#This Row],[MÃ]]),L_Map[MÃ TM],\"\")),IF(LEN(_xlpm.a)>1,_xlpm.a,\"\"))","v":"261_"},{"$f":"_xlfn.TEXTJOIN(\"; \",TRUE,IF((L_Map[MÃ BC]=L_FS[[#This Row],[MÃ]])*(L_Map[BCR]=0),L_Map[CHỈ TIÊU THUYẾT MINH],\"\"))","v":"Tài sản thuế TNDN hoãn lại"}]
[null,null,"273_",{"$f":"_xlfn.XLOOKUP(L_FS[[#This Row],[MÃ]],'~ctbc'!C:C,'~ctbc'!D:D)","v":"Thiết bị, vật tư, phụ tùng thay thế dài hạn"},0,-1,true,"273_","TS dài",null,true,{"$f":"_xlfn.LET(_xlpm.a,_xlfn.TEXTJOIN(\";\",TRUE,IF((L_Map[MÃ BC]=L_FS[[#This Row],[MÃ]]),L_Map[MÃ TM],\"\")),IF(LEN(_xlpm.a)>1,_xlpm.a,\"\"))","v":"062_"},{"$f":"_xlfn.TEXTJOIN(\"; \",TRUE,IF((L_Map[MÃ BC]=L_FS[[#This Row],[MÃ]])*(L_Map[BCR]=0),L_Map[CHỈ TIÊU THUYẾT MINH],\"\"))","v":"Tài sản khác dài hạn"}]
[null,null,"274_",{"$f":"_xlfn.XLOOKUP(L_FS[[#This Row],[MÃ]],'~ctbc'!C:C,'~ctbc'!D:D)","v":"Tài sản dài hạn khác"},0,-1,true,"274_","TS dài",null,true,{"$f":"_xlfn.LET(_xlpm.a,_xlfn.TEXTJOIN(\";\",TRUE,IF((L_Map[MÃ BC]=L_FS[[#This Row],[MÃ]]),L_Map[MÃ TM],\"\")),IF(LEN(_xlpm.a)>1,_xlpm.a,\"\"))","v":"062_"},{"$f":"_xlfn.TEXTJOIN(\"; \",TRUE,IF((L_Map[MÃ BC]=L_FS[[#This Row],[MÃ]])*(L_Map[BCR]=0),L_Map[CHỈ TIÊU THUYẾT MINH],\"\"))","v":"Tài sản khác dài hạn"}]
[null,null,"279_",{"$f":"_xlfn.XLOOKUP(L_FS[[#This Row],[MÃ]],'~ctbc'!C:C,'~ctbc'!D:D)","v":"Lợi thế thương mại"},0,-1,true,"279_","TS dài",true,true,{"$f":"_xlfn.LET(_xlpm.a,_xlfn.TEXTJOIN(\";\",TRUE,IF((L_Map[MÃ BC]=L_FS[[#This Row],[MÃ]]),L_Map[MÃ TM],\"\")),IF(LEN(_xlpm.a)>1,_xlpm.a,\"\"))","v":"151_"},{"$f":"_xlfn.TEXTJOIN(\"; \",TRUE,IF((L_Map[MÃ BC]=L_FS[[#This Row],[MÃ]])*(L_Map[BCR]=0),L_Map[CHỈ TIÊU THUYẾT MINH],\"\"))","v":"Lợi thế thương mại"}]
[null,null,"311_",{"$f":"_xlfn.XLOOKUP(L_FS[[#This Row],[MÃ]],'~ctbc'!C:C,'~ctbc'!D:D)","v":"Phải trả người bán ngắn hạn"},0,1,true,"311_","Nợ ngắn",true,true,{"$f":"_xlfn.LET(_xlpm.a,_xlfn.TEXTJOIN(\";\",TRUE,IF((L_Map[MÃ BC]=L_FS[[#This Row],[MÃ]]),L_Map[MÃ TM],\"\")),IF(LEN(_xlpm.a)>1,_xlpm.a,\"\"))","v":"171_;171s"},{"$f":"_xlfn.TEXTJOIN(\"; \",TRUE,IF((L_Map[MÃ BC]=L_FS[[#This Row],[MÃ]])*(L_Map[BCR]=0),L_Map[CHỈ TIÊU THUYẾT MINH],\"\"))","v":"Phải trả người bán ngắn hạn"}]
[null,null,"312_",{"$f":"_xlfn.XLOOKUP(L_FS[[#This Row],[MÃ]],'~ctbc'!C:C,'~ctbc'!D:D)","v":"Người mua trả trước ngắn hạn"},0,1,true,"312_","Nợ ngắn",true,true,{"$f":"_xlfn.LET(_xlpm.a,_xlfn.TEXTJOIN(\";\",TRUE,IF((L_Map[MÃ BC]=L_FS[[#This Row],[MÃ]]),L_Map[MÃ TM],\"\")),IF(LEN(_xlpm.a)>1,_xlpm.a,\"\"))","v":"173_;173s"},{"$f":"_xlfn.TEXTJOIN(\"; \",TRUE,IF((L_Map[MÃ BC]=L_FS[[#This Row],[MÃ]])*(L_Map[BCR]=0),L_Map[CHỈ TIÊU THUYẾT MINH],\"\"))","v":"Người mua trả trước ngắn hạn"}]
[null,null,"313_",{"$f":"_xlfn.XLOOKUP(L_FS[[#This Row],[MÃ]],'~ctbc'!C:C,'~ctbc'!D:D)","v":"Phải trả về cổ tức, lợi nhuận"},0,1,true,"313_","Nợ ngắn",true,true,{"$f":"_xlfn.LET(_xlpm.a,_xlfn.TEXTJOIN(\";\",TRUE,IF((L_Map[MÃ BC]=L_FS[[#This Row],[MÃ]]),L_Map[MÃ TM],\"\")),IF(LEN(_xlpm.a)>1,_xlpm.a,\"\"))","v":"181_"},{"$f":"_xlfn.TEXTJOIN(\"; \",TRUE,IF((L_Map[MÃ BC]=L_FS[[#This Row],[MÃ]])*(L_Map[BCR]=0),L_Map[CHỈ TIÊU THUYẾT MINH],\"\"))","v":"Phải trả về cổ tức, lợi nhuận"}]
[null,null,"314_",{"$f":"_xlfn.XLOOKUP(L_FS[[#This Row],[MÃ]],'~ctbc'!C:C,'~ctbc'!D:D)","v":"Thuế và các khoản phải nộp Nhà nước ngắn hạn"},0,1,true,"314_","Nợ ngắn",null,true,{"$f":"_xlfn.LET(_xlpm.a,_xlfn.TEXTJOIN(\";\",TRUE,IF((L_Map[MÃ BC]=L_FS[[#This Row],[MÃ]]),L_Map[MÃ TM],\"\")),IF(LEN(_xlpm.a)>1,_xlpm.a,\"\"))","v":"191_"},{"$f":"_xlfn.TEXTJOIN(\"; \",TRUE,IF((L_Map[MÃ BC]=L_FS[[#This Row],[MÃ]])*(L_Map[BCR]=0),L_Map[CHỈ TIÊU THUYẾT MINH],\"\"))","v":"Thuế và các khoản phải nộp Nhà nước"}]
[null,null,"315_",{"$f":"_xlfn.XLOOKUP(L_FS[[#This Row],[MÃ]],'~ctbc'!C:C,'~ctbc'!D:D)","v":"Phải trả người lao động"},0,1,true,"315_","Nợ ngắn",true,true,{"$f":"_xlfn.LET(_xlpm.a,_xlfn.TEXTJOIN(\";\",TRUE,IF((L_Map[MÃ BC]=L_FS[[#This Row],[MÃ]]),L_Map[MÃ TM],\"\")),IF(LEN(_xlpm.a)>1,_xlpm.a,\"\"))","v":""},{"$f":"_xlfn.TEXTJOIN(\"; \",TRUE,IF((L_Map[MÃ BC]=L_FS[[#This Row],[MÃ]])*(L_Map[BCR]=0),L_Map[CHỈ TIÊU THUYẾT MINH],\"\"))","v":"0"}]
[null,null,"316_",{"$f":"_xlfn.XLOOKUP(L_FS[[#This Row],[MÃ]],'~ctbc'!C:C,'~ctbc'!D:D)","v":"Chi phí phải trả ngắn hạn"},0,1,true,"316_","Nợ ngắn",true,true,{"$f":"_xlfn.LET(_xlpm.a,_xlfn.TEXTJOIN(\";\",TRUE,IF((L_Map[MÃ BC]=L_FS[[#This Row],[MÃ]]),L_Map[MÃ TM],\"\")),IF(LEN(_xlpm.a)>1,_xlpm.a,\"\"))","v":"201_"},{"$f":"_xlfn.TEXTJOIN(\"; \",TRUE,IF((L_Map[MÃ BC]=L_FS[[#This Row],[MÃ]])*(L_Map[BCR]=0),L_Map[CHỈ TIÊU THUYẾT MINH],\"\"))","v":"Chi phí phải trả ngắn hạn"}]
[null,null,"317_",{"$f":"_xlfn.XLOOKUP(L_FS[[#This Row],[MÃ]],'~ctbc'!C:C,'~ctbc'!D:D)","v":"Phải trả nội bộ ngắn hạn"},0,1,true,"317_","Nợ ngắn",true,true,{"$f":"_xlfn.LET(_xlpm.a,_xlfn.TEXTJOIN(\";\",TRUE,IF((L_Map[MÃ BC]=L_FS[[#This Row],[MÃ]]),L_Map[MÃ TM],\"\")),IF(LEN(_xlpm.a)>1,_xlpm.a,\"\"))","v":"213_"},{"$f":"_xlfn.TEXTJOIN(\"; \",TRUE,IF((L_Map[MÃ BC]=L_FS[[#This Row],[MÃ]])*(L_Map[BCR]=0),L_Map[CHỈ TIÊU THUYẾT MINH],\"\"))","v":"Phải trả nội bộ ngắn hạn"}]
[null,null,"318_",{"$f":"_xlfn.XLOOKUP(L_FS[[#This Row],[MÃ]],'~ctbc'!C:C,'~ctbc'!D:D)","v":"Phải trả theo tiến độ HĐXD ngắn hạn"},0,1,true,"318_","Nợ ngắn",true,true,{"$f":"_xlfn.LET(_xlpm.a,_xlfn.TEXTJOIN(\";\",TRUE,IF((L_Map[MÃ BC]=L_FS[[#This Row],[MÃ]]),L_Map[MÃ TM],\"\")),IF(LEN(_xlpm.a)>1,_xlpm.a,\"\"))","v":"215_"},{"$f":"_xlfn.TEXTJOIN(\"; \",TRUE,IF((L_Map[MÃ BC]=L_FS[[#This Row],[MÃ]])*(L_Map[BCR]=0),L_Map[CHỈ TIÊU THUYẾT MINH],\"\"))","v":"Phải trả theo tiến độ HĐXD"}]
[null,null,"319_",{"$f":"_xlfn.XLOOKUP(L_FS[[#This Row],[MÃ]],'~ctbc'!C:C,'~ctbc'!D:D)","v":"Doanh thu chờ phân bổ ngắn hạn"},0,1,true,"319_","Nợ ngắn",true,true,{"$f":"_xlfn.LET(_xlpm.a,_xlfn.TEXTJOIN(\";\",TRUE,IF((L_Map[MÃ BC]=L_FS[[#This Row],[MÃ]]),L_Map[MÃ TM],\"\")),IF(LEN(_xlpm.a)>1,_xlpm.a,\"\"))","v":"221_"},{"$f":"_xlfn.TEXTJOIN(\"; \",TRUE,IF((L_Map[MÃ BC]=L_FS[[#This Row],[MÃ]])*(L_Map[BCR]=0),L_Map[CHỈ TIÊU THUYẾT MINH],\"\"))","v":"Doanh thu chờ phân bổ ngắn hạn"}]
[null,null,"320_",{"$f":"_xlfn.XLOOKUP(L_FS[[#This Row],[MÃ]],'~ctbc'!C:C,'~ctbc'!D:D)","v":"Các khoản phải trả ngắn hạn khác"},0,1,true,"320_","Nợ ngắn",true,true,{"$f":"_xlfn.LET(_xlpm.a,_xlfn.TEXTJOIN(\";\",TRUE,IF((L_Map[MÃ BC]=L_FS[[#This Row],[MÃ]]),L_Map[MÃ TM],\"\")),IF(LEN(_xlpm.a)>1,_xlpm.a,\"\"))","v":"211_;211s"},{"$f":"_xlfn.TEXTJOIN(\"; \",TRUE,IF((L_Map[MÃ BC]=L_FS[[#This Row],[MÃ]])*(L_Map[BCR]=0),L_Map[CHỈ TIÊU THUYẾT MINH],\"\"))","v":"Phải trả ngắn hạn khác"}]
[null,null,"321_",{"$f":"_xlfn.XLOOKUP(L_FS[[#This Row],[MÃ]],'~ctbc'!C:C,'~ctbc'!D:D)","v":"Vay và nợ thuê tài chính ngắn hạn"},0,1,true,"321_","Nợ ngắn",true,true,{"$f":"_xlfn.LET(_xlpm.a,_xlfn.TEXTJOIN(\";\",TRUE,IF((L_Map[MÃ BC]=L_FS[[#This Row],[MÃ]]),L_Map[MÃ TM],\"\")),IF(LEN(_xlpm.a)>1,_xlpm.a,\"\"))","v":"161_"},{"$f":"_xlfn.TEXTJOIN(\"; \",TRUE,IF((L_Map[MÃ BC]=L_FS[[#This Row],[MÃ]])*(L_Map[BCR]=0),L_Map[CHỈ TIÊU THUYẾT MINH],\"\"))","v":"Vay và nợ thuê tài chính ngắn hạn"}]
[null,null,"322_",{"$f":"_xlfn.XLOOKUP(L_FS[[#This Row],[MÃ]],'~ctbc'!C:C,'~ctbc'!D:D)","v":"Dự phòng phải trả ngắn hạn"},0,1,true,"322_","Nợ ngắn",null,true,{"$f":"_xlfn.LET(_xlpm.a,_xlfn.TEXTJOIN(\";\",TRUE,IF((L_Map[MÃ BC]=L_FS[[#This Row],[MÃ]]),L_Map[MÃ TM],\"\")),IF(LEN(_xlpm.a)>1,_xlpm.a,\"\"))","v":"251_"},{"$f":"_xlfn.TEXTJOIN(\"; \",TRUE,IF((L_Map[MÃ BC]=L_FS[[#This Row],[MÃ]])*(L_Map[BCR]=0),L_Map[CHỈ TIÊU THUYẾT MINH],\"\"))","v":"Dự phòng phải trả ngắn hạn"}]
[null,null,"323_",{"$f":"_xlfn.XLOOKUP(L_FS[[#This Row],[MÃ]],'~ctbc'!C:C,'~ctbc'!D:D)","v":"Quỹ khen thưởng, phúc lợi"},0,1,true,"323_","Nợ ngắn",null,true,{"$f":"_xlfn.LET(_xlpm.a,_xlfn.TEXTJOIN(\";\",TRUE,IF((L_Map[MÃ BC]=L_FS[[#This Row],[MÃ]]),L_Map[MÃ TM],\"\")),IF(LEN(_xlpm.a)>1,_xlpm.a,\"\"))","v":"182_"},{"$f":"_xlfn.TEXTJOIN(\"; \",TRUE,IF((L_Map[MÃ BC]=L_FS[[#This Row],[MÃ]])*(L_Map[BCR]=0),L_Map[CHỈ TIÊU THUYẾT MINH],\"\"))","v":"Quỹ khen thưởng, phúc lợi"}]
[null,null,"324_",{"$f":"_xlfn.XLOOKUP(L_FS[[#This Row],[MÃ]],'~ctbc'!C:C,'~ctbc'!D:D)","v":"Quỹ bình ổn giá"},0,1,true,"324_","Nợ ngắn",null,true,{"$f":"_xlfn.LET(_xlpm.a,_xlfn.TEXTJOIN(\";\",TRUE,IF((L_Map[MÃ BC]=L_FS[[#This Row],[MÃ]]),L_Map[MÃ TM],\"\")),IF(LEN(_xlpm.a)>1,_xlpm.a,\"\"))","v":"271_"},{"$f":"_xlfn.TEXTJOIN(\"; \",TRUE,IF((L_Map[MÃ BC]=L_FS[[#This Row],[MÃ]])*(L_Map[BCR]=0),L_Map[CHỈ TIÊU THUYẾT MINH],\"\"))","v":"Quỹ không thuộc CSH"}]
[null,null,"325_",{"$f":"_xlfn.XLOOKUP(L_FS[[#This Row],[MÃ]],'~ctbc'!C:C,'~ctbc'!D:D)","v":"Giao dịch mua bán lại trái phiếu Chính phủ"},0,1,true,"325_","Nợ ngắn",null,true,{"$f":"_xlfn.LET(_xlpm.a,_xlfn.TEXTJOIN(\";\",TRUE,IF((L_Map[MÃ BC]=L_FS[[#This Row],[MÃ]]),L_Map[MÃ TM],\"\")),IF(LEN(_xlpm.a)>1,_xlpm.a,\"\"))","v":""},{"$f":"_xlfn.TEXTJOIN(\"; \",TRUE,IF((L_Map[MÃ BC]=L_FS[[#This Row],[MÃ]])*(L_Map[BCR]=0),L_Map[CHỈ TIÊU THUYẾT MINH],\"\"))","v":""}]
[null,null,"331_",{"$f":"_xlfn.XLOOKUP(L_FS[[#This Row],[MÃ]],'~ctbc'!C:C,'~ctbc'!D:D)","v":"Phải trả người bán dài hạn"},0,1,true,"331_","Nợ dài",true,true,{"$f":"_xlfn.LET(_xlpm.a,_xlfn.TEXTJOIN(\";\",TRUE,IF((L_Map[MÃ BC]=L_FS[[#This Row],[MÃ]]),L_Map[MÃ TM],\"\")),IF(LEN(_xlpm.a)>1,_xlpm.a,\"\"))","v":"172_;172s"},{"$f":"_xlfn.TEXTJOIN(\"; \",TRUE,IF((L_Map[MÃ BC]=L_FS[[#This Row],[MÃ]])*(L_Map[BCR]=0),L_Map[CHỈ TIÊU THUYẾT MINH],\"\"))","v":"Phải trả người bán dài hạn"}]
[null,null,"332_",{"$f":"_xlfn.XLOOKUP(L_FS[[#This Row],[MÃ]],'~ctbc'!C:C,'~ctbc'!D:D)","v":"Người mua trả trước dài hạn"},0,1,true,"332_","Nợ dài",true,true,{"$f":"_xlfn.LET(_xlpm.a,_xlfn.TEXTJOIN(\";\",TRUE,IF((L_Map[MÃ BC]=L_FS[[#This Row],[MÃ]]),L_Map[MÃ TM],\"\")),IF(LEN(_xlpm.a)>1,_xlpm.a,\"\"))","v":"174_;174s"},{"$f":"_xlfn.TEXTJOIN(\"; \",TRUE,IF((L_Map[MÃ BC]=L_FS[[#This Row],[MÃ]])*(L_Map[BCR]=0),L_Map[CHỈ TIÊU THUYẾT MINH],\"\"))","v":"Người mua trả trước dài hạn"}]
[null,null,"333_",{"$f":"_xlfn.XLOOKUP(L_FS[[#This Row],[MÃ]],'~ctbc'!C:C,'~ctbc'!D:D)","v":"Thuế và các khoản phải nộp Nhà nước dài hạn"},0,1,true,"333_","Nợ dài",null,null,{"$f":"_xlfn.LET(_xlpm.a,_xlfn.TEXTJOIN(\";\",TRUE,IF((L_Map[MÃ BC]=L_FS[[#This Row],[MÃ]]),L_Map[MÃ TM],\"\")),IF(LEN(_xlpm.a)>1,_xlpm.a,\"\"))","v":""},{"$f":"_xlfn.TEXTJOIN(\"; \",TRUE,IF((L_Map[MÃ BC]=L_FS[[#This Row],[MÃ]])*(L_Map[BCR]=0),L_Map[CHỈ TIÊU THUYẾT MINH],\"\"))","v":""}]
[null,null,"334_",{"$f":"_xlfn.XLOOKUP(L_FS[[#This Row],[MÃ]],'~ctbc'!C:C,'~ctbc'!D:D)","v":"Chi phí phải trả dài hạn"},0,1,true,"334_","Nợ dài",null,true,{"$f":"_xlfn.LET(_xlpm.a,_xlfn.TEXTJOIN(\";\",TRUE,IF((L_Map[MÃ BC]=L_FS[[#This Row],[MÃ]]),L_Map[MÃ TM],\"\")),IF(LEN(_xlpm.a)>1,_xlpm.a,\"\"))","v":"202_"},{"$f":"_xlfn.TEXTJOIN(\"; \",TRUE,IF((L_Map[MÃ BC]=L_FS[[#This Row],[MÃ]])*(L_Map[BCR]=0),L_Map[CHỈ TIÊU THUYẾT MINH],\"\"))","v":"Chi phí phải trả dài hạn"}]
[null,null,"335_",{"$f":"_xlfn.XLOOKUP(L_FS[[#This Row],[MÃ]],'~ctbc'!C:C,'~ctbc'!D:D)","v":"Phải trả nội bộ về vốn kinh doanh"},0,1,true,"335_","Nợ dài",null,true,{"$f":"_xlfn.LET(_xlpm.a,_xlfn.TEXTJOIN(\";\",TRUE,IF((L_Map[MÃ BC]=L_FS[[#This Row],[MÃ]]),L_Map[MÃ TM],\"\")),IF(LEN(_xlpm.a)>1,_xlpm.a,\"\"))","v":"213_"},{"$f":"_xlfn.TEXTJOIN(\"; \",TRUE,IF((L_Map[MÃ BC]=L_FS[[#This Row],[MÃ]])*(L_Map[BCR]=0),L_Map[CHỈ TIÊU THUYẾT MINH],\"\"))","v":"Phải trả nội bộ ngắn hạn"}]
[null,null,"336_",{"$f":"_xlfn.XLOOKUP(L_FS[[#This Row],[MÃ]],'~ctbc'!C:C,'~ctbc'!D:D)","v":"Phải trả nội bộ dài hạn"},0,1,true,"336_","Nợ dài",true,true,{"$f":"_xlfn.LET(_xlpm.a,_xlfn.TEXTJOIN(\";\",TRUE,IF((L_Map[MÃ BC]=L_FS[[#This Row],[MÃ]]),L_Map[MÃ TM],\"\")),IF(LEN(_xlpm.a)>1,_xlpm.a,\"\"))","v":"213_"},{"$f":"_xlfn.TEXTJOIN(\"; \",TRUE,IF((L_Map[MÃ BC]=L_FS[[#This Row],[MÃ]])*(L_Map[BCR]=0),L_Map[CHỈ TIÊU THUYẾT MINH],\"\"))","v":"Phải trả nội bộ ngắn hạn"}]
[null,null,"337_",{"$f":"_xlfn.XLOOKUP(L_FS[[#This Row],[MÃ]],'~ctbc'!C:C,'~ctbc'!D:D)","v":"Doanh thu chờ phân bổ dài hạn"},0,1,true,"337_","Nợ dài",true,true,{"$f":"_xlfn.LET(_xlpm.a,_xlfn.TEXTJOIN(\";\",TRUE,IF((L_Map[MÃ BC]=L_FS[[#This Row],[MÃ]]),L_Map[MÃ TM],\"\")),IF(LEN(_xlpm.a)>1,_xlpm.a,\"\"))","v":"222_"},{"$f":"_xlfn.TEXTJOIN(\"; \",TRUE,IF((L_Map[MÃ BC]=L_FS[[#This Row],[MÃ]])*(L_Map[BCR]=0),L_Map[CHỈ TIÊU THUYẾT MINH],\"\"))","v":"Doanh thu chờ phân bổ dài hạn"}]
[null,null,"338_",{"$f":"_xlfn.XLOOKUP(L_FS[[#This Row],[MÃ]],'~ctbc'!C:C,'~ctbc'!D:D)","v":"Phải trả dài hạn khác"},0,1,true,"338_","Nợ dài",true,true,{"$f":"_xlfn.LET(_xlpm.a,_xlfn.TEXTJOIN(\";\",TRUE,IF((L_Map[MÃ BC]=L_FS[[#This Row],[MÃ]]),L_Map[MÃ TM],\"\")),IF(LEN(_xlpm.a)>1,_xlpm.a,\"\"))","v":"212_;212s"},{"$f":"_xlfn.TEXTJOIN(\"; \",TRUE,IF((L_Map[MÃ BC]=L_FS[[#This Row],[MÃ]])*(L_Map[BCR]=0),L_Map[CHỈ TIÊU THUYẾT MINH],\"\"))","v":"Phải trả dài hạn khác"}]
[null,null,"339_",{"$f":"_xlfn.XLOOKUP(L_FS[[#This Row],[MÃ]],'~ctbc'!C:C,'~ctbc'!D:D)","v":"Vay và nợ thuê tài chính dài hạn"},0,1,true,"339_","Nợ dài",true,true,{"$f":"_xlfn.LET(_xlpm.a,_xlfn.TEXTJOIN(\";\",TRUE,IF((L_Map[MÃ BC]=L_FS[[#This Row],[MÃ]]),L_Map[MÃ TM],\"\")),IF(LEN(_xlpm.a)>1,_xlpm.a,\"\"))","v":"162_"},{"$f":"_xlfn.TEXTJOIN(\"; \",TRUE,IF((L_Map[MÃ BC]=L_FS[[#This Row],[MÃ]])*(L_Map[BCR]=0),L_Map[CHỈ TIÊU THUYẾT MINH],\"\"))","v":"Vay và nợ thuê tài chính dài hạn"}]
[null,null,"340_",{"$f":"_xlfn.XLOOKUP(L_FS[[#This Row],[MÃ]],'~ctbc'!C:C,'~ctbc'!D:D)","v":"Trái phiếu chuyển đổi"},0,1,true,"340_","Nợ dài",null,true,{"$f":"_xlfn.LET(_xlpm.a,_xlfn.TEXTJOIN(\";\",TRUE,IF((L_Map[MÃ BC]=L_FS[[#This Row],[MÃ]]),L_Map[MÃ TM],\"\")),IF(LEN(_xlpm.a)>1,_xlpm.a,\"\"))","v":"162_;232_"},{"$f":"_xlfn.TEXTJOIN(\"; \",TRUE,IF((L_Map[MÃ BC]=L_FS[[#This Row],[MÃ]])*(L_Map[BCR]=0),L_Map[CHỈ TIÊU THUYẾT MINH],\"\"))","v":"Vay và nợ thuê tài chính dài hạn; Trái phiếu chuyển đổi"}]
[null,null,"341_",{"$f":"_xlfn.XLOOKUP(L_FS[[#This Row],[MÃ]],'~ctbc'!C:C,'~ctbc'!D:D)","v":"Cổ phiếu ưu đãi"},0,1,true,"341_","Nợ dài",null,true,{"$f":"_xlfn.LET(_xlpm.a,_xlfn.TEXTJOIN(\";\",TRUE,IF((L_Map[MÃ BC]=L_FS[[#This Row],[MÃ]]),L_Map[MÃ TM],\"\")),IF(LEN(_xlpm.a)>1,_xlpm.a,\"\"))","v":"271_"},{"$f":"_xlfn.TEXTJOIN(\"; \",TRUE,IF((L_Map[MÃ BC]=L_FS[[#This Row],[MÃ]])*(L_Map[BCR]=0),L_Map[CHỈ TIÊU THUYẾT MINH],\"\"))","v":"Quỹ không thuộc CSH"}]
[null,null,"342_",{"$f":"_xlfn.XLOOKUP(L_FS[[#This Row],[MÃ]],'~ctbc'!C:C,'~ctbc'!D:D)","v":"Thuế thu nhập hoãn lại phải trả"},0,1,true,"342_","Nợ dài",null,true,{"$f":"_xlfn.LET(_xlpm.a,_xlfn.TEXTJOIN(\";\",TRUE,IF((L_Map[MÃ BC]=L_FS[[#This Row],[MÃ]]),L_Map[MÃ TM],\"\")),IF(LEN(_xlpm.a)>1,_xlpm.a,\"\"))","v":"262_"},{"$f":"_xlfn.TEXTJOIN(\"; \",TRUE,IF((L_Map[MÃ BC]=L_FS[[#This Row],[MÃ]])*(L_Map[BCR]=0),L_Map[CHỈ TIÊU THUYẾT MINH],\"\"))","v":"Thuế TNDN hoãn lại phải trả"}]
[null,null,"343_",{"$f":"_xlfn.XLOOKUP(L_FS[[#This Row],[MÃ]],'~ctbc'!C:C,'~ctbc'!D:D)","v":"Dự phòng phải trả dài hạn"},0,1,true,"343_","Nợ dài",null,true,{"$f":"_xlfn.LET(_xlpm.a,_xlfn.TEXTJOIN(\";\",TRUE,IF((L_Map[MÃ BC]=L_FS[[#This Row],[MÃ]]),L_Map[MÃ TM],\"\")),IF(LEN(_xlpm.a)>1,_xlpm.a,\"\"))","v":"252_"},{"$f":"_xlfn.TEXTJOIN(\"; \",TRUE,IF((L_Map[MÃ BC]=L_FS[[#This Row],[MÃ]])*(L_Map[BCR]=0),L_Map[CHỈ TIÊU THUYẾT MINH],\"\"))","v":"Dự phòng phải trả dài hạn"}]
[null,null,"344_",{"$f":"_xlfn.XLOOKUP(L_FS[[#This Row],[MÃ]],'~ctbc'!C:C,'~ctbc'!D:D)","v":"Quỹ phát triển khoa học và công nghệ"},0,1,true,"344_","Nợ dài",null,true,{"$f":"_xlfn.LET(_xlpm.a,_xlfn.TEXTJOIN(\";\",TRUE,IF((L_Map[MÃ BC]=L_FS[[#This Row],[MÃ]]),L_Map[MÃ TM],\"\")),IF(LEN(_xlpm.a)>1,_xlpm.a,\"\"))","v":"271_"},{"$f":"_xlfn.TEXTJOIN(\"; \",TRUE,IF((L_Map[MÃ BC]=L_FS[[#This Row],[MÃ]])*(L_Map[BCR]=0),L_Map[CHỈ TIÊU THUYẾT MINH],\"\"))","v":"Quỹ không thuộc CSH"}]
[null,null,"412_",{"$f":"_xlfn.XLOOKUP(L_FS[[#This Row],[MÃ]],'~ctbc'!C:C,'~ctbc'!D:D)","v":"Thặng dư vốn cổ phần"},0,1,true,"412_","Vốn khác",null,true,{"$f":"_xlfn.LET(_xlpm.a,_xlfn.TEXTJOIN(\";\",TRUE,IF((L_Map[MÃ BC]=L_FS[[#This Row],[MÃ]]),L_Map[MÃ TM],\"\")),IF(LEN(_xlpm.a)>1,_xlpm.a,\"\"))","v":"270_"},{"$f":"_xlfn.TEXTJOIN(\"; \",TRUE,IF((L_Map[MÃ BC]=L_FS[[#This Row],[MÃ]])*(L_Map[BCR]=0),L_Map[CHỈ TIÊU THUYẾT MINH],\"\"))","v":"Vốn chủ sở hữu"}]
[null,null,"413_",{"$f":"_xlfn.XLOOKUP(L_FS[[#This Row],[MÃ]],'~ctbc'!C:C,'~ctbc'!D:D)","v":"Quyền chọn chuyển đổi trái phiếu"},0,1,true,"413_","Vốn khác",null,true,{"$f":"_xlfn.LET(_xlpm.a,_xlfn.TEXTJOIN(\";\",TRUE,IF((L_Map[MÃ BC]=L_FS[[#This Row],[MÃ]]),L_Map[MÃ TM],\"\")),IF(LEN(_xlpm.a)>1,_xlpm.a,\"\"))","v":"270_"},{"$f":"_xlfn.TEXTJOIN(\"; \",TRUE,IF((L_Map[MÃ BC]=L_FS[[#This Row],[MÃ]])*(L_Map[BCR]=0),L_Map[CHỈ TIÊU THUYẾT MINH],\"\"))","v":"Vốn chủ sở hữu"}]
[null,null,"414_",{"$f":"_xlfn.XLOOKUP(L_FS[[#This Row],[MÃ]],'~ctbc'!C:C,'~ctbc'!D:D)","v":"Vốn khác của chủ sở hữu"},0,1,true,"414_","Vốn khác",null,true,{"$f":"_xlfn.LET(_xlpm.a,_xlfn.TEXTJOIN(\";\",TRUE,IF((L_Map[MÃ BC]=L_FS[[#This Row],[MÃ]]),L_Map[MÃ TM],\"\")),IF(LEN(_xlpm.a)>1,_xlpm.a,\"\"))","v":"270_"},{"$f":"_xlfn.TEXTJOIN(\"; \",TRUE,IF((L_Map[MÃ BC]=L_FS[[#This Row],[MÃ]])*(L_Map[BCR]=0),L_Map[CHỈ TIÊU THUYẾT MINH],\"\"))","v":"Vốn chủ sở hữu"}]
[null,null,"415_",{"$f":"_xlfn.XLOOKUP(L_FS[[#This Row],[MÃ]],'~ctbc'!C:C,'~ctbc'!D:D)","v":"Cổ phiếu mua lại của chính mình *"},0,1,true,"415_","Vốn khác",null,true,{"$f":"_xlfn.LET(_xlpm.a,_xlfn.TEXTJOIN(\";\",TRUE,IF((L_Map[MÃ BC]=L_FS[[#This Row],[MÃ]]),L_Map[MÃ TM],\"\")),IF(LEN(_xlpm.a)>1,_xlpm.a,\"\"))","v":"270_"},{"$f":"_xlfn.TEXTJOIN(\"; \",TRUE,IF((L_Map[MÃ BC]=L_FS[[#This Row],[MÃ]])*(L_Map[BCR]=0),L_Map[CHỈ TIÊU THUYẾT MINH],\"\"))","v":"Vốn chủ sở hữu"}]
[null,null,"416_",{"$f":"_xlfn.XLOOKUP(L_FS[[#This Row],[MÃ]],'~ctbc'!C:C,'~ctbc'!D:D)","v":"Chênh lệch đánh giá lại tài sản"},0,1,true,"416_","Vốn khác",null,true,{"$f":"_xlfn.LET(_xlpm.a,_xlfn.TEXTJOIN(\";\",TRUE,IF((L_Map[MÃ BC]=L_FS[[#This Row],[MÃ]]),L_Map[MÃ TM],\"\")),IF(LEN(_xlpm.a)>1,_xlpm.a,\"\"))","v":"270_"},{"$f":"_xlfn.TEXTJOIN(\"; \",TRUE,IF((L_Map[MÃ BC]=L_FS[[#This Row],[MÃ]])*(L_Map[BCR]=0),L_Map[CHỈ TIÊU THUYẾT MINH],\"\"))","v":"Vốn chủ sở hữu"}]
[null,null,"417_",{"$f":"_xlfn.XLOOKUP(L_FS[[#This Row],[MÃ]],'~ctbc'!C:C,'~ctbc'!D:D)","v":"Chênh lệch tỷ giá hối đoái"},0,1,true,"417_","Vốn khác",null,true,{"$f":"_xlfn.LET(_xlpm.a,_xlfn.TEXTJOIN(\";\",TRUE,IF((L_Map[MÃ BC]=L_FS[[#This Row],[MÃ]]),L_Map[MÃ TM],\"\")),IF(LEN(_xlpm.a)>1,_xlpm.a,\"\"))","v":"270_"},{"$f":"_xlfn.TEXTJOIN(\"; \",TRUE,IF((L_Map[MÃ BC]=L_FS[[#This Row],[MÃ]])*(L_Map[BCR]=0),L_Map[CHỈ TIÊU THUYẾT MINH],\"\"))","v":"Vốn chủ sở hữu"}]
[null,null,"418_",{"$f":"_xlfn.XLOOKUP(L_FS[[#This Row],[MÃ]],'~ctbc'!C:C,'~ctbc'!D:D)","v":"Quỹ đầu tư phát triển"},0,1,true,"418_","Vốn khác",null,true,{"$f":"_xlfn.LET(_xlpm.a,_xlfn.TEXTJOIN(\";\",TRUE,IF((L_Map[MÃ BC]=L_FS[[#This Row],[MÃ]]),L_Map[MÃ TM],\"\")),IF(LEN(_xlpm.a)>1,_xlpm.a,\"\"))","v":"270_"},{"$f":"_xlfn.TEXTJOIN(\"; \",TRUE,IF((L_Map[MÃ BC]=L_FS[[#This Row],[MÃ]])*(L_Map[BCR]=0),L_Map[CHỈ TIÊU THUYẾT MINH],\"\"))","v":"Vốn chủ sở hữu"}]
[null,null,"419_",{"$f":"_xlfn.XLOOKUP(L_FS[[#This Row],[MÃ]],'~ctbc'!C:C,'~ctbc'!D:D)","v":"Quỹ khác thuộc vốn chủ sở hữu"},0,1,true,"419_","Vốn khác",null,true,{"$f":"_xlfn.LET(_xlpm.a,_xlfn.TEXTJOIN(\";\",TRUE,IF((L_Map[MÃ BC]=L_FS[[#This Row],[MÃ]]),L_Map[MÃ TM],\"\")),IF(LEN(_xlpm.a)>1,_xlpm.a,\"\"))","v":"270_"},{"$f":"_xlfn.TEXTJOIN(\"; \",TRUE,IF((L_Map[MÃ BC]=L_FS[[#This Row],[MÃ]])*(L_Map[BCR]=0),L_Map[CHỈ TIÊU THUYẾT MINH],\"\"))","v":"Vốn chủ sở hữu"}]
[null,null,"41a_",{"$f":"_xlfn.XLOOKUP(L_FS[[#This Row],[MÃ]],'~ctbc'!C:C,'~ctbc'!D:D)","v":"Cổ phiếu phổ thông có quyền biểu quyết"},0,1,true,"41a_","Vốn góp",null,true,{"$f":"_xlfn.LET(_xlpm.a,_xlfn.TEXTJOIN(\";\",TRUE,IF((L_Map[MÃ BC]=L_FS[[#This Row],[MÃ]]),L_Map[MÃ TM],\"\")),IF(LEN(_xlpm.a)>1,_xlpm.a,\"\"))","v":"270_"},{"$f":"_xlfn.TEXTJOIN(\"; \",TRUE,IF((L_Map[MÃ BC]=L_FS[[#This Row],[MÃ]])*(L_Map[BCR]=0),L_Map[CHỈ TIÊU THUYẾT MINH],\"\"))","v":"Vốn chủ sở hữu"}]
[null,null,"41b_",{"$f":"_xlfn.XLOOKUP(L_FS[[#This Row],[MÃ]],'~ctbc'!C:C,'~ctbc'!D:D)","v":"Cổ phiếu ưu đãi"},0,1,true,"41b_","Vốn góp",null,true,{"$f":"_xlfn.LET(_xlpm.a,_xlfn.TEXTJOIN(\";\",TRUE,IF((L_Map[MÃ BC]=L_FS[[#This Row],[MÃ]]),L_Map[MÃ TM],\"\")),IF(LEN(_xlpm.a)>1,_xlpm.a,\"\"))","v":"241_;270_"},{"$f":"_xlfn.TEXTJOIN(\"; \",TRUE,IF((L_Map[MÃ BC]=L_FS[[#This Row],[MÃ]])*(L_Map[BCR]=0),L_Map[CHỈ TIÊU THUYẾT MINH],\"\"))","v":"Cổ phiếu ưu đãi phân loại là nợ phải trả; Vốn chủ sở hữu"}]
[null,null,"429_",{"$f":"_xlfn.XLOOKUP(L_FS[[#This Row],[MÃ]],'~ctbc'!C:C,'~ctbc'!D:D)","v":"Lợi ích của cổ đông không kiểm soát"},0,1,true,"429_","Vốn khác",null,true,{"$f":"_xlfn.LET(_xlpm.a,_xlfn.TEXTJOIN(\";\",TRUE,IF((L_Map[MÃ BC]=L_FS[[#This Row],[MÃ]]),L_Map[MÃ TM],\"\")),IF(LEN(_xlpm.a)>1,_xlpm.a,\"\"))","v":"270_"},{"$f":"_xlfn.TEXTJOIN(\"; \",TRUE,IF((L_Map[MÃ BC]=L_FS[[#This Row],[MÃ]])*(L_Map[BCR]=0),L_Map[CHỈ TIÊU THUYẾT MINH],\"\"))","v":"Vốn chủ sở hữu"}]
[null,null,"42a_",{"$f":"_xlfn.XLOOKUP(L_FS[[#This Row],[MÃ]],'~ctbc'!C:C,'~ctbc'!D:D)","v":"LNST chưa phân phối lũy kế đến cuối kỳ trước"},0,1,true,"42a_","Vốn khác",null,true,{"$f":"_xlfn.LET(_xlpm.a,_xlfn.TEXTJOIN(\";\",TRUE,IF((L_Map[MÃ BC]=L_FS[[#This Row],[MÃ]]),L_Map[MÃ TM],\"\")),IF(LEN(_xlpm.a)>1,_xlpm.a,\"\"))","v":"270_"},{"$f":"_xlfn.TEXTJOIN(\"; \",TRUE,IF((L_Map[MÃ BC]=L_FS[[#This Row],[MÃ]])*(L_Map[BCR]=0),L_Map[CHỈ TIÊU THUYẾT MINH],\"\"))","v":"Vốn chủ sở hữu"}]
[null,null,"42b_",{"$f":"_xlfn.XLOOKUP(L_FS[[#This Row],[MÃ]],'~ctbc'!C:C,'~ctbc'!D:D)","v":"LNST chưa phân phối kỳ này"},0,1,true,"42b_","Vốn khác",null,true,{"$f":"_xlfn.LET(_xlpm.a,_xlfn.TEXTJOIN(\";\",TRUE,IF((L_Map[MÃ BC]=L_FS[[#This Row],[MÃ]]),L_Map[MÃ TM],\"\")),IF(LEN(_xlpm.a)>1,_xlpm.a,\"\"))","v":"270_"},{"$f":"_xlfn.TEXTJOIN(\"; \",TRUE,IF((L_Map[MÃ BC]=L_FS[[#This Row],[MÃ]])*(L_Map[BCR]=0),L_Map[CHỈ TIÊU THUYẾT MINH],\"\"))","v":"Vốn chủ sở hữu"}]

{"sheet":"CTTM","index":5,"n_rows":120,"n_cols":17,"rows_kept":120,"cut":false,"hidden":false,"merged":[[0,0,3,0]]}
[{"$f":"'✅'!A1","v":"AnPhat Holding"}]
[]
[null,null,"NHÓM THUYẾT MINH",null,null,null,"CHỈ TIÊU THUYẾT MINH BCTC"]
[null,null,null,null,null,null,"(mã x: Chỉ cho BCTC riêng, (*): ghi bằng số âm)","⏬","⏬","Hệ số","BC riêng","Thuyết minh dự phòng"]
[{"$f":"'Công ty'!A5","v":"BCTC hợp nhất"},null,"NH TM","TÊN NHÓM TM",null,"MÃ","CHỈ TIÊU","KHOẢN MỤC","NHÓM","HS","BCR","TMDP","SL link","CTBC đã link","Tên CTBC đã link",null,"Kiểm tra trùng"]
[null,null,"N1","Tài sản và nợ",null,"010_",{"$f":"_xlfn.XLOOKUP(L_TM[[#This Row],[MÃ]],'~cttm'!C:C,'~cttm'!D:D)","v":"Tiền và tương đương tiền"},"TS ngắn","N1",1,null,null,{"$f":"COUNTIFS(L_Map[MÃ TM],L_TM[[#This Row],[MÃ]])","v":2},{"$f":"_xlfn.TEXTJOIN(\";\",TRUE,IF(L_Map[MÃ TM]=L_TM[[#This Row],[MÃ]],L_Map[MÃ BC],\"\"))","v":"111_;112_"},{"$f":"_xlfn.TEXTJOIN(\"; \",TRUE,IF(L_Map[MÃ TM]=L_TM[[#This Row],[MÃ]],L_Map[CHỈ TIÊU BÁO CÁO],\"\"))","v":"Tiền; Các khoản tương đương tiền"},null,{"$f":"_Trùng(L_TM[MÃ])","v":"null"}]
[null,null,"N2","Tài sản cố định",null,"021_",{"$f":"_xlfn.XLOOKUP(L_TM[[#This Row],[MÃ]],'~cttm'!C:C,'~cttm'!D:D)","v":"Đầu tư nắm giữ đến ngày đáo hạn ngắn hạn"},"TS ngắn","N1",1,null,null,{"$f":"COUNTIFS(L_Map[MÃ TM],L_TM[[#This Row],[MÃ]])","v":1},{"$f":"_xlfn.TEXTJOIN(\";\",TRUE,IF(L_Map[MÃ TM]=L_TM[[#This Row],[MÃ]],L_Map[MÃ BC],\"\"))","v":"123_"},{"$f":"_xlfn.TEXTJOIN(\"; \",TRUE,IF(L_Map[MÃ TM]=L_TM[[#This Row],[MÃ]],L_Map[CHỈ TIÊU BÁO CÁO],\"\"))","v":"Đầu tư nắm giữ đến ngày đáo hạn ngắn hạn"}]
["Tập đoàn",null,"N3","Vốn vay",null,"022_",{"$f":"_xlfn.XLOOKUP(L_TM[[#This Row],[MÃ]],'~cttm'!C:C,'~cttm'!D:D)","v":"Đầu tư nắm giữ đến ngày đáo hạn dài hạn"},"TS dài","N1",1,null,null,{"$f":"COUNTIFS(L_Map[MÃ TM],L_TM[[#This Row],[MÃ]])","v":1},{"$f":"_xlfn.TEXTJOIN(\";\",TRUE,IF(L_Map[MÃ TM]=L_TM[[#This Row],[MÃ]],L_Map[MÃ BC],\"\"))","v":"265_"},{"$f":"_xlfn.TEXTJOIN(\"; \",TRUE,IF(L_Map[MÃ TM]=L_TM[[#This Row],[MÃ]],L_Map[CHỈ TIÊU BÁO CÁO],\"\"))","v":"Đầu tư nắm giữ đến ngày đáo hạn dài hạn"}]
[null,null,"N4","Vốn chủ sở hữu",null,"023_",{"$f":"_xlfn.XLOOKUP(L_TM[[#This Row],[MÃ]],'~cttm'!C:C,'~cttm'!D:D)","v":"Đầu tư vào công ty con"},"TS dài","N1",1,null,null,{"$f":"COUNTIFS(L_Map[MÃ TM],L_TM[[#This Row],[MÃ]])","v":1},{"$f":"_xlfn.TEXTJOIN(\";\",TRUE,IF(L_Map[MÃ TM]=L_TM[[#This Row],[MÃ]],L_Map[MÃ BC],\"\"))","v":"261_"},{"$f":"_xlfn.TEXTJOIN(\"; \",TRUE,IF(L_Map[MÃ TM]=L_TM[[#This Row],[MÃ]],L_Map[CHỈ TIÊU BÁO CÁO],\"\"))","v":"Đầu tư vào công ty con"}]
["Danh mục công ty",null,"N5","Doanh thu chi phí",null,"024_",{"$f":"_xlfn.XLOOKUP(L_TM[[#This Row],[MÃ]],'~cttm'!C:C,'~cttm'!D:D)","v":"Đầu tư vào công ty liên kết"},"TS dài","N1",1,null,null,{"$f":"COUNTIFS(L_Map[MÃ TM],L_TM[[#This Row],[MÃ]])","v":1},{"$f":"_xlfn.TEXTJOIN(\";\",TRUE,IF(L_Map[MÃ TM]=L_TM[[#This Row],[MÃ]],L_Map[MÃ BC],\"\"))","v":"262_"},{"$f":"_xlfn.TEXTJOIN(\"; \",TRUE,IF(L_Map[MÃ TM]=L_TM[[#This Row],[MÃ]],L_Map[CHỈ TIÊU BÁO CÁO],\"\"))","v":"Đầu tư vào công ty liên doanh, liên kết"}]
[null,null,"N6","Thuế",null,"025_",{"$f":"_xlfn.XLOOKUP(L_TM[[#This Row],[MÃ]],'~cttm'!C:C,'~cttm'!D:D)","v":"Đầu tư góp vốn vào đơn vị khác"},"TS dài","N1",1,null,null,{"$f":"COUNTIFS(L_Map[MÃ TM],L_TM[[#This Row],[MÃ]])","v":1},{"$f":"_xlfn.TEXTJOIN(\";\",TRUE,IF(L_Map[MÃ TM]=L_TM[[#This Row],[MÃ]],L_Map[MÃ BC],\"\"))","v":"263_"},{"$f":"_xlfn.TEXTJOIN(\"; \",TRUE,IF(L_Map[MÃ TM]=L_TM[[#This Row],[MÃ]],L_Map[CHỈ TIÊU BÁO CÁO],\"\"))","v":"Đầu tư góp vốn vào đơn vị khác"}]
["Thông tin công ty",null,"BP","Báo cáo bộ phận",null,"026_",{"$f":"_xlfn.XLOOKUP(L_TM[[#This Row],[MÃ]],'~cttm'!C:C,'~cttm'!D:D)","v":"Chứng khoán kinh doanh"},"TS ngắn","N1",1,null,null,{"$f":"COUNTIFS(L_Map[MÃ TM],L_TM[[#This Row],[MÃ]])","v":1},{"$f":"_xlfn.TEXTJOIN(\";\",TRUE,IF(L_Map[MÃ TM]=L_TM[[#This Row],[MÃ]],L_Map[MÃ BC],\"\"))","v":"121_"},{"$f":"_xlfn.TEXTJOIN(\"; \",TRUE,IF(L_Map[MÃ TM]=L_TM[[#This Row],[MÃ]],L_Map[CHỈ TIÊU BÁO CÁO],\"\"))","v":"Chứng khoán kinh doanh"}]
[null,null,"N¹¹","Bổ sung số dư",null,"027_",{"$f":"_xlfn.XLOOKUP(L_TM[[#This Row],[MÃ]],'~cttm'!C:C,'~cttm'!D:D)","v":"Dự phòng giảm giá chứng khoán kinh doanh *"},"TS ngắn","N1",-1,null,"021_;026_",{"$f":"COUNTIFS(L_Map[MÃ TM],L_TM[[#This Row],[MÃ]])","v":1},{"$f":"_xlfn.TEXTJOIN(\";\",TRUE,IF(L_Map[MÃ TM]=L_TM[[#This Row],[MÃ]],L_Map[MÃ BC],\"\"))","v":"122_"},{"$f":"_xlfn.TEXTJOIN(\"; \",TRUE,IF(L_Map[MÃ TM]=L_TM[[#This Row],[MÃ]],L_Map[CHỈ TIÊU BÁO CÁO],\"\"))","v":"Dự phòng giảm giá chứng khoán kinh doanh *"}]
["Tài khoản kế toán",null,"N¹²","Bổ sung phát sinh",null,"028_",{"$f":"_xlfn.XLOOKUP(L_TM[[#This Row],[MÃ]],'~cttm'!C:C,'~cttm'!D:D)","v":"Dự phòng đầu tư tài chính dài hạn *"},"TS dài","N1",-1,null,"022_;023_;024_;025_",{"$f":"COUNTIFS(L_Map[MÃ TM],L_TM[[#This Row],[MÃ]])","v":2},{"$f":"_xlfn.TEXTJOIN(\";\",TRUE,IF(L_Map[MÃ TM]=L_TM[[#This Row],[MÃ]],L_Map[MÃ BC],\"\"))","v":"264_;266_"},{"$f":"_xlfn.TEXTJOIN(\"; \",TRUE,IF(L_Map[MÃ TM]=L_TM[[#This Row],[MÃ]],L_Map[CHỈ TIÊU BÁO CÁO],\"\"))","v":"Dự phòng tổn thất đầu tư vào đơn vị khác dài hạn *; Dự phòng đầu tư nắm giữ đến ngày đáo hạn dài hạn *"}]
[null,null,null,null,null,"031_",{"$f":"_xlfn.XLOOKUP(L_TM[[#This Row],[MÃ]],'~cttm'!C:C,'~cttm'!D:D)","v":"Phải thu ngắn hạn của khách hàng"},"TS ngắn","N1",1,null,null,{"$f":"COUNTIFS(L_Map[MÃ TM],L_TM[[#This Row],[MÃ]])","v":1},{"$f":"_xlfn.TEXTJOIN(\";\",TRUE,IF(L_Map[MÃ TM]=L_TM[[#This Row],[MÃ]],L_Map[MÃ BC],\"\"))","v":"131_"},{"$f":"_xlfn.TEXTJOIN(\"; \",TRUE,IF(L_Map[MÃ TM]=L_TM[[#This Row],[MÃ]],L_Map[CHỈ TIÊU BÁO CÁO],\"\"))","v":"Phải thu ngắn hạn của khách hàng"}]
["Chỉ tiêu báo cáo",null,null,null,null,"031s",{"$f":"_xlfn.XLOOKUP(L_TM[[#This Row],[MÃ]],'~cttm'!C:C,'~cttm'!D:D)","v":"Phải thu ngắn hạn của khách hàng"},"TS ngắn","N1",1,true,null,{"$f":"COUNTIFS(L_Map[MÃ TM],L_TM[[#This Row],[MÃ]])","v":1},{"$f":"_xlfn.TEXTJOIN(\";\",TRUE,IF(L_Map[MÃ TM]=L_TM[[#This Row],[MÃ]],L_Map[MÃ BC],\"\"))","v":"131_"},{"$f":"_xlfn.TEXTJOIN(\"; \",TRUE,IF(L_Map[MÃ TM]=L_TM[[#This Row],[MÃ]],L_Map[CHỈ TIÊU BÁO CÁO],\"\"))","v":"Phải thu ngắn hạn của khách hàng"}]
[null,null,null,null,null,"032_",{"$f":"_xlfn.XLOOKUP(L_TM[[#This Row],[MÃ]],'~cttm'!C:C,'~cttm'!D:D)","v":"Phải thu dài hạn của khách hàng"},"TS dài","N1",1,null,null,{"$f":"COUNTIFS(L_Map[MÃ TM],L_TM[[#This Row],[MÃ]])","v":1},{"$f":"_xlfn.TEXTJOIN(\";\",TRUE,IF(L_Map[MÃ TM]=L_TM[[#This Row],[MÃ]],L_Map[MÃ BC],\"\"))","v":"211_"},{"$f":"_xlfn.TEXTJOIN(\"; \",TRUE,IF(L_Map[MÃ TM]=L_TM[[#This Row],[MÃ]],L_Map[CHỈ TIÊU BÁO CÁO],\"\"))","v":"Phải thu dài hạn của khách hàng"}]
["Chỉ tiêu thuyết minh",null,null,null,null,"032s",{"$f":"_xlfn.XLOOKUP(L_TM[[#This Row],[MÃ]],'~cttm'!C:C,'~cttm'!D:D)","v":"Phải thu dài hạn của khách hàng"},"TS dài","N1",1,true,null,{"$f":"COUNTIFS(L_Map[MÃ TM],L_TM[[#This Row],[MÃ]])","v":1},{"$f":"_xlfn.TEXTJOIN(\";\",TRUE,IF(L_Map[MÃ TM]=L_TM[[#This Row],[MÃ]],L_Map[MÃ BC],\"\"))","v":"211_"},{"$f":"_xlfn.TEXTJOIN(\"; \",TRUE,IF(L_Map[MÃ TM]=L_TM[[#This Row],[MÃ]],L_Map[CHỈ TIÊU BÁO CÁO],\"\"))","v":"Phải thu dài hạn của khách hàng"}]
[null,null,null,null,null,"033_",{"$f":"_xlfn.XLOOKUP(L_TM[[#This Row],[MÃ]],'~cttm'!C:C,'~cttm'!D:D)","v":"Trả trước cho người bán ngắn hạn"},"TS ngắn","N1",1,null,null,{"$f":"COUNTIFS(L_Map[MÃ TM],L_TM[[#This Row],[MÃ]])","v":1},{"$f":"_xlfn.TEXTJOIN(\";\",TRUE,IF(L_Map[MÃ TM]=L_TM[[#This Row],[MÃ]],L_Map[MÃ BC],\"\"))","v":"132_"},{"$f":"_xlfn.TEXTJOIN(\"; \",TRUE,IF(L_Map[MÃ TM]=L_TM[[#This Row],[MÃ]],L_Map[CHỈ TIÊU BÁO CÁO],\"\"))","v":"Trả trước cho người bán ngắn hạn"}]
["Map chỉ tiêu BC-TM",null,null,null,null,"033s",{"$f":"_xlfn.XLOOKUP(L_TM[[#This Row],[MÃ]],'~cttm'!C:C,'~cttm'!D:D)","v":"Trả trước cho người bán ngắn hạn"},"TS ngắn","N1",1,true,null,{"$f":"COUNTIFS(L_Map[MÃ TM],L_TM[[#This Row],[MÃ]])","v":1},{"$f":"_xlfn.TEXTJOIN(\";\",TRUE,IF(L_Map[MÃ TM]=L_TM[[#This Row],[MÃ]],L_Map[MÃ BC],\"\"))","v":"132_"},{"$f":"_xlfn.TEXTJOIN(\"; \",TRUE,IF(L_Map[MÃ TM]=L_TM[[#This Row],[MÃ]],L_Map[CHỈ TIÊU BÁO CÁO],\"\"))","v":"Trả trước cho người bán ngắn hạn"}]
[null,null,null,null,null,"034_",{"$f":"_xlfn.XLOOKUP(L_TM[[#This Row],[MÃ]],'~cttm'!C:C,'~cttm'!D:D)","v":"Trả trước cho người bán dài hạn"},"TS dài","N1",1,null,null,{"$f":"COUNTIFS(L_Map[MÃ TM],L_TM[[#This Row],[MÃ]])","v":1},{"$f":"_xlfn.TEXTJOIN(\";\",TRUE,IF(L_Map[MÃ TM]=L_TM[[#This Row],[MÃ]],L_Map[MÃ BC],\"\"))","v":"212_"},{"$f":"_xlfn.TEXTJOIN(\"; \",TRUE,IF(L_Map[MÃ TM]=L_TM[[#This Row],[MÃ]],L_Map[CHỈ TIÊU BÁO CÁO],\"\"))","v":"Trả trước cho người bán dài hạn"}]
["Chỉ tiêu dòng tiền",null,null,null,null,"034s",{"$f":"_xlfn.XLOOKUP(L_TM[[#This Row],[MÃ]],'~cttm'!C:C,'~cttm'!D:D)","v":"Trả trước cho người bán dài hạn"},"TS dài","N1",1,true,null,{"$f":"COUNTIFS(L_Map[MÃ TM],L_TM[[#This Row],[MÃ]])","v":1},{"$f":"_xlfn.TEXTJOIN(\";\",TRUE,IF(L_Map[MÃ TM]=L_TM[[#This Row],[MÃ]],L_Map[MÃ BC],\"\"))","v":"212_"},{"$f":"_xlfn.TEXTJOIN(\"; \",TRUE,IF(L_Map[MÃ TM]=L_TM[[#This Row],[MÃ]],L_Map[CHỈ TIÊU BÁO CÁO],\"\"))","v":"Trả trước cho người bán dài hạn"}]
[null,null,null,null,null,"041_",{"$f":"_xlfn.XLOOKUP(L_TM[[#This Row],[MÃ]],'~cttm'!C:C,'~cttm'!D:D)","v":"Phải thu khác ngắn hạn"},"TS ngắn","N1",1,null,null,{"$f":"COUNTIFS(L_Map[MÃ TM],L_TM[[#This Row],[MÃ]])","v":1},{"$f":"_xlfn.TEXTJOIN(\";\",TRUE,IF(L_Map[MÃ TM]=L_TM[[#This Row],[MÃ]],L_Map[MÃ BC],\"\"))","v":"135_"},{"$f":"_xlfn.TEXTJOIN(\"; \",TRUE,IF(L_Map[MÃ TM]=L_TM[[#This Row],[MÃ]],L_Map[CHỈ TIÊU BÁO CÁO],\"\"))","v":"Các khoản phải thu khác"}]
["Phân loại vốn vay",null,null,null,null,"041s",{"$f":"_xlfn.XLOOKUP(L_TM[[#This Row],[MÃ]],'~cttm'!C:C,'~cttm'!D:D)","v":"Phải thu khác ngắn hạn"},"TS ngắn","N1",1,true,null,{"$f":"COUNTIFS(L_Map[MÃ TM],L_TM[[#This Row],[MÃ]])","v":1},{"$f":"_xlfn.TEXTJOIN(\";\",TRUE,IF(L_Map[MÃ TM]=L_TM[[#This Row],[MÃ]],L_Map[MÃ BC],\"\"))","v":"135_"},{"$f":"_xlfn.TEXTJOIN(\"; \",TRUE,IF(L_Map[MÃ TM]=L_TM[[#This Row],[MÃ]],L_Map[CHỈ TIÊU BÁO CÁO],\"\"))","v":"Các khoản phải thu khác"}]
[null,null,null,null,null,"042_",{"$f":"_xlfn.XLOOKUP(L_TM[[#This Row],[MÃ]],'~cttm'!C:C,'~cttm'!D:D)","v":"Phải thu khác dài hạn"},"TS dài","N1",1,null,null,{"$f":"COUNTIFS(L_Map[MÃ TM],L_TM[[#This Row],[MÃ]])","v":1},{"$f":"_xlfn.TEXTJOIN(\";\",TRUE,IF(L_Map[MÃ TM]=L_TM[[#This Row],[MÃ]],L_Map[MÃ BC],\"\"))","v":"215_"},{"$f":"_xlfn.TEXTJOIN(\"; \",TRUE,IF(L_Map[MÃ TM]=L_TM[[#This Row],[MÃ]],L_Map[CHỈ TIÊU BÁO CÁO],\"\"))","v":"Phải thu dài hạn khác"}]
["Danh mục khác",null,null,null,null,"042s",{"$f":"_xlfn.XLOOKUP(L_TM[[#This Row],[MÃ]],'~cttm'!C:C,'~cttm'!D:D)","v":"Phải thu khác dài hạn"},"TS dài","N1",1,true,null,{"$f":"COUNTIFS(L_Map[MÃ TM],L_TM[[#This Row],[MÃ]])","v":1},{"$f":"_xlfn.TEXTJOIN(\";\",TRUE,IF(L_Map[MÃ TM]=L_TM[[#This Row],[MÃ]],L_Map[MÃ BC],\"\"))","v":"215_"},{"$f":"_xlfn.TEXTJOIN(\"; \",TRUE,IF(L_Map[MÃ TM]=L_TM[[#This Row],[MÃ]],L_Map[CHỈ TIÊU BÁO CÁO],\"\"))","v":"Phải thu dài hạn khác"}]
[null,null,null,null,null,"043_",{"$f":"_xlfn.XLOOKUP(L_TM[[#This Row],[MÃ]],'~cttm'!C:C,'~cttm'!D:D)","v":"Dự phòng phải thu ngắn hạn khó đòi *"},"TS ngắn","N1",-1,null,"031_;033_;041_;043_",{"$f":"COUNTIFS(L_Map[MÃ TM],L_TM[[#This Row],[MÃ]])","v":1},{"$f":"_xlfn.TEXTJOIN(\";\",TRUE,IF(L_Map[MÃ TM]=L_TM[[#This Row],[MÃ]],L_Map[MÃ BC],\"\"))","v":"136_"},{"$f":"_xlfn.TEXTJOIN(\"; \",TRUE,IF(L_Map[MÃ TM]=L_TM[[#This Row],[MÃ]],L_Map[CHỈ TIÊU BÁO CÁO],\"\"))","v":"Dự phòng phải thu ngắn hạn khó đòi *"}]
["Tùy chọn",null,null,null,null,"044_",{"$f":"_xlfn.XLOOKUP(L_TM[[#This Row],[MÃ]],'~cttm'!C:C,'~cttm'!D:D)","v":"Dự phòng phải thu dài hạn khó đòi *"},"TS dài","N1",-1,null,"032_;034_;042_;044_",{"$f":"COUNTIFS(L_Map[MÃ TM],L_TM[[#This Row],[MÃ]])","v":1},{"$f":"_xlfn.TEXTJOIN(\";\",TRUE,IF(L_Map[MÃ TM]=L_TM[[#This Row],[MÃ]],L_Map[MÃ BC],\"\"))","v":"216_"},{"$f":"_xlfn.TEXTJOIN(\"; \",TRUE,IF(L_Map[MÃ TM]=L_TM[[#This Row],[MÃ]],L_Map[CHỈ TIÊU BÁO CÁO],\"\"))","v":"Dự phòng phải thu dài hạn khó đòi *"}]
[null,null,null,null,null,"050_",{"$f":"_xlfn.XLOOKUP(L_TM[[#This Row],[MÃ]],'~cttm'!C:C,'~cttm'!D:D)","v":"Tài sản thiếu chờ xử lý"},"TS ngắn","N1",1,null,null,{"$f":"COUNTIFS(L_Map[MÃ TM],L_TM[[#This Row],[MÃ]])","v":1},{"$f":"_xlfn.TEXTJOIN(\";\",TRUE,IF(L_Map[MÃ TM]=L_TM[[#This Row],[MÃ]],L_Map[MÃ BC],\"\"))","v":"137_"},{"$f":"_xlfn.TEXTJOIN(\"; \",TRUE,IF(L_Map[MÃ TM]=L_TM[[#This Row],[MÃ]],L_Map[CHỈ TIÊU BÁO CÁO],\"\"))","v":"Tài sản thiếu chờ xử lý"}]
[null,null,null,null,null,"051_",{"$f":"_xlfn.XLOOKUP(L_TM[[#This Row],[MÃ]],'~cttm'!C:C,'~cttm'!D:D)","v":"Nợ xấu"},"TS ngắn","N1",1,null,null,{"$f":"COUNTIFS(L_Map[MÃ TM],L_TM[[#This Row],[MÃ]])","v":0},{"$f":"_xlfn.TEXTJOIN(\";\",TRUE,IF(L_Map[MÃ TM]=L_TM[[#This Row],[MÃ]],L_Map[MÃ BC],\"\"))","v":""},{"$f":"_xlfn.TEXTJOIN(\"; \",TRUE,IF(L_Map[MÃ TM]=L_TM[[#This Row],[MÃ]],L_Map[CHỈ TIÊU BÁO CÁO],\"\"))","v":""}]
[null,null,null,null,null,"061_",{"$f":"_xlfn.XLOOKUP(L_TM[[#This Row],[MÃ]],'~cttm'!C:C,'~cttm'!D:D)","v":"Tài sản khác ngắn hạn"},"TS ngắn","N1",0,null,null,{"$f":"COUNTIFS(L_Map[MÃ TM],L_TM[[#This Row],[MÃ]])","v":1},{"$f":"_xlfn.TEXTJOIN(\";\",TRUE,IF(L_Map[MÃ TM]=L_TM[[#This Row],[MÃ]],L_Map[MÃ BC],\"\"))","v":"165_"},{"$f":"_xlfn.TEXTJOIN(\"; \",TRUE,IF(L_Map[MÃ TM]=L_TM[[#This Row],[MÃ]],L_Map[CHỈ TIÊU BÁO CÁO],\"\"))","v":"Tài sản ngắn hạn khác"}]
[null,null,null,null,null,"062_",{"$f":"_xlfn.XLOOKUP(L_TM[[#This Row],[MÃ]],'~cttm'!C:C,'~cttm'!D:D)","v":"Tài sản khác dài hạn"},"TS dài","N1",0,null,null,{"$f":"COUNTIFS(L_Map[MÃ TM],L_TM[[#This Row],[MÃ]])","v":2},{"$f":"_xlfn.TEXTJOIN(\";\",TRUE,IF(L_Map[MÃ TM]=L_TM[[#This Row],[MÃ]],L_Map[MÃ BC],\"\"))","v":"273_;274_"},{"$f":"_xlfn.TEXTJOIN(\"; \",TRUE,IF(L_Map[MÃ TM]=L_TM[[#This Row],[MÃ]],L_Map[CHỈ TIÊU BÁO CÁO],\"\"))","v":"Thiết bị, vật tư, phụ tùng thay thế dài hạn; Tài sản dài hạn khác"}]
[null,null,null,null,null,"063_",{"$f":"_xlfn.XLOOKUP(L_TM[[#This Row],[MÃ]],'~cttm'!C:C,'~cttm'!D:D)","v":"Phải thu nội bộ ngắn hạn"},"TS ngắn","N1",0,null,null,{"$f":"COUNTIFS(L_Map[MÃ TM],L_TM[[#This Row],[MÃ]])","v":1},{"$f":"_xlfn.TEXTJOIN(\";\",TRUE,IF(L_Map[MÃ TM]=L_TM[[#This Row],[MÃ]],L_Map[MÃ BC],\"\"))","v":"133_"},{"$f":"_xlfn.TEXTJOIN(\"; \",TRUE,IF(L_Map[MÃ TM]=L_TM[[#This Row],[MÃ]],L_Map[CHỈ TIÊU BÁO CÁO],\"\"))","v":"Phải thu nội bộ ngắn hạn"}]
[null,null,null,null,null,"064_",{"$f":"_xlfn.XLOOKUP(L_TM[[#This Row],[MÃ]],'~cttm'!C:C,'~cttm'!D:D)","v":"Phải thu nội bộ dài hạn"},"TS dài","N1",0,null,null,{"$f":"COUNTIFS(L_Map[MÃ TM],L_TM[[#This Row],[MÃ]])","v":2},{"$f":"_xlfn.TEXTJOIN(\";\",TRUE,IF(L_Map[MÃ TM]=L_TM[[#This Row],[MÃ]],L_Map[MÃ BC],\"\"))","v":"213_;214_"},{"$f":"_xlfn.TEXTJOIN(\"; \",TRUE,IF(L_Map[MÃ TM]=L_TM[[#This Row],[MÃ]],L_Map[CHỈ TIÊU BÁO CÁO],\"\"))","v":"Vốn kinh doanh ở đơn vị trực thuộc; Phải thu nội bộ dài hạn"}]
[null,null,null,null,null,"065_",{"$f":"_xlfn.XLOOKUP(L_TM[[#This Row],[MÃ]],'~cttm'!C:C,'~cttm'!D:D)","v":"Phải thu theo tiến độ HĐXD"},"TS ngắn","N1",0,null,null,{"$f":"COUNTIFS(L_Map[MÃ TM],L_TM[[#This Row],[MÃ]])","v":1},{"$f":"_xlfn.TEXTJOIN(\";\",TRUE,IF(L_Map[MÃ TM]=L_TM[[#This Row],[MÃ]],L_Map[MÃ BC],\"\"))","v":"134_"},{"$f":"_xlfn.TEXTJOIN(\"; \",TRUE,IF(L_Map[MÃ TM]=L_TM[[#This Row],[MÃ]],L_Map[CHỈ TIÊU BÁO CÁO],\"\"))","v":"Phải thu theo tiến độ HĐXD"}]
[null,null,null,null,null,"071_",{"$f":"_xlfn.XLOOKUP(L_TM[[#This Row],[MÃ]],'~cttm'!C:C,'~cttm'!D:D)","v":"Hàng tồn kho"},"TS ngắn","N1",1,null,null,{"$f":"COUNTIFS(L_Map[MÃ TM],L_TM[[#This Row],[MÃ]])","v":1},{"$f":"_xlfn.TEXTJOIN(\";\",TRUE,IF(L_Map[MÃ TM]=L_TM[[#This Row],[MÃ]],L_Map[MÃ BC],\"\"))","v":"141_"},{"$f":"_xlfn.TEXTJOIN(\"; \",TRUE,IF(L_Map[MÃ TM]=L_TM[[#This Row],[MÃ]],L_Map[CHỈ TIÊU BÁO CÁO],\"\"))","v":"Hàng tồn kho"}]
[null,null,null,null,null,"072_",{"$f":"_xlfn.XLOOKUP(L_TM[[#This Row],[MÃ]],'~cttm'!C:C,'~cttm'!D:D)","v":"Dự phòng giảm giá hàng tồn kho *"},"TS ngắn","N1",-1,null,"071_",{"$f":"COUNTIFS(L_Map[MÃ TM],L_TM[[#This Row],[MÃ]])","v":1},{"$f":"_xlfn.TEXTJOIN(\";\",TRUE,IF(L_Map[MÃ TM]=L_TM[[#This Row],[MÃ]],L_Map[MÃ BC],\"\"))","v":"142_"},{"$f":"_xlfn.TEXTJOIN(\"; \",TRUE,IF(L_Map[MÃ TM]=L_TM[[#This Row],[MÃ]],L_Map[CHỈ TIÊU BÁO CÁO],\"\"))","v":"Dự phòng giảm giá hàng tồn kho *"}]
[null,null,null,null,null,"081_",{"$f":"_xlfn.XLOOKUP(L_TM[[#This Row],[MÃ]],'~cttm'!C:C,'~cttm'!D:D)","v":"Chi phí SXKD dở dang dài hạn"},"TS dài","N1",1,null,null,{"$f":"COUNTIFS(L_Map[MÃ TM],L_TM[[#This Row],[MÃ]])","v":1},{"$f":"_xlfn.TEXTJOIN(\";\",TRUE,IF(L_Map[MÃ TM]=L_TM[[#This Row],[MÃ]],L_Map[MÃ BC],\"\"))","v":"251_"},{"$f":"_xlfn.TEXTJOIN(\"; \",TRUE,IF(L_Map[MÃ TM]=L_TM[[#This Row],[MÃ]],L_Map[CHỈ TIÊU BÁO CÁO],\"\"))","v":"Chi phí sản xuất, kinh doanh dở dang dài hạn"}]
[null,null,null,null,null,"082_",{"$f":"_xlfn.XLOOKUP(L_TM[[#This Row],[MÃ]],'~cttm'!C:C,'~cttm'!D:D)","v":"Chi phí XDCB dở dang"},"TS dài","N1",1,null,null,{"$f":"COUNTIFS(L_Map[MÃ TM],L_TM[[#This Row],[MÃ]])","v":1},{"$f":"_xlfn.TEXTJOIN(\";\",TRUE,IF(L_Map[MÃ TM]=L_TM[[#This Row],[MÃ]],L_Map[MÃ BC],\"\"))","v":"252_"},{"$f":"_xlfn.TEXTJOIN(\"; \",TRUE,IF(L_Map[MÃ TM]=L_TM[[#This Row],[MÃ]],L_Map[CHỈ TIÊU BÁO CÁO],\"\"))","v":"Chi phí xây dựng cơ bản dở dang"}]
[null,null,null,null,null,"091_",{"$f":"_xlfn.XLOOKUP(L_TM[[#This Row],[MÃ]],'~cttm'!C:C,'~cttm'!D:D)","v":"TSCĐ hữu hình - Nguyên giá"},"TS dài","N2",1,null,null,{"$f":"COUNTIFS(L_Map[MÃ TM],L_TM[[#This Row],[MÃ]])","v":1},{"$f":"_xlfn.TEXTJOIN(\";\",TRUE,IF(L_Map[MÃ TM]=L_TM[[#This Row],[MÃ]],L_Map[MÃ BC],\"\"))","v":"222_"},{"$f":"_xlfn.TEXTJOIN(\"; \",TRUE,IF(L_Map[MÃ TM]=L_TM[[#This Row],[MÃ]],L_Map[CHỈ TIÊU BÁO CÁO],\"\"))","v":"Nguyên giá TSCĐ hữu hình"}]
[null,null,null,null,null,"091s",{"$f":"_xlfn.XLOOKUP(L_TM[[#This Row],[MÃ]],'~cttm'!C:C,'~cttm'!D:D)","v":"NG TSCĐ HH đã KH hết đang sử dụng"},"TS dài","N2",0,null,null,{"$f":"COUNTIFS(L_Map[MÃ TM],L_TM[[#This Row],[MÃ]])","v":1},{"$f":"_xlfn.TEXTJOIN(\";\",TRUE,IF(L_Map[MÃ TM]=L_TM[[#This Row],[MÃ]],L_Map[MÃ BC],\"\"))","v":"222_"},{"$f":"_xlfn.TEXTJOIN(\"; \",TRUE,IF(L_Map[MÃ TM]=L_TM[[#This Row],[MÃ]],L_Map[CHỈ TIÊU BÁO CÁO],\"\"))","v":"Nguyên giá TSCĐ hữu hình"}]
[null,null,null,null,null,"092_",{"$f":"_xlfn.XLOOKUP(L_TM[[#This Row],[MÃ]],'~cttm'!C:C,'~cttm'!D:D)","v":"TSCĐ hữu hình - Hao mòn lũy kế *"},"TS dài","N2",-1,null,null,{"$f":"COUNTIFS(L_Map[MÃ TM],L_TM[[#This Row],[MÃ]])","v":1},{"$f":"_xlfn.TEXTJOIN(\";\",TRUE,IF(L_Map[MÃ TM]=L_TM[[#This Row],[MÃ]],L_Map[MÃ BC],\"\"))","v":"223_"},{"$f":"_xlfn.TEXTJOIN(\"; \",TRUE,IF(L_Map[MÃ TM]=L_TM[[#This Row],[MÃ]],L_Map[CHỈ TIÊU BÁO CÁO],\"\"))","v":"Giá trị hao mòn lũy kế TSCĐ hữu hình"}]
[null,null,null,null,null,"101_",{"$f":"_xlfn.XLOOKUP(L_TM[[#This Row],[MÃ]],'~cttm'!C:C,'~cttm'!D:D)","v":"TSCĐ vô hình - Nguyên giá"},"TS dài","N2",1,null,null,{"$f":"COUNTIFS(L_Map[MÃ TM],L_TM[[#This Row],[MÃ]])","v":1},{"$f":"_xlfn.TEXTJOIN(\";\",TRUE,IF(L_Map[MÃ TM]=L_TM[[#This Row],[MÃ]],L_Map[MÃ BC],\"\"))","v":"228_"},{"$f":"_xlfn.TEXTJOIN(\"; \",TRUE,IF(L_Map[MÃ TM]=L_TM[[#This Row],[MÃ]],L_Map[CHỈ TIÊU BÁO CÁO],\"\"))","v":"Nguyên giá TSCĐ vô hình"}]
[null,null,null,null,null,"101s",{"$f":"_xlfn.XLOOKUP(L_TM[[#This Row],[MÃ]],'~cttm'!C:C,'~cttm'!D:D)","v":"NG TSCĐ VH đã KH hết đang sử dụng"},"TS dài","N2",0,null,null,{"$f":"COUNTIFS(L_Map[MÃ TM],L_TM[[#This Row],[MÃ]])","v":1},{"$f":"_xlfn.TEXTJOIN(\";\",TRUE,IF(L_Map[MÃ TM]=L_TM[[#This Row],[MÃ]],L_Map[MÃ BC],\"\"))","v":"228_"},{"$f":"_xlfn.TEXTJOIN(\"; \",TRUE,IF(L_Map[MÃ TM]=L_TM[[#This Row],[MÃ]],L_Map[CHỈ TIÊU BÁO CÁO],\"\"))","v":"Nguyên giá TSCĐ vô hình"}]
[null,null,null,null,null,"102_",{"$f":"_xlfn.XLOOKUP(L_TM[[#This Row],[MÃ]],'~cttm'!C:C,'~cttm'!D:D)","v":"TSCĐ vô hình - Hao mòn lũy kế *"},"TS dài","N2",-1,null,null,{"$f":"COUNTIFS(L_Map[MÃ TM],L_TM[[#This Row],[MÃ]])","v":1},{"$f":"_xlfn.TEXTJOIN(\";\",TRUE,IF(L_Map[MÃ TM]=L_TM[[#This Row],[MÃ]],L_Map[MÃ BC],\"\"))","v":"229_"},{"$f":"_xlfn.TEXTJOIN(\"; \",TRUE,IF(L_Map[MÃ TM]=L_TM[[#This Row],[MÃ]],L_Map[CHỈ TIÊU BÁO CÁO],\"\"))","v":"Giá trị hao mòn lũy kế TSCĐ vô hình"}]
[null,null,null,null,null,"111_",{"$f":"_xlfn.XLOOKUP(L_TM[[#This Row],[MÃ]],'~cttm'!C:C,'~cttm'!D:D)","v":"TSCĐ thuê tài chính - Nguyên giá"},"TS dài","N2",1,null,null,{"$f":"COUNTIFS(L_Map[MÃ TM],L_TM[[#This Row],[MÃ]])","v":1},{"$f":"_xlfn.TEXTJOIN(\";\",TRUE,IF(L_Map[MÃ TM]=L_TM[[#This Row],[MÃ]],L_Map[MÃ BC],\"\"))","v":"225_"},{"$f":"_xlfn.TEXTJOIN(\"; \",TRUE,IF(L_Map[MÃ TM]=L_TM[[#This Row],[MÃ]],L_Map[CHỈ TIÊU BÁO CÁO],\"\"))","v":"Nguyên giá TSCĐ thuê tài chính"}]
[null,null,null,null,null,"112_",{"$f":"_xlfn.XLOOKUP(L_TM[[#This Row],[MÃ]],'~cttm'!C:C,'~cttm'!D:D)","v":"TSCĐ thuê tài chính - Hao mòn lũy kế *"},"TS dài","N2",-1,null,null,{"$f":"COUNTIFS(L_Map[MÃ TM],L_TM[[#This Row],[MÃ]])","v":1},{"$f":"_xlfn.TEXTJOIN(\";\",TRUE,IF(L_Map[MÃ TM]=L_TM[[#This Row],[MÃ]],L_Map[MÃ BC],\"\"))","v":"226_"},{"$f":"_xlfn.TEXTJOIN(\"; \",TRUE,IF(L_Map[MÃ TM]=L_TM[[#This Row],[MÃ]],L_Map[CHỈ TIÊU BÁO CÁO],\"\"))","v":"Giá trị hao mòn lũy kế TSCĐ thuê tài chính"}]
[null,null,null,null,null,"121_",{"$f":"_xlfn.XLOOKUP(L_TM[[#This Row],[MÃ]],'~cttm'!C:C,'~cttm'!D:D)","v":"Tài sản sinh học khác"},"TS dài","N1",1,null,null,{"$f":"COUNTIFS(L_Map[MÃ TM],L_TM[[#This Row],[MÃ]])","v":3},{"$f":"_xlfn.TEXTJOIN(\";\",TRUE,IF(L_Map[MÃ TM]=L_TM[[#This Row],[MÃ]],L_Map[MÃ BC],\"\"))","v":"151_;152_;232_"},{"$f":"_xlfn.TEXTJOIN(\"; \",TRUE,IF(L_Map[MÃ TM]=L_TM[[#This Row],[MÃ]],L_Map[CHỈ TIÊU BÁO CÁO],\"\"))","v":"Con vật nuôi lấy sản phẩm một lần ngắn hạn; Cây trồng theo mùa vụ hoặc lấy SP một lần ngắn hạn; Con vật nuôi cho SP định kỳ chưa đến gđ trưởng thành"}]
[null,null,null,null,null,"122_",{"$f":"_xlfn.XLOOKUP(L_TM[[#This Row],[MÃ]],'~cttm'!C:C,'~cttm'!D:D)","v":"Con vật cho SP định kỳ đạt đến GĐ trưởng thành - Nguyên giá"},"TS dài","N2",1,null,null,{"$f":"COUNTIFS(L_Map[MÃ TM],L_TM[[#This Row],[MÃ]])","v":1},{"$f":"_xlfn.TEXTJOIN(\";\",TRUE,IF(L_Map[MÃ TM]=L_TM[[#This Row],[MÃ]],L_Map[MÃ BC],\"\"))","v":"234_"},{"$f":"_xlfn.TEXTJOIN(\"; \",TRUE,IF(L_Map[MÃ TM]=L_TM[[#This Row],[MÃ]],L_Map[CHỈ TIÊU BÁO CÁO],\"\"))","v":"Con vật nuôi cho SP định kỳ đến giai đoạn trưởng thành (nguyên giá)"}]
[null,null,null,null,null,"123_",{"$f":"_xlfn.XLOOKUP(L_TM[[#This Row],[MÃ]],'~cttm'!C:C,'~cttm'!D:D)","v":"Con vật cho SP định kỳ đạt đến GĐ trưởng thành - Khấu hao lũy kế"},"TS dài","N2",-1,null,null,{"$f":"COUNTIFS(L_Map[MÃ TM],L_TM[[#This Row],[MÃ]])","v":1},{"$f":"_xlfn.TEXTJOIN(\";\",TRUE,IF(L_Map[MÃ TM]=L_TM[[#This Row],[MÃ]],L_Map[MÃ BC],\"\"))","v":"235_"},{"$f":"_xlfn.TEXTJOIN(\"; \",TRUE,IF(L_Map[MÃ TM]=L_TM[[#This Row],[MÃ]],L_Map[CHỈ TIÊU BÁO CÁO],\"\"))","v":"Con vật nuôi cho SP định kỳ đến giai đoạn trưởng thành (KH lũy kế)"}]
[null,null,null,null,null,"131_",{"$f":"_xlfn.XLOOKUP(L_TM[[#This Row],[MÃ]],'~cttm'!C:C,'~cttm'!D:D)","v":"BĐS đầu tư - Nguyên giá"},"TS dài","N2",1,null,null,{"$f":"COUNTIFS(L_Map[MÃ TM],L_TM[[#This Row],[MÃ]])","v":1},{"$f":"_xlfn.TEXTJOIN(\";\",TRUE,IF(L_Map[MÃ TM]=L_TM[[#This Row],[MÃ]],L_Map[MÃ BC],\"\"))","v":"241_"},{"$f":"_xlfn.TEXTJOIN(\"; \",TRUE,IF(L_Map[MÃ TM]=L_TM[[#This Row],[MÃ]],L_Map[CHỈ TIÊU BÁO CÁO],\"\"))","v":"Nguyên giá BĐS đầu tư"}]
[null,null,null,null,null,"132_",{"$f":"_xlfn.XLOOKUP(L_TM[[#This Row],[MÃ]],'~cttm'!C:C,'~cttm'!D:D)","v":"BĐS đầu tư - Hao mòn lũy kế *"},"TS dài","N2",-1,null,null,{"$f":"COUNTIFS(L_Map[MÃ TM],L_TM[[#This Row],[MÃ]])","v":1},{"$f":"_xlfn.TEXTJOIN(\";\",TRUE,IF(L_Map[MÃ TM]=L_TM[[#This Row],[MÃ]],L_Map[MÃ BC],\"\"))","v":"242_"},{"$f":"_xlfn.TEXTJOIN(\"; \",TRUE,IF(L_Map[MÃ TM]=L_TM[[#This Row],[MÃ]],L_Map[CHỈ TIÊU BÁO CÁO],\"\"))","v":"Giá trị hao mòn lũy kế BĐS đầu tư *"}]
[null,null,null,null,null,"141_",{"$f":"_xlfn.XLOOKUP(L_TM[[#This Row],[MÃ]],'~cttm'!C:C,'~cttm'!D:D)","v":"Chi phí chờ phân bổ ngắn hạn"},"TS ngắn","N1",1,null,null,{"$f":"COUNTIFS(L_Map[MÃ TM],L_TM[[#This Row],[MÃ]])","v":1},{"$f":"_xlfn.TEXTJOIN(\";\",TRUE,IF(L_Map[MÃ TM]=L_TM[[#This Row],[MÃ]],L_Map[MÃ BC],\"\"))","v":"161_"},{"$f":"_xlfn.TEXTJOIN(\"; \",TRUE,IF(L_Map[MÃ TM]=L_TM[[#This Row],[MÃ]],L_Map[CHỈ TIÊU BÁO CÁO],\"\"))","v":"Chi phí chờ phân bổ ngắn hạn"}]
[null,null,null,null,null,"142_",{"$f":"_xlfn.XLOOKUP(L_TM[[#This Row],[MÃ]],'~cttm'!C:C,'~cttm'!D:D)","v":"Chi phí chờ phân bổ dài hạn"},"TS dài","N1",1,null,null,{"$f":"COUNTIFS(L_Map[MÃ TM],L_TM[[#This Row],[MÃ]])","v":1},{"$f":"_xlfn.TEXTJOIN(\";\",TRUE,IF(L_Map[MÃ TM]=L_TM[[#This Row],[MÃ]],L_Map[MÃ BC],\"\"))","v":"271_"},{"$f":"_xlfn.TEXTJOIN(\"; \",TRUE,IF(L_Map[MÃ TM]=L_TM[[#This Row],[MÃ]],L_Map[CHỈ TIÊU BÁO CÁO],\"\"))","v":"Chi phí chờ phân bổ dài hạn"}]
[null,null,null,null,null,"151_",{"$f":"_xlfn.XLOOKUP(L_TM[[#This Row],[MÃ]],'~cttm'!C:C,'~cttm'!D:D)","v":"Lợi thế thương mại"},"TS dài","N1",1,null,null,{"$f":"COUNTIFS(L_Map[MÃ TM],L_TM[[#This Row],[MÃ]])","v":1},{"$f":"_xlfn.TEXTJOIN(\";\",TRUE,IF(L_Map[MÃ TM]=L_TM[[#This Row],[MÃ]],L_Map[MÃ BC],\"\"))","v":"279_"},{"$f":"_xlfn.TEXTJOIN(\"; \",TRUE,IF(L_Map[MÃ TM]=L_TM[[#This Row],[MÃ]],L_Map[CHỈ TIÊU BÁO CÁO],\"\"))","v":"Lợi thế thương mại"}]
[null,null,null,null,null,"161_",{"$f":"_xlfn.XLOOKUP(L_TM[[#This Row],[MÃ]],'~cttm'!C:C,'~cttm'!D:D)","v":"Vay và nợ thuê tài chính ngắn hạn"},"Nợ ngắn","N3",1,null,null,{"$f":"COUNTIFS(L_Map[MÃ TM],L_TM[[#This Row],[MÃ]])","v":1},{"$f":"_xlfn.TEXTJOIN(\";\",TRUE,IF(L_Map[MÃ TM]=L_TM[[#This Row],[MÃ]],L_Map[MÃ BC],\"\"))","v":"321_"},{"$f":"_xlfn.TEXTJOIN(\"; \",TRUE,IF(L_Map[MÃ TM]=L_TM[[#This Row],[MÃ]],L_Map[CHỈ TIÊU BÁO CÁO],\"\"))","v":"Vay và nợ thuê tài chính ngắn hạn"}]
[null,null,null,null,null,"162_",{"$f":"_xlfn.XLOOKUP(L_TM[[#This Row],[MÃ]],'~cttm'!C:C,'~cttm'!D:D)","v":"Vay và nợ thuê tài chính dài hạn"},"Nợ dài","N3",1,null,null,{"$f":"COUNTIFS(L_Map[MÃ TM],L_TM[[#This Row],[MÃ]])","v":2},{"$f":"_xlfn.TEXTJOIN(\";\",TRUE,IF(L_Map[MÃ TM]=L_TM[[#This Row],[MÃ]],L_Map[MÃ BC],\"\"))","v":"339_;340_"},{"$f":"_xlfn.TEXTJOIN(\"; \",TRUE,IF(L_Map[MÃ TM]=L_TM[[#This Row],[MÃ]],L_Map[CHỈ TIÊU BÁO CÁO],\"\"))","v":"Vay và nợ thuê tài chính dài hạn; Trái phiếu chuyển đổi"}]
[null,null,null,null,null,"171_",{"$f":"_xlfn.XLOOKUP(L_TM[[#This Row],[MÃ]],'~cttm'!C:C,'~cttm'!D:D)","v":"Phải trả người bán ngắn hạn"},"Nợ ngắn","N1",1,null,null,{"$f":"COUNTIFS(L_Map[MÃ TM],L_TM[[#This Row],[MÃ]])","v":1},{"$f":"_xlfn.TEXTJOIN(\";\",TRUE,IF(L_Map[MÃ TM]=L_TM[[#This Row],[MÃ]],L_Map[MÃ BC],\"\"))","v":"311_"},{"$f":"_xlfn.TEXTJOIN(\"; \",TRUE,IF(L_Map[MÃ TM]=L_TM[[#This Row],[MÃ]],L_Map[CHỈ TIÊU BÁO CÁO],\"\"))","v":"Phải trả người bán ngắn hạn"}]
[null,null,null,null,null,"171s",{"$f":"_xlfn.XLOOKUP(L_TM[[#This Row],[MÃ]],'~cttm'!C:C,'~cttm'!D:D)","v":"Phải trả người bán ngắn hạn"},"Nợ ngắn","N1",1,true,null,{"$f":"COUNTIFS(L_Map[MÃ TM],L_TM[[#This Row],[MÃ]])","v":1},{"$f":"_xlfn.TEXTJOIN(\";\",TRUE,IF(L_Map[MÃ TM]=L_TM[[#This Row],[MÃ]],L_Map[MÃ BC],\"\"))","v":"311_"},{"$f":"_xlfn.TEXTJOIN(\"; \",TRUE,IF(L_Map[MÃ TM]=L_TM[[#This Row],[MÃ]],L_Map[CHỈ TIÊU BÁO CÁO],\"\"))","v":"Phải trả người bán ngắn hạn"}]
[null,null,null,null,null,"172_",{"$f":"_xlfn.XLOOKUP(L_TM[[#This Row],[MÃ]],'~cttm'!C:C,'~cttm'!D:D)","v":"Phải trả người bán dài hạn"},"Nợ dài","N1",1,null,null,{"$f":"COUNTIFS(L_Map[MÃ TM],L_TM[[#This Row],[MÃ]])","v":1},{"$f":"_xlfn.TEXTJOIN(\";\",TRUE,IF(L_Map[MÃ TM]=L_TM[[#This Row],[MÃ]],L_Map[MÃ BC],\"\"))","v":"331_"},{"$f":"_xlfn.TEXTJOIN(\"; \",TRUE,IF(L_Map[MÃ TM]=L_TM[[#This Row],[MÃ]],L_Map[CHỈ TIÊU BÁO CÁO],\"\"))","v":"Phải trả người bán dài hạn"}]
[null,null,null,null,null,"172s",{"$f":"_xlfn.XLOOKUP(L_TM[[#This Row],[MÃ]],'~cttm'!C:C,'~cttm'!D:D)","v":"Phải trả người bán dài hạn"},"Nợ dài","N1",1,true,null,{"$f":"COUNTIFS(L_Map[MÃ TM],L_TM[[#This Row],[MÃ]])","v":1},{"$f":"_xlfn.TEXTJOIN(\";\",TRUE,IF(L_Map[MÃ TM]=L_TM[[#This Row],[MÃ]],L_Map[MÃ BC],\"\"))","v":"331_"},{"$f":"_xlfn.TEXTJOIN(\"; \",TRUE,IF(L_Map[MÃ TM]=L_TM[[#This Row],[MÃ]],L_Map[CHỈ TIÊU BÁO CÁO],\"\"))","v":"Phải trả người bán dài hạn"}]
[null,null,null,null,null,"173_",{"$f":"_xlfn.XLOOKUP(L_TM[[#This Row],[MÃ]],'~cttm'!C:C,'~cttm'!D:D)","v":"Người mua trả trước ngắn hạn"},"Nợ ngắn","N1",1,null,null,{"$f":"COUNTIFS(L_Map[MÃ TM],L_TM[[#This Row],[MÃ]])","v":1},{"$f":"_xlfn.TEXTJOIN(\";\",TRUE,IF(L_Map[MÃ TM]=L_TM[[#This Row],[MÃ]],L_Map[MÃ BC],\"\"))","v":"312_"},{"$f":"_xlfn.TEXTJOIN(\"; \",TRUE,IF(L_Map[MÃ TM]=L_TM[[#This Row],[MÃ]],L_Map[CHỈ TIÊU BÁO CÁO],\"\"))","v":"Người mua trả trước ngắn hạn"}]
[null,null,null,null,null,"173s",{"$f":"_xlfn.XLOOKUP(L_TM[[#This Row],[MÃ]],'~cttm'!C:C,'~cttm'!D:D)","v":"Người mua trả trước ngắn hạn"},"Nợ ngắn","N1",1,true,null,{"$f":"COUNTIFS(L_Map[MÃ TM],L_TM[[#This Row],[MÃ]])","v":1},{"$f":"_xlfn.TEXTJOIN(\";\",TRUE,IF(L_Map[MÃ TM]=L_TM[[#This Row],[MÃ]],L_Map[MÃ BC],\"\"))","v":"312_"},{"$f":"_xlfn.TEXTJOIN(\"; \",TRUE,IF(L_Map[MÃ TM]=L_TM[[#This Row],[MÃ]],L_Map[CHỈ TIÊU BÁO CÁO],\"\"))","v":"Người mua trả trước ngắn hạn"}]
[null,null,null,null,null,"174_",{"$f":"_xlfn.XLOOKUP(L_TM[[#This Row],[MÃ]],'~cttm'!C:C,'~cttm'!D:D)","v":"Người mua trả trước dài hạn"},"Nợ dài","N1",1,null,null,{"$f":"COUNTIFS(L_Map[MÃ TM],L_TM[[#This Row],[MÃ]])","v":1},{"$f":"_xlfn.TEXTJOIN(\";\",TRUE,IF(L_Map[MÃ TM]=L_TM[[#This Row],[MÃ]],L_Map[MÃ BC],\"\"))","v":"332_"},{"$f":"_xlfn.TEXTJOIN(\"; \",TRUE,IF(L_Map[MÃ TM]=L_TM[[#This Row],[MÃ]],L_Map[CHỈ TIÊU BÁO CÁO],\"\"))","v":"Người mua trả trước dài hạn"}]
[null,null,null,null,null,"174s",{"$f":"_xlfn.XLOOKUP(L_TM[[#This Row],[MÃ]],'~cttm'!C:C,'~cttm'!D:D)","v":"Người mua trả trước dài hạn"},"Nợ dài","N1",1,true,null,{"$f":"COUNTIFS(L_Map[MÃ TM],L_TM[[#This Row],[MÃ]])","v":1},{"$f":"_xlfn.TEXTJOIN(\";\",TRUE,IF(L_Map[MÃ TM]=L_TM[[#This Row],[MÃ]],L_Map[MÃ BC],\"\"))","v":"332_"},{"$f":"_xlfn.TEXTJOIN(\"; \",TRUE,IF(L_Map[MÃ TM]=L_TM[[#This Row],[MÃ]],L_Map[CHỈ TIÊU BÁO CÁO],\"\"))","v":"Người mua trả trước dài hạn"}]
[null,null,null,null,null,"181_",{"$f":"_xlfn.XLOOKUP(L_TM[[#This Row],[MÃ]],'~cttm'!C:C,'~cttm'!D:D)","v":"Phải trả về cổ tức, lợi nhuận"},"Nợ ngắn","N1",1,null,null,{"$f":"COUNTIFS(L_Map[MÃ TM],L_TM[[#This Row],[MÃ]])","v":1},{"$f":"_xlfn.TEXTJOIN(\";\",TRUE,IF(L_Map[MÃ TM]=L_TM[[#This Row],[MÃ]],L_Map[MÃ BC],\"\"))","v":"313_"},{"$f":"_xlfn.TEXTJOIN(\"; \",TRUE,IF(L_Map[MÃ TM]=L_TM[[#This Row],[MÃ]],L_Map[CHỈ TIÊU BÁO CÁO],\"\"))","v":"Phải trả về cổ tức, lợi nhuận"}]
[null,null,null,null,null,"182_",{"$f":"_xlfn.XLOOKUP(L_TM[[#This Row],[MÃ]],'~cttm'!C:C,'~cttm'!D:D)","v":"Quỹ khen thưởng, phúc lợi"},"Nợ ngắn","N1",1,null,null,{"$f":"COUNTIFS(L_Map[MÃ TM],L_TM[[#This Row],[MÃ]])","v":1},{"$f":"_xlfn.TEXTJOIN(\";\",TRUE,IF(L_Map[MÃ TM]=L_TM[[#This Row],[MÃ]],L_Map[MÃ BC],\"\"))","v":"323_"},{"$f":"_xlfn.TEXTJOIN(\"; \",TRUE,IF(L_Map[MÃ TM]=L_TM[[#This Row],[MÃ]],L_Map[CHỈ TIÊU BÁO CÁO],\"\"))","v":"Quỹ khen thưởng, phúc lợi"}]
[null,null,null,null,null,"191_",{"$f":"_xlfn.XLOOKUP(L_TM[[#This Row],[MÃ]],'~cttm'!C:C,'~cttm'!D:D)","v":"Thuế và các khoản phải nộp Nhà nước"},"Nợ ngắn","N6",1,null,null,{"$f":"COUNTIFS(L_Map[MÃ TM],L_TM[[#This Row],[MÃ]])","v":2},{"$f":"_xlfn.TEXTJOIN(\";\",TRUE,IF(L_Map[MÃ TM]=L_TM[[#This Row],[MÃ]],L_Map[MÃ BC],\"\"))","v":"163_;314_"},{"$f":"_xlfn.TEXTJOIN(\"; \",TRUE,IF(L_Map[MÃ TM]=L_TM[[#This Row],[MÃ]],L_Map[CHỈ TIÊU BÁO CÁO],\"\"))","v":"Thuế và các khoản phải thu Nhà nước; Thuế và các khoản phải nộp Nhà nước ngắn hạn"}]
[null,null,null,null,null,"192_",{"$f":"_xlfn.XLOOKUP(L_TM[[#This Row],[MÃ]],'~cttm'!C:C,'~cttm'!D:D)","v":"Thuế GTGT được khấu trừ"},"Nợ ngắn","N6",1,null,null,{"$f":"COUNTIFS(L_Map[MÃ TM],L_TM[[#This Row],[MÃ]])","v":1},{"$f":"_xlfn.TEXTJOIN(\";\",TRUE,IF(L_Map[MÃ TM]=L_TM[[#This Row],[MÃ]],L_Map[MÃ BC],\"\"))","v":"163_"},{"$f":"_xlfn.TEXTJOIN(\"; \",TRUE,IF(L_Map[MÃ TM]=L_TM[[#This Row],[MÃ]],L_Map[CHỈ TIÊU BÁO CÁO],\"\"))","v":"Thuế và các khoản phải thu Nhà nước"}]
[null,null,null,null,null,"201_",{"$f":"_xlfn.XLOOKUP(L_TM[[#This Row],[MÃ]],'~cttm'!C:C,'~cttm'!D:D)","v":"Chi phí phải trả ngắn hạn"},"Nợ ngắn","N1",1,null,null,{"$f":"COUNTIFS(L_Map[MÃ TM],L_TM[[#This Row],[MÃ]])","v":1},{"$f":"_xlfn.TEXTJOIN(\";\",TRUE,IF(L_Map[MÃ TM]=L_TM[[#This Row],[MÃ]],L_Map[MÃ BC],\"\"))","v":"316_"},{"$f":"_xlfn.TEXTJOIN(\"; \",TRUE,IF(L_Map[MÃ TM]=L_TM[[#This Row],[MÃ]],L_Map[CHỈ TIÊU BÁO CÁO],\"\"))","v":"Chi phí phải trả ngắn hạn"}]
[null,null,null,null,null,"202_",{"$f":"_xlfn.XLOOKUP(L_TM[[#This Row],[MÃ]],'~cttm'!C:C,'~cttm'!D:D)","v":"Chi phí phải trả dài hạn"},"Nợ dài","N1",1,null,null,{"$f":"COUNTIFS(L_Map[MÃ TM],L_TM[[#This Row],[MÃ]])","v":1},{"$f":"_xlfn.TEXTJOIN(\";\",TRUE,IF(L_Map[MÃ TM]=L_TM[[#This Row],[MÃ]],L_Map[MÃ BC],\"\"))","v":"334_"},{"$f":"_xlfn.TEXTJOIN(\"; \",TRUE,IF(L_Map[MÃ TM]=L_TM[[#This Row],[MÃ]],L_Map[CHỈ TIÊU BÁO CÁO],\"\"))","v":"Chi phí phải trả dài hạn"}]
[null,null,null,null,null,"211_",{"$f":"_xlfn.XLOOKUP(L_TM[[#This Row],[MÃ]],'~cttm'!C:C,'~cttm'!D:D)","v":"Phải trả ngắn hạn khác"},"Nợ ngắn","N1",1,null,null,{"$f":"COUNTIFS(L_Map[MÃ TM],L_TM[[#This Row],[MÃ]])","v":1},{"$f":"_xlfn.TEXTJOIN(\";\",TRUE,IF(L_Map[MÃ TM]=L_TM[[#This Row],[MÃ]],L_Map[MÃ BC],\"\"))","v":"320_"},{"$f":"_xlfn.TEXTJOIN(\"; \",TRUE,IF(L_Map[MÃ TM]=L_TM[[#This Row],[MÃ]],L_Map[CHỈ TIÊU BÁO CÁO],\"\"))","v":"Các khoản phải trả ngắn hạn khác"}]
[null,null,null,null,null,"211s",{"$f":"_xlfn.XLOOKUP(L_TM[[#This Row],[MÃ]],'~cttm'!C:C,'~cttm'!D:D)","v":"Phải trả ngắn hạn khác"},"Nợ ngắn","N1",1,true,null,{"$f":"COUNTIFS(L_Map[MÃ TM],L_TM[[#This Row],[MÃ]])","v":1},{"$f":"_xlfn.TEXTJOIN(\";\",TRUE,IF(L_Map[MÃ TM]=L_TM[[#This Row],[MÃ]],L_Map[MÃ BC],\"\"))","v":"320_"},{"$f":"_xlfn.TEXTJOIN(\"; \",TRUE,IF(L_Map[MÃ TM]=L_TM[[#This Row],[MÃ]],L_Map[CHỈ TIÊU BÁO CÁO],\"\"))","v":"Các khoản phải trả ngắn hạn khác"}]
[null,null,null,null,null,"212_",{"$f":"_xlfn.XLOOKUP(L_TM[[#This Row],[MÃ]],'~cttm'!C:C,'~cttm'!D:D)","v":"Phải trả dài hạn khác"},"Nợ dài","N1",1,null,null,{"$f":"COUNTIFS(L_Map[MÃ TM],L_TM[[#This Row],[MÃ]])","v":1},{"$f":"_xlfn.TEXTJOIN(\";\",TRUE,IF(L_Map[MÃ TM]=L_TM[[#This Row],[MÃ]],L_Map[MÃ BC],\"\"))","v":"338_"},{"$f":"_xlfn.TEXTJOIN(\"; \",TRUE,IF(L_Map[MÃ TM]=L_TM[[#This Row],[MÃ]],L_Map[CHỈ TIÊU BÁO CÁO],\"\"))","v":"Phải trả dài hạn khác"}]
[null,null,null,null,null,"212s",{"$f":"_xlfn.XLOOKUP(L_TM[[#This Row],[MÃ]],'~cttm'!C:C,'~cttm'!D:D)","v":"Phải trả dài hạn khác"},"Nợ dài","N1",1,true,null,{"$f":"COUNTIFS(L_Map[MÃ TM],L_TM[[#This Row],[MÃ]])","v":1},{"$f":"_xlfn.TEXTJOIN(\";\",TRUE,IF(L_Map[MÃ TM]=L_TM[[#This Row],[MÃ]],L_Map[MÃ BC],\"\"))","v":"338_"},{"$f":"_xlfn.TEXTJOIN(\"; \",TRUE,IF(L_Map[MÃ TM]=L_TM[[#This Row],[MÃ]],L_Map[CHỈ TIÊU BÁO CÁO],\"\"))","v":"Phải trả dài hạn khác"}]
[null,null,null,null,null,"213_",{"$f":"_xlfn.XLOOKUP(L_TM[[#This Row],[MÃ]],'~cttm'!C:C,'~cttm'!D:D)","v":"Phải trả nội bộ ngắn hạn"},"Nợ ngắn","N1",0,null,null,{"$f":"COUNTIFS(L_Map[MÃ TM],L_TM[[#This Row],[MÃ]])","v":3},{"$f":"_xlfn.TEXTJOIN(\";\",TRUE,IF(L_Map[MÃ TM]=L_TM[[#This Row],[MÃ]],L_Map[MÃ BC],\"\"))","v":"317_;335_;336_"},{"$f":"_xlfn.TEXTJOIN(\"; \",TRUE,IF(L_Map[MÃ TM]=L_TM[[#This Row],[MÃ]],L_Map[CHỈ TIÊU BÁO CÁO],\"\"))","v":"Phải trả nội bộ ngắn hạn; Phải trả nội bộ về vốn kinh doanh; Phải trả nội bộ dài hạn"}]
[null,null,null,null,null,"214_",{"$f":"_xlfn.XLOOKUP(L_TM[[#This Row],[MÃ]],'~cttm'!C:C,'~cttm'!D:D)","v":"Phải trả nội bộ dài hạn"},"Nợ dài","N1",0,null,null,{"$f":"COUNTIFS(L_Map[MÃ TM],L_TM[[#This Row],[MÃ]])","v":0},{"$f":"_xlfn.TEXTJOIN(\";\",TRUE,IF(L_Map[MÃ TM]=L_TM[[#This Row],[MÃ]],L_Map[MÃ BC],\"\"))","v":""},{"$f":"_xlfn.TEXTJOIN(\"; \",TRUE,IF(L_Map[MÃ TM]=L_TM[[#This Row],[MÃ]],L_Map[CHỈ TIÊU BÁO CÁO],\"\"))","v":""}]
[null,null,null,null,null,"215_",{"$f":"_xlfn.XLOOKUP(L_TM[[#This Row],[MÃ]],'~cttm'!C:C,'~cttm'!D:D)","v":"Phải trả theo tiến độ HĐXD"},"Nợ ngắn","N1",1,null,null,{"$f":"COUNTIFS(L_Map[MÃ TM],L_TM[[#This Row],[MÃ]])","v":1},{"$f":"_xlfn.TEXTJOIN(\";\",TRUE,IF(L_Map[MÃ TM]=L_TM[[#This Row],[MÃ]],L_Map[MÃ BC],\"\"))","v":"318_"},{"$f":"_xlfn.TEXTJOIN(\"; \",TRUE,IF(L_Map[MÃ TM]=L_TM[[#This Row],[MÃ]],L_Map[CHỈ TIÊU BÁO CÁO],\"\"))","v":"Phải trả theo tiến độ HĐXD ngắn hạn"}]
[null,null,null,null,null,"221_",{"$f":"_xlfn.XLOOKUP(L_TM[[#This Row],[MÃ]],'~cttm'!C:C,'~cttm'!D:D)","v":"Doanh thu chờ phân bổ ngắn hạn"},"Nợ ngắn","N1",1,null,null,{"$f":"COUNTIFS(L_Map[MÃ TM],L_TM[[#This Row],[MÃ]])","v":1},{"$f":"_xlfn.TEXTJOIN(\";\",TRUE,IF(L_Map[MÃ TM]=L_TM[[#This Row],[MÃ]],L_Map[MÃ BC],\"\"))","v":"319_"},{"$f":"_xlfn.TEXTJOIN(\"; \",TRUE,IF(L_Map[MÃ TM]=L_TM[[#This Row],[MÃ]],L_Map[CHỈ TIÊU BÁO CÁO],\"\"))","v":"Doanh thu chờ phân bổ ngắn hạn"}]
[null,null,null,null,null,"222_",{"$f":"_xlfn.XLOOKUP(L_TM[[#This Row],[MÃ]],'~cttm'!C:C,'~cttm'!D:D)","v":"Doanh thu chờ phân bổ dài hạn"},"Nợ dài","N1",1,null,null,{"$f":"COUNTIFS(L_Map[MÃ TM],L_TM[[#This Row],[MÃ]])","v":1},{"$f":"_xlfn.TEXTJOIN(\";\",TRUE,IF(L_Map[MÃ TM]=L_TM[[#This Row],[MÃ]],L_Map[MÃ BC],\"\"))","v":"337_"},{"$f":"_xlfn.TEXTJOIN(\"; \",TRUE,IF(L_Map[MÃ TM]=L_TM[[#This Row],[MÃ]],L_Map[CHỈ TIÊU BÁO CÁO],\"\"))","v":"Doanh thu chờ phân bổ dài hạn"}]
[null,null,null,null,null,"231_",{"$f":"_xlfn.XLOOKUP(L_TM[[#This Row],[MÃ]],'~cttm'!C:C,'~cttm'!D:D)","v":"Trái phiếu thường"},"Nợ dài","N1",1,null,null,{"$f":"COUNTIFS(L_Map[MÃ TM],L_TM[[#This Row],[MÃ]])","v":0},{"$f":"_xlfn.TEXTJOIN(\";\",TRUE,IF(L_Map[MÃ TM]=L_TM[[#This Row],[MÃ]],L_Map[MÃ BC],\"\"))","v":""},{"$f":"_xlfn.TEXTJOIN(\"; \",TRUE,IF(L_Map[MÃ TM]=L_TM[[#This Row],[MÃ]],L_Map[CHỈ TIÊU BÁO CÁO],\"\"))","v":""}]
[null,null,null,null,null,"232_",{"$f":"_xlfn.XLOOKUP(L_TM[[#This Row],[MÃ]],'~cttm'!C:C,'~cttm'!D:D)","v":"Trái phiếu chuyển đổi"},"Nợ dài","N1",1,null,null,{"$f":"COUNTIFS(L_Map[MÃ TM],L_TM[[#This Row],[MÃ]])","v":1},{"$f":"_xlfn.TEXTJOIN(\";\",TRUE,IF(L_Map[MÃ TM]=L_TM[[#This Row],[MÃ]],L_Map[MÃ BC],\"\"))","v":"340_"},{"$f":"_xlfn.TEXTJOIN(\"; \",TRUE,IF(L_Map[MÃ TM]=L_TM[[#This Row],[MÃ]],L_Map[CHỈ TIÊU BÁO CÁO],\"\"))","v":"Trái phiếu chuyển đổi"}]
[null,null,null,null,null,"241_",{"$f":"_xlfn.XLOOKUP(L_TM[[#This Row],[MÃ]],'~cttm'!C:C,'~cttm'!D:D)","v":"Cổ phiếu ưu đãi phân loại là nợ phải trả"},"Nợ dài","N1",1,null,null,{"$f":"COUNTIFS(L_Map[MÃ TM],L_TM[[#This Row],[MÃ]])","v":1},{"$f":"_xlfn.TEXTJOIN(\";\",TRUE,IF(L_Map[MÃ TM]=L_TM[[#This Row],[MÃ]],L_Map[MÃ BC],\"\"))","v":"41b_"},{"$f":"_xlfn.TEXTJOIN(\"; \",TRUE,IF(L_Map[MÃ TM]=L_TM[[#This Row],[MÃ]],L_Map[CHỈ TIÊU BÁO CÁO],\"\"))","v":"Cổ phiếu ưu đãi"}]
[null,null,null,null,null,"251_",{"$f":"_xlfn.XLOOKUP(L_TM[[#This Row],[MÃ]],'~cttm'!C:C,'~cttm'!D:D)","v":"Dự phòng phải trả ngắn hạn"},"Nợ ngắn","N1",1,null,null,{"$f":"COUNTIFS(L_Map[MÃ TM],L_TM[[#This Row],[MÃ]])","v":1},{"$f":"_xlfn.TEXTJOIN(\";\",TRUE,IF(L_Map[MÃ TM]=L_TM[[#This Row],[MÃ]],L_Map[MÃ BC],\"\"))","v":"322_"},{"$f":"_xlfn.TEXTJOIN(\"; \",TRUE,IF(L_Map[MÃ TM]=L_TM[[#This Row],[MÃ]],L_Map[CHỈ TIÊU BÁO CÁO],\"\"))","v":"Dự phòng phải trả ngắn hạn"}]
[null,null,null,null,null,"252_",{"$f":"_xlfn.XLOOKUP(L_TM[[#This Row],[MÃ]],'~cttm'!C:C,'~cttm'!D:D)","v":"Dự phòng phải trả dài hạn"},"Nợ dài","N1",1,null,null,{"$f":"COUNTIFS(L_Map[MÃ TM],L_TM[[#This Row],[MÃ]])","v":1},{"$f":"_xlfn.TEXTJOIN(\";\",TRUE,IF(L_Map[MÃ TM]=L_TM[[#This Row],[MÃ]],L_Map[MÃ BC],\"\"))","v":"343_"},{"$f":"_xlfn.TEXTJOIN(\"; \",TRUE,IF(L_Map[MÃ TM]=L_TM[[#This Row],[MÃ]],L_Map[CHỈ TIÊU BÁO CÁO],\"\"))","v":"Dự phòng phải trả dài hạn"}]
[null,null,null,null,null,"261_",{"$f":"_xlfn.XLOOKUP(L_TM[[#This Row],[MÃ]],'~cttm'!C:C,'~cttm'!D:D)","v":"Tài sản thuế TNDN hoãn lại"},"TS dài","N1",1,null,null,{"$f":"COUNTIFS(L_Map[MÃ TM],L_TM[[#This Row],[MÃ]])","v":1},{"$f":"_xlfn.TEXTJOIN(\";\",TRUE,IF(L_Map[MÃ TM]=L_TM[[#This Row],[MÃ]],L_Map[MÃ BC],\"\"))","v":"272_"},{"$f":"_xlfn.TEXTJOIN(\"; \",TRUE,IF(L_Map[MÃ TM]=L_TM[[#This Row],[MÃ]],L_Map[CHỈ TIÊU BÁO CÁO],\"\"))","v":"Tài sản thuế thu nhập hoãn lại"}]
[null,null,null,null,null,"262_",{"$f":"_xlfn.XLOOKUP(L_TM[[#This Row],[MÃ]],'~cttm'!C:C,'~cttm'!D:D)","v":"Thuế TNDN hoãn lại phải trả"},"Nợ dài","N1",1,null,null,{"$f":"COUNTIFS(L_Map[MÃ TM],L_TM[[#This Row],[MÃ]])","v":1},{"$f":"_xlfn.TEXTJOIN(\";\",TRUE,IF(L_Map[MÃ TM]=L_TM[[#This Row],[MÃ]],L_Map[MÃ BC],\"\"))","v":"342_"},{"$f":"_xlfn.TEXTJOIN(\"; \",TRUE,IF(L_Map[MÃ TM]=L_TM[[#This Row],[MÃ]],L_Map[CHỈ TIÊU BÁO CÁO],\"\"))","v":"Thuế thu nhập hoãn lại phải trả"}]
[null,null,null,null,null,"270_",{"$f":"_xlfn.XLOOKUP(L_TM[[#This Row],[MÃ]],'~cttm'!C:C,'~cttm'!D:D)","v":"Vốn chủ sở hữu"},"Vốn góp","N4",1,null,null,{"$f":"COUNTIFS(L_Map[MÃ TM],L_TM[[#This Row],[MÃ]])","v":14},{"$f":"_xlfn.TEXTJOIN(\";\",TRUE,IF(L_Map[MÃ TM]=L_TM[[#This Row],[MÃ]],L_Map[MÃ BC],\"\"))","v":"412_;413_;414_;415_;416_;417_;418_;419_;41a_;41b_;420_;429_;42a_;42b_"},{"$f":"_xlfn.TEXTJOIN(\"; \",TRUE,IF(L_Map[MÃ TM]=L_TM[[#This Row],[MÃ]],L_Map[CHỈ TIÊU BÁO CÁO],\"\"))","v":"Thặng dư vốn cổ phần; Quyền chọn chuyển đổi trái phiếu; Vốn khác của chủ sở hữu; Cổ phiếu mua lại của chính mình *; Chênh lệch đánh giá lại tài sản; Chênh lệch tỷ giá hối đoái; Quỹ đầu tư phát triển; Quỹ khác thuộc vốn chủ sở hữu; Cổ phiếu phổ thông có quyền biểu quyết; Cổ phiếu ưu đãi; -; Lợi ích của cổ đông không kiểm soát; LNST chưa phân phối lũy kế đến cuối kỳ trước; LNST chưa phân phối kỳ này"}]
[null,null,null,null,null,"270s",{"$f":"_xlfn.XLOOKUP(L_TM[[#This Row],[MÃ]],'~cttm'!C:C,'~cttm'!D:D)","v":"Vốn chủ sở hữu (năm trước)"},"Vốn góp","N4",0,null,null,{"$f":"COUNTIFS(L_Map[MÃ TM],L_TM[[#This Row],[MÃ]])","v":0},{"$f":"_xlfn.TEXTJOIN(\";\",TRUE,IF(L_Map[MÃ TM]=L_TM[[#This Row],[MÃ]],L_Map[MÃ BC],\"\"))","v":""},{"$f":"_xlfn.TEXTJOIN(\"; \",TRUE,IF(L_Map[MÃ TM]=L_TM[[#This Row],[MÃ]],L_Map[CHỈ TIÊU BÁO CÁO],\"\"))","v":""}]
[null,null,null,null,null,"271_",{"$f":"_xlfn.XLOOKUP(L_TM[[#This Row],[MÃ]],'~cttm'!C:C,'~cttm'!D:D)","v":"Quỹ không thuộc CSH"},"Nợ dài","N1",0,null,null,{"$f":"COUNTIFS(L_Map[MÃ TM],L_TM[[#This Row],[MÃ]])","v":3},{"$f":"_xlfn.TEXTJOIN(\";\",TRUE,IF(L_Map[MÃ TM]=L_TM[[#This Row],[MÃ]],L_Map[MÃ BC],\"\"))","v":"324_;341_;344_"},{"$f":"_xlfn.TEXTJOIN(\"; \",TRUE,IF(L_Map[MÃ TM]=L_TM[[#This Row],[MÃ]],L_Map[CHỈ TIÊU BÁO CÁO],\"\"))","v":"Quỹ bình ổn giá; Cổ phiếu ưu đãi; Quỹ phát triển khoa học và công nghệ"}]
[null,null,null,null,null,"272_",{"$f":"_xlfn.XLOOKUP(L_TM[[#This Row],[MÃ]],'~cttm'!C:C,'~cttm'!D:D)","v":"Nguồn kinh phí"},"Vốn khác","N4",0,null,null,{"$f":"COUNTIFS(L_Map[MÃ TM],L_TM[[#This Row],[MÃ]])","v":0},{"$f":"_xlfn.TEXTJOIN(\";\",TRUE,IF(L_Map[MÃ TM]=L_TM[[#This Row],[MÃ]],L_Map[MÃ BC],\"\"))","v":""},{"$f":"_xlfn.TEXTJOIN(\"; \",TRUE,IF(L_Map[MÃ TM]=L_TM[[#This Row],[MÃ]],L_Map[CHỈ TIÊU BÁO CÁO],\"\"))","v":""}]
[null,null,null,null,null,"281_",{"$f":"_xlfn.XLOOKUP(L_TM[[#This Row],[MÃ]],'~cttm'!C:C,'~cttm'!D:D)","v":"Chênh lệch đánh giá lại tài sản"},null,null,null,null,null,{"$f":"COUNTIFS(L_Map[MÃ TM],L_TM[[#This Row],[MÃ]])","v":0},{"$f":"_xlfn.TEXTJOIN(\";\",TRUE,IF(L_Map[MÃ TM]=L_TM[[#This Row],[MÃ]],L_Map[MÃ BC],\"\"))","v":""},{"$f":"_xlfn.TEXTJOIN(\"; \",TRUE,IF(L_Map[MÃ TM]=L_TM[[#This Row],[MÃ]],L_Map[CHỈ TIÊU BÁO CÁO],\"\"))","v":""}]
[null,null,null,null,null,"291_",{"$f":"_xlfn.XLOOKUP(L_TM[[#This Row],[MÃ]],'~cttm'!C:C,'~cttm'!D:D)","v":"Chênh lệch tỷ giá"},null,null,null,null,null,{"$f":"COUNTIFS(L_Map[MÃ TM],L_TM[[#This Row],[MÃ]])","v":0},{"$f":"_xlfn.TEXTJOIN(\";\",TRUE,IF(L_Map[MÃ TM]=L_TM[[#This Row],[MÃ]],L_Map[MÃ BC],\"\"))","v":""},{"$f":"_xlfn.TEXTJOIN(\"; \",TRUE,IF(L_Map[MÃ TM]=L_TM[[#This Row],[MÃ]],L_Map[CHỈ TIÊU BÁO CÁO],\"\"))","v":""}]
[null,null,null,null,null,"311_",{"$f":"_xlfn.XLOOKUP(L_TM[[#This Row],[MÃ]],'~cttm'!C:C,'~cttm'!D:D)","v":"Doanh thu bán hàng"},"KQKD","N5",1,null,null,{"$f":"COUNTIFS(L_Map[MÃ TM],L_TM[[#This Row],[MÃ]])","v":1},{"$f":"_xlfn.TEXTJOIN(\";\",TRUE,IF(L_Map[MÃ TM]=L_TM[[#This Row],[MÃ]],L_Map[MÃ BC],\"\"))","v":"001_"},{"$f":"_xlfn.TEXTJOIN(\"; \",TRUE,IF(L_Map[MÃ TM]=L_TM[[#This Row],[MÃ]],L_Map[CHỈ TIÊU BÁO CÁO],\"\"))","v":"Doanh thu bán hàng & cung cấp dịch vụ"}]
[null,null,null,null,null,"311s",{"$f":"_xlfn.XLOOKUP(L_TM[[#This Row],[MÃ]],'~cttm'!C:C,'~cttm'!D:D)","v":"Doanh thu bán hàng"},"KQKD","N5",1,true,null,{"$f":"COUNTIFS(L_Map[MÃ TM],L_TM[[#This Row],[MÃ]])","v":1},{"$f":"_xlfn.TEXTJOIN(\";\",TRUE,IF(L_Map[MÃ TM]=L_TM[[#This Row],[MÃ]],L_Map[MÃ BC],\"\"))","v":"001_"},{"$f":"_xlfn.TEXTJOIN(\"; \",TRUE,IF(L_Map[MÃ TM]=L_TM[[#This Row],[MÃ]],L_Map[CHỈ TIÊU BÁO CÁO],\"\"))","v":"Doanh thu bán hàng & cung cấp dịch vụ"}]
[null,null,null,null,null,"312_",{"$f":"_xlfn.XLOOKUP(L_TM[[#This Row],[MÃ]],'~cttm'!C:C,'~cttm'!D:D)","v":"Giảm trừ doanh thu"},"KQKD","N5",1,null,null,{"$f":"COUNTIFS(L_Map[MÃ TM],L_TM[[#This Row],[MÃ]])","v":1},{"$f":"_xlfn.TEXTJOIN(\";\",TRUE,IF(L_Map[MÃ TM]=L_TM[[#This Row],[MÃ]],L_Map[MÃ BC],\"\"))","v":"002_"},{"$f":"_xlfn.TEXTJOIN(\"; \",TRUE,IF(L_Map[MÃ TM]=L_TM[[#This Row],[MÃ]],L_Map[CHỈ TIÊU BÁO CÁO],\"\"))","v":"Các khoản giảm trừ"}]
[null,null,null,null,null,"320_",{"$f":"_xlfn.XLOOKUP(L_TM[[#This Row],[MÃ]],'~cttm'!C:C,'~cttm'!D:D)","v":"Giá vốn hàng bán"},"KQKD","N5",1,null,null,{"$f":"COUNTIFS(L_Map[MÃ TM],L_TM[[#This Row],[MÃ]])","v":1},{"$f":"_xlfn.TEXTJOIN(\";\",TRUE,IF(L_Map[MÃ TM]=L_TM[[#This Row],[MÃ]],L_Map[MÃ BC],\"\"))","v":"011_"},{"$f":"_xlfn.TEXTJOIN(\"; \",TRUE,IF(L_Map[MÃ TM]=L_TM[[#This Row],[MÃ]],L_Map[CHỈ TIÊU BÁO CÁO],\"\"))","v":"Giá vốn hàng bán"}]
[null,null,null,null,null,"320s",{"$f":"_xlfn.XLOOKUP(L_TM[[#This Row],[MÃ]],'~cttm'!C:C,'~cttm'!D:D)","v":"Giá vốn hàng bán"},"KQKD","N5",1,true,null,{"$f":"COUNTIFS(L_Map[MÃ TM],L_TM[[#This Row],[MÃ]])","v":1},{"$f":"_xlfn.TEXTJOIN(\";\",TRUE,IF(L_Map[MÃ TM]=L_TM[[#This Row],[MÃ]],L_Map[MÃ BC],\"\"))","v":"011_"},{"$f":"_xlfn.TEXTJOIN(\"; \",TRUE,IF(L_Map[MÃ TM]=L_TM[[#This Row],[MÃ]],L_Map[CHỈ TIÊU BÁO CÁO],\"\"))","v":"Giá vốn hàng bán"}]
[null,null,null,null,null,"331_",{"$f":"_xlfn.XLOOKUP(L_TM[[#This Row],[MÃ]],'~cttm'!C:C,'~cttm'!D:D)","v":"Doanh thu tài chính"},"KQKD","N5",1,null,null,{"$f":"COUNTIFS(L_Map[MÃ TM],L_TM[[#This Row],[MÃ]])","v":1},{"$f":"_xlfn.TEXTJOIN(\";\",TRUE,IF(L_Map[MÃ TM]=L_TM[[#This Row],[MÃ]],L_Map[MÃ BC],\"\"))","v":"022_"},{"$f":"_xlfn.TEXTJOIN(\"; \",TRUE,IF(L_Map[MÃ TM]=L_TM[[#This Row],[MÃ]],L_Map[CHỈ TIÊU BÁO CÁO],\"\"))","v":"Doanh thu hoạt động tài chính"}]
[null,null,null,null,null,"332_",{"$f":"_xlfn.XLOOKUP(L_TM[[#This Row],[MÃ]],'~cttm'!C:C,'~cttm'!D:D)","v":"Chi phí tài chính"},"KQKD","N5",1,null,null,{"$f":"COUNTIFS(L_Map[MÃ TM],L_TM[[#This Row],[MÃ]])","v":1},{"$f":"_xlfn.TEXTJOIN(\";\",TRUE,IF(L_Map[MÃ TM]=L_TM[[#This Row],[MÃ]],L_Map[MÃ BC],\"\"))","v":"023_"},{"$f":"_xlfn.TEXTJOIN(\"; \",TRUE,IF(L_Map[MÃ TM]=L_TM[[#This Row],[MÃ]],L_Map[CHỈ TIÊU BÁO CÁO],\"\"))","v":"Chi phí tài chính"}]
[null,null,null,null,null,"341_",{"$f":"_xlfn.XLOOKUP(L_TM[[#This Row],[MÃ]],'~cttm'!C:C,'~cttm'!D:D)","v":"Chi phí bán hàng"},"KQKD","N5",1,null,null,{"$f":"COUNTIFS(L_Map[MÃ TM],L_TM[[#This Row],[MÃ]])","v":1},{"$f":"_xlfn.TEXTJOIN(\";\",TRUE,IF(L_Map[MÃ TM]=L_TM[[#This Row],[MÃ]],L_Map[MÃ BC],\"\"))","v":"025_"},{"$f":"_xlfn.TEXTJOIN(\"; \",TRUE,IF(L_Map[MÃ TM]=L_TM[[#This Row],[MÃ]],L_Map[CHỈ TIÊU BÁO CÁO],\"\"))","v":"Chi phí bán hàng"}]
[null,null,null,null,null,"342_",{"$f":"_xlfn.XLOOKUP(L_TM[[#This Row],[MÃ]],'~cttm'!C:C,'~cttm'!D:D)","v":"Chi phí QLDN"},"KQKD","N5",1,null,null,{"$f":"COUNTIFS(L_Map[MÃ TM],L_TM[[#This Row],[MÃ]])","v":1},{"$f":"_xlfn.TEXTJOIN(\";\",TRUE,IF(L_Map[MÃ TM]=L_TM[[#This Row],[MÃ]],L_Map[MÃ BC],\"\"))","v":"026_"},{"$f":"_xlfn.TEXTJOIN(\"; \",TRUE,IF(L_Map[MÃ TM]=L_TM[[#This Row],[MÃ]],L_Map[CHỈ TIÊU BÁO CÁO],\"\"))","v":"Chi phí quản lý doanh nghiệp"}]
[null,null,null,null,null,"351_",{"$f":"_xlfn.XLOOKUP(L_TM[[#This Row],[MÃ]],'~cttm'!C:C,'~cttm'!D:D)","v":"Thu nhập khác"},"KQKD","N5",1,null,null,{"$f":"COUNTIFS(L_Map[MÃ TM],L_TM[[#This Row],[MÃ]])","v":1},{"$f":"_xlfn.TEXTJOIN(\";\",TRUE,IF(L_Map[MÃ TM]=L_TM[[#This Row],[MÃ]],L_Map[MÃ BC],\"\"))","v":"031_"},{"$f":"_xlfn.TEXTJOIN(\"; \",TRUE,IF(L_Map[MÃ TM]=L_TM[[#This Row],[MÃ]],L_Map[CHỈ TIÊU BÁO CÁO],\"\"))","v":"Thu nhập khác"}]
[null,null,null,null,null,"352_",{"$f":"_xlfn.XLOOKUP(L_TM[[#This Row],[MÃ]],'~cttm'!C:C,'~cttm'!D:D)","v":"Chi phí khác"},"KQKD","N5",1,null,null,{"$f":"COUNTIFS(L_Map[MÃ TM],L_TM[[#This Row],[MÃ]])","v":1},{"$f":"_xlfn.TEXTJOIN(\";\",TRUE,IF(L_Map[MÃ TM]=L_TM[[#This Row],[MÃ]],L_Map[MÃ BC],\"\"))","v":"032_"},{"$f":"_xlfn.TEXTJOIN(\"; \",TRUE,IF(L_Map[MÃ TM]=L_TM[[#This Row],[MÃ]],L_Map[CHỈ TIÊU BÁO CÁO],\"\"))","v":"Chi phí khác"}]
[null,null,null,null,null,"361_",{"$f":"_xlfn.XLOOKUP(L_TM[[#This Row],[MÃ]],'~cttm'!C:C,'~cttm'!D:D)","v":"Chi phí thuế TNDN hiện hành"},"KQKD","N5",0,null,null,{"$f":"COUNTIFS(L_Map[MÃ TM],L_TM[[#This Row],[MÃ]])","v":1},{"$f":"_xlfn.TEXTJOIN(\";\",TRUE,IF(L_Map[MÃ TM]=L_TM[[#This Row],[MÃ]],L_Map[MÃ BC],\"\"))","v":"051_"},{"$f":"_xlfn.TEXTJOIN(\"; \",TRUE,IF(L_Map[MÃ TM]=L_TM[[#This Row],[MÃ]],L_Map[CHỈ TIÊU BÁO CÁO],\"\"))","v":"Chi phí thuế TNDN hiện hành"}]
[null,null,null,null,null,"362_",{"$f":"_xlfn.XLOOKUP(L_TM[[#This Row],[MÃ]],'~cttm'!C:C,'~cttm'!D:D)","v":"Chi phí thuế TNDN hoãn lại"},"KQKD","N5",0,null,null,{"$f":"COUNTIFS(L_Map[MÃ TM],L_TM[[#This Row],[MÃ]])","v":1},{"$f":"_xlfn.TEXTJOIN(\";\",TRUE,IF(L_Map[MÃ TM]=L_TM[[#This Row],[MÃ]],L_Map[MÃ BC],\"\"))","v":"052_"},{"$f":"_xlfn.TEXTJOIN(\"; \",TRUE,IF(L_Map[MÃ TM]=L_TM[[#This Row],[MÃ]],L_Map[CHỈ TIÊU BÁO CÁO],\"\"))","v":"Chi phí thuế TNDN hoãn lại"}]
[null,null,null,null,null,"370_",{"$f":"_xlfn.XLOOKUP(L_TM[[#This Row],[MÃ]],'~cttm'!C:C,'~cttm'!D:D)","v":"Chi phí SXKD theo yếu tố"},"KQKD","N5",0,null,null,{"$f":"COUNTIFS(L_Map[MÃ TM],L_TM[[#This Row],[MÃ]])","v":3},{"$f":"_xlfn.TEXTJOIN(\";\",TRUE,IF(L_Map[MÃ TM]=L_TM[[#This Row],[MÃ]],L_Map[MÃ BC],\"\"))","v":"011_;025_;026_"},{"$f":"_xlfn.TEXTJOIN(\"; \",TRUE,IF(L_Map[MÃ TM]=L_TM[[#This Row],[MÃ]],L_Map[CHỈ TIÊU BÁO CÁO],\"\"))","v":"Giá vốn hàng bán; Chi phí bán hàng; Chi phí quản lý doanh nghiệp"}]
[null,null,null,null,null,"381_",{"$f":"_xlfn.XLOOKUP(L_TM[[#This Row],[MÃ]],'~cttm'!C:C,'~cttm'!D:D)","v":"Doanh thu bộ phận"},"Bộ phận","BP",0,null,null,{"$f":"COUNTIFS(L_Map[MÃ TM],L_TM[[#This Row],[MÃ]])","v":0},{"$f":"_xlfn.TEXTJOIN(\";\",TRUE,IF(L_Map[MÃ TM]=L_TM[[#This Row],[MÃ]],L_Map[MÃ BC],\"\"))","v":""},{"$f":"_xlfn.TEXTJOIN(\"; \",TRUE,IF(L_Map[MÃ TM]=L_TM[[#This Row],[MÃ]],L_Map[CHỈ TIÊU BÁO CÁO],\"\"))","v":""}]
[null,null,null,null,null,"382_",{"$f":"_xlfn.XLOOKUP(L_TM[[#This Row],[MÃ]],'~cttm'!C:C,'~cttm'!D:D)","v":"LN sau thuế bộ phận"},"Bộ phận","BP",0,null,null,{"$f":"COUNTIFS(L_Map[MÃ TM],L_TM[[#This Row],[MÃ]])","v":0},{"$f":"_xlfn.TEXTJOIN(\";\",TRUE,IF(L_Map[MÃ TM]=L_TM[[#This Row],[MÃ]],L_Map[MÃ BC],\"\"))","v":""},{"$f":"_xlfn.TEXTJOIN(\"; \",TRUE,IF(L_Map[MÃ TM]=L_TM[[#This Row],[MÃ]],L_Map[CHỈ TIÊU BÁO CÁO],\"\"))","v":""}]
[null,null,null,null,null,"383_",{"$f":"_xlfn.XLOOKUP(L_TM[[#This Row],[MÃ]],'~cttm'!C:C,'~cttm'!D:D)","v":"Tài sản bộ phận"},"Bộ phận","BP",0,null,null,{"$f":"COUNTIFS(L_Map[MÃ TM],L_TM[[#This Row],[MÃ]])","v":0},{"$f":"_xlfn.TEXTJOIN(\";\",TRUE,IF(L_Map[MÃ TM]=L_TM[[#This Row],[MÃ]],L_Map[MÃ BC],\"\"))","v":""},{"$f":"_xlfn.TEXTJOIN(\"; \",TRUE,IF(L_Map[MÃ TM]=L_TM[[#This Row],[MÃ]],L_Map[CHỈ TIÊU BÁO CÁO],\"\"))","v":""}]
[null,null,null,null,null,"384_",{"$f":"_xlfn.XLOOKUP(L_TM[[#This Row],[MÃ]],'~cttm'!C:C,'~cttm'!D:D)","v":"Nợ phải trả bộ phận"},"Bộ phận","BP",0,null,null,{"$f":"COUNTIFS(L_Map[MÃ TM],L_TM[[#This Row],[MÃ]])","v":0},{"$f":"_xlfn.TEXTJOIN(\";\",TRUE,IF(L_Map[MÃ TM]=L_TM[[#This Row],[MÃ]],L_Map[MÃ BC],\"\"))","v":""},{"$f":"_xlfn.TEXTJOIN(\"; \",TRUE,IF(L_Map[MÃ TM]=L_TM[[#This Row],[MÃ]],L_Map[CHỈ TIÊU BÁO CÁO],\"\"))","v":""}]
[null,null,null,null,null,"404_",{"$f":"_xlfn.XLOOKUP(L_TM[[#This Row],[MÃ]],'~cttm'!C:C,'~cttm'!D:D)","v":"CP lãi vay bị khống chế chuyển năm sau"},"Khác","N¹¹",0,null,null,{"$f":"COUNTIFS(L_Map[MÃ TM],L_TM[[#This Row],[MÃ]])","v":0},{"$f":"_xlfn.TEXTJOIN(\";\",TRUE,IF(L_Map[MÃ TM]=L_TM[[#This Row],[MÃ]],L_Map[MÃ BC],\"\"))","v":""},{"$f":"_xlfn.TEXTJOIN(\"; \",TRUE,IF(L_Map[MÃ TM]=L_TM[[#This Row],[MÃ]],L_Map[CHỈ TIÊU BÁO CÁO],\"\"))","v":""}]
[null,null,null,null,null,"407_",{"$f":"_xlfn.XLOOKUP(L_TM[[#This Row],[MÃ]],'~cttm'!C:C,'~cttm'!D:D)","v":"Cam kết đi thuê"},"Khác","N¹¹",0,null,null,{"$f":"COUNTIFS(L_Map[MÃ TM],L_TM[[#This Row],[MÃ]])","v":0},{"$f":"_xlfn.TEXTJOIN(\";\",TRUE,IF(L_Map[MÃ TM]=L_TM[[#This Row],[MÃ]],L_Map[MÃ BC],\"\"))","v":""},{"$f":"_xlfn.TEXTJOIN(\"; \",TRUE,IF(L_Map[MÃ TM]=L_TM[[#This Row],[MÃ]],L_Map[CHỈ TIÊU BÁO CÁO],\"\"))","v":""}]
[null,null,null,null,null,"409_",{"$f":"_xlfn.XLOOKUP(L_TM[[#This Row],[MÃ]],'~cttm'!C:C,'~cttm'!D:D)","v":"Chuyển lỗ"},"Khác","N¹¹",0,null,null,{"$f":"COUNTIFS(L_Map[MÃ TM],L_TM[[#This Row],[MÃ]])","v":0},{"$f":"_xlfn.TEXTJOIN(\";\",TRUE,IF(L_Map[MÃ TM]=L_TM[[#This Row],[MÃ]],L_Map[MÃ BC],\"\"))","v":""},{"$f":"_xlfn.TEXTJOIN(\"; \",TRUE,IF(L_Map[MÃ TM]=L_TM[[#This Row],[MÃ]],L_Map[CHỈ TIÊU BÁO CÁO],\"\"))","v":""}]
[null,null,null,null,null,"425_",{"$f":"_xlfn.XLOOKUP(L_TM[[#This Row],[MÃ]],'~cttm'!C:C,'~cttm'!D:D)","v":"Số người lao động"},"Khác","N¹¹",0,null,null,{"$f":"COUNTIFS(L_Map[MÃ TM],L_TM[[#This Row],[MÃ]])","v":0},{"$f":"_xlfn.TEXTJOIN(\";\",TRUE,IF(L_Map[MÃ TM]=L_TM[[#This Row],[MÃ]],L_Map[MÃ BC],\"\"))","v":""},{"$f":"_xlfn.TEXTJOIN(\"; \",TRUE,IF(L_Map[MÃ TM]=L_TM[[#This Row],[MÃ]],L_Map[CHỈ TIÊU BÁO CÁO],\"\"))","v":""}]
[null,null,null,null,null,"441_",{"$f":"_xlfn.XLOOKUP(L_TM[[#This Row],[MÃ]],'~cttm'!C:C,'~cttm'!D:D)","v":"Cam kết cho thuê"},"Khác","N¹¹",0,null,null,{"$f":"COUNTIFS(L_Map[MÃ TM],L_TM[[#This Row],[MÃ]])","v":0},{"$f":"_xlfn.TEXTJOIN(\";\",TRUE,IF(L_Map[MÃ TM]=L_TM[[#This Row],[MÃ]],L_Map[MÃ BC],\"\"))","v":""},{"$f":"_xlfn.TEXTJOIN(\"; \",TRUE,IF(L_Map[MÃ TM]=L_TM[[#This Row],[MÃ]],L_Map[CHỈ TIÊU BÁO CÁO],\"\"))","v":""}]
[null,null,null,null,null,"029_",{"$f":"_xlfn.XLOOKUP(L_TM[[#This Row],[MÃ]],'~cttm'!C:C,'~cttm'!D:D)","v":"Dự phòng đầu tư nắm giữ đến ngày đáo hạn ngắn hạn *"},"TS ngắn","N1",1,null,null,{"$f":"COUNTIFS(L_Map[MÃ TM],L_TM[[#This Row],[MÃ]])","v":0}]
[null,null,null,null,null,"059_",{"$f":"_xlfn.XLOOKUP(L_TM[[#This Row],[MÃ]],'~cttm'!C:C,'~cttm'!D:D)","v":"Dự phòng đầu tư nắm giữ đến ngày đáo hạn dài hạn *"},"TS dài","N1",1,null,null,{"$f":"COUNTIFS(L_Map[MÃ TM],L_TM[[#This Row],[MÃ]])","v":0}]
[null,null,null,null,null,null,{"$f":"_xlfn.XLOOKUP(L_TM[[#This Row],[MÃ]],'~cttm'!C:C,'~cttm'!D:D)","v":0},null,null,null,null,null,{"$f":"COUNTIFS(L_Map[MÃ TM],L_TM[[#This Row],[MÃ]])","v":0}]
[null,null,null,null,null,null,{"$f":"_xlfn.XLOOKUP(L_TM[[#This Row],[MÃ]],'~cttm'!C:C,'~cttm'!D:D)","v":0},null,null,null,null,null,{"$f":"COUNTIFS(L_Map[MÃ TM],L_TM[[#This Row],[MÃ]])","v":0}]

{"sheet":"Map mã","index":6,"n_rows":131,"n_cols":9,"rows_kept":131,"cut":false,"hidden":false,"merged":[[0,0,3,0]]}
[{"$f":"'✅'!A1","v":"AnPhat Holding"},null,{"$f":"Range2(L_Map[MÃ BC],L_Map[MÃ TM])","v":"C6:C131,E6:E131"}]
[]
[null,null,null,null,null,null,null,"MAP MÃ CHỈ TIÊU BCTC VÀ THUYẾT MINH"]
[null,null,"⏬",null,"⏬"]
[{"$f":"'Công ty'!A5","v":"BCTC hợp nhất"},null,"MÃ BC","¹","MÃ TM","²","BCR","CHỈ TIÊU BÁO CÁO","CHỈ TIÊU THUYẾT MINH"]
[null,null,"001_",{"$f":"IF(L_Map[[#This Row],[MÃ BC]]<>\"\",COUNTIFS(L_Map[MÃ BC],L_Map[[#This Row],[MÃ BC]]),0)","v":2},"311_",{"$f":"IF(L_Map[[#This Row],[MÃ TM]]<>\"\",COUNTIFS(L_Map[MÃ TM],L_Map[[#This Row],[MÃ TM]]),0)","v":1},{"$f":"IF(_xlfn.XLOOKUP(L_Map[[#This Row],[MÃ TM]],L_TM[MÃ],L_TM[BCR],0),1,0)","v":0},{"$f":"_xlfn.XLOOKUP(L_Map[[#This Row],[MÃ BC]],L_FS[MÃ],L_FS[CHỈ TIÊU],\"-\")","v":"Doanh thu bán hàng & cung cấp dịch vụ"},{"$f":"_xlfn.XLOOKUP(L_Map[[#This Row],[MÃ TM]],L_TM[MÃ],L_TM[CHỈ TIÊU],\"-\")","v":"Doanh thu bán hàng"}]
["Tập đoàn",null,"001_",{"$f":"IF(L_Map[[#This Row],[MÃ BC]]<>\"\",COUNTIFS(L_Map[MÃ BC],L_Map[[#This Row],[MÃ BC]]),0)","v":2},"311s",{"$f":"IF(L_Map[[#This Row],[MÃ TM]]<>\"\",COUNTIFS(L_Map[MÃ TM],L_Map[[#This Row],[MÃ TM]]),0)","v":1},{"$f":"IF(_xlfn.XLOOKUP(L_Map[[#This Row],[MÃ TM]],L_TM[MÃ],L_TM[BCR],0),1,0)","v":1},{"$f":"_xlfn.XLOOKUP(L_Map[[#This Row],[MÃ BC]],L_FS[MÃ],L_FS[CHỈ TIÊU],\"-\")","v":"Doanh thu bán hàng & cung cấp dịch vụ"},{"$f":"_xlfn.XLOOKUP(L_Map[[#This Row],[MÃ TM]],L_TM[MÃ],L_TM[CHỈ TIÊU],\"-\")","v":"Doanh thu bán hàng"}]
[null,null,"002_",{"$f":"IF(L_Map[[#This Row],[MÃ BC]]<>\"\",COUNTIFS(L_Map[MÃ BC],L_Map[[#This Row],[MÃ BC]]),0)","v":1},"312_",{"$f":"IF(L_Map[[#This Row],[MÃ TM]]<>\"\",COUNTIFS(L_Map[MÃ TM],L_Map[[#This Row],[MÃ TM]]),0)","v":1},{"$f":"IF(_xlfn.XLOOKUP(L_Map[[#This Row],[MÃ TM]],L_TM[MÃ],L_TM[BCR],0),1,0)","v":0},{"$f":"_xlfn.XLOOKUP(L_Map[[#This Row],[MÃ BC]],L_FS[MÃ],L_FS[CHỈ TIÊU],\"-\")","v":"Các khoản giảm trừ"},{"$f":"_xlfn.XLOOKUP(L_Map[[#This Row],[MÃ TM]],L_TM[MÃ],L_TM[CHỈ TIÊU],\"-\")","v":"Giảm trừ doanh thu"}]
[null,null,"011_",{"$f":"IF(L_Map[[#This Row],[MÃ BC]]<>\"\",COUNTIFS(L_Map[MÃ BC],L_Map[[#This Row],[MÃ BC]]),0)","v":3},"320_",{"$f":"IF(L_Map[[#This Row],[MÃ TM]]<>\"\",COUNTIFS(L_Map[MÃ TM],L_Map[[#This Row],[MÃ TM]]),0)","v":1},{"$f":"IF(_xlfn.XLOOKUP(L_Map[[#This Row],[MÃ TM]],L_TM[MÃ],L_TM[BCR],0),1,0)","v":0},{"$f":"_xlfn.XLOOKUP(L_Map[[#This Row],[MÃ BC]],L_FS[MÃ],L_FS[CHỈ TIÊU],\"-\")","v":"Giá vốn hàng bán"},{"$f":"_xlfn.XLOOKUP(L_Map[[#This Row],[MÃ TM]],L_TM[MÃ],L_TM[CHỈ TIÊU],\"-\")","v":"Giá vốn hàng bán"}]
["Thông tin công ty",null,"011_",{"$f":"IF(L_Map[[#This Row],[MÃ BC]]<>\"\",COUNTIFS(L_Map[MÃ BC],L_Map[[#This Row],[MÃ BC]]),0)","v":3},"320s",{"$f":"IF(L_Map[[#This Row],[MÃ TM]]<>\"\",COUNTIFS(L_Map[MÃ TM],L_Map[[#This Row],[MÃ TM]]),0)","v":1},{"$f":"IF(_xlfn.XLOOKUP(L_Map[[#This Row],[MÃ TM]],L_TM[MÃ],L_TM[BCR],0),1,0)","v":1},{"$f":"_xlfn.XLOOKUP(L_Map[[#This Row],[MÃ BC]],L_FS[MÃ],L_FS[CHỈ TIÊU],\"-\")","v":"Giá vốn hàng bán"},{"$f":"_xlfn.XLOOKUP(L_Map[[#This Row],[MÃ TM]],L_TM[MÃ],L_TM[CHỈ TIÊU],\"-\")","v":"Giá vốn hàng bán"}]
[null,null,"011_",{"$f":"IF(L_Map[[#This Row],[MÃ BC]]<>\"\",COUNTIFS(L_Map[MÃ BC],L_Map[[#This Row],[MÃ BC]]),0)","v":3},"370_",{"$f":"IF(L_Map[[#This Row],[MÃ TM]]<>\"\",COUNTIFS(L_Map[MÃ TM],L_Map[[#This Row],[MÃ TM]]),0)","v":3},{"$f":"IF(_xlfn.XLOOKUP(L_Map[[#This Row],[MÃ TM]],L_TM[MÃ],L_TM[BCR],0),1,0)","v":0},{"$f":"_xlfn.XLOOKUP(L_Map[[#This Row],[MÃ BC]],L_FS[MÃ],L_FS[CHỈ TIÊU],\"-\")","v":"Giá vốn hàng bán"},{"$f":"_xlfn.XLOOKUP(L_Map[[#This Row],[MÃ TM]],L_TM[MÃ],L_TM[CHỈ TIÊU],\"-\")","v":"Chi phí SXKD theo yếu tố"}]
["Tài khoản kế toán",null,"022_",{"$f":"IF(L_Map[[#This Row],[MÃ BC]]<>\"\",COUNTIFS(L_Map[MÃ BC],L_Map[[#This Row],[MÃ BC]]),0)","v":1},"331_",{"$f":"IF(L_Map[[#This Row],[MÃ TM]]<>\"\",COUNTIFS(L_Map[MÃ TM],L_Map[[#This Row],[MÃ TM]]),0)","v":1},{"$f":"IF(_xlfn.XLOOKUP(L_Map[[#This Row],[MÃ TM]],L_TM[MÃ],L_TM[BCR],0),1,0)","v":0},{"$f":"_xlfn.XLOOKUP(L_Map[[#This Row],[MÃ BC]],L_FS[MÃ],L_FS[CHỈ TIÊU],\"-\")","v":"Doanh thu hoạt động tài chính"},{"$f":"_xlfn.XLOOKUP(L_Map[[#This Row],[MÃ TM]],L_TM[MÃ],L_TM[CHỈ TIÊU],\"-\")","v":"Doanh thu tài chính"}]
[null,null,"023_",{"$f":"IF(L_Map[[#This Row],[MÃ BC]]<>\"\",COUNTIFS(L_Map[MÃ BC],L_Map[[#This Row],[MÃ BC]]),0)","v":1},"332_",{"$f":"IF(L_Map[[#This Row],[MÃ TM]]<>\"\",COUNTIFS(L_Map[MÃ TM],L_Map[[#This Row],[MÃ TM]]),0)","v":1},{"$f":"IF(_xlfn.XLOOKUP(L_Map[[#This Row],[MÃ TM]],L_TM[MÃ],L_TM[BCR],0),1,0)","v":0},{"$f":"_xlfn.XLOOKUP(L_Map[[#This Row],[MÃ BC]],L_FS[MÃ],L_FS[CHỈ TIÊU],\"-\")","v":"Chi phí tài chính"},{"$f":"_xlfn.XLOOKUP(L_Map[[#This Row],[MÃ TM]],L_TM[MÃ],L_TM[CHỈ TIÊU],\"-\")","v":"Chi phí tài chính"}]
["Chỉ tiêu báo cáo",null,"024_",{"$f":"IF(L_Map[[#This Row],[MÃ BC]]<>\"\",COUNTIFS(L_Map[MÃ BC],L_Map[[#This Row],[MÃ BC]]),0)","v":1},"",{"$f":"IF(L_Map[[#This Row],[MÃ TM]]<>\"\",COUNTIFS(L_Map[MÃ TM],L_Map[[#This Row],[MÃ TM]]),0)","v":0},{"$f":"IF(_xlfn.XLOOKUP(L_Map[[#This Row],[MÃ TM]],L_TM[MÃ],L_TM[BCR],0),1,0)","v":0},{"$f":"_xlfn.XLOOKUP(L_Map[[#This Row],[MÃ BC]],L_FS[MÃ],L_FS[CHỈ TIÊU],\"-\")","v":"- Trong đó: chi phí đi vay"},{"$f":"_xlfn.XLOOKUP(L_Map[[#This Row],[MÃ TM]],L_TM[MÃ],L_TM[CHỈ TIÊU],\"-\")","v":"-"}]
[null,null,"025_",{"$f":"IF(L_Map[[#This Row],[MÃ BC]]<>\"\",COUNTIFS(L_Map[MÃ BC],L_Map[[#This Row],[MÃ BC]]),0)","v":2},"341_",{"$f":"IF(L_Map[[#This Row],[MÃ TM]]<>\"\",COUNTIFS(L_Map[MÃ TM],L_Map[[#This Row],[MÃ TM]]),0)","v":1},{"$f":"IF(_xlfn.XLOOKUP(L_Map[[#This Row],[MÃ TM]],L_TM[MÃ],L_TM[BCR],0),1,0)","v":0},{"$f":"_xlfn.XLOOKUP(L_Map[[#This Row],[MÃ BC]],L_FS[MÃ],L_FS[CHỈ TIÊU],\"-\")","v":"Chi phí bán hàng"},{"$f":"_xlfn.XLOOKUP(L_Map[[#This Row],[MÃ TM]],L_TM[MÃ],L_TM[CHỈ TIÊU],\"-\")","v":"Chi phí bán hàng"}]
["Chỉ tiêu thuyết minh",null,"025_",{"$f":"IF(L_Map[[#This Row],[MÃ BC]]<>\"\",COUNTIFS(L_Map[MÃ BC],L_Map[[#This Row],[MÃ BC]]),0)","v":2},"370_",{"$f":"IF(L_Map[[#This Row],[MÃ TM]]<>\"\",COUNTIFS(L_Map[MÃ TM],L_Map[[#This Row],[MÃ TM]]),0)","v":3},{"$f":"IF(_xlfn.XLOOKUP(L_Map[[#This Row],[MÃ TM]],L_TM[MÃ],L_TM[BCR],0),1,0)","v":0},{"$f":"_xlfn.XLOOKUP(L_Map[[#This Row],[MÃ BC]],L_FS[MÃ],L_FS[CHỈ TIÊU],\"-\")","v":"Chi phí bán hàng"},{"$f":"_xlfn.XLOOKUP(L_Map[[#This Row],[MÃ TM]],L_TM[MÃ],L_TM[CHỈ TIÊU],\"-\")","v":"Chi phí SXKD theo yếu tố"}]
[null,null,"026_",{"$f":"IF(L_Map[[#This Row],[MÃ BC]]<>\"\",COUNTIFS(L_Map[MÃ BC],L_Map[[#This Row],[MÃ BC]]),0)","v":2},"342_",{"$f":"IF(L_Map[[#This Row],[MÃ TM]]<>\"\",COUNTIFS(L_Map[MÃ TM],L_Map[[#This Row],[MÃ TM]]),0)","v":1},{"$f":"IF(_xlfn.XLOOKUP(L_Map[[#This Row],[MÃ TM]],L_TM[MÃ],L_TM[BCR],0),1,0)","v":0},{"$f":"_xlfn.XLOOKUP(L_Map[[#This Row],[MÃ BC]],L_FS[MÃ],L_FS[CHỈ TIÊU],\"-\")","v":"Chi phí quản lý doanh nghiệp"},{"$f":"_xlfn.XLOOKUP(L_Map[[#This Row],[MÃ TM]],L_TM[MÃ],L_TM[CHỈ TIÊU],\"-\")","v":"Chi phí QLDN"}]
["Map chỉ tiêu BC-TM",null,"026_",{"$f":"IF(L_Map[[#This Row],[MÃ BC]]<>\"\",COUNTIFS(L_Map[MÃ BC],L_Map[[#This Row],[MÃ BC]]),0)","v":2},"370_",{"$f":"IF(L_Map[[#This Row],[MÃ TM]]<>\"\",COUNTIFS(L_Map[MÃ TM],L_Map[[#This Row],[MÃ TM]]),0)","v":3},{"$f":"IF(_xlfn.XLOOKUP(L_Map[[#This Row],[MÃ TM]],L_TM[MÃ],L_TM[BCR],0),1,0)","v":0},{"$f":"_xlfn.XLOOKUP(L_Map[[#This Row],[MÃ BC]],L_FS[MÃ],L_FS[CHỈ TIÊU],\"-\")","v":"Chi phí quản lý doanh nghiệp"},{"$f":"_xlfn.XLOOKUP(L_Map[[#This Row],[MÃ TM]],L_TM[MÃ],L_TM[CHỈ TIÊU],\"-\")","v":"Chi phí SXKD theo yếu tố"}]
[null,null,"031_",{"$f":"IF(L_Map[[#This Row],[MÃ BC]]<>\"\",COUNTIFS(L_Map[MÃ BC],L_Map[[#This Row],[MÃ BC]]),0)","v":1},"351_",{"$f":"IF(L_Map[[#This Row],[MÃ TM]]<>\"\",COUNTIFS(L_Map[MÃ TM],L_Map[[#This Row],[MÃ TM]]),0)","v":1},{"$f":"IF(_xlfn.XLOOKUP(L_Map[[#This Row],[MÃ TM]],L_TM[MÃ],L_TM[BCR],0),1,0)","v":0},{"$f":"_xlfn.XLOOKUP(L_Map[[#This Row],[MÃ BC]],L_FS[MÃ],L_FS[CHỈ TIÊU],\"-\")","v":"Thu nhập khác"},{"$f":"_xlfn.XLOOKUP(L_Map[[#This Row],[MÃ TM]],L_TM[MÃ],L_TM[CHỈ TIÊU],\"-\")","v":"Thu nhập khác"}]
["Chỉ tiêu dòng tiền",null,"032_",{"$f":"IF(L_Map[[#This Row],[MÃ BC]]<>\"\",COUNTIFS(L_Map[MÃ BC],L_Map[[#This Row],[MÃ BC]]),0)","v":1},"352_",{"$f":"IF(L_Map[[#This Row],[MÃ TM]]<>\"\",COUNTIFS(L_Map[MÃ TM],L_Map[[#This Row],[MÃ TM]]),0)","v":1},{"$f":"IF(_xlfn.XLOOKUP(L_Map[[#This Row],[MÃ TM]],L_TM[MÃ],L_TM[BCR],0),1,0)","v":0},{"$f":"_xlfn.XLOOKUP(L_Map[[#This Row],[MÃ BC]],L_FS[MÃ],L_FS[CHỈ TIÊU],\"-\")","v":"Chi phí khác"},{"$f":"_xlfn.XLOOKUP(L_Map[[#This Row],[MÃ TM]],L_TM[MÃ],L_TM[CHỈ TIÊU],\"-\")","v":"Chi phí khác"}]
[null,null,"051_",{"$f":"IF(L_Map[[#This Row],[MÃ BC]]<>\"\",COUNTIFS(L_Map[MÃ BC],L_Map[[#This Row],[MÃ BC]]),0)","v":1},"361_",{"$f":"IF(L_Map[[#This Row],[MÃ TM]]<>\"\",COUNTIFS(L_Map[MÃ TM],L_Map[[#This Row],[MÃ TM]]),0)","v":1},{"$f":"IF(_xlfn.XLOOKUP(L_Map[[#This Row],[MÃ TM]],L_TM[MÃ],L_TM[BCR],0),1,0)","v":0},{"$f":"_xlfn.XLOOKUP(L_Map[[#This Row],[MÃ BC]],L_FS[MÃ],L_FS[CHỈ TIÊU],\"-\")","v":"Chi phí thuế TNDN hiện hành"},{"$f":"_xlfn.XLOOKUP(L_Map[[#This Row],[MÃ TM]],L_TM[MÃ],L_TM[CHỈ TIÊU],\"-\")","v":"Chi phí thuế TNDN hiện hành"}]
["Phân loại vốn vay",null,"052_",{"$f":"IF(L_Map[[#This Row],[MÃ BC]]<>\"\",COUNTIFS(L_Map[MÃ BC],L_Map[[#This Row],[MÃ BC]]),0)","v":1},"362_",{"$f":"IF(L_Map[[#This Row],[MÃ TM]]<>\"\",COUNTIFS(L_Map[MÃ TM],L_Map[[#This Row],[MÃ TM]]),0)","v":1},{"$f":"IF(_xlfn.XLOOKUP(L_Map[[#This Row],[MÃ TM]],L_TM[MÃ],L_TM[BCR],0),1,0)","v":0},{"$f":"_xlfn.XLOOKUP(L_Map[[#This Row],[MÃ BC]],L_FS[MÃ],L_FS[CHỈ TIÊU],\"-\")","v":"Chi phí thuế TNDN hoãn lại"},{"$f":"_xlfn.XLOOKUP(L_Map[[#This Row],[MÃ TM]],L_TM[MÃ],L_TM[CHỈ TIÊU],\"-\")","v":"Chi phí thuế TNDN hoãn lại"}]
[null,null,"061_",{"$f":"IF(L_Map[[#This Row],[MÃ BC]]<>\"\",COUNTIFS(L_Map[MÃ BC],L_Map[[#This Row],[MÃ BC]]),0)","v":1},"",{"$f":"IF(L_Map[[#This Row],[MÃ TM]]<>\"\",COUNTIFS(L_Map[MÃ TM],L_Map[[#This Row],[MÃ TM]]),0)","v":0},{"$f":"IF(_xlfn.XLOOKUP(L_Map[[#This Row],[MÃ TM]],L_TM[MÃ],L_TM[BCR],0),1,0)","v":0},{"$f":"_xlfn.XLOOKUP(L_Map[[#This Row],[MÃ BC]],L_FS[MÃ],L_FS[CHỈ TIÊU],\"-\")","v":"Lợi nhuận sau thuế của CĐ cty mẹ"},{"$f":"_xlfn.XLOOKUP(L_Map[[#This Row],[MÃ TM]],L_TM[MÃ],L_TM[CHỈ TIÊU],\"-\")","v":"-"}]
["Danh mục khác",null,"062_",{"$f":"IF(L_Map[[#This Row],[MÃ BC]]<>\"\",COUNTIFS(L_Map[MÃ BC],L_Map[[#This Row],[MÃ BC]]),0)","v":1},"",{"$f":"IF(L_Map[[#This Row],[MÃ TM]]<>\"\",COUNTIFS(L_Map[MÃ TM],L_Map[[#This Row],[MÃ TM]]),0)","v":0},{"$f":"IF(_xlfn.XLOOKUP(L_Map[[#This Row],[MÃ TM]],L_TM[MÃ],L_TM[BCR],0),1,0)","v":0},{"$f":"_xlfn.XLOOKUP(L_Map[[#This Row],[MÃ BC]],L_FS[MÃ],L_FS[CHỈ TIÊU],\"-\")","v":"Lợi nhuận sau thuế của CĐ không ks"},{"$f":"_xlfn.XLOOKUP(L_Map[[#This Row],[MÃ TM]],L_TM[MÃ],L_TM[CHỈ TIÊU],\"-\")","v":"-"}]
[null,null,"111_",{"$f":"IF(L_Map[[#This Row],[MÃ BC]]<>\"\",COUNTIFS(L_Map[MÃ BC],L_Map[[#This Row],[MÃ BC]]),0)","v":1},"010_",{"$f":"IF(L_Map[[#This Row],[MÃ TM]]<>\"\",COUNTIFS(L_Map[MÃ TM],L_Map[[#This Row],[MÃ TM]]),0)","v":2},{"$f":"IF(_xlfn.XLOOKUP(L_Map[[#This Row],[MÃ TM]],L_TM[MÃ],L_TM[BCR],0),1,0)","v":0},{"$f":"_xlfn.XLOOKUP(L_Map[[#This Row],[MÃ BC]],L_FS[MÃ],L_FS[CHỈ TIÊU],\"-\")","v":"Tiền"},{"$f":"_xlfn.XLOOKUP(L_Map[[#This Row],[MÃ TM]],L_TM[MÃ],L_TM[CHỈ TIÊU],\"-\")","v":"Tiền và tương đương tiền"}]
["Tùy chọn",null,"112_",{"$f":"IF(L_Map[[#This Row],[MÃ BC]]<>\"\",COUNTIFS(L_Map[MÃ BC],L_Map[[#This Row],[MÃ BC]]),0)","v":1},"010_",{"$f":"IF(L_Map[[#This Row],[MÃ TM]]<>\"\",COUNTIFS(L_Map[MÃ TM],L_Map[[#This Row],[MÃ TM]]),0)","v":2},{"$f":"IF(_xlfn.XLOOKUP(L_Map[[#This Row],[MÃ TM]],L_TM[MÃ],L_TM[BCR],0),1,0)","v":0},{"$f":"_xlfn.XLOOKUP(L_Map[[#This Row],[MÃ BC]],L_FS[MÃ],L_FS[CHỈ TIÊU],\"-\")","v":"Các khoản tương đương tiền"},{"$f":"_xlfn.XLOOKUP(L_Map[[#This Row],[MÃ TM]],L_TM[MÃ],L_TM[CHỈ TIÊU],\"-\")","v":"Tiền và tương đương tiền"}]
[null,null,"121_",{"$f":"IF(L_Map[[#This Row],[MÃ BC]]<>\"\",COUNTIFS(L_Map[MÃ BC],L_Map[[#This Row],[MÃ BC]]),0)","v":1},"026_",{"$f":"IF(L_Map[[#This Row],[MÃ TM]]<>\"\",COUNTIFS(L_Map[MÃ TM],L_Map[[#This Row],[MÃ TM]]),0)","v":1},{"$f":"IF(_xlfn.XLOOKUP(L_Map[[#This Row],[MÃ TM]],L_TM[MÃ],L_TM[BCR],0),1,0)","v":0},{"$f":"_xlfn.XLOOKUP(L_Map[[#This Row],[MÃ BC]],L_FS[MÃ],L_FS[CHỈ TIÊU],\"-\")","v":"Chứng khoán kinh doanh"},{"$f":"_xlfn.XLOOKUP(L_Map[[#This Row],[MÃ TM]],L_TM[MÃ],L_TM[CHỈ TIÊU],\"-\")","v":"Chứng khoán kinh doanh"}]
[null,null,"122_",{"$f":"IF(L_Map[[#This Row],[MÃ BC]]<>\"\",COUNTIFS(L_Map[MÃ BC],L_Map[[#This Row],[MÃ BC]]),0)","v":1},"027_",{"$f":"IF(L_Map[[#This Row],[MÃ TM]]<>\"\",COUNTIFS(L_Map[MÃ TM],L_Map[[#This Row],[MÃ TM]]),0)","v":1},{"$f":"IF(_xlfn.XLOOKUP(L_Map[[#This Row],[MÃ TM]],L_TM[MÃ],L_TM[BCR],0),1,0)","v":0},{"$f":"_xlfn.XLOOKUP(L_Map[[#This Row],[MÃ BC]],L_FS[MÃ],L_FS[CHỈ TIÊU],\"-\")","v":"Dự phòng giảm giá chứng khoán kinh doanh *"},{"$f":"_xlfn.XLOOKUP(L_Map[[#This Row],[MÃ TM]],L_TM[MÃ],L_TM[CHỈ TIÊU],\"-\")","v":"Dự phòng giảm giá chứng khoán kinh doanh *"}]
[null,null,"123_",{"$f":"IF(L_Map[[#This Row],[MÃ BC]]<>\"\",COUNTIFS(L_Map[MÃ BC],L_Map[[#This Row],[MÃ BC]]),0)","v":1},"021_",{"$f":"IF(L_Map[[#This Row],[MÃ TM]]<>\"\",COUNTIFS(L_Map[MÃ TM],L_Map[[#This Row],[MÃ TM]]),0)","v":1},{"$f":"IF(_xlfn.XLOOKUP(L_Map[[#This Row],[MÃ TM]],L_TM[MÃ],L_TM[BCR],0),1,0)","v":0},{"$f":"_xlfn.XLOOKUP(L_Map[[#This Row],[MÃ BC]],L_FS[MÃ],L_FS[CHỈ TIÊU],\"-\")","v":"Đầu tư nắm giữ đến ngày đáo hạn ngắn hạn"},{"$f":"_xlfn.XLOOKUP(L_Map[[#This Row],[MÃ TM]],L_TM[MÃ],L_TM[CHỈ TIÊU],\"-\")","v":"Đầu tư nắm giữ đến ngày đáo hạn ngắn hạn"}]
[null,null,"131_",{"$f":"IF(L_Map[[#This Row],[MÃ BC]]<>\"\",COUNTIFS(L_Map[MÃ BC],L_Map[[#This Row],[MÃ BC]]),0)","v":2},"031_",{"$f":"IF(L_Map[[#This Row],[MÃ TM]]<>\"\",COUNTIFS(L_Map[MÃ TM],L_Map[[#This Row],[MÃ TM]]),0)","v":1},{"$f":"IF(_xlfn.XLOOKUP(L_Map[[#This Row],[MÃ TM]],L_TM[MÃ],L_TM[BCR],0),1,0)","v":0},{"$f":"_xlfn.XLOOKUP(L_Map[[#This Row],[MÃ BC]],L_FS[MÃ],L_FS[CHỈ TIÊU],\"-\")","v":"Phải thu ngắn hạn của khách hàng"},{"$f":"_xlfn.XLOOKUP(L_Map[[#This Row],[MÃ TM]],L_TM[MÃ],L_TM[CHỈ TIÊU],\"-\")","v":"Phải thu ngắn hạn của khách hàng"}]
[null,null,"131_",{"$f":"IF(L_Map[[#This Row],[MÃ BC]]<>\"\",COUNTIFS(L_Map[MÃ BC],L_Map[[#This Row],[MÃ BC]]),0)","v":2},"031s",{"$f":"IF(L_Map[[#This Row],[MÃ TM]]<>\"\",COUNTIFS(L_Map[MÃ TM],L_Map[[#This Row],[MÃ TM]]),0)","v":1},{"$f":"IF(_xlfn.XLOOKUP(L_Map[[#This Row],[MÃ TM]],L_TM[MÃ],L_TM[BCR],0),1,0)","v":1},{"$f":"_xlfn.XLOOKUP(L_Map[[#This Row],[MÃ BC]],L_FS[MÃ],L_FS[CHỈ TIÊU],\"-\")","v":"Phải thu ngắn hạn của khách hàng"},{"$f":"_xlfn.XLOOKUP(L_Map[[#This Row],[MÃ TM]],L_TM[MÃ],L_TM[CHỈ TIÊU],\"-\")","v":"Phải thu ngắn hạn của khách hàng"}]
[null,null,"132_",{"$f":"IF(L_Map[[#This Row],[MÃ BC]]<>\"\",COUNTIFS(L_Map[MÃ BC],L_Map[[#This Row],[MÃ BC]]),0)","v":2},"033_",{"$f":"IF(L_Map[[#This Row],[MÃ TM]]<>\"\",COUNTIFS(L_Map[MÃ TM],L_Map[[#This Row],[MÃ TM]]),0)","v":1},{"$f":"IF(_xlfn.XLOOKUP(L_Map[[#This Row],[MÃ TM]],L_TM[MÃ],L_TM[BCR],0),1,0)","v":0},{"$f":"_xlfn.XLOOKUP(L_Map[[#This Row],[MÃ BC]],L_FS[MÃ],L_FS[CHỈ TIÊU],\"-\")","v":"Trả trước cho người bán ngắn hạn"},{"$f":"_xlfn.XLOOKUP(L_Map[[#This Row],[MÃ TM]],L_TM[MÃ],L_TM[CHỈ TIÊU],\"-\")","v":"Trả trước cho người bán ngắn hạn"}]
[null,null,"132_",{"$f":"IF(L_Map[[#This Row],[MÃ BC]]<>\"\",COUNTIFS(L_Map[MÃ BC],L_Map[[#This Row],[MÃ BC]]),0)","v":2},"033s",{"$f":"IF(L_Map[[#This Row],[MÃ TM]]<>\"\",COUNTIFS(L_Map[MÃ TM],L_Map[[#This Row],[MÃ TM]]),0)","v":1},{"$f":"IF(_xlfn.XLOOKUP(L_Map[[#This Row],[MÃ TM]],L_TM[MÃ],L_TM[BCR],0),1,0)","v":1},{"$f":"_xlfn.XLOOKUP(L_Map[[#This Row],[MÃ BC]],L_FS[MÃ],L_FS[CHỈ TIÊU],\"-\")","v":"Trả trước cho người bán ngắn hạn"},{"$f":"_xlfn.XLOOKUP(L_Map[[#This Row],[MÃ TM]],L_TM[MÃ],L_TM[CHỈ TIÊU],\"-\")","v":"Trả trước cho người bán ngắn hạn"}]
[null,null,"133_",{"$f":"IF(L_Map[[#This Row],[MÃ BC]]<>\"\",COUNTIFS(L_Map[MÃ BC],L_Map[[#This Row],[MÃ BC]]),0)","v":1},"063_",{"$f":"IF(L_Map[[#This Row],[MÃ TM]]<>\"\",COUNTIFS(L_Map[MÃ TM],L_Map[[#This Row],[MÃ TM]]),0)","v":1},{"$f":"IF(_xlfn.XLOOKUP(L_Map[[#This Row],[MÃ TM]],L_TM[MÃ],L_TM[BCR],0),1,0)","v":0},{"$f":"_xlfn.XLOOKUP(L_Map[[#This Row],[MÃ BC]],L_FS[MÃ],L_FS[CHỈ TIÊU],\"-\")","v":"Phải thu nội bộ ngắn hạn"},{"$f":"_xlfn.XLOOKUP(L_Map[[#This Row],[MÃ TM]],L_TM[MÃ],L_TM[CHỈ TIÊU],\"-\")","v":"Phải thu nội bộ ngắn hạn"}]
[null,null,"134_",{"$f":"IF(L_Map[[#This Row],[MÃ BC]]<>\"\",COUNTIFS(L_Map[MÃ BC],L_Map[[#This Row],[MÃ BC]]),0)","v":1},"065_",{"$f":"IF(L_Map[[#This Row],[MÃ TM]]<>\"\",COUNTIFS(L_Map[MÃ TM],L_Map[[#This Row],[MÃ TM]]),0)","v":1},{"$f":"IF(_xlfn.XLOOKUP(L_Map[[#This Row],[MÃ TM]],L_TM[MÃ],L_TM[BCR],0),1,0)","v":0},{"$f":"_xlfn.XLOOKUP(L_Map[[#This Row],[MÃ BC]],L_FS[MÃ],L_FS[CHỈ TIÊU],\"-\")","v":"Phải thu theo tiến độ HĐXD"},{"$f":"_xlfn.XLOOKUP(L_Map[[#This Row],[MÃ TM]],L_TM[MÃ],L_TM[CHỈ TIÊU],\"-\")","v":"Phải thu theo tiến độ HĐXD"}]
[null,null,"135_",{"$f":"IF(L_Map[[#This Row],[MÃ BC]]<>\"\",COUNTIFS(L_Map[MÃ BC],L_Map[[#This Row],[MÃ BC]]),0)","v":2},"041_",{"$f":"IF(L_Map[[#This Row],[MÃ TM]]<>\"\",COUNTIFS(L_Map[MÃ TM],L_Map[[#This Row],[MÃ TM]]),0)","v":1},{"$f":"IF(_xlfn.XLOOKUP(L_Map[[#This Row],[MÃ TM]],L_TM[MÃ],L_TM[BCR],0),1,0)","v":0},{"$f":"_xlfn.XLOOKUP(L_Map[[#This Row],[MÃ BC]],L_FS[MÃ],L_FS[CHỈ TIÊU],\"-\")","v":"Các khoản phải thu khác"},{"$f":"_xlfn.XLOOKUP(L_Map[[#This Row],[MÃ TM]],L_TM[MÃ],L_TM[CHỈ TIÊU],\"-\")","v":"Phải thu khác ngắn hạn"}]
[null,null,"135_",{"$f":"IF(L_Map[[#This Row],[MÃ BC]]<>\"\",COUNTIFS(L_Map[MÃ BC],L_Map[[#This Row],[MÃ BC]]),0)","v":2},"041s",{"$f":"IF(L_Map[[#This Row],[MÃ TM]]<>\"\",COUNTIFS(L_Map[MÃ TM],L_Map[[#This Row],[MÃ TM]]),0)","v":1},{"$f":"IF(_xlfn.XLOOKUP(L_Map[[#This Row],[MÃ TM]],L_TM[MÃ],L_TM[BCR],0),1,0)","v":1},{"$f":"_xlfn.XLOOKUP(L_Map[[#This Row],[MÃ BC]],L_FS[MÃ],L_FS[CHỈ TIÊU],\"-\")","v":"Các khoản phải thu khác"},{"$f":"_xlfn.XLOOKUP(L_Map[[#This Row],[MÃ TM]],L_TM[MÃ],L_TM[CHỈ TIÊU],\"-\")","v":"Phải thu khác ngắn hạn"}]
[null,null,"136_",{"$f":"IF(L_Map[[#This Row],[MÃ BC]]<>\"\",COUNTIFS(L_Map[MÃ BC],L_Map[[#This Row],[MÃ BC]]),0)","v":1},"043_",{"$f":"IF(L_Map[[#This Row],[MÃ TM]]<>\"\",COUNTIFS(L_Map[MÃ TM],L_Map[[#This Row],[MÃ TM]]),0)","v":1},{"$f":"IF(_xlfn.XLOOKUP(L_Map[[#This Row],[MÃ TM]],L_TM[MÃ],L_TM[BCR],0),1,0)","v":0},{"$f":"_xlfn.XLOOKUP(L_Map[[#This Row],[MÃ BC]],L_FS[MÃ],L_FS[CHỈ TIÊU],\"-\")","v":"Dự phòng phải thu ngắn hạn khó đòi *"},{"$f":"_xlfn.XLOOKUP(L_Map[[#This Row],[MÃ TM]],L_TM[MÃ],L_TM[CHỈ TIÊU],\"-\")","v":"Dự phòng phải thu ngắn hạn khó đòi *"}]
[null,null,"137_",{"$f":"IF(L_Map[[#This Row],[MÃ BC]]<>\"\",COUNTIFS(L_Map[MÃ BC],L_Map[[#This Row],[MÃ BC]]),0)","v":1},"050_",{"$f":"IF(L_Map[[#This Row],[MÃ TM]]<>\"\",COUNTIFS(L_Map[MÃ TM],L_Map[[#This Row],[MÃ TM]]),0)","v":1},{"$f":"IF(_xlfn.XLOOKUP(L_Map[[#This Row],[MÃ TM]],L_TM[MÃ],L_TM[BCR],0),1,0)","v":0},{"$f":"_xlfn.XLOOKUP(L_Map[[#This Row],[MÃ BC]],L_FS[MÃ],L_FS[CHỈ TIÊU],\"-\")","v":"Tài sản thiếu chờ xử lý"},{"$f":"_xlfn.XLOOKUP(L_Map[[#This Row],[MÃ TM]],L_TM[MÃ],L_TM[CHỈ TIÊU],\"-\")","v":"Tài sản thiếu chờ xử lý"}]
[null,null,"141_",{"$f":"IF(L_Map[[#This Row],[MÃ BC]]<>\"\",COUNTIFS(L_Map[MÃ BC],L_Map[[#This Row],[MÃ BC]]),0)","v":1},"071_",{"$f":"IF(L_Map[[#This Row],[MÃ TM]]<>\"\",COUNTIFS(L_Map[MÃ TM],L_Map[[#This Row],[MÃ TM]]),0)","v":1},{"$f":"IF(_xlfn.XLOOKUP(L_Map[[#This Row],[MÃ TM]],L_TM[MÃ],L_TM[BCR],0),1,0)","v":0},{"$f":"_xlfn.XLOOKUP(L_Map[[#This Row],[MÃ BC]],L_FS[MÃ],L_FS[CHỈ TIÊU],\"-\")","v":"Hàng tồn kho"},{"$f":"_xlfn.XLOOKUP(L_Map[[#This Row],[MÃ TM]],L_TM[MÃ],L_TM[CHỈ TIÊU],\"-\")","v":"Hàng tồn kho"}]
[null,null,"142_",{"$f":"IF(L_Map[[#This Row],[MÃ BC]]<>\"\",COUNTIFS(L_Map[MÃ BC],L_Map[[#This Row],[MÃ BC]]),0)","v":1},"072_",{"$f":"IF(L_Map[[#This Row],[MÃ TM]]<>\"\",COUNTIFS(L_Map[MÃ TM],L_Map[[#This Row],[MÃ TM]]),0)","v":1},{"$f":"IF(_xlfn.XLOOKUP(L_Map[[#This Row],[MÃ TM]],L_TM[MÃ],L_TM[BCR],0),1,0)","v":0},{"$f":"_xlfn.XLOOKUP(L_Map[[#This Row],[MÃ BC]],L_FS[MÃ],L_FS[CHỈ TIÊU],\"-\")","v":"Dự phòng giảm giá hàng tồn kho *"},{"$f":"_xlfn.XLOOKUP(L_Map[[#This Row],[MÃ TM]],L_TM[MÃ],L_TM[CHỈ TIÊU],\"-\")","v":"Dự phòng giảm giá hàng tồn kho *"}]
[null,null,"151_",{"$f":"IF(L_Map[[#This Row],[MÃ BC]]<>\"\",COUNTIFS(L_Map[MÃ BC],L_Map[[#This Row],[MÃ BC]]),0)","v":1},"121_",{"$f":"IF(L_Map[[#This Row],[MÃ TM]]<>\"\",COUNTIFS(L_Map[MÃ TM],L_Map[[#This Row],[MÃ TM]]),0)","v":3},{"$f":"IF(_xlfn.XLOOKUP(L_Map[[#This Row],[MÃ TM]],L_TM[MÃ],L_TM[BCR],0),1,0)","v":0},{"$f":"_xlfn.XLOOKUP(L_Map[[#This Row],[MÃ BC]],L_FS[MÃ],L_FS[CHỈ TIÊU],\"-\")","v":"Con vật nuôi lấy sản phẩm một lần ngắn hạn"},{"$f":"_xlfn.XLOOKUP(L_Map[[#This Row],[MÃ TM]],L_TM[MÃ],L_TM[CHỈ TIÊU],\"-\")","v":"Tài sản sinh học khác"}]
[null,null,"152_",{"$f":"IF(L_Map[[#This Row],[MÃ BC]]<>\"\",COUNTIFS(L_Map[MÃ BC],L_Map[[#This Row],[MÃ BC]]),0)","v":1},"121_",{"$f":"IF(L_Map[[#This Row],[MÃ TM]]<>\"\",COUNTIFS(L_Map[MÃ TM],L_Map[[#This Row],[MÃ TM]]),0)","v":3},{"$f":"IF(_xlfn.XLOOKUP(L_Map[[#This Row],[MÃ TM]],L_TM[MÃ],L_TM[BCR],0),1,0)","v":0},{"$f":"_xlfn.XLOOKUP(L_Map[[#This Row],[MÃ BC]],L_FS[MÃ],L_FS[CHỈ TIÊU],\"-\")","v":"Cây trồng theo mùa vụ hoặc lấy SP một lần ngắn hạn"},{"$f":"_xlfn.XLOOKUP(L_Map[[#This Row],[MÃ TM]],L_TM[MÃ],L_TM[CHỈ TIÊU],\"-\")","v":"Tài sản sinh học khác"}]
[null,null,"161_",{"$f":"IF(L_Map[[#This Row],[MÃ BC]]<>\"\",COUNTIFS(L_Map[MÃ BC],L_Map[[#This Row],[MÃ BC]]),0)","v":1},"141_",{"$f":"IF(L_Map[[#This Row],[MÃ TM]]<>\"\",COUNTIFS(L_Map[MÃ TM],L_Map[[#This Row],[MÃ TM]]),0)","v":1},{"$f":"IF(_xlfn.XLOOKUP(L_Map[[#This Row],[MÃ TM]],L_TM[MÃ],L_TM[BCR],0),1,0)","v":0},{"$f":"_xlfn.XLOOKUP(L_Map[[#This Row],[MÃ BC]],L_FS[MÃ],L_FS[CHỈ TIÊU],\"-\")","v":"Chi phí chờ phân bổ ngắn hạn"},{"$f":"_xlfn.XLOOKUP(L_Map[[#This Row],[MÃ TM]],L_TM[MÃ],L_TM[CHỈ TIÊU],\"-\")","v":"Chi phí chờ phân bổ ngắn hạn"}]
[null,null,"163_",{"$f":"IF(L_Map[[#This Row],[MÃ BC]]<>\"\",COUNTIFS(L_Map[MÃ BC],L_Map[[#This Row],[MÃ BC]]),0)","v":2},"191_",{"$f":"IF(L_Map[[#This Row],[MÃ TM]]<>\"\",COUNTIFS(L_Map[MÃ TM],L_Map[[#This Row],[MÃ TM]]),0)","v":2},{"$f":"IF(_xlfn.XLOOKUP(L_Map[[#This Row],[MÃ TM]],L_TM[MÃ],L_TM[BCR],0),1,0)","v":0},{"$f":"_xlfn.XLOOKUP(L_Map[[#This Row],[MÃ BC]],L_FS[MÃ],L_FS[CHỈ TIÊU],\"-\")","v":"Thuế và các khoản phải thu Nhà nước"},{"$f":"_xlfn.XLOOKUP(L_Map[[#This Row],[MÃ TM]],L_TM[MÃ],L_TM[CHỈ TIÊU],\"-\")","v":"Thuế và các khoản phải nộp Nhà nước"}]
[null,null,"163_",{"$f":"IF(L_Map[[#This Row],[MÃ BC]]<>\"\",COUNTIFS(L_Map[MÃ BC],L_Map[[#This Row],[MÃ BC]]),0)","v":2},"192_",{"$f":"IF(L_Map[[#This Row],[MÃ TM]]<>\"\",COUNTIFS(L_Map[MÃ TM],L_Map[[#This Row],[MÃ TM]]),0)","v":1},{"$f":"IF(_xlfn.XLOOKUP(L_Map[[#This Row],[MÃ TM]],L_TM[MÃ],L_TM[BCR],0),1,0)","v":0},{"$f":"_xlfn.XLOOKUP(L_Map[[#This Row],[MÃ BC]],L_FS[MÃ],L_FS[CHỈ TIÊU],\"-\")","v":"Thuế và các khoản phải thu Nhà nước"},{"$f":"_xlfn.XLOOKUP(L_Map[[#This Row],[MÃ TM]],L_TM[MÃ],L_TM[CHỈ TIÊU],\"-\")","v":"Thuế GTGT được khấu trừ"}]
[null,null,"165_",{"$f":"IF(L_Map[[#This Row],[MÃ BC]]<>\"\",COUNTIFS(L_Map[MÃ BC],L_Map[[#This Row],[MÃ BC]]),0)","v":1},"061_",{"$f":"IF(L_Map[[#This Row],[MÃ TM]]<>\"\",COUNTIFS(L_Map[MÃ TM],L_Map[[#This Row],[MÃ TM]]),0)","v":1},{"$f":"IF(_xlfn.XLOOKUP(L_Map[[#This Row],[MÃ TM]],L_TM[MÃ],L_TM[BCR],0),1,0)","v":0},{"$f":"_xlfn.XLOOKUP(L_Map[[#This Row],[MÃ BC]],L_FS[MÃ],L_FS[CHỈ TIÊU],\"-\")","v":"Tài sản ngắn hạn khác"},{"$f":"_xlfn.XLOOKUP(L_Map[[#This Row],[MÃ TM]],L_TM[MÃ],L_TM[CHỈ TIÊU],\"-\")","v":"Tài sản khác ngắn hạn"}]
[null,null,"211_",{"$f":"IF(L_Map[[#This Row],[MÃ BC]]<>\"\",COUNTIFS(L_Map[MÃ BC],L_Map[[#This Row],[MÃ BC]]),0)","v":2},"032_",{"$f":"IF(L_Map[[#This Row],[MÃ TM]]<>\"\",COUNTIFS(L_Map[MÃ TM],L_Map[[#This Row],[MÃ TM]]),0)","v":1},{"$f":"IF(_xlfn.XLOOKUP(L_Map[[#This Row],[MÃ TM]],L_TM[MÃ],L_TM[BCR],0),1,0)","v":0},{"$f":"_xlfn.XLOOKUP(L_Map[[#This Row],[MÃ BC]],L_FS[MÃ],L_FS[CHỈ TIÊU],\"-\")","v":"Phải thu dài hạn của khách hàng"},{"$f":"_xlfn.XLOOKUP(L_Map[[#This Row],[MÃ TM]],L_TM[MÃ],L_TM[CHỈ TIÊU],\"-\")","v":"Phải thu dài hạn của khách hàng"}]
[null,null,"211_",{"$f":"IF(L_Map[[#This Row],[MÃ BC]]<>\"\",COUNTIFS(L_Map[MÃ BC],L_Map[[#This Row],[MÃ BC]]),0)","v":2},"032s",{"$f":"IF(L_Map[[#This Row],[MÃ TM]]<>\"\",COUNTIFS(L_Map[MÃ TM],L_Map[[#This Row],[MÃ TM]]),0)","v":1},{"$f":"IF(_xlfn.XLOOKUP(L_Map[[#This Row],[MÃ TM]],L_TM[MÃ],L_TM[BCR],0),1,0)","v":1},{"$f":"_xlfn.XLOOKUP(L_Map[[#This Row],[MÃ BC]],L_FS[MÃ],L_FS[CHỈ TIÊU],\"-\")","v":"Phải thu dài hạn của khách hàng"},{"$f":"_xlfn.XLOOKUP(L_Map[[#This Row],[MÃ TM]],L_TM[MÃ],L_TM[CHỈ TIÊU],\"-\")","v":"Phải thu dài hạn của khách hàng"}]
[null,null,"212_",{"$f":"IF(L_Map[[#This Row],[MÃ BC]]<>\"\",COUNTIFS(L_Map[MÃ BC],L_Map[[#This Row],[MÃ BC]]),0)","v":2},"034_",{"$f":"IF(L_Map[[#This Row],[MÃ TM]]<>\"\",COUNTIFS(L_Map[MÃ TM],L_Map[[#This Row],[MÃ TM]]),0)","v":1},{"$f":"IF(_xlfn.XLOOKUP(L_Map[[#This Row],[MÃ TM]],L_TM[MÃ],L_TM[BCR],0),1,0)","v":0},{"$f":"_xlfn.XLOOKUP(L_Map[[#This Row],[MÃ BC]],L_FS[MÃ],L_FS[CHỈ TIÊU],\"-\")","v":"Trả trước cho người bán dài hạn"},{"$f":"_xlfn.XLOOKUP(L_Map[[#This Row],[MÃ TM]],L_TM[MÃ],L_TM[CHỈ TIÊU],\"-\")","v":"Trả trước cho người bán dài hạn"}]
[null,null,"212_",{"$f":"IF(L_Map[[#This Row],[MÃ BC]]<>\"\",COUNTIFS(L_Map[MÃ BC],L_Map[[#This Row],[MÃ BC]]),0)","v":2},"034s",{"$f":"IF(L_Map[[#This Row],[MÃ TM]]<>\"\",COUNTIFS(L_Map[MÃ TM],L_Map[[#This Row],[MÃ TM]]),0)","v":1},{"$f":"IF(_xlfn.XLOOKUP(L_Map[[#This Row],[MÃ TM]],L_TM[MÃ],L_TM[BCR],0),1,0)","v":1},{"$f":"_xlfn.XLOOKUP(L_Map[[#This Row],[MÃ BC]],L_FS[MÃ],L_FS[CHỈ TIÊU],\"-\")","v":"Trả trước cho người bán dài hạn"},{"$f":"_xlfn.XLOOKUP(L_Map[[#This Row],[MÃ TM]],L_TM[MÃ],L_TM[CHỈ TIÊU],\"-\")","v":"Trả trước cho người bán dài hạn"}]
[null,null,"213_",{"$f":"IF(L_Map[[#This Row],[MÃ BC]]<>\"\",COUNTIFS(L_Map[MÃ BC],L_Map[[#This Row],[MÃ BC]]),0)","v":1},"064_",{"$f":"IF(L_Map[[#This Row],[MÃ TM]]<>\"\",COUNTIFS(L_Map[MÃ TM],L_Map[[#This Row],[MÃ TM]]),0)","v":2},{"$f":"IF(_xlfn.XLOOKUP(L_Map[[#This Row],[MÃ TM]],L_TM[MÃ],L_TM[BCR],0),1,0)","v":0},{"$f":"_xlfn.XLOOKUP(L_Map[[#This Row],[MÃ BC]],L_FS[MÃ],L_FS[CHỈ TIÊU],\"-\")","v":"Vốn kinh doanh ở đơn vị trực thuộc"},{"$f":"_xlfn.XLOOKUP(L_Map[[#This Row],[MÃ TM]],L_TM[MÃ],L_TM[CHỈ TIÊU],\"-\")","v":"Phải thu nội bộ dài hạn"}]
[null,null,"214_",{"$f":"IF(L_Map[[#This Row],[MÃ BC]]<>\"\",COUNTIFS(L_Map[MÃ BC],L_Map[[#This Row],[MÃ BC]]),0)","v":1},"064_",{"$f":"IF(L_Map[[#This Row],[MÃ TM]]<>\"\",COUNTIFS(L_Map[MÃ TM],L_Map[[#This Row],[MÃ TM]]),0)","v":2},{"$f":"IF(_xlfn.XLOOKUP(L_Map[[#This Row],[MÃ TM]],L_TM[MÃ],L_TM[BCR],0),1,0)","v":0},{"$f":"_xlfn.XLOOKUP(L_Map[[#This Row],[MÃ BC]],L_FS[MÃ],L_FS[CHỈ TIÊU],\"-\")","v":"Phải thu nội bộ dài hạn"},{"$f":"_xlfn.XLOOKUP(L_Map[[#This Row],[MÃ TM]],L_TM[MÃ],L_TM[CHỈ TIÊU],\"-\")","v":"Phải thu nội bộ dài hạn"}]
[null,null,"215_",{"$f":"IF(L_Map[[#This Row],[MÃ BC]]<>\"\",COUNTIFS(L_Map[MÃ BC],L_Map[[#This Row],[MÃ BC]]),0)","v":2},"042_",{"$f":"IF(L_Map[[#This Row],[MÃ TM]]<>\"\",COUNTIFS(L_Map[MÃ TM],L_Map[[#This Row],[MÃ TM]]),0)","v":1},{"$f":"IF(_xlfn.XLOOKUP(L_Map[[#This Row],[MÃ TM]],L_TM[MÃ],L_TM[BCR],0),1,0)","v":0},{"$f":"_xlfn.XLOOKUP(L_Map[[#This Row],[MÃ BC]],L_FS[MÃ],L_FS[CHỈ TIÊU],\"-\")","v":"Phải thu dài hạn khác"},{"$f":"_xlfn.XLOOKUP(L_Map[[#This Row],[MÃ TM]],L_TM[MÃ],L_TM[CHỈ TIÊU],\"-\")","v":"Phải thu khác dài hạn"}]
[null,null,"215_",{"$f":"IF(L_Map[[#This Row],[MÃ BC]]<>\"\",COUNTIFS(L_Map[MÃ BC],L_Map[[#This Row],[MÃ BC]]),0)","v":2},"042s",{"$f":"IF(L_Map[[#This Row],[MÃ TM]]<>\"\",COUNTIFS(L_Map[MÃ TM],L_Map[[#This Row],[MÃ TM]]),0)","v":1},{"$f":"IF(_xlfn.XLOOKUP(L_Map[[#This Row],[MÃ TM]],L_TM[MÃ],L_TM[BCR],0),1,0)","v":1},{"$f":"_xlfn.XLOOKUP(L_Map[[#This Row],[MÃ BC]],L_FS[MÃ],L_FS[CHỈ TIÊU],\"-\")","v":"Phải thu dài hạn khác"},{"$f":"_xlfn.XLOOKUP(L_Map[[#This Row],[MÃ TM]],L_TM[MÃ],L_TM[CHỈ TIÊU],\"-\")","v":"Phải thu khác dài hạn"}]
[null,null,"216_",{"$f":"IF(L_Map[[#This Row],[MÃ BC]]<>\"\",COUNTIFS(L_Map[MÃ BC],L_Map[[#This Row],[MÃ BC]]),0)","v":1},"044_",{"$f":"IF(L_Map[[#This Row],[MÃ TM]]<>\"\",COUNTIFS(L_Map[MÃ TM],L_Map[[#This Row],[MÃ TM]]),0)","v":1},{"$f":"IF(_xlfn.XLOOKUP(L_Map[[#This Row],[MÃ TM]],L_TM[MÃ],L_TM[BCR],0),1,0)","v":0},{"$f":"_xlfn.XLOOKUP(L_Map[[#This Row],[MÃ BC]],L_FS[MÃ],L_FS[CHỈ TIÊU],\"-\")","v":"Dự phòng phải thu dài hạn khó đòi *"},{"$f":"_xlfn.XLOOKUP(L_Map[[#This Row],[MÃ TM]],L_TM[MÃ],L_TM[CHỈ TIÊU],\"-\")","v":"Dự phòng phải thu dài hạn khó đòi *"}]
[null,null,"222_",{"$f":"IF(L_Map[[#This Row],[MÃ BC]]<>\"\",COUNTIFS(L_Map[MÃ BC],L_Map[[#This Row],[MÃ BC]]),0)","v":2},"091_",{"$f":"IF(L_Map[[#This Row],[MÃ TM]]<>\"\",COUNTIFS(L_Map[MÃ TM],L_Map[[#This Row],[MÃ TM]]),0)","v":1},{"$f":"IF(_xlfn.XLOOKUP(L_Map[[#This Row],[MÃ TM]],L_TM[MÃ],L_TM[BCR],0),1,0)","v":0},{"$f":"_xlfn.XLOOKUP(L_Map[[#This Row],[MÃ BC]],L_FS[MÃ],L_FS[CHỈ TIÊU],\"-\")","v":"Nguyên giá TSCĐ hữu hình"},{"$f":"_xlfn.XLOOKUP(L_Map[[#This Row],[MÃ TM]],L_TM[MÃ],L_TM[CHỈ TIÊU],\"-\")","v":"TSCĐ hữu hình - Nguyên giá"}]
[null,null,"222_",{"$f":"IF(L_Map[[#This Row],[MÃ BC]]<>\"\",COUNTIFS(L_Map[MÃ BC],L_Map[[#This Row],[MÃ BC]]),0)","v":2},"091s",{"$f":"IF(L_Map[[#This Row],[MÃ TM]]<>\"\",COUNTIFS(L_Map[MÃ TM],L_Map[[#This Row],[MÃ TM]]),0)","v":1},{"$f":"IF(_xlfn.XLOOKUP(L_Map[[#This Row],[MÃ TM]],L_TM[MÃ],L_TM[BCR],0),1,0)","v":0},{"$f":"_xlfn.XLOOKUP(L_Map[[#This Row],[MÃ BC]],L_FS[MÃ],L_FS[CHỈ TIÊU],\"-\")","v":"Nguyên giá TSCĐ hữu hình"},{"$f":"_xlfn.XLOOKUP(L_Map[[#This Row],[MÃ TM]],L_TM[MÃ],L_TM[CHỈ TIÊU],\"-\")","v":"NG TSCĐ HH đã KH hết đang sử dụng"}]
[null,null,"223_",{"$f":"IF(L_Map[[#This Row],[MÃ BC]]<>\"\",COUNTIFS(L_Map[MÃ BC],L_Map[[#This Row],[MÃ BC]]),0)","v":1},"092_",{"$f":"IF(L_Map[[#This Row],[MÃ TM]]<>\"\",COUNTIFS(L_Map[MÃ TM],L_Map[[#This Row],[MÃ TM]]),0)","v":1},{"$f":"IF(_xlfn.XLOOKUP(L_Map[[#This Row],[MÃ TM]],L_TM[MÃ],L_TM[BCR],0),1,0)","v":0},{"$f":"_xlfn.XLOOKUP(L_Map[[#This Row],[MÃ BC]],L_FS[MÃ],L_FS[CHỈ TIÊU],\"-\")","v":"Giá trị hao mòn lũy kế TSCĐ hữu hình"},{"$f":"_xlfn.XLOOKUP(L_Map[[#This Row],[MÃ TM]],L_TM[MÃ],L_TM[CHỈ TIÊU],\"-\")","v":"TSCĐ hữu hình - Hao mòn lũy kế *"}]
[null,null,"225_",{"$f":"IF(L_Map[[#This Row],[MÃ BC]]<>\"\",COUNTIFS(L_Map[MÃ BC],L_Map[[#This Row],[MÃ BC]]),0)","v":1},"111_",{"$f":"IF(L_Map[[#This Row],[MÃ TM]]<>\"\",COUNTIFS(L_Map[MÃ TM],L_Map[[#This Row],[MÃ TM]]),0)","v":1},{"$f":"IF(_xlfn.XLOOKUP(L_Map[[#This Row],[MÃ TM]],L_TM[MÃ],L_TM[BCR],0),1,0)","v":0},{"$f":"_xlfn.XLOOKUP(L_Map[[#This Row],[MÃ BC]],L_FS[MÃ],L_FS[CHỈ TIÊU],\"-\")","v":"Nguyên giá TSCĐ thuê tài chính"},{"$f":"_xlfn.XLOOKUP(L_Map[[#This Row],[MÃ TM]],L_TM[MÃ],L_TM[CHỈ TIÊU],\"-\")","v":"TSCĐ thuê tài chính - Nguyên giá"}]
[null,null,"226_",{"$f":"IF(L_Map[[#This Row],[MÃ BC]]<>\"\",COUNTIFS(L_Map[MÃ BC],L_Map[[#This Row],[MÃ BC]]),0)","v":1},"112_",{"$f":"IF(L_Map[[#This Row],[MÃ TM]]<>\"\",COUNTIFS(L_Map[MÃ TM],L_Map[[#This Row],[MÃ TM]]),0)","v":1},{"$f":"IF(_xlfn.XLOOKUP(L_Map[[#This Row],[MÃ TM]],L_TM[MÃ],L_TM[BCR],0),1,0)","v":0},{"$f":"_xlfn.XLOOKUP(L_Map[[#This Row],[MÃ BC]],L_FS[MÃ],L_FS[CHỈ TIÊU],\"-\")","v":"Giá trị hao mòn lũy kế TSCĐ thuê tài chính"},{"$f":"_xlfn.XLOOKUP(L_Map[[#This Row],[MÃ TM]],L_TM[MÃ],L_TM[CHỈ TIÊU],\"-\")","v":"TSCĐ thuê tài chính - Hao mòn lũy kế *"}]
[null,null,"228_",{"$f":"IF(L_Map[[#This Row],[MÃ BC]]<>\"\",COUNTIFS(L_Map[MÃ BC],L_Map[[#This Row],[MÃ BC]]),0)","v":2},"101_",{"$f":"IF(L_Map[[#This Row],[MÃ TM]]<>\"\",COUNTIFS(L_Map[MÃ TM],L_Map[[#This Row],[MÃ TM]]),0)","v":1},{"$f":"IF(_xlfn.XLOOKUP(L_Map[[#This Row],[MÃ TM]],L_TM[MÃ],L_TM[BCR],0),1,0)","v":0},{"$f":"_xlfn.XLOOKUP(L_Map[[#This Row],[MÃ BC]],L_FS[MÃ],L_FS[CHỈ TIÊU],\"-\")","v":"Nguyên giá TSCĐ vô hình"},{"$f":"_xlfn.XLOOKUP(L_Map[[#This Row],[MÃ TM]],L_TM[MÃ],L_TM[CHỈ TIÊU],\"-\")","v":"TSCĐ vô hình - Nguyên giá"}]
[null,null,"228_",{"$f":"IF(L_Map[[#This Row],[MÃ BC]]<>\"\",COUNTIFS(L_Map[MÃ BC],L_Map[[#This Row],[MÃ BC]]),0)","v":2},"101s",{"$f":"IF(L_Map[[#This Row],[MÃ TM]]<>\"\",COUNTIFS(L_Map[MÃ TM],L_Map[[#This Row],[MÃ TM]]),0)","v":1},{"$f":"IF(_xlfn.XLOOKUP(L_Map[[#This Row],[MÃ TM]],L_TM[MÃ],L_TM[BCR],0),1,0)","v":0},{"$f":"_xlfn.XLOOKUP(L_Map[[#This Row],[MÃ BC]],L_FS[MÃ],L_FS[CHỈ TIÊU],\"-\")","v":"Nguyên giá TSCĐ vô hình"},{"$f":"_xlfn.XLOOKUP(L_Map[[#This Row],[MÃ TM]],L_TM[MÃ],L_TM[CHỈ TIÊU],\"-\")","v":"NG TSCĐ VH đã KH hết đang sử dụng"}]
[null,null,"229_",{"$f":"IF(L_Map[[#This Row],[MÃ BC]]<>\"\",COUNTIFS(L_Map[MÃ BC],L_Map[[#This Row],[MÃ BC]]),0)","v":1},"102_",{"$f":"IF(L_Map[[#This Row],[MÃ TM]]<>\"\",COUNTIFS(L_Map[MÃ TM],L_Map[[#This Row],[MÃ TM]]),0)","v":1},{"$f":"IF(_xlfn.XLOOKUP(L_Map[[#This Row],[MÃ TM]],L_TM[MÃ],L_TM[BCR],0),1,0)","v":0},{"$f":"_xlfn.XLOOKUP(L_Map[[#This Row],[MÃ BC]],L_FS[MÃ],L_FS[CHỈ TIÊU],\"-\")","v":"Giá trị hao mòn lũy kế TSCĐ vô hình"},{"$f":"_xlfn.XLOOKUP(L_Map[[#This Row],[MÃ TM]],L_TM[MÃ],L_TM[CHỈ TIÊU],\"-\")","v":"TSCĐ vô hình - Hao mòn lũy kế *"}]
[null,null,"232_",{"$f":"IF(L_Map[[#This Row],[MÃ BC]]<>\"\",COUNTIFS(L_Map[MÃ BC],L_Map[[#This Row],[MÃ BC]]),0)","v":1},"121_",{"$f":"IF(L_Map[[#This Row],[MÃ TM]]<>\"\",COUNTIFS(L_Map[MÃ TM],L_Map[[#This Row],[MÃ TM]]),0)","v":3},{"$f":"IF(_xlfn.XLOOKUP(L_Map[[#This Row],[MÃ TM]],L_TM[MÃ],L_TM[BCR],0),1,0)","v":0},{"$f":"_xlfn.XLOOKUP(L_Map[[#This Row],[MÃ BC]],L_FS[MÃ],L_FS[CHỈ TIÊU],\"-\")","v":"Con vật nuôi cho SP định kỳ chưa đến gđ trưởng thành"},{"$f":"_xlfn.XLOOKUP(L_Map[[#This Row],[MÃ TM]],L_TM[MÃ],L_TM[CHỈ TIÊU],\"-\")","v":"Tài sản sinh học khác"}]
[null,null,"234_",{"$f":"IF(L_Map[[#This Row],[MÃ BC]]<>\"\",COUNTIFS(L_Map[MÃ BC],L_Map[[#This Row],[MÃ BC]]),0)","v":1},"122_",{"$f":"IF(L_Map[[#This Row],[MÃ TM]]<>\"\",COUNTIFS(L_Map[MÃ TM],L_Map[[#This Row],[MÃ TM]]),0)","v":1},{"$f":"IF(_xlfn.XLOOKUP(L_Map[[#This Row],[MÃ TM]],L_TM[MÃ],L_TM[BCR],0),1,0)","v":0},{"$f":"_xlfn.XLOOKUP(L_Map[[#This Row],[MÃ BC]],L_FS[MÃ],L_FS[CHỈ TIÊU],\"-\")","v":"Con vật nuôi cho SP định kỳ đến giai đoạn trưởng thành (nguyên giá)"},{"$f":"_xlfn.XLOOKUP(L_Map[[#This Row],[MÃ TM]],L_TM[MÃ],L_TM[CHỈ TIÊU],\"-\")","v":"Con vật cho SP định kỳ đạt đến GĐ trưởng thành - Nguyên giá"}]
[null,null,"235_",{"$f":"IF(L_Map[[#This Row],[MÃ BC]]<>\"\",COUNTIFS(L_Map[MÃ BC],L_Map[[#This Row],[MÃ BC]]),0)","v":1},"123_",{"$f":"IF(L_Map[[#This Row],[MÃ TM]]<>\"\",COUNTIFS(L_Map[MÃ TM],L_Map[[#This Row],[MÃ TM]]),0)","v":1},{"$f":"IF(_xlfn.XLOOKUP(L_Map[[#This Row],[MÃ TM]],L_TM[MÃ],L_TM[BCR],0),1,0)","v":0},{"$f":"_xlfn.XLOOKUP(L_Map[[#This Row],[MÃ BC]],L_FS[MÃ],L_FS[CHỈ TIÊU],\"-\")","v":"Con vật nuôi cho SP định kỳ đến giai đoạn trưởng thành (KH lũy kế)"},{"$f":"_xlfn.XLOOKUP(L_Map[[#This Row],[MÃ TM]],L_TM[MÃ],L_TM[CHỈ TIÊU],\"-\")","v":"Con vật cho SP định kỳ đạt đến GĐ trưởng thành - Khấu hao lũy kế"}]
[null,null,"241_",{"$f":"IF(L_Map[[#This Row],[MÃ BC]]<>\"\",COUNTIFS(L_Map[MÃ BC],L_Map[[#This Row],[MÃ BC]]),0)","v":1},"131_",{"$f":"IF(L_Map[[#This Row],[MÃ TM]]<>\"\",COUNTIFS(L_Map[MÃ TM],L_Map[[#This Row],[MÃ TM]]),0)","v":1},{"$f":"IF(_xlfn.XLOOKUP(L_Map[[#This Row],[MÃ TM]],L_TM[MÃ],L_TM[BCR],0),1,0)","v":0},{"$f":"_xlfn.XLOOKUP(L_Map[[#This Row],[MÃ BC]],L_FS[MÃ],L_FS[CHỈ TIÊU],\"-\")","v":"Nguyên giá BĐS đầu tư"},{"$f":"_xlfn.XLOOKUP(L_Map[[#This Row],[MÃ TM]],L_TM[MÃ],L_TM[CHỈ TIÊU],\"-\")","v":"BĐS đầu tư - Nguyên giá"}]
[null,null,"242_",{"$f":"IF(L_Map[[#This Row],[MÃ BC]]<>\"\",COUNTIFS(L_Map[MÃ BC],L_Map[[#This Row],[MÃ BC]]),0)","v":1},"132_",{"$f":"IF(L_Map[[#This Row],[MÃ TM]]<>\"\",COUNTIFS(L_Map[MÃ TM],L_Map[[#This Row],[MÃ TM]]),0)","v":1},{"$f":"IF(_xlfn.XLOOKUP(L_Map[[#This Row],[MÃ TM]],L_TM[MÃ],L_TM[BCR],0),1,0)","v":0},{"$f":"_xlfn.XLOOKUP(L_Map[[#This Row],[MÃ BC]],L_FS[MÃ],L_FS[CHỈ TIÊU],\"-\")","v":"Giá trị hao mòn lũy kế BĐS đầu tư *"},{"$f":"_xlfn.XLOOKUP(L_Map[[#This Row],[MÃ TM]],L_TM[MÃ],L_TM[CHỈ TIÊU],\"-\")","v":"BĐS đầu tư - Hao mòn lũy kế *"}]
[null,null,"251_",{"$f":"IF(L_Map[[#This Row],[MÃ BC]]<>\"\",COUNTIFS(L_Map[MÃ BC],L_Map[[#This Row],[MÃ BC]]),0)","v":1},"081_",{"$f":"IF(L_Map[[#This Row],[MÃ TM]]<>\"\",COUNTIFS(L_Map[MÃ TM],L_Map[[#This Row],[MÃ TM]]),0)","v":1},{"$f":"IF(_xlfn.XLOOKUP(L_Map[[#This Row],[MÃ TM]],L_TM[MÃ],L_TM[BCR],0),1,0)","v":0},{"$f":"_xlfn.XLOOKUP(L_Map[[#This Row],[MÃ BC]],L_FS[MÃ],L_FS[CHỈ TIÊU],\"-\")","v":"Chi phí sản xuất, kinh doanh dở dang dài hạn"},{"$f":"_xlfn.XLOOKUP(L_Map[[#This Row],[MÃ TM]],L_TM[MÃ],L_TM[CHỈ TIÊU],\"-\")","v":"Chi phí SXKD dở dang dài hạn"}]
[null,null,"252_",{"$f":"IF(L_Map[[#This Row],[MÃ BC]]<>\"\",COUNTIFS(L_Map[MÃ BC],L_Map[[#This Row],[MÃ BC]]),0)","v":1},"082_",{"$f":"IF(L_Map[[#This Row],[MÃ TM]]<>\"\",COUNTIFS(L_Map[MÃ TM],L_Map[[#This Row],[MÃ TM]]),0)","v":1},{"$f":"IF(_xlfn.XLOOKUP(L_Map[[#This Row],[MÃ TM]],L_TM[MÃ],L_TM[BCR],0),1,0)","v":0},{"$f":"_xlfn.XLOOKUP(L_Map[[#This Row],[MÃ BC]],L_FS[MÃ],L_FS[CHỈ TIÊU],\"-\")","v":"Chi phí xây dựng cơ bản dở dang"},{"$f":"_xlfn.XLOOKUP(L_Map[[#This Row],[MÃ TM]],L_TM[MÃ],L_TM[CHỈ TIÊU],\"-\")","v":"Chi phí XDCB dở dang"}]
[null,null,"261_",{"$f":"IF(L_Map[[#This Row],[MÃ BC]]<>\"\",COUNTIFS(L_Map[MÃ BC],L_Map[[#This Row],[MÃ BC]]),0)","v":1},"023_",{"$f":"IF(L_Map[[#This Row],[MÃ TM]]<>\"\",COUNTIFS(L_Map[MÃ TM],L_Map[[#This Row],[MÃ TM]]),0)","v":1},{"$f":"IF(_xlfn.XLOOKUP(L_Map[[#This Row],[MÃ TM]],L_TM[MÃ],L_TM[BCR],0),1,0)","v":0},{"$f":"_xlfn.XLOOKUP(L_Map[[#This Row],[MÃ BC]],L_FS[MÃ],L_FS[CHỈ TIÊU],\"-\")","v":"Đầu tư vào công ty con"},{"$f":"_xlfn.XLOOKUP(L_Map[[#This Row],[MÃ TM]],L_TM[MÃ],L_TM[CHỈ TIÊU],\"-\")","v":"Đầu tư vào công ty con"}]
[null,null,"262_",{"$f":"IF(L_Map[[#This Row],[MÃ BC]]<>\"\",COUNTIFS(L_Map[MÃ BC],L_Map[[#This Row],[MÃ BC]]),0)","v":1},"024_",{"$f":"IF(L_Map[[#This Row],[MÃ TM]]<>\"\",COUNTIFS(L_Map[MÃ TM],L_Map[[#This Row],[MÃ TM]]),0)","v":1},{"$f":"IF(_xlfn.XLOOKUP(L_Map[[#This Row],[MÃ TM]],L_TM[MÃ],L_TM[BCR],0),1,0)","v":0},{"$f":"_xlfn.XLOOKUP(L_Map[[#This Row],[MÃ BC]],L_FS[MÃ],L_FS[CHỈ TIÊU],\"-\")","v":"Đầu tư vào công ty liên doanh, liên kết"},{"$f":"_xlfn.XLOOKUP(L_Map[[#This Row],[MÃ TM]],L_TM[MÃ],L_TM[CHỈ TIÊU],\"-\")","v":"Đầu tư vào công ty liên kết"}]
[null,null,"263_",{"$f":"IF(L_Map[[#This Row],[MÃ BC]]<>\"\",COUNTIFS(L_Map[MÃ BC],L_Map[[#This Row],[MÃ BC]]),0)","v":1},"025_",{"$f":"IF(L_Map[[#This Row],[MÃ TM]]<>\"\",COUNTIFS(L_Map[MÃ TM],L_Map[[#This Row],[MÃ TM]]),0)","v":1},{"$f":"IF(_xlfn.XLOOKUP(L_Map[[#This Row],[MÃ TM]],L_TM[MÃ],L_TM[BCR],0),1,0)","v":0},{"$f":"_xlfn.XLOOKUP(L_Map[[#This Row],[MÃ BC]],L_FS[MÃ],L_FS[CHỈ TIÊU],\"-\")","v":"Đầu tư góp vốn vào đơn vị khác"},{"$f":"_xlfn.XLOOKUP(L_Map[[#This Row],[MÃ TM]],L_TM[MÃ],L_TM[CHỈ TIÊU],\"-\")","v":"Đầu tư góp vốn vào đơn vị khác"}]
[null,null,"264_",{"$f":"IF(L_Map[[#This Row],[MÃ BC]]<>\"\",COUNTIFS(L_Map[MÃ BC],L_Map[[#This Row],[MÃ BC]]),0)","v":1},"028_",{"$f":"IF(L_Map[[#This Row],[MÃ TM]]<>\"\",COUNTIFS(L_Map[MÃ TM],L_Map[[#This Row],[MÃ TM]]),0)","v":2},{"$f":"IF(_xlfn.XLOOKUP(L_Map[[#This Row],[MÃ TM]],L_TM[MÃ],L_TM[BCR],0),1,0)","v":0},{"$f":"_xlfn.XLOOKUP(L_Map[[#This Row],[MÃ BC]],L_FS[MÃ],L_FS[CHỈ TIÊU],\"-\")","v":"Dự phòng tổn thất đầu tư vào đơn vị khác dài hạn *"},{"$f":"_xlfn.XLOOKUP(L_Map[[#This Row],[MÃ TM]],L_TM[MÃ],L_TM[CHỈ TIÊU],\"-\")","v":"Dự phòng đầu tư tài chính dài hạn *"}]
[null,null,"265_",{"$f":"IF(L_Map[[#This Row],[MÃ BC]]<>\"\",COUNTIFS(L_Map[MÃ BC],L_Map[[#This Row],[MÃ BC]]),0)","v":1},"022_",{"$f":"IF(L_Map[[#This Row],[MÃ TM]]<>\"\",COUNTIFS(L_Map[MÃ TM],L_Map[[#This Row],[MÃ TM]]),0)","v":1},{"$f":"IF(_xlfn.XLOOKUP(L_Map[[#This Row],[MÃ TM]],L_TM[MÃ],L_TM[BCR],0),1,0)","v":0},{"$f":"_xlfn.XLOOKUP(L_Map[[#This Row],[MÃ BC]],L_FS[MÃ],L_FS[CHỈ TIÊU],\"-\")","v":"Đầu tư nắm giữ đến ngày đáo hạn dài hạn"},{"$f":"_xlfn.XLOOKUP(L_Map[[#This Row],[MÃ TM]],L_TM[MÃ],L_TM[CHỈ TIÊU],\"-\")","v":"Đầu tư nắm giữ đến ngày đáo hạn dài hạn"}]
[null,null,"266_",{"$f":"IF(L_Map[[#This Row],[MÃ BC]]<>\"\",COUNTIFS(L_Map[MÃ BC],L_Map[[#This Row],[MÃ BC]]),0)","v":1},"028_",{"$f":"IF(L_Map[[#This Row],[MÃ TM]]<>\"\",COUNTIFS(L_Map[MÃ TM],L_Map[[#This Row],[MÃ TM]]),0)","v":2},{"$f":"IF(_xlfn.XLOOKUP(L_Map[[#This Row],[MÃ TM]],L_TM[MÃ],L_TM[BCR],0),1,0)","v":0},{"$f":"_xlfn.XLOOKUP(L_Map[[#This Row],[MÃ BC]],L_FS[MÃ],L_FS[CHỈ TIÊU],\"-\")","v":"Dự phòng đầu tư nắm giữ đến ngày đáo hạn dài hạn *"},{"$f":"_xlfn.XLOOKUP(L_Map[[#This Row],[MÃ TM]],L_TM[MÃ],L_TM[CHỈ TIÊU],\"-\")","v":"Dự phòng đầu tư tài chính dài hạn *"}]
[null,null,"271_",{"$f":"IF(L_Map[[#This Row],[MÃ BC]]<>\"\",COUNTIFS(L_Map[MÃ BC],L_Map[[#This Row],[MÃ BC]]),0)","v":1},"142_",{"$f":"IF(L_Map[[#This Row],[MÃ TM]]<>\"\",COUNTIFS(L_Map[MÃ TM],L_Map[[#This Row],[MÃ TM]]),0)","v":1},{"$f":"IF(_xlfn.XLOOKUP(L_Map[[#This Row],[MÃ TM]],L_TM[MÃ],L_TM[BCR],0),1,0)","v":0},{"$f":"_xlfn.XLOOKUP(L_Map[[#This Row],[MÃ BC]],L_FS[MÃ],L_FS[CHỈ TIÊU],\"-\")","v":"Chi phí chờ phân bổ dài hạn"},{"$f":"_xlfn.XLOOKUP(L_Map[[#This Row],[MÃ TM]],L_TM[MÃ],L_TM[CHỈ TIÊU],\"-\")","v":"Chi phí chờ phân bổ dài hạn"}]
[null,null,"272_",{"$f":"IF(L_Map[[#This Row],[MÃ BC]]<>\"\",COUNTIFS(L_Map[MÃ BC],L_Map[[#This Row],[MÃ BC]]),0)","v":1},"261_",{"$f":"IF(L_Map[[#This Row],[MÃ TM]]<>\"\",COUNTIFS(L_Map[MÃ TM],L_Map[[#This Row],[MÃ TM]]),0)","v":1},{"$f":"IF(_xlfn.XLOOKUP(L_Map[[#This Row],[MÃ TM]],L_TM[MÃ],L_TM[BCR],0),1,0)","v":0},{"$f":"_xlfn.XLOOKUP(L_Map[[#This Row],[MÃ BC]],L_FS[MÃ],L_FS[CHỈ TIÊU],\"-\")","v":"Tài sản thuế thu nhập hoãn lại"},{"$f":"_xlfn.XLOOKUP(L_Map[[#This Row],[MÃ TM]],L_TM[MÃ],L_TM[CHỈ TIÊU],\"-\")","v":"Tài sản thuế TNDN hoãn lại"}]
[null,null,"273_",{"$f":"IF(L_Map[[#This Row],[MÃ BC]]<>\"\",COUNTIFS(L_Map[MÃ BC],L_Map[[#This Row],[MÃ BC]]),0)","v":1},"062_",{"$f":"IF(L_Map[[#This Row],[MÃ TM]]<>\"\",COUNTIFS(L_Map[MÃ TM],L_Map[[#This Row],[MÃ TM]]),0)","v":2},{"$f":"IF(_xlfn.XLOOKUP(L_Map[[#This Row],[MÃ TM]],L_TM[MÃ],L_TM[BCR],0),1,0)","v":0},{"$f":"_xlfn.XLOOKUP(L_Map[[#This Row],[MÃ BC]],L_FS[MÃ],L_FS[CHỈ TIÊU],\"-\")","v":"Thiết bị, vật tư, phụ tùng thay thế dài hạn"},{"$f":"_xlfn.XLOOKUP(L_Map[[#This Row],[MÃ TM]],L_TM[MÃ],L_TM[CHỈ TIÊU],\"-\")","v":"Tài sản khác dài hạn"}]
[null,null,"274_",{"$f":"IF(L_Map[[#This Row],[MÃ BC]]<>\"\",COUNTIFS(L_Map[MÃ BC],L_Map[[#This Row],[MÃ BC]]),0)","v":1},"062_",{"$f":"IF(L_Map[[#This Row],[MÃ TM]]<>\"\",COUNTIFS(L_Map[MÃ TM],L_Map[[#This Row],[MÃ TM]]),0)","v":2},{"$f":"IF(_xlfn.XLOOKUP(L_Map[[#This Row],[MÃ TM]],L_TM[MÃ],L_TM[BCR],0),1,0)","v":0},{"$f":"_xlfn.XLOOKUP(L_Map[[#This Row],[MÃ BC]],L_FS[MÃ],L_FS[CHỈ TIÊU],\"-\")","v":"Tài sản dài hạn khác"},{"$f":"_xlfn.XLOOKUP(L_Map[[#This Row],[MÃ TM]],L_TM[MÃ],L_TM[CHỈ TIÊU],\"-\")","v":"Tài sản khác dài hạn"}]
[null,null,"279_",{"$f":"IF(L_Map[[#This Row],[MÃ BC]]<>\"\",COUNTIFS(L_Map[MÃ BC],L_Map[[#This Row],[MÃ BC]]),0)","v":1},"151_",{"$f":"IF(L_Map[[#This Row],[MÃ TM]]<>\"\",COUNTIFS(L_Map[MÃ TM],L_Map[[#This Row],[MÃ TM]]),0)","v":1},{"$f":"IF(_xlfn.XLOOKUP(L_Map[[#This Row],[MÃ TM]],L_TM[MÃ],L_TM[BCR],0),1,0)","v":0},{"$f":"_xlfn.XLOOKUP(L_Map[[#This Row],[MÃ BC]],L_FS[MÃ],L_FS[CHỈ TIÊU],\"-\")","v":"Lợi thế thương mại"},{"$f":"_xlfn.XLOOKUP(L_Map[[#This Row],[MÃ TM]],L_TM[MÃ],L_TM[CHỈ TIÊU],\"-\")","v":"Lợi thế thương mại"}]
[null,null,"311_",{"$f":"IF(L_Map[[#This Row],[MÃ BC]]<>\"\",COUNTIFS(L_Map[MÃ BC],L_Map[[#This Row],[MÃ BC]]),0)","v":2},"171_",{"$f":"IF(L_Map[[#This Row],[MÃ TM]]<>\"\",COUNTIFS(L_Map[MÃ TM],L_Map[[#This Row],[MÃ TM]]),0)","v":1},{"$f":"IF(_xlfn.XLOOKUP(L_Map[[#This Row],[MÃ TM]],L_TM[MÃ],L_TM[BCR],0),1,0)","v":0},{"$f":"_xlfn.XLOOKUP(L_Map[[#This Row],[MÃ BC]],L_FS[MÃ],L_FS[CHỈ TIÊU],\"-\")","v":"Phải trả người bán ngắn hạn"},{"$f":"_xlfn.XLOOKUP(L_Map[[#This Row],[MÃ TM]],L_TM[MÃ],L_TM[CHỈ TIÊU],\"-\")","v":"Phải trả người bán ngắn hạn"}]
[null,null,"311_",{"$f":"IF(L_Map[[#This Row],[MÃ BC]]<>\"\",COUNTIFS(L_Map[MÃ BC],L_Map[[#This Row],[MÃ BC]]),0)","v":2},"171s",{"$f":"IF(L_Map[[#This Row],[MÃ TM]]<>\"\",COUNTIFS(L_Map[MÃ TM],L_Map[[#This Row],[MÃ TM]]),0)","v":1},{"$f":"IF(_xlfn.XLOOKUP(L_Map[[#This Row],[MÃ TM]],L_TM[MÃ],L_TM[BCR],0),1,0)","v":1},{"$f":"_xlfn.XLOOKUP(L_Map[[#This Row],[MÃ BC]],L_FS[MÃ],L_FS[CHỈ TIÊU],\"-\")","v":"Phải trả người bán ngắn hạn"},{"$f":"_xlfn.XLOOKUP(L_Map[[#This Row],[MÃ TM]],L_TM[MÃ],L_TM[CHỈ TIÊU],\"-\")","v":"Phải trả người bán ngắn hạn"}]
[null,null,"312_",{"$f":"IF(L_Map[[#This Row],[MÃ BC]]<>\"\",COUNTIFS(L_Map[MÃ BC],L_Map[[#This Row],[MÃ BC]]),0)","v":2},"173_",{"$f":"IF(L_Map[[#This Row],[MÃ TM]]<>\"\",COUNTIFS(L_Map[MÃ TM],L_Map[[#This Row],[MÃ TM]]),0)","v":1},{"$f":"IF(_xlfn.XLOOKUP(L_Map[[#This Row],[MÃ TM]],L_TM[MÃ],L_TM[BCR],0),1,0)","v":0},{"$f":"_xlfn.XLOOKUP(L_Map[[#This Row],[MÃ BC]],L_FS[MÃ],L_FS[CHỈ TIÊU],\"-\")","v":"Người mua trả trước ngắn hạn"},{"$f":"_xlfn.XLOOKUP(L_Map[[#This Row],[MÃ TM]],L_TM[MÃ],L_TM[CHỈ TIÊU],\"-\")","v":"Người mua trả trước ngắn hạn"}]
[null,null,"312_",{"$f":"IF(L_Map[[#This Row],[MÃ BC]]<>\"\",COUNTIFS(L_Map[MÃ BC],L_Map[[#This Row],[MÃ BC]]),0)","v":2},"173s",{"$f":"IF(L_Map[[#This Row],[MÃ TM]]<>\"\",COUNTIFS(L_Map[MÃ TM],L_Map[[#This Row],[MÃ TM]]),0)","v":1},{"$f":"IF(_xlfn.XLOOKUP(L_Map[[#This Row],[MÃ TM]],L_TM[MÃ],L_TM[BCR],0),1,0)","v":1},{"$f":"_xlfn.XLOOKUP(L_Map[[#This Row],[MÃ BC]],L_FS[MÃ],L_FS[CHỈ TIÊU],\"-\")","v":"Người mua trả trước ngắn hạn"},{"$f":"_xlfn.XLOOKUP(L_Map[[#This Row],[MÃ TM]],L_TM[MÃ],L_TM[CHỈ TIÊU],\"-\")","v":"Người mua trả trước ngắn hạn"}]
[null,null,"313_",{"$f":"IF(L_Map[[#This Row],[MÃ BC]]<>\"\",COUNTIFS(L_Map[MÃ BC],L_Map[[#This Row],[MÃ BC]]),0)","v":1},"181_",{"$f":"IF(L_Map[[#This Row],[MÃ TM]]<>\"\",COUNTIFS(L_Map[MÃ TM],L_Map[[#This Row],[MÃ TM]]),0)","v":1},{"$f":"IF(_xlfn.XLOOKUP(L_Map[[#This Row],[MÃ TM]],L_TM[MÃ],L_TM[BCR],0),1,0)","v":0},{"$f":"_xlfn.XLOOKUP(L_Map[[#This Row],[MÃ BC]],L_FS[MÃ],L_FS[CHỈ TIÊU],\"-\")","v":"Phải trả về cổ tức, lợi nhuận"},{"$f":"_xlfn.XLOOKUP(L_Map[[#This Row],[MÃ TM]],L_TM[MÃ],L_TM[CHỈ TIÊU],\"-\")","v":"Phải trả về cổ tức, lợi nhuận"}]
[null,null,"314_",{"$f":"IF(L_Map[[#This Row],[MÃ BC]]<>\"\",COUNTIFS(L_Map[MÃ BC],L_Map[[#This Row],[MÃ BC]]),0)","v":1},"191_",{"$f":"IF(L_Map[[#This Row],[MÃ TM]]<>\"\",COUNTIFS(L_Map[MÃ TM],L_Map[[#This Row],[MÃ TM]]),0)","v":2},{"$f":"IF(_xlfn.XLOOKUP(L_Map[[#This Row],[MÃ TM]],L_TM[MÃ],L_TM[BCR],0),1,0)","v":0},{"$f":"_xlfn.XLOOKUP(L_Map[[#This Row],[MÃ BC]],L_FS[MÃ],L_FS[CHỈ TIÊU],\"-\")","v":"Thuế và các khoản phải nộp Nhà nước ngắn hạn"},{"$f":"_xlfn.XLOOKUP(L_Map[[#This Row],[MÃ TM]],L_TM[MÃ],L_TM[CHỈ TIÊU],\"-\")","v":"Thuế và các khoản phải nộp Nhà nước"}]
[null,null,"315_",{"$f":"IF(L_Map[[#This Row],[MÃ BC]]<>\"\",COUNTIFS(L_Map[MÃ BC],L_Map[[#This Row],[MÃ BC]]),0)","v":1},null,{"$f":"IF(L_Map[[#This Row],[MÃ TM]]<>\"\",COUNTIFS(L_Map[MÃ TM],L_Map[[#This Row],[MÃ TM]]),0)","v":0},{"$f":"IF(_xlfn.XLOOKUP(L_Map[[#This Row],[MÃ TM]],L_TM[MÃ],L_TM[BCR],0),1,0)","v":0},{"$f":"_xlfn.XLOOKUP(L_Map[[#This Row],[MÃ BC]],L_FS[MÃ],L_FS[CHỈ TIÊU],\"-\")","v":"Phải trả người lao động"},{"$f":"_xlfn.XLOOKUP(L_Map[[#This Row],[MÃ TM]],L_TM[MÃ],L_TM[CHỈ TIÊU],\"-\")","v":0}]
[null,null,"316_",{"$f":"IF(L_Map[[#This Row],[MÃ BC]]<>\"\",COUNTIFS(L_Map[MÃ BC],L_Map[[#This Row],[MÃ BC]]),0)","v":1},"201_",{"$f":"IF(L_Map[[#This Row],[MÃ TM]]<>\"\",COUNTIFS(L_Map[MÃ TM],L_Map[[#This Row],[MÃ TM]]),0)","v":1},{"$f":"IF(_xlfn.XLOOKUP(L_Map[[#This Row],[MÃ TM]],L_TM[MÃ],L_TM[BCR],0),1,0)","v":0},{"$f":"_xlfn.XLOOKUP(L_Map[[#This Row],[MÃ BC]],L_FS[MÃ],L_FS[CHỈ TIÊU],\"-\")","v":"Chi phí phải trả ngắn hạn"},{"$f":"_xlfn.XLOOKUP(L_Map[[#This Row],[MÃ TM]],L_TM[MÃ],L_TM[CHỈ TIÊU],\"-\")","v":"Chi phí phải trả ngắn hạn"}]
[null,null,"317_",{"$f":"IF(L_Map[[#This Row],[MÃ BC]]<>\"\",COUNTIFS(L_Map[MÃ BC],L_Map[[#This Row],[MÃ BC]]),0)","v":1},"213_",{"$f":"IF(L_Map[[#This Row],[MÃ TM]]<>\"\",COUNTIFS(L_Map[MÃ TM],L_Map[[#This Row],[MÃ TM]]),0)","v":3},{"$f":"IF(_xlfn.XLOOKUP(L_Map[[#This Row],[MÃ TM]],L_TM[MÃ],L_TM[BCR],0),1,0)","v":0},{"$f":"_xlfn.XLOOKUP(L_Map[[#This Row],[MÃ BC]],L_FS[MÃ],L_FS[CHỈ TIÊU],\"-\")","v":"Phải trả nội bộ ngắn hạn"},{"$f":"_xlfn.XLOOKUP(L_Map[[#This Row],[MÃ TM]],L_TM[MÃ],L_TM[CHỈ TIÊU],\"-\")","v":"Phải trả nội bộ ngắn hạn"}]
[null,null,"318_",{"$f":"IF(L_Map[[#This Row],[MÃ BC]]<>\"\",COUNTIFS(L_Map[MÃ BC],L_Map[[#This Row],[MÃ BC]]),0)","v":1},"215_",{"$f":"IF(L_Map[[#This Row],[MÃ TM]]<>\"\",COUNTIFS(L_Map[MÃ TM],L_Map[[#This Row],[MÃ TM]]),0)","v":1},{"$f":"IF(_xlfn.XLOOKUP(L_Map[[#This Row],[MÃ TM]],L_TM[MÃ],L_TM[BCR],0),1,0)","v":0},{"$f":"_xlfn.XLOOKUP(L_Map[[#This Row],[MÃ BC]],L_FS[MÃ],L_FS[CHỈ TIÊU],\"-\")","v":"Phải trả theo tiến độ HĐXD ngắn hạn"},{"$f":"_xlfn.XLOOKUP(L_Map[[#This Row],[MÃ TM]],L_TM[MÃ],L_TM[CHỈ TIÊU],\"-\")","v":"Phải trả theo tiến độ HĐXD"}]
[null,null,"319_",{"$f":"IF(L_Map[[#This Row],[MÃ BC]]<>\"\",COUNTIFS(L_Map[MÃ BC],L_Map[[#This Row],[MÃ BC]]),0)","v":1},"221_",{"$f":"IF(L_Map[[#This Row],[MÃ TM]]<>\"\",COUNTIFS(L_Map[MÃ TM],L_Map[[#This Row],[MÃ TM]]),0)","v":1},{"$f":"IF(_xlfn.XLOOKUP(L_Map[[#This Row],[MÃ TM]],L_TM[MÃ],L_TM[BCR],0),1,0)","v":0},{"$f":"_xlfn.XLOOKUP(L_Map[[#This Row],[MÃ BC]],L_FS[MÃ],L_FS[CHỈ TIÊU],\"-\")","v":"Doanh thu chờ phân bổ ngắn hạn"},{"$f":"_xlfn.XLOOKUP(L_Map[[#This Row],[MÃ TM]],L_TM[MÃ],L_TM[CHỈ TIÊU],\"-\")","v":"Doanh thu chờ phân bổ ngắn hạn"}]
[null,null,"320_",{"$f":"IF(L_Map[[#This Row],[MÃ BC]]<>\"\",COUNTIFS(L_Map[MÃ BC],L_Map[[#This Row],[MÃ BC]]),0)","v":2},"211_",{"$f":"IF(L_Map[[#This Row],[MÃ TM]]<>\"\",COUNTIFS(L_Map[MÃ TM],L_Map[[#This Row],[MÃ TM]]),0)","v":1},{"$f":"IF(_xlfn.XLOOKUP(L_Map[[#This Row],[MÃ TM]],L_TM[MÃ],L_TM[BCR],0),1,0)","v":0},{"$f":"_xlfn.XLOOKUP(L_Map[[#This Row],[MÃ BC]],L_FS[MÃ],L_FS[CHỈ TIÊU],\"-\")","v":"Các khoản phải trả ngắn hạn khác"},{"$f":"_xlfn.XLOOKUP(L_Map[[#This Row],[MÃ TM]],L_TM[MÃ],L_TM[CHỈ TIÊU],\"-\")","v":"Phải trả ngắn hạn khác"}]
[null,null,"320_",{"$f":"IF(L_Map[[#This Row],[MÃ BC]]<>\"\",COUNTIFS(L_Map[MÃ BC],L_Map[[#This Row],[MÃ BC]]),0)","v":2},"211s",{"$f":"IF(L_Map[[#This Row],[MÃ TM]]<>\"\",COUNTIFS(L_Map[MÃ TM],L_Map[[#This Row],[MÃ TM]]),0)","v":1},{"$f":"IF(_xlfn.XLOOKUP(L_Map[[#This Row],[MÃ TM]],L_TM[MÃ],L_TM[BCR],0),1,0)","v":1},{"$f":"_xlfn.XLOOKUP(L_Map[[#This Row],[MÃ BC]],L_FS[MÃ],L_FS[CHỈ TIÊU],\"-\")","v":"Các khoản phải trả ngắn hạn khác"},{"$f":"_xlfn.XLOOKUP(L_Map[[#This Row],[MÃ TM]],L_TM[MÃ],L_TM[CHỈ TIÊU],\"-\")","v":"Phải trả ngắn hạn khác"}]
[null,null,"321_",{"$f":"IF(L_Map[[#This Row],[MÃ BC]]<>\"\",COUNTIFS(L_Map[MÃ BC],L_Map[[#This Row],[MÃ BC]]),0)","v":1},"161_",{"$f":"IF(L_Map[[#This Row],[MÃ TM]]<>\"\",COUNTIFS(L_Map[MÃ TM],L_Map[[#This Row],[MÃ TM]]),0)","v":1},{"$f":"IF(_xlfn.XLOOKUP(L_Map[[#This Row],[MÃ TM]],L_TM[MÃ],L_TM[BCR],0),1,0)","v":0},{"$f":"_xlfn.XLOOKUP(L_Map[[#This Row],[MÃ BC]],L_FS[MÃ],L_FS[CHỈ TIÊU],\"-\")","v":"Vay và nợ thuê tài chính ngắn hạn"},{"$f":"_xlfn.XLOOKUP(L_Map[[#This Row],[MÃ TM]],L_TM[MÃ],L_TM[CHỈ TIÊU],\"-\")","v":"Vay và nợ thuê tài chính ngắn hạn"}]
[null,null,"322_",{"$f":"IF(L_Map[[#This Row],[MÃ BC]]<>\"\",COUNTIFS(L_Map[MÃ BC],L_Map[[#This Row],[MÃ BC]]),0)","v":1},"251_",{"$f":"IF(L_Map[[#This Row],[MÃ TM]]<>\"\",COUNTIFS(L_Map[MÃ TM],L_Map[[#This Row],[MÃ TM]]),0)","v":1},{"$f":"IF(_xlfn.XLOOKUP(L_Map[[#This Row],[MÃ TM]],L_TM[MÃ],L_TM[BCR],0),1,0)","v":0},{"$f":"_xlfn.XLOOKUP(L_Map[[#This Row],[MÃ BC]],L_FS[MÃ],L_FS[CHỈ TIÊU],\"-\")","v":"Dự phòng phải trả ngắn hạn"},{"$f":"_xlfn.XLOOKUP(L_Map[[#This Row],[MÃ TM]],L_TM[MÃ],L_TM[CHỈ TIÊU],\"-\")","v":"Dự phòng phải trả ngắn hạn"}]
[null,null,"323_",{"$f":"IF(L_Map[[#This Row],[MÃ BC]]<>\"\",COUNTIFS(L_Map[MÃ BC],L_Map[[#This Row],[MÃ BC]]),0)","v":1},"182_",{"$f":"IF(L_Map[[#This Row],[MÃ TM]]<>\"\",COUNTIFS(L_Map[MÃ TM],L_Map[[#This Row],[MÃ TM]]),0)","v":1},{"$f":"IF(_xlfn.XLOOKUP(L_Map[[#This Row],[MÃ TM]],L_TM[MÃ],L_TM[BCR],0),1,0)","v":0},{"$f":"_xlfn.XLOOKUP(L_Map[[#This Row],[MÃ BC]],L_FS[MÃ],L_FS[CHỈ TIÊU],\"-\")","v":"Quỹ khen thưởng, phúc lợi"},{"$f":"_xlfn.XLOOKUP(L_Map[[#This Row],[MÃ TM]],L_TM[MÃ],L_TM[CHỈ TIÊU],\"-\")","v":"Quỹ khen thưởng, phúc lợi"}]
[null,null,"324_",{"$f":"IF(L_Map[[#This Row],[MÃ BC]]<>\"\",COUNTIFS(L_Map[MÃ BC],L_Map[[#This Row],[MÃ BC]]),0)","v":1},"271_",{"$f":"IF(L_Map[[#This Row],[MÃ TM]]<>\"\",COUNTIFS(L_Map[MÃ TM],L_Map[[#This Row],[MÃ TM]]),0)","v":3},{"$f":"IF(_xlfn.XLOOKUP(L_Map[[#This Row],[MÃ TM]],L_TM[MÃ],L_TM[BCR],0),1,0)","v":0},{"$f":"_xlfn.XLOOKUP(L_Map[[#This Row],[MÃ BC]],L_FS[MÃ],L_FS[CHỈ TIÊU],\"-\")","v":"Quỹ bình ổn giá"},{"$f":"_xlfn.XLOOKUP(L_Map[[#This Row],[MÃ TM]],L_TM[MÃ],L_TM[CHỈ TIÊU],\"-\")","v":"Quỹ không thuộc CSH"}]
[null,null,"331_",{"$f":"IF(L_Map[[#This Row],[MÃ BC]]<>\"\",COUNTIFS(L_Map[MÃ BC],L_Map[[#This Row],[MÃ BC]]),0)","v":2},"172_",{"$f":"IF(L_Map[[#This Row],[MÃ TM]]<>\"\",COUNTIFS(L_Map[MÃ TM],L_Map[[#This Row],[MÃ TM]]),0)","v":1},{"$f":"IF(_xlfn.XLOOKUP(L_Map[[#This Row],[MÃ TM]],L_TM[MÃ],L_TM[BCR],0),1,0)","v":0},{"$f":"_xlfn.XLOOKUP(L_Map[[#This Row],[MÃ BC]],L_FS[MÃ],L_FS[CHỈ TIÊU],\"-\")","v":"Phải trả người bán dài hạn"},{"$f":"_xlfn.XLOOKUP(L_Map[[#This Row],[MÃ TM]],L_TM[MÃ],L_TM[CHỈ TIÊU],\"-\")","v":"Phải trả người bán dài hạn"}]
[null,null,"331_",{"$f":"IF(L_Map[[#This Row],[MÃ BC]]<>\"\",COUNTIFS(L_Map[MÃ BC],L_Map[[#This Row],[MÃ BC]]),0)","v":2},"172s",{"$f":"IF(L_Map[[#This Row],[MÃ TM]]<>\"\",COUNTIFS(L_Map[MÃ TM],L_Map[[#This Row],[MÃ TM]]),0)","v":1},{"$f":"IF(_xlfn.XLOOKUP(L_Map[[#This Row],[MÃ TM]],L_TM[MÃ],L_TM[BCR],0),1,0)","v":1},{"$f":"_xlfn.XLOOKUP(L_Map[[#This Row],[MÃ BC]],L_FS[MÃ],L_FS[CHỈ TIÊU],\"-\")","v":"Phải trả người bán dài hạn"},{"$f":"_xlfn.XLOOKUP(L_Map[[#This Row],[MÃ TM]],L_TM[MÃ],L_TM[CHỈ TIÊU],\"-\")","v":"Phải trả người bán dài hạn"}]
[null,null,"332_",{"$f":"IF(L_Map[[#This Row],[MÃ BC]]<>\"\",COUNTIFS(L_Map[MÃ BC],L_Map[[#This Row],[MÃ BC]]),0)","v":2},"174_",{"$f":"IF(L_Map[[#This Row],[MÃ TM]]<>\"\",COUNTIFS(L_Map[MÃ TM],L_Map[[#This Row],[MÃ TM]]),0)","v":1},{"$f":"IF(_xlfn.XLOOKUP(L_Map[[#This Row],[MÃ TM]],L_TM[MÃ],L_TM[BCR],0),1,0)","v":0},{"$f":"_xlfn.XLOOKUP(L_Map[[#This Row],[MÃ BC]],L_FS[MÃ],L_FS[CHỈ TIÊU],\"-\")","v":"Người mua trả trước dài hạn"},{"$f":"_xlfn.XLOOKUP(L_Map[[#This Row],[MÃ TM]],L_TM[MÃ],L_TM[CHỈ TIÊU],\"-\")","v":"Người mua trả trước dài hạn"}]
[null,null,"332_",{"$f":"IF(L_Map[[#This Row],[MÃ BC]]<>\"\",COUNTIFS(L_Map[MÃ BC],L_Map[[#This Row],[MÃ BC]]),0)","v":2},"174s",{"$f":"IF(L_Map[[#This Row],[MÃ TM]]<>\"\",COUNTIFS(L_Map[MÃ TM],L_Map[[#This Row],[MÃ TM]]),0)","v":1},{"$f":"IF(_xlfn.XLOOKUP(L_Map[[#This Row],[MÃ TM]],L_TM[MÃ],L_TM[BCR],0),1,0)","v":1},{"$f":"_xlfn.XLOOKUP(L_Map[[#This Row],[MÃ BC]],L_FS[MÃ],L_FS[CHỈ TIÊU],\"-\")","v":"Người mua trả trước dài hạn"},{"$f":"_xlfn.XLOOKUP(L_Map[[#This Row],[MÃ TM]],L_TM[MÃ],L_TM[CHỈ TIÊU],\"-\")","v":"Người mua trả trước dài hạn"}]
[null,null,"334_",{"$f":"IF(L_Map[[#This Row],[MÃ BC]]<>\"\",COUNTIFS(L_Map[MÃ BC],L_Map[[#This Row],[MÃ BC]]),0)","v":1},"202_",{"$f":"IF(L_Map[[#This Row],[MÃ TM]]<>\"\",COUNTIFS(L_Map[MÃ TM],L_Map[[#This Row],[MÃ TM]]),0)","v":1},{"$f":"IF(_xlfn.XLOOKUP(L_Map[[#This Row],[MÃ TM]],L_TM[MÃ],L_TM[BCR],0),1,0)","v":0},{"$f":"_xlfn.XLOOKUP(L_Map[[#This Row],[MÃ BC]],L_FS[MÃ],L_FS[CHỈ TIÊU],\"-\")","v":"Chi phí phải trả dài hạn"},{"$f":"_xlfn.XLOOKUP(L_Map[[#This Row],[MÃ TM]],L_TM[MÃ],L_TM[CHỈ TIÊU],\"-\")","v":"Chi phí phải trả dài hạn"}]
[null,null,"335_",{"$f":"IF(L_Map[[#This Row],[MÃ BC]]<>\"\",COUNTIFS(L_Map[MÃ BC],L_Map[[#This Row],[MÃ BC]]),0)","v":1},"213_",{"$f":"IF(L_Map[[#This Row],[MÃ TM]]<>\"\",COUNTIFS(L_Map[MÃ TM],L_Map[[#This Row],[MÃ TM]]),0)","v":3},{"$f":"IF(_xlfn.XLOOKUP(L_Map[[#This Row],[MÃ TM]],L_TM[MÃ],L_TM[BCR],0),1,0)","v":0},{"$f":"_xlfn.XLOOKUP(L_Map[[#This Row],[MÃ BC]],L_FS[MÃ],L_FS[CHỈ TIÊU],\"-\")","v":"Phải trả nội bộ về vốn kinh doanh"},{"$f":"_xlfn.XLOOKUP(L_Map[[#This Row],[MÃ TM]],L_TM[MÃ],L_TM[CHỈ TIÊU],\"-\")","v":"Phải trả nội bộ ngắn hạn"}]
[null,null,"336_",{"$f":"IF(L_Map[[#This Row],[MÃ BC]]<>\"\",COUNTIFS(L_Map[MÃ BC],L_Map[[#This Row],[MÃ BC]]),0)","v":1},"213_",{"$f":"IF(L_Map[[#This Row],[MÃ TM]]<>\"\",COUNTIFS(L_Map[MÃ TM],L_Map[[#This Row],[MÃ TM]]),0)","v":3},{"$f":"IF(_xlfn.XLOOKUP(L_Map[[#This Row],[MÃ TM]],L_TM[MÃ],L_TM[BCR],0),1,0)","v":0},{"$f":"_xlfn.XLOOKUP(L_Map[[#This Row],[MÃ BC]],L_FS[MÃ],L_FS[CHỈ TIÊU],\"-\")","v":"Phải trả nội bộ dài hạn"},{"$f":"_xlfn.XLOOKUP(L_Map[[#This Row],[MÃ TM]],L_TM[MÃ],L_TM[CHỈ TIÊU],\"-\")","v":"Phải trả nội bộ ngắn hạn"}]
[null,null,"337_",{"$f":"IF(L_Map[[#This Row],[MÃ BC]]<>\"\",COUNTIFS(L_Map[MÃ BC],L_Map[[#This Row],[MÃ BC]]),0)","v":1},"222_",{"$f":"IF(L_Map[[#This Row],[MÃ TM]]<>\"\",COUNTIFS(L_Map[MÃ TM],L_Map[[#This Row],[MÃ TM]]),0)","v":1},{"$f":"IF(_xlfn.XLOOKUP(L_Map[[#This Row],[MÃ TM]],L_TM[MÃ],L_TM[BCR],0),1,0)","v":0},{"$f":"_xlfn.XLOOKUP(L_Map[[#This Row],[MÃ BC]],L_FS[MÃ],L_FS[CHỈ TIÊU],\"-\")","v":"Doanh thu chờ phân bổ dài hạn"},{"$f":"_xlfn.XLOOKUP(L_Map[[#This Row],[MÃ TM]],L_TM[MÃ],L_TM[CHỈ TIÊU],\"-\")","v":"Doanh thu chờ phân bổ dài hạn"}]
[null,null,"338_",{"$f":"IF(L_Map[[#This Row],[MÃ BC]]<>\"\",COUNTIFS(L_Map[MÃ BC],L_Map[[#This Row],[MÃ BC]]),0)","v":2},"212_",{"$f":"IF(L_Map[[#This Row],[MÃ TM]]<>\"\",COUNTIFS(L_Map[MÃ TM],L_Map[[#This Row],[MÃ TM]]),0)","v":1},{"$f":"IF(_xlfn.XLOOKUP(L_Map[[#This Row],[MÃ TM]],L_TM[MÃ],L_TM[BCR],0),1,0)","v":0},{"$f":"_xlfn.XLOOKUP(L_Map[[#This Row],[MÃ BC]],L_FS[MÃ],L_FS[CHỈ TIÊU],\"-\")","v":"Phải trả dài hạn khác"},{"$f":"_xlfn.XLOOKUP(L_Map[[#This Row],[MÃ TM]],L_TM[MÃ],L_TM[CHỈ TIÊU],\"-\")","v":"Phải trả dài hạn khác"}]
[null,null,"338_",{"$f":"IF(L_Map[[#This Row],[MÃ BC]]<>\"\",COUNTIFS(L_Map[MÃ BC],L_Map[[#This Row],[MÃ BC]]),0)","v":2},"212s",{"$f":"IF(L_Map[[#This Row],[MÃ TM]]<>\"\",COUNTIFS(L_Map[MÃ TM],L_Map[[#This Row],[MÃ TM]]),0)","v":1},{"$f":"IF(_xlfn.XLOOKUP(L_Map[[#This Row],[MÃ TM]],L_TM[MÃ],L_TM[BCR],0),1,0)","v":1},{"$f":"_xlfn.XLOOKUP(L_Map[[#This Row],[MÃ BC]],L_FS[MÃ],L_FS[CHỈ TIÊU],\"-\")","v":"Phải trả dài hạn khác"},{"$f":"_xlfn.XLOOKUP(L_Map[[#This Row],[MÃ TM]],L_TM[MÃ],L_TM[CHỈ TIÊU],\"-\")","v":"Phải trả dài hạn khác"}]
[null,null,"339_",{"$f":"IF(L_Map[[#This Row],[MÃ BC]]<>\"\",COUNTIFS(L_Map[MÃ BC],L_Map[[#This Row],[MÃ BC]]),0)","v":1},"162_",{"$f":"IF(L_Map[[#This Row],[MÃ TM]]<>\"\",COUNTIFS(L_Map[MÃ TM],L_Map[[#This Row],[MÃ TM]]),0)","v":2},{"$f":"IF(_xlfn.XLOOKUP(L_Map[[#This Row],[MÃ TM]],L_TM[MÃ],L_TM[BCR],0),1,0)","v":0},{"$f":"_xlfn.XLOOKUP(L_Map[[#This Row],[MÃ BC]],L_FS[MÃ],L_FS[CHỈ TIÊU],\"-\")","v":"Vay và nợ thuê tài chính dài hạn"},{"$f":"_xlfn.XLOOKUP(L_Map[[#This Row],[MÃ TM]],L_TM[MÃ],L_TM[CHỈ TIÊU],\"-\")","v":"Vay và nợ thuê tài chính dài hạn"}]
[null,null,"340_",{"$f":"IF(L_Map[[#This Row],[MÃ BC]]<>\"\",COUNTIFS(L_Map[MÃ BC],L_Map[[#This Row],[MÃ BC]]),0)","v":2},"162_",{"$f":"IF(L_Map[[#This Row],[MÃ TM]]<>\"\",COUNTIFS(L_Map[MÃ TM],L_Map[[#This Row],[MÃ TM]]),0)","v":2},{"$f":"IF(_xlfn.XLOOKUP(L_Map[[#This Row],[MÃ TM]],L_TM[MÃ],L_TM[BCR],0),1,0)","v":0},{"$f":"_xlfn.XLOOKUP(L_Map[[#This Row],[MÃ BC]],L_FS[MÃ],L_FS[CHỈ TIÊU],\"-\")","v":"Trái phiếu chuyển đổi"},{"$f":"_xlfn.XLOOKUP(L_Map[[#This Row],[MÃ TM]],L_TM[MÃ],L_TM[CHỈ TIÊU],\"-\")","v":"Vay và nợ thuê tài chính dài hạn"}]
[null,null,"340_",{"$f":"IF(L_Map[[#This Row],[MÃ BC]]<>\"\",COUNTIFS(L_Map[MÃ BC],L_Map[[#This Row],[MÃ BC]]),0)","v":2},"232_",{"$f":"IF(L_Map[[#This Row],[MÃ TM]]<>\"\",COUNTIFS(L_Map[MÃ TM],L_Map[[#This Row],[MÃ TM]]),0)","v":1},{"$f":"IF(_xlfn.XLOOKUP(L_Map[[#This Row],[MÃ TM]],L_TM[MÃ],L_TM[BCR],0),1,0)","v":0},{"$f":"_xlfn.XLOOKUP(L_Map[[#This Row],[MÃ BC]],L_FS[MÃ],L_FS[CHỈ TIÊU],\"-\")","v":"Trái phiếu chuyển đổi"},{"$f":"_xlfn.XLOOKUP(L_Map[[#This Row],[MÃ TM]],L_TM[MÃ],L_TM[CHỈ TIÊU],\"-\")","v":"Trái phiếu chuyển đổi"}]
[null,null,"341_",{"$f":"IF(L_Map[[#This Row],[MÃ BC]]<>\"\",COUNTIFS(L_Map[MÃ BC],L_Map[[#This Row],[MÃ BC]]),0)","v":1},"271_",{"$f":"IF(L_Map[[#This Row],[MÃ TM]]<>\"\",COUNTIFS(L_Map[MÃ TM],L_Map[[#This Row],[MÃ TM]]),0)","v":3},{"$f":"IF(_xlfn.XLOOKUP(L_Map[[#This Row],[MÃ TM]],L_TM[MÃ],L_TM[BCR],0),1,0)","v":0},{"$f":"_xlfn.XLOOKUP(L_Map[[#This Row],[MÃ BC]],L_FS[MÃ],L_FS[CHỈ TIÊU],\"-\")","v":"Cổ phiếu ưu đãi"},{"$f":"_xlfn.XLOOKUP(L_Map[[#This Row],[MÃ TM]],L_TM[MÃ],L_TM[CHỈ TIÊU],\"-\")","v":"Quỹ không thuộc CSH"}]
[null,null,"342_",{"$f":"IF(L_Map[[#This Row],[MÃ BC]]<>\"\",COUNTIFS(L_Map[MÃ BC],L_Map[[#This Row],[MÃ BC]]),0)","v":1},"262_",{"$f":"IF(L_Map[[#This Row],[MÃ TM]]<>\"\",COUNTIFS(L_Map[MÃ TM],L_Map[[#This Row],[MÃ TM]]),0)","v":1},{"$f":"IF(_xlfn.XLOOKUP(L_Map[[#This Row],[MÃ TM]],L_TM[MÃ],L_TM[BCR],0),1,0)","v":0},{"$f":"_xlfn.XLOOKUP(L_Map[[#This Row],[MÃ BC]],L_FS[MÃ],L_FS[CHỈ TIÊU],\"-\")","v":"Thuế thu nhập hoãn lại phải trả"},{"$f":"_xlfn.XLOOKUP(L_Map[[#This Row],[MÃ TM]],L_TM[MÃ],L_TM[CHỈ TIÊU],\"-\")","v":"Thuế TNDN hoãn lại phải trả"}]
[null,null,"343_",{"$f":"IF(L_Map[[#This Row],[MÃ BC]]<>\"\",COUNTIFS(L_Map[MÃ BC],L_Map[[#This Row],[MÃ BC]]),0)","v":1},"252_",{"$f":"IF(L_Map[[#This Row],[MÃ TM]]<>\"\",COUNTIFS(L_Map[MÃ TM],L_Map[[#This Row],[MÃ TM]]),0)","v":1},{"$f":"IF(_xlfn.XLOOKUP(L_Map[[#This Row],[MÃ TM]],L_TM[MÃ],L_TM[BCR],0),1,0)","v":0},{"$f":"_xlfn.XLOOKUP(L_Map[[#This Row],[MÃ BC]],L_FS[MÃ],L_FS[CHỈ TIÊU],\"-\")","v":"Dự phòng phải trả dài hạn"},{"$f":"_xlfn.XLOOKUP(L_Map[[#This Row],[MÃ TM]],L_TM[MÃ],L_TM[CHỈ TIÊU],\"-\")","v":"Dự phòng phải trả dài hạn"}]
[null,null,"344_",{"$f":"IF(L_Map[[#This Row],[MÃ BC]]<>\"\",COUNTIFS(L_Map[MÃ BC],L_Map[[#This Row],[MÃ BC]]),0)","v":1},"271_",{"$f":"IF(L_Map[[#This Row],[MÃ TM]]<>\"\",COUNTIFS(L_Map[MÃ TM],L_Map[[#This Row],[MÃ TM]]),0)","v":3},{"$f":"IF(_xlfn.XLOOKUP(L_Map[[#This Row],[MÃ TM]],L_TM[MÃ],L_TM[BCR],0),1,0)","v":0},{"$f":"_xlfn.XLOOKUP(L_Map[[#This Row],[MÃ BC]],L_FS[MÃ],L_FS[CHỈ TIÊU],\"-\")","v":"Quỹ phát triển khoa học và công nghệ"},{"$f":"_xlfn.XLOOKUP(L_Map[[#This Row],[MÃ TM]],L_TM[MÃ],L_TM[CHỈ TIÊU],\"-\")","v":"Quỹ không thuộc CSH"}]
[null,null,"412_",{"$f":"IF(L_Map[[#This Row],[MÃ BC]]<>\"\",COUNTIFS(L_Map[MÃ BC],L_Map[[#This Row],[MÃ BC]]),0)","v":1},"270_",{"$f":"IF(L_Map[[#This Row],[MÃ TM]]<>\"\",COUNTIFS(L_Map[MÃ TM],L_Map[[#This Row],[MÃ TM]]),0)","v":14},{"$f":"IF(_xlfn.XLOOKUP(L_Map[[#This Row],[MÃ TM]],L_TM[MÃ],L_TM[BCR],0),1,0)","v":0},{"$f":"_xlfn.XLOOKUP(L_Map[[#This Row],[MÃ BC]],L_FS[MÃ],L_FS[CHỈ TIÊU],\"-\")","v":"Thặng dư vốn cổ phần"},{"$f":"_xlfn.XLOOKUP(L_Map[[#This Row],[MÃ TM]],L_TM[MÃ],L_TM[CHỈ TIÊU],\"-\")","v":"Vốn chủ sở hữu"}]
[null,null,"413_",{"$f":"IF(L_Map[[#This Row],[MÃ BC]]<>\"\",COUNTIFS(L_Map[MÃ BC],L_Map[[#This Row],[MÃ BC]]),0)","v":1},"270_",{"$f":"IF(L_Map[[#This Row],[MÃ TM]]<>\"\",COUNTIFS(L_Map[MÃ TM],L_Map[[#This Row],[MÃ TM]]),0)","v":14},{"$f":"IF(_xlfn.XLOOKUP(L_Map[[#This Row],[MÃ TM]],L_TM[MÃ],L_TM[BCR],0),1,0)","v":0},{"$f":"_xlfn.XLOOKUP(L_Map[[#This Row],[MÃ BC]],L_FS[MÃ],L_FS[CHỈ TIÊU],\"-\")","v":"Quyền chọn chuyển đổi trái phiếu"},{"$f":"_xlfn.XLOOKUP(L_Map[[#This Row],[MÃ TM]],L_TM[MÃ],L_TM[CHỈ TIÊU],\"-\")","v":"Vốn chủ sở hữu"}]
[null,null,"414_",{"$f":"IF(L_Map[[#This Row],[MÃ BC]]<>\"\",COUNTIFS(L_Map[MÃ BC],L_Map[[#This Row],[MÃ BC]]),0)","v":1},"270_",{"$f":"IF(L_Map[[#This Row],[MÃ TM]]<>\"\",COUNTIFS(L_Map[MÃ TM],L_Map[[#This Row],[MÃ TM]]),0)","v":14},{"$f":"IF(_xlfn.XLOOKUP(L_Map[[#This Row],[MÃ TM]],L_TM[MÃ],L_TM[BCR],0),1,0)","v":0},{"$f":"_xlfn.XLOOKUP(L_Map[[#This Row],[MÃ BC]],L_FS[MÃ],L_FS[CHỈ TIÊU],\"-\")","v":"Vốn khác của chủ sở hữu"},{"$f":"_xlfn.XLOOKUP(L_Map[[#This Row],[MÃ TM]],L_TM[MÃ],L_TM[CHỈ TIÊU],\"-\")","v":"Vốn chủ sở hữu"}]
[null,null,"415_",{"$f":"IF(L_Map[[#This Row],[MÃ BC]]<>\"\",COUNTIFS(L_Map[MÃ BC],L_Map[[#This Row],[MÃ BC]]),0)","v":1},"270_",{"$f":"IF(L_Map[[#This Row],[MÃ TM]]<>\"\",COUNTIFS(L_Map[MÃ TM],L_Map[[#This Row],[MÃ TM]]),0)","v":14},{"$f":"IF(_xlfn.XLOOKUP(L_Map[[#This Row],[MÃ TM]],L_TM[MÃ],L_TM[BCR],0),1,0)","v":0},{"$f":"_xlfn.XLOOKUP(L_Map[[#This Row],[MÃ BC]],L_FS[MÃ],L_FS[CHỈ TIÊU],\"-\")","v":"Cổ phiếu mua lại của chính mình *"},{"$f":"_xlfn.XLOOKUP(L_Map[[#This Row],[MÃ TM]],L_TM[MÃ],L_TM[CHỈ TIÊU],\"-\")","v":"Vốn chủ sở hữu"}]
[null,null,"416_",{"$f":"IF(L_Map[[#This Row],[MÃ BC]]<>\"\",COUNTIFS(L_Map[MÃ BC],L_Map[[#This Row],[MÃ BC]]),0)","v":1},"270_",{"$f":"IF(L_Map[[#This Row],[MÃ TM]]<>\"\",COUNTIFS(L_Map[MÃ TM],L_Map[[#This Row],[MÃ TM]]),0)","v":14},{"$f":"IF(_xlfn.XLOOKUP(L_Map[[#This Row],[MÃ TM]],L_TM[MÃ],L_TM[BCR],0),1,0)","v":0},{"$f":"_xlfn.XLOOKUP(L_Map[[#This Row],[MÃ BC]],L_FS[MÃ],L_FS[CHỈ TIÊU],\"-\")","v":"Chênh lệch đánh giá lại tài sản"},{"$f":"_xlfn.XLOOKUP(L_Map[[#This Row],[MÃ TM]],L_TM[MÃ],L_TM[CHỈ TIÊU],\"-\")","v":"Vốn chủ sở hữu"}]
[null,null,"417_",{"$f":"IF(L_Map[[#This Row],[MÃ BC]]<>\"\",COUNTIFS(L_Map[MÃ BC],L_Map[[#This Row],[MÃ BC]]),0)","v":1},"270_",{"$f":"IF(L_Map[[#This Row],[MÃ TM]]<>\"\",COUNTIFS(L_Map[MÃ TM],L_Map[[#This Row],[MÃ TM]]),0)","v":14},{"$f":"IF(_xlfn.XLOOKUP(L_Map[[#This Row],[MÃ TM]],L_TM[MÃ],L_TM[BCR],0),1,0)","v":0},{"$f":"_xlfn.XLOOKUP(L_Map[[#This Row],[MÃ BC]],L_FS[MÃ],L_FS[CHỈ TIÊU],\"-\")","v":"Chênh lệch tỷ giá hối đoái"},{"$f":"_xlfn.XLOOKUP(L_Map[[#This Row],[MÃ TM]],L_TM[MÃ],L_TM[CHỈ TIÊU],\"-\")","v":"Vốn chủ sở hữu"}]
[null,null,"418_",{"$f":"IF(L_Map[[#This Row],[MÃ BC]]<>\"\",COUNTIFS(L_Map[MÃ BC],L_Map[[#This Row],[MÃ BC]]),0)","v":1},"270_",{"$f":"IF(L_Map[[#This Row],[MÃ TM]]<>\"\",COUNTIFS(L_Map[MÃ TM],L_Map[[#This Row],[MÃ TM]]),0)","v":14},{"$f":"IF(_xlfn.XLOOKUP(L_Map[[#This Row],[MÃ TM]],L_TM[MÃ],L_TM[BCR],0),1,0)","v":0},{"$f":"_xlfn.XLOOKUP(L_Map[[#This Row],[MÃ BC]],L_FS[MÃ],L_FS[CHỈ TIÊU],\"-\")","v":"Quỹ đầu tư phát triển"},{"$f":"_xlfn.XLOOKUP(L_Map[[#This Row],[MÃ TM]],L_TM[MÃ],L_TM[CHỈ TIÊU],\"-\")","v":"Vốn chủ sở hữu"}]
[null,null,"419_",{"$f":"IF(L_Map[[#This Row],[MÃ BC]]<>\"\",COUNTIFS(L_Map[MÃ BC],L_Map[[#This Row],[MÃ BC]]),0)","v":1},"270_",{"$f":"IF(L_Map[[#This Row],[MÃ TM]]<>\"\",COUNTIFS(L_Map[MÃ TM],L_Map[[#This Row],[MÃ TM]]),0)","v":14},{"$f":"IF(_xlfn.XLOOKUP(L_Map[[#This Row],[MÃ TM]],L_TM[MÃ],L_TM[BCR],0),1,0)","v":0},{"$f":"_xlfn.XLOOKUP(L_Map[[#This Row],[MÃ BC]],L_FS[MÃ],L_FS[CHỈ TIÊU],\"-\")","v":"Quỹ khác thuộc vốn chủ sở hữu"},{"$f":"_xlfn.XLOOKUP(L_Map[[#This Row],[MÃ TM]],L_TM[MÃ],L_TM[CHỈ TIÊU],\"-\")","v":"Vốn chủ sở hữu"}]
[null,null,"41a_",{"$f":"IF(L_Map[[#This Row],[MÃ BC]]<>\"\",COUNTIFS(L_Map[MÃ BC],L_Map[[#This Row],[MÃ BC]]),0)","v":1},"270_",{"$f":"IF(L_Map[[#This Row],[MÃ TM]]<>\"\",COUNTIFS(L_Map[MÃ TM],L_Map[[#This Row],[MÃ TM]]),0)","v":14},{"$f":"IF(_xlfn.XLOOKUP(L_Map[[#This Row],[MÃ TM]],L_TM[MÃ],L_TM[BCR],0),1,0)","v":0},{"$f":"_xlfn.XLOOKUP(L_Map[[#This Row],[MÃ BC]],L_FS[MÃ],L_FS[CHỈ TIÊU],\"-\")","v":"Cổ phiếu phổ thông có quyền biểu quyết"},{"$f":"_xlfn.XLOOKUP(L_Map[[#This Row],[MÃ TM]],L_TM[MÃ],L_TM[CHỈ TIÊU],\"-\")","v":"Vốn chủ sở hữu"}]
[null,null,"41b_",{"$f":"IF(L_Map[[#This Row],[MÃ BC]]<>\"\",COUNTIFS(L_Map[MÃ BC],L_Map[[#This Row],[MÃ BC]]),0)","v":2},"241_",{"$f":"IF(L_Map[[#This Row],[MÃ TM]]<>\"\",COUNTIFS(L_Map[MÃ TM],L_Map[[#This Row],[MÃ TM]]),0)","v":1},{"$f":"IF(_xlfn.XLOOKUP(L_Map[[#This Row],[MÃ TM]],L_TM[MÃ],L_TM[BCR],0),1,0)","v":0},{"$f":"_xlfn.XLOOKUP(L_Map[[#This Row],[MÃ BC]],L_FS[MÃ],L_FS[CHỈ TIÊU],\"-\")","v":"Cổ phiếu ưu đãi"},{"$f":"_xlfn.XLOOKUP(L_Map[[#This Row],[MÃ TM]],L_TM[MÃ],L_TM[CHỈ TIÊU],\"-\")","v":"Cổ phiếu ưu đãi phân loại là nợ phải trả"}]
[null,null,"41b_",{"$f":"IF(L_Map[[#This Row],[MÃ BC]]<>\"\",COUNTIFS(L_Map[MÃ BC],L_Map[[#This Row],[MÃ BC]]),0)","v":2},"270_",{"$f":"IF(L_Map[[#This Row],[MÃ TM]]<>\"\",COUNTIFS(L_Map[MÃ TM],L_Map[[#This Row],[MÃ TM]]),0)","v":14},{"$f":"IF(_xlfn.XLOOKUP(L_Map[[#This Row],[MÃ TM]],L_TM[MÃ],L_TM[BCR],0),1,0)","v":0},{"$f":"_xlfn.XLOOKUP(L_Map[[#This Row],[MÃ BC]],L_FS[MÃ],L_FS[CHỈ TIÊU],\"-\")","v":"Cổ phiếu ưu đãi"},{"$f":"_xlfn.XLOOKUP(L_Map[[#This Row],[MÃ TM]],L_TM[MÃ],L_TM[CHỈ TIÊU],\"-\")","v":"Vốn chủ sở hữu"}]
[null,null,"420_",{"$f":"IF(L_Map[[#This Row],[MÃ BC]]<>\"\",COUNTIFS(L_Map[MÃ BC],L_Map[[#This Row],[MÃ BC]]),0)","v":1},"270_",{"$f":"IF(L_Map[[#This Row],[MÃ TM]]<>\"\",COUNTIFS(L_Map[MÃ TM],L_Map[[#This Row],[MÃ TM]]),0)","v":14},{"$f":"IF(_xlfn.XLOOKUP(L_Map[[#This Row],[MÃ TM]],L_TM[MÃ],L_TM[BCR],0),1,0)","v":0},{"$f":"_xlfn.XLOOKUP(L_Map[[#This Row],[MÃ BC]],L_FS[MÃ],L_FS[CHỈ TIÊU],\"-\")","v":"-"},{"$f":"_xlfn.XLOOKUP(L_Map[[#This Row],[MÃ TM]],L_TM[MÃ],L_TM[CHỈ TIÊU],\"-\")","v":"Vốn chủ sở hữu"}]
[null,null,"429_",{"$f":"IF(L_Map[[#This Row],[MÃ BC]]<>\"\",COUNTIFS(L_Map[MÃ BC],L_Map[[#This Row],[MÃ BC]]),0)","v":1},"270_",{"$f":"IF(L_Map[[#This Row],[MÃ TM]]<>\"\",COUNTIFS(L_Map[MÃ TM],L_Map[[#This Row],[MÃ TM]]),0)","v":14},{"$f":"IF(_xlfn.XLOOKUP(L_Map[[#This Row],[MÃ TM]],L_TM[MÃ],L_TM[BCR],0),1,0)","v":0},{"$f":"_xlfn.XLOOKUP(L_Map[[#This Row],[MÃ BC]],L_FS[MÃ],L_FS[CHỈ TIÊU],\"-\")","v":"Lợi ích của cổ đông không kiểm soát"},{"$f":"_xlfn.XLOOKUP(L_Map[[#This Row],[MÃ TM]],L_TM[MÃ],L_TM[CHỈ TIÊU],\"-\")","v":"Vốn chủ sở hữu"}]
[null,null,"42a_",{"$f":"IF(L_Map[[#This Row],[MÃ BC]]<>\"\",COUNTIFS(L_Map[MÃ BC],L_Map[[#This Row],[MÃ BC]]),0)","v":1},"270_",{"$f":"IF(L_Map[[#This Row],[MÃ TM]]<>\"\",COUNTIFS(L_Map[MÃ TM],L_Map[[#This Row],[MÃ TM]]),0)","v":14},{"$f":"IF(_xlfn.XLOOKUP(L_Map[[#This Row],[MÃ TM]],L_TM[MÃ],L_TM[BCR],0),1,0)","v":0},{"$f":"_xlfn.XLOOKUP(L_Map[[#This Row],[MÃ BC]],L_FS[MÃ],L_FS[CHỈ TIÊU],\"-\")","v":"LNST chưa phân phối lũy kế đến cuối kỳ trước"},{"$f":"_xlfn.XLOOKUP(L_Map[[#This Row],[MÃ TM]],L_TM[MÃ],L_TM[CHỈ TIÊU],\"-\")","v":"Vốn chủ sở hữu"}]
[null,null,"42b_",{"$f":"IF(L_Map[[#This Row],[MÃ BC]]<>\"\",COUNTIFS(L_Map[MÃ BC],L_Map[[#This Row],[MÃ BC]]),0)","v":1},"270_",{"$f":"IF(L_Map[[#This Row],[MÃ TM]]<>\"\",COUNTIFS(L_Map[MÃ TM],L_Map[[#This Row],[MÃ TM]]),0)","v":14},{"$f":"IF(_xlfn.XLOOKUP(L_Map[[#This Row],[MÃ TM]],L_TM[MÃ],L_TM[BCR],0),1,0)","v":0},{"$f":"_xlfn.XLOOKUP(L_Map[[#This Row],[MÃ BC]],L_FS[MÃ],L_FS[CHỈ TIÊU],\"-\")","v":"LNST chưa phân phối kỳ này"},{"$f":"_xlfn.XLOOKUP(L_Map[[#This Row],[MÃ TM]],L_TM[MÃ],L_TM[CHỈ TIÊU],\"-\")","v":"Vốn chủ sở hữu"}]

{"sheet":"Dòng tiền","index":7,"n_rows":54,"n_cols":8,"rows_kept":54,"cut":false,"hidden":false,"merged":[[0,0,3,0]]}
[{"$f":"'✅'!A1","v":"AnPhat Holding"}]
[]
[null,null,null,"CHỈ TIÊU DÒNG TIỀN"]
[null,null,null,null,null,"⏬"]
[{"$f":"'Công ty'!A5","v":"BCTC hợp nhất"},null,"MÃ","CHỈ TIÊU","NHÓM","CFⁿ",null,"Mã trùng"]
[null,null,"01_","Lợi nhuận trước thuế","KD gián tiếp",true,null,{"$f":"IFERROR(_xlfn.LET(_xlpm.i,L_CF[MÃ],_xlfn._xlws.FILTER(_xlfn.UNIQUE(_xlpm.i),COUNTIF(_xlpm.i,_xlfn.UNIQUE(_xlpm.i))>1)),\"null\")","v":"01_"}]
[null,null,"_","ĐIỀU CHỈNH CHO CÁC KHOẢN",null,null,null,"02_"]
["Tập đoàn",null,"02_","Khấu hao tài sản cố định và BĐSĐT","KD gián tiếp",true,null,"03_"]
[null,null,"02ᵇ","Khấu hao tài sản sinh học","KD gián tiếp",true,null,"04_"]
["Danh mục công ty",null,"02ᶜ","Phân bổ lợi thế thương mại","KD gián tiếp",true,null,"05_"]
[null,null,"03_","Các khoản dự phòng","KD gián tiếp",true,null,"06_"]
["Thông tin công ty",null,"04_","(Lãi)/lỗ CLTG do đánh giá lại các khoản mục tiền tệ gốc ngoại tệ","KD gián tiếp",true,null,"07_"]
[null,null,"05_","(Lãi)/lỗ từ hoạt động đầu tư, tài chính","KD gián tiếp",true]
["Tài khoản kế toán",null,"06_","Chi phí đi vay","KD gián tiếp",true]
[null,null,"07_","Các khoản điều chỉnh khác","KD gián tiếp",true]
["Chỉ tiêu báo cáo",null,"08_","LỢI NHUẬN/(LỖ) TỪ HĐKD TRƯỚC THAY ĐỔI VLĐ"]
[null,null,"09_","(Tăng)/giảm các khoản phải thu","KD gián tiếp",true]
["Chỉ tiêu thuyết minh",null,"10_","(Tăng)/giảm hàng tồn kho","KD gián tiếp",true]
[null,null,"11_","Tăng/(giảm) các khoản phải trả","KD gián tiếp",true]
["Map chỉ tiêu BC-TM",null,"12_","(Tăng)/giảm chi phí chờ phân bổ","KD gián tiếp",true]
[null,null,"13_","(Tăng)/giảm chứng khoán kinh doanh","KD gián tiếp",true]
["Chỉ tiêu dòng tiền",null,"14_","Chi phí đi vay đã trả","KD gián tiếp",true]
[null,null,"15_","Thuế thu nhập doanh nghiệp đã nộp","KD gián tiếp",true]
["Phân loại vốn vay",null,"16_","Tiền thu khác từ hoạt động kinh doanh","KD gián tiếp",true]
[null,null,"17_","Tiền chi khác cho hoạt động kinh doanh","KD gián tiếp",true]
["Danh mục khác",null,"20_","LƯU CHUYỂN TIỀN THUẦN TỪ HOẠT ĐỘNG KINH DOANH"]
[null,null,"21_","Tiền chi để mua sắm, xây dựng TSCĐ và các TSDH khác","Đầu tư",true]
["Tùy chọn",null,"22_","Tiền thu từ thanh lý, nhượng bán TSCĐ và các TSDH khác","Đầu tư",true]
[null,null,"23_","Tiền chi cho vay, mua các công cụ nợ của đơn vị khác","Đầu tư",true]
[null,null,"24_","Tiền thu hồi cho vay, bán lại các công cụ nợ của đơn vị khác","Đầu tư",true]
[null,null,"25_","Tiền chi đầu tư góp vốn vào đơn vị khác","Đầu tư",true]
[null,null,"26_","Tiền thu hồi đầu tư góp vốn vào đơn vị khác","Đầu tư",true]
[null,null,"27_","Tiền thu lãi cho vay","Đầu tư",true]
[null,null,"27ᵇ","Tiền thu lãi cổ tức và lợi nhuận được chia","Đầu tư",true]
[null,null,"30_","LƯU CHUYỂN TIỀN THUẦN TỪ HOẠT ĐỘNG ĐẦU TƯ"]
[null,null,"31_","Tiền thu từ phát hành cổ phiếu, nhận vốn góp của CSH","Tài chính",true]
[null,null,"32_","Tiền trả lại vốn góp cho các CSH, mua lại cổ phiếu đã phát hành","Tài chính",true]
[null,null,"33_","Tiền thu từ đi vay","Tài chính",true]
[null,null,"34_","Tiền trả nợ gốc vay","Tài chính",true]
[null,null,"35_","Tiền trả nợ gốc thuê tài chính","Tài chính",true]
[null,null,"36_","Cổ tức, lợi nhuận đã trả cho chủ sở hữu","Tài chính",true]
[null,null,"40_","LƯU CHUYỂN TIỀN THUẦN TỪ HOẠT ĐỘNG TÀI CHÍNH"]
[null,null,"50_","LƯU CHUYỂN TIỀN THUẦN TRONG KỲ"]
[null,null,"60_","TIỀN VÀ TƯƠNG ĐƯƠNG TIỀN ĐẦU KỲ"]
[null,null,"61_","Ảnh hưởng của thay đổi tỷ giá hối đoái quy đổi ngoại tệ"]
[null,null,"70_","Tiền và tương đương tiền cuối kỳ"]
[]
[null,null,"01_","Tiền thu từ bán hàng, cung cấp dịch vụ và doanh thu khác","KD trực tiếp"]
[null,null,"02_","Tiền chi trả cho người cung cấp hàng hóa và dịch vụ","KD trực tiếp"]
[null,null,"03_","Tiền chi trả cho người lao động","KD trực tiếp"]
[null,null,"04_","Tiền lãi vay đã trả","KD trực tiếp"]
[null,null,"05_","Thuế thu nhập doanh nghiệp đã nộp","KD trực tiếp"]
[null,null,"06_","Tiền thu khác từ hoạt động kinh doanh","KD trực tiếp"]
[null,null,"07_","Tiền chi khác cho hoạt động kinh doanh","KD trực tiếp"]

{"sheet":"Vốn vay","index":8,"n_rows":28,"n_cols":10,"rows_kept":28,"cut":false,"hidden":false,"merged":[[0,0,3,0]]}
[{"$f":"'✅'!A1","v":"AnPhat Holding"}]
[]
[null,null,"ĐỐI TƯỢNG VAY",null,null,"ĐỐI TƯỢNG VAY",null,"NGÂN HÀNG"]
[]
[{"$f":"'Công ty'!A5","v":"BCTC hợp nhất"},null,"VAY / NHÓM","LOẠI",null,"VAY / ĐỐI TƯỢNG",null,"VAY / NGÂN HÀNG",null,"NHÓM ĐỐI TƯỢNG VAY"]
[null,null,"Vay ngân hàng ngắn hạn","Ngắn hạn",null,"Ngân hàng",null,"Ngân hàng TMCP Công Thương Việt Nam (Vietinbank)",null,"Vay ngân hàng "]
[null,null,"Vay dài hạn đến hạn trả ","Ngắn hạn",null,"Tổ chức khác",null,"Ngân hàng TMCP Tiên Phong (TPBank)",null,"Vay cá nhân và tổ chức khác"]
["Tập đoàn",null,"Nợ thuê tài chính đến hạn trả ","Ngắn hạn",null,"Cá nhân",null,"Ngân Hàng TMCP Phát Triển Việt Nam (VDB)",null,"Trái phiếu ngắn hạn"]
[null,null,"Trái phiếu ngắn hạn","Ngắn hạn",null,"Bên liên quan",null,"Ngân hàng TMCP Ngoại thương Việt Nam (Vietcombank)",null,"Vay dài hạn đến hạn trả"]
["Danh mục công ty",null,"Trái phiếu dài hạn đến hạn trả ","Ngắn hạn",null,null,null,"Ngân hàng TMCP Đầu tư và Phát triển Việt Nam (BIDV)",null,"Nợ thuê tài chính đến hạn trả"]
[null,null,"Vay ngân hàng dài hạn","Dài hạn",null,null,null,"Ngân hàng TMCP Quốc Tế (VIB)",null,"Trái phiếu dài hạn đến hạn trả"]
["Thông tin công ty",null,"Nợ thuê tài chính dài hạn ","Dài hạn",null,null,null,"Ngân hàng TMCP Kỹ Thương (Techcombank)",null,"Nợ thuê tài chính"]
[null,null,"Trái phiếu dài hạn","Dài hạn",null,null,null,"Ngân hàng TMCP Hàng Hải (MSB)",null,"Trái phiếu phát hành"]
["Tài khoản kế toán",null,"Vay tổ chức, cá nhân khác ngắn hạn","Ngắn hạn",null,null,null,"Ngân hàng TMCP Quân Đội (MB Bank)",null,"Vay tổ chức, cá nhân khác ngắn hạn"]
[null,null,"Vay tổ chức, cá nhân khác dài hạn","Dài hạn",null,null,null,"Ngân hàng TMCP NN và PTNT Việt Nam (Agribank)",null,"Vay tổ chức, cá nhân khác dài hạn"]
["Chỉ tiêu báo cáo",null,"Vay bên liên quan ngắn hạn","Ngắn hạn",null,null,null,"Ngân hàng TMCP Việt Nam Thịnh vượng (VPBank)",null,"Vay bên liên quan ngắn hạn"]
[null,null,"Vay bên liên quan dài hạn","Dài hạn",null,null,null,"Ngân hàng TPCP Phát triển Tp Hồ Chí Minh (HD Bank)",null,"Vay bên liên quan dài hạn"]
["Chỉ tiêu thuyết minh"]
[]
["Map chỉ tiêu BC-TM"]
[]
["Chỉ tiêu dòng tiền"]
[]
["Phân loại vốn vay"]
[]
["Danh mục khác"]
[]
["Tùy chọn"]

{"sheet":"Khác","index":9,"n_rows":36,"n_cols":16,"rows_kept":36,"cut":false,"hidden":false,"merged":[[0,0,3,0]]}
[{"$f":"'✅'!A1","v":"AnPhat Holding"}]
[]
[null,null,"LĨNH VỰC",null,"KHU VỰC",null,"KỲ BÁO CÁO",null,null,null,"BÊN LIÊN QUAN",null,null,null,"RÚT GỌN TÊN"]
[]
[{"$f":"'Công ty'!A5","v":"BCTC hợp nhất"},null,"LĨNH VỰC",null,"KHU VỰC",null,"KỲ BÁO CÁO","Cả năm",null,{"$f":"(YEAR(TODAY())-2000)*100","v":2600},"BÊN LIÊN QUAN","TÊN KHÁCH HÀNG","PHÂN LOẠI",null,"Đổi từ","Sang"]
[null,null,"Hoạt động sản xuất",null,"Miền Bắc",null,{"$f":"\"Q\"&J6","v":"Q2501"},{"$f":"IF(RIGHT(L_KY[[#This Row],[KỲ BÁO CÁO]],1)+0=4,TRUE,FALSE)","v":false},null,{"$f":"J$5-100+1","v":2501},"0801210129_","Công ty CP Tập đoàn An Phát Holdings","Doanh nghiệp",null,"Khách hàng","KH"]
[null,null,"Hoạt động kinh doanh thương  mại",null,"Miền Nam",null,"Q2502",{"$f":"IF(RIGHT(L_KY[[#This Row],[KỲ BÁO CÁO]],1)+0=4,TRUE,FALSE)","v":false},null,{"$f":"J$5-100+2","v":2502},"0800373586_","Công ty CP Nhựa An Phát Xanh","Doanh nghiệp",null,"Tập đoàn","TĐ"]
["Tập đoàn",null,"Kinh doanh nhà xưởng, cho thuê đất và hạ tầng KCN",null,"Miền Trung",null,"Q2503",{"$f":"IF(RIGHT(L_KY[[#This Row],[KỲ BÁO CÁO]],1)+0=4,TRUE,FALSE)","v":false},null,{"$f":"J$5-100+3","v":2503},"5200466372_","Công ty CP An Tiến Industries","Doanh nghiệp",null,"Tổng công ty","TCT"]
[null,null,"Hoạt động khác",null,null,null,"Q2504",{"$f":"IF(RIGHT(L_KY[[#This Row],[KỲ BÁO CÁO]],1)+0=4,TRUE,FALSE)","v":true},null,{"$f":"J$5-100+4","v":2504},"0801208793_","Công ty CP An Thành Biscol","Doanh nghiệp",null,"Tổng cty","TCT"]
["Danh mục công ty",null,"Điều chỉnh và loại trừ",null,null,null,"Q2601",{"$f":"IF(RIGHT(L_KY[[#This Row],[KỲ BÁO CÁO]],1)+0=4,TRUE,FALSE)","v":false},null,{"$f":"J$5+1","v":2601},"0801177672_","Công ty CP Liên vận An Tín","Doanh nghiệp",null,"Công ty","Cty"]
[null,null,null,null,null,null,"Q2602",{"$f":"IF(RIGHT(L_KY[[#This Row],[KỲ BÁO CÁO]],1)+0=4,TRUE,FALSE)","v":false},null,{"$f":"J$5+2","v":2602},"9910650003_","An Thanh Bicsol Singapore PTE. Ltd","Doanh nghiệp",null,"Chi nhánh","CN"]
["Thông tin công ty",null,null,null,null,null,"Q2603",{"$f":"IF(RIGHT(L_KY[[#This Row],[KỲ BÁO CÁO]],1)+0=4,TRUE,FALSE)","v":false},null,{"$f":"J$5+3","v":2603},"0801235451_","Công ty CP Nhựa Bao bì An Vinh","Doanh nghiệp",null,"Ngân Hàng","NH"]
[null,null,null,null,null,null,"Q2604",{"$f":"IF(RIGHT(L_KY[[#This Row],[KỲ BÁO CÁO]],1)+0=4,TRUE,FALSE)","v":true},null,{"$f":"J$5+4","v":2604},"0801225485_","Công ty CP KCN Kỹ thuật cao An Phát","Doanh nghiệp",null,"Bệnh viện","BV"]
["Tài khoản kế toán",null,null,null,null,null,null,null,null,null,"0801298395_","Công ty CP KCN Kỹ thuật cao An Phát 1","Doanh nghiệp",null,"Văn phòng","VP"]
[null,null,null,null,null,null,null,null,null,null,"0801334886_","Công ty CP Khu CN Lương Điền Ngọc Liên","Doanh nghiệp",null,"Sở giao dịch","SGD"]
["Chỉ tiêu báo cáo",null,null,null,null,null,null,null,null,null,"0100100858_","Công ty CP Nhựa Hà Nội","Doanh nghiệp",null,"Ủy ban nhân dân","UBND"]
[null,null,null,null,null,null,null,null,null,null,"0801238156_","Công ty CP VLXD công nghệ cao An Cường","Doanh nghiệp",null," và "," & "]
["Chỉ tiêu thuyết minh",null,null,null,null,null,null,null,null,null,"0801246654_","Công ty TNHH An Trung Industries","Doanh nghiệp",null,"Cổ phần","CP"]
[null,null,null,null,null,null,null,null,null,null,"0900259855_","Công ty TNHH PT XNK và Đầu tư - VIEXIM","Doanh nghiệp",null,"Trách nhiệm hữu hạn","TNHH"]
["Map chỉ tiêu BC-TM",null,null,null,null,null,null,null,null,null,"0202084468_","Công ty CP Sản xuất PBAT An Phát","Doanh nghiệp",null,"Một thành viên","MTV"]
[null,null,null,null,null,null,null,null,null,null,"9910820005_","Ankor Bioplastics Co.Ltd","Doanh nghiệp",null,"Bất động sản","BĐS"]
["Chỉ tiêu dòng tiền",null,null,null,null,null,null,null,null,null,"9940010020_","An Phat International INC","Doanh nghiệp",null,"Xuất nhập khẩu","XNK"]
[null,null,null,null,null,null,null,null,null,null,"9940010006_","AFC EcoPlastics LLC","Doanh nghiệp",null,"Tư vấn","TV"]
["Phân loại vốn vay",null,null,null,null,null,null,null,null,null,"0801352476_","Công ty CP DV Suất ăn CN An Phát","Doanh nghiệp",null,"Đầu tư","ĐT"]
[null,null,null,null,null,null,null,null,null,null,"2900531222_","Công ty CP nhựa Bao Bì Vinh","Doanh nghiệp",null,"Phát triển","PT"]
["Danh mục khác",null,null,null,null,null,null,null,null,null,"0801279667_","Công ty CP SX Tổng hợp Sunrise Việt Nam","Doanh nghiệp",null,"Thương mại","TM"]
[null,null,null,null,null,null,null,null,null,null,"0801313445_","Công ty CP Anbio","Doanh nghiệp",null,"Dịch vụ","DV"]
["Tùy chọn",null,null,null,null,null,null,null,null,null,null,null,null,null,"Sản xuất","SX"]
[null,null,null,null,null,null,null,null,null,null,null,null,null,null,"Xây dựng","XD"]
[null,null,null,null,null,null,null,null,null,null,null,null,null,null,"Công nghệ","CN"]
[null,null,null,null,null,null,null,null,null,null,null,null,null,null,"Quản lý","QL"]
[null,null,null,null,null,null,null,null,null,null,null,null,null,null,"Môi trường","MT"]
[null,null,null,null,null,null,null,null,null,null,null,null,null,null,"Quảng cáo","QC"]
[null,null,null,null,null,null,null,null,null,null,null,null,null,null,"Du lịch","DL"]
[null,null,null,null,null,null,null,null,null,null,null,null,null,null,"Vietinbank","VTB"]
[null,null,null,null,null,null,null,null,null,null,null,null,null,null,"Vietcombank","VCB"]

{"sheet":"✅","index":10,"n_rows":28,"n_cols":4,"rows_kept":28,"cut":false,"hidden":false,"merged":[[0,0,3,0]]}
["AnPhat Holding"]
[]
[null,null,"CẤU HÌNH"]
[]
["BCTC hợp nhất",null,"Tham số","Giá trị"]
[null,null,"Chọn mã có tên",true]
[]
["Tập đoàn"]
[]
["Danh mục công ty"]
[]
["Thông tin công ty"]
[]
["Tài khoản kế toán"]
[]
["Chỉ tiêu báo cáo"]
[]
["Chỉ tiêu thuyết minh"]
[]
["Map chỉ tiêu BC-TM"]
[]
["Chỉ tiêu dòng tiền"]
[]
["Phân loại vốn vay"]
[]
["Danh mục khác"]
[]
["Tùy chọn"]

{"sheet":"Công ty","index":11,"n_rows":30,"n_cols":14,"rows_kept":30,"cut":false,"hidden":false,"merged":[[0,0,3,0]]}
[{"$f":"'✅'!A1","v":"AnPhat Holding"}]
[]
[null,null,null,null,"DANH MỤC CÔNG TY"]
[null,null,{"$f":"COUNTA(L_CTY[MÃ])","v":25}]
["BCTC hợp nhất",null,"MÃ","KÝ HIỆU","TÊN CÔNG TY","MÃ SỐ THUẾ","GHI CHÚ","NỘI BỘ","TT",null,"Trùng mã","Lồng mã","Trùng KH","Lồng KH"]
[null,null,"10_","APH","Công ty CP Tập đoàn An Phát Holdings","0801210129_",null,"Yes",10,null,{"$f":"_Trùng(L_CTY[MÃ])","v":"null"},{"$f":"_Lồng(L_CTY[MÃ])","v":"null"},{"$f":"_Trùng(L_CTY[KÝ HIỆU])","v":"null"},{"$f":"_Lồng(L_CTY[KÝ HIỆU])","v":"null"}]
[null,null,"20_","AAA","Công ty CP Nhựa An Phát Xanh","0800373586_",null,"Yes",20]
["Tập đoàn",null,"30_","HII","Công ty CP An Tiến Industries","5200466372_",null,"Yes",30]
[null,null,"15_","ATT","Công ty CP An Thành Biscol","0801208793_",null,"Yes",40]
["Danh mục công ty",null,"46_","ATZ","Công ty CP Liên vận An Tín","0801177672_",null,"Yes",50]
[null,null,"22_","ATS","An Thanh Bicsol Singapore PTE. Ltd","9910650003_",null,"Yes",60]
["Thông tin công ty",null,"39_","AVP","Công ty CP Nhựa Bao bì An Vinh","0801235451_",null,"Yes",70]
[null,null,"17_","APC","Công ty CP KCN Kỹ thuật cao An Phát","0801225485_",null,"Yes",80]
["Tài khoản kế toán",null,"85_","AP1","Công ty CP KCN Kỹ thuật cao An Phát 1","0801298395_",null,"Yes",90]
[null,null,"31_","LĐ","Công ty CP Khu CN Lương Điền Ngọc Liên","0801334886_",null,"Yes",100]
["Chỉ tiêu báo cáo",null,"40_","NHH","Công ty CP Nhựa Hà Nội","0100100858_",null,"Yes",110]
[null,null,"36_","ACP","Công ty CP VLXD công nghệ cao An Cường","0801238156_",null,"Yes",120]
["Chỉ tiêu thuyết minh",null,"24_","ATI","Công ty TNHH An Trung Industries","0801246654_",null,"Yes",130]
[null,null,"87_","VIE","Công ty TNHH PT XNK và Đầu tư - VIEXIM","0900259855_",null,"Yes",140]
["Map chỉ tiêu BC-TM",null,"61_","PBAT","Công ty CP Sản xuất PBAT An Phát","0202084468_",null,"Yes",160]
[null,null,"62_","Ankor","Ankor Bioplastics","9910820005_",null,"Yes",170]
["Chỉ tiêu dòng tiền",null,"83_","APA","An Phat International INC","9940010020_",null,"Yes",180]
[null,null,"29_","AFC","AFC EcoPlastics LLC","9940010006_",null,"Yes",190]
["Phân loại vốn vay",null,"28_","APS","Công ty CP DV Suất ăn CN An Phát","0801352476_",null,"Yes",210]
[null,null,"68_","VBC","Công ty CP nhựa Bao Bì Vinh","2900531222_",null,"Yes",220]
["Danh mục khác",null,"42_","SUN","Công ty CP SX Tổng hợp Sunrise Việt Nam","0801279667_",null,"Yes",230]
[null,null,"26_","Anbio","Công ty CP Anbio","0801313445_",null,"Yes",240]
["Tùy chọn",null,"57_","VMC","Công ty TNHH MTV CKCX và CTKM Việt Nam","0801277109_",null,"No",250]
[null,null,"19_","AĐ","Công ty CP dịch vụ xăng dầu An Đông","0801332007_",null,"No",260]
[null,null,"78_","PNV","Công ty CP Giải pháp và  Dịch vụ phần mềm Nam Việt","0102181549_",null,"No",270]

{"sheet":"~ctbc","index":12,"n_rows":246,"n_cols":8,"rows_kept":246,"cut":false,"hidden":false,"merged":[]}
["FILE:","https://docs.google.com/spreadsheets/d/e/2PACX-1vT_xdizaM6xU82PsBTJ7T7HATJlPSLeVfWs_vFQyJPSH8UMu-X72xvw4pGSxe1IUQ/pub?output=xlsx","SQL:","SELECT * FROM [ctbc$A1:E]",null,null,null," "]
["Opt:","HEAD filter","To:",{"$f":"[1]!QRange(A5)","v":{"$error":"#NAME?"}}]
[]
[]
["MÃ TRƯỚC","TÊN TRƯỚC","MÃ SAU","TÊN SAU","THAY ĐỔI"]
["000_","Tài khoản ngoại bảng","000_","Tài khoản ngoại bảng","giữ nguyên"]
["001_","Doanh thu bán hàng & cung cấp dịch vụ","001_","Doanh thu bán hàng & cung cấp dịch vụ","giữ nguyên"]
["002_","Các khoản giảm trừ","002_","Các khoản giảm trừ","giữ nguyên"]
["011_","Giá vốn hàng bán","011_","Giá vốn hàng bán","giữ nguyên"]
[null,null,"021_","Lãi/lỗ bán, thanh lý BĐS đầu tư","thêm mã mới"]
["021_","Doanh thu hoạt động tài chính","022_","Doanh thu hoạt động tài chính","đổi mã"]
["022_","Chi phí tài chính","023_","Chi phí tài chính","đổi mã"]
["023_","- Trong đó: chi phí lãi vay","024_","- Trong đó: chi phí đi vay","đổi cả mã cả tên"]
["024_","Phần lãi (lỗ) trong cty liên kết, liên doanh","027_","Phần lãi (lỗ) trong cty liên kết, liên doanh","đổi mã"]
["025_","Chi phí bán hàng","025_","Chi phí bán hàng","giữ nguyên"]
["026_","Chi phí quản lý doanh nghiệp","026_","Chi phí quản lý doanh nghiệp","giữ nguyên"]
["031_","Thu nhập khác","031_","Thu nhập khác","giữ nguyên"]
["032_","Chi phí khác","032_","Chi phí khác","giữ nguyên"]
["051_","Chi phí thuế TNDN hiện hành","051_","Chi phí thuế TNDN hiện hành","giữ nguyên"]
["052_","Chi phí thuế TNDN hoãn lại","052_","Chi phí thuế TNDN hoãn lại","giữ nguyên"]
["061_","Lợi nhuận sau thuế của CĐ cty mẹ","061_","Lợi nhuận sau thuế của CĐ cty mẹ","giữ nguyên"]
["062_","Lợi nhuận sau thuế của CĐ không ks","062_","Lợi nhuận sau thuế của CĐ không ks","giữ nguyên"]
["111_","Tiền","111_","Tiền","giữ nguyên"]
["112_","Các khoản tương đương tiền","112_","Các khoản tương đương tiền","giữ nguyên"]
["121_","Chứng khoán kinh doanh","121_","Chứng khoán kinh doanh","giữ nguyên"]
["122_","Dự phòng giảm giá chứng khoán kinh doanh (*)","122_","Dự phòng giảm giá chứng khoán kinh doanh *","đổi tên"]
["123_","Đầu tư nắm giữ đến ngày đáo hạn ngắn hạn","123_","Đầu tư nắm giữ đến ngày đáo hạn ngắn hạn","giữ nguyên"]
[null,null,"124_","Dự phòng đầu tư nắm giữ đến ngày đáo hạn ngắn hạn *","thêm mã mới"]
[null,null,"125_","Đầu tư ngắn hạn khác","thêm mã mới"]
[null,null,"126_","Dự phòng tổn thất các khoản đầu tư ngắn hạn khác *","thêm mã mới"]
["131_","Phải thu ngắn hạn của khách hàng","131_","Phải thu ngắn hạn của khách hàng","giữ nguyên"]
["132_","Trả trước cho người bán ngắn hạn","132_","Trả trước cho người bán ngắn hạn","giữ nguyên"]
["133_","Phải thu nội bộ ngắn hạn","133_","Phải thu nội bộ ngắn hạn","giữ nguyên"]
["134_","Phải thu theo tiến độ kế hoạch HĐXD","134_","Phải thu theo tiến độ HĐXD","đổi tên"]
["135_","Phải thu về cho vay ngắn hạn","123_","Đầu tư nắm giữ đến ngày đáo hạn ngắn hạn","đổi cả mã cả tên"]
["136_","Các khoản phải thu khác","135_","Các khoản phải thu khác","đổi mã"]
["137_","Dự phòng phải thu ngắn hạn khó đòi (*)","136_","Dự phòng phải thu ngắn hạn khó đòi *","đổi cả mã cả tên"]
["139_","Tài sản thiếu chờ xử lý","137_","Tài sản thiếu chờ xử lý","đổi mã"]
["141_","Hàng tồn kho","141_","Hàng tồn kho","giữ nguyên"]
["149_","Dự phòng giảm giá hàng tồn kho (*)","142_","Dự phòng giảm giá hàng tồn kho *","đổi cả mã cả tên"]
[null,null,"151_","Con vật nuôi lấy sản phẩm một lần ngắn hạn","thêm mã mới"]
[null,null,"152_","Cây trồng theo mùa vụ hoặc lấy SP một lần ngắn hạn","thêm mã mới"]
[null,null,"153_","Dự phòng tổn thất tài sản sinh học ngắn hạn","thêm mã mới"]
["151_","Chi phí trả trước ngắn hạn","161_","Chi phí chờ phân bổ ngắn hạn","đổi cả mã cả tên"]
["152_","Thuế GTGT được khấu trừ","162_","Thuế GTGT được khấu trừ","đổi mã"]
["153_","Thuế và các khoản phải thu Nhà nước","163_","Thuế và các khoản phải thu Nhà nước","đổi mã"]
["154_","Giao dịch mua bán lại trái phiếu Chính phủ","164_","Giao dịch mua bán lại trái phiếu Chính phủ","đổi mã"]
["155_","Tài sản ngắn hạn khác","165_","Tài sản ngắn hạn khác","đổi mã"]
["211_","Phải thu dài hạn của khách hàng","211_","Phải thu dài hạn của khách hàng","giữ nguyên"]
["212_","Trả trước cho người bán dài hạn","212_","Trả trước cho người bán dài hạn","giữ nguyên"]
["213_","Vốn kinh doanh ở đơn vị trực thuộc","213_","Vốn kinh doanh ở đơn vị trực thuộc","giữ nguyên"]
["214_","Phải thu nội bộ dài hạn","214_","Phải thu nội bộ dài hạn","giữ nguyên"]
["215_","Phải thu về cho vay dài hạn","265_","Đầu tư nắm giữ đến ngày đáo hạn dài hạn","đổi cả mã cả tên"]
["216_","Phải thu dài hạn khác","215_","Phải thu dài hạn khác","đổi mã"]
["219_","Dự phòng phải thu dài hạn khó đòi (*)","216_","Dự phòng phải thu dài hạn khó đòi *","đổi cả mã cả tên"]
["222_","Nguyên giá TSCĐ hữu hình","222_","Nguyên giá TSCĐ hữu hình","giữ nguyên"]
["223_","Giá trị hao mòn lũy kế TSCĐ hữu hình","223_","Giá trị hao mòn lũy kế TSCĐ hữu hình","giữ nguyên"]
["225_","Nguyên giá TSCĐ thuê tài chính","225_","Nguyên giá TSCĐ thuê tài chính","giữ nguyên"]
["226_","Giá trị hao mòn lũy kế TSCĐ thuê tài chính","226_","Giá trị hao mòn lũy kế TSCĐ thuê tài chính","giữ nguyên"]
["228_","Nguyên giá TSCĐ vô hình","228_","Nguyên giá TSCĐ vô hình","giữ nguyên"]
["229_","Giá trị hao mòn lũy kế TSCĐ vô hình","229_","Giá trị hao mòn lũy kế TSCĐ vô hình","giữ nguyên"]
[null,null,"232_","Con vật nuôi cho SP định kỳ chưa đến gđ trưởng thành","thêm mã mới"]
[null,null,"234_","Con vật nuôi cho SP định kỳ đến giai đoạn trưởng thành (nguyên giá)","thêm mã mới"]
[null,null,"235_","Con vật nuôi cho SP định kỳ đến giai đoạn trưởng thành (KH lũy kế)","thêm mã mới"]
[null,null,"236_","Con vật nuôi lấy sản phẩm một lần dài hạn","thêm mã mới"]
[null,null,"237_","Cây trồng theo mùa vụ hoặc lấy sản phẩm một lần dài hạn","thêm mã mới"]
[null,null,"238_","Dự phòng tổn thất tài sản sinh học dài hạn *","thêm mã mới"]
["231_","Nguyên giá BĐS đầu tư","241_","Nguyên giá BĐS đầu tư","đổi mã"]
["232_","Giá trị hao mòn lũy kế (*) BĐS đầu tư","242_","Giá trị hao mòn lũy kế BĐS đầu tư *","đổi cả mã cả tên"]
["241_","Chi phí sản xuất, kinh doanh dở dang dài hạn","251_","Chi phí sản xuất, kinh doanh dở dang dài hạn","đổi mã"]
["242_","Chi phí xây dựng cơ bản dở dang","252_","Chi phí xây dựng cơ bản dở dang","đổi mã"]
["251_","Đầu tư vào công ty con","261_","Đầu tư vào công ty con","đổi mã"]
["252_","Đầu tư vào công ty liên doanh, liên kết","262_","Đầu tư vào công ty liên doanh, liên kết","đổi mã"]
["253_","Đầu tư góp vốn vào đơn vị khác","263_","Đầu tư góp vốn vào đơn vị khác","đổi mã"]
["254_","Dự phòng đầu tư tài chính dài hạn (*)","264_","Dự phòng tổn thất đầu tư vào đơn vị khác dài hạn *","đổi cả mã cả tên"]
["255_","Đầu tư nắm giữ đến ngày đáo hạn dài hạn","265_","Đầu tư nắm giữ đến ngày đáo hạn dài hạn","đổi mã"]
[null,null,"266_","Dự phòng đầu tư nắm giữ đến ngày đáo hạn dài hạn *","thêm mã mới"]
["261_","Chi phí trả trước dài hạn","271_","Chi phí chờ phân bổ dài hạn","đổi cả mã cả tên"]
["262_","Tài sản thuế thu nhập hoãn lại","272_","Tài sản thuế thu nhập hoãn lại","đổi mã"]
["263_","Thiết bị, vật tư, phụ tùng thay thế dài hạn","273_","Thiết bị, vật tư, phụ tùng thay thế dài hạn","đổi mã"]
["268_","Tài sản dài hạn khác","274_","Tài sản dài hạn khác","đổi mã"]
["269_","Lợi thế thương mại","279_","Lợi thế thương mại","đổi mã"]
["311_","Phải trả người bán ngắn hạn","311_","Phải trả người bán ngắn hạn","giữ nguyên"]
["312_","Người mua trả tiền trước ngắn hạn","312_","Người mua trả trước ngắn hạn","đổi tên"]
[null,null,"313_","Phải trả về cổ tức, lợi nhuận","thêm mã mới"]
["313_","Thuế và các khoản phải nộp Nhà nước","314_","Thuế và các khoản phải nộp Nhà nước ngắn hạn","đổi cả mã cả tên"]
["314_","Phải trả người lao động","315_","Phải trả người lao động","đổi mã"]
["315_","Chi phí phải trả ngắn hạn","316_","Chi phí phải trả ngắn hạn","đổi mã"]
["316_","Phải trả nội bộ ngắn hạn","317_","Phải trả nội bộ ngắn hạn","đổi mã"]
["317_","Phải trả theo tiến độ kế hoạch HĐXD","318_","Phải trả theo tiến độ HĐXD ngắn hạn","đổi cả mã cả tên"]
["318_","Doanh thu chưa thực hiện ngắn hạn","319_","Doanh thu chờ phân bổ ngắn hạn","đổi cả mã cả tên"]
["319_","Các khoản phải trả ngắn hạn khác","320_","Các khoản phải trả ngắn hạn khác","đổi mã"]
["320_","Vay và nợ thuê tài chính ngắn hạn","321_","Vay và nợ thuê tài chính ngắn hạn","đổi mã"]
["321_","Dự phòng phải trả ngắn hạn","322_","Dự phòng phải trả ngắn hạn","đổi mã"]
["322_","Quỹ khen thưởng, phúc lợi","323_","Quỹ khen thưởng, phúc lợi","đổi mã"]
["323_","Quỹ bình ổn giá","324_","Quỹ bình ổn giá","đổi mã"]
["324_","Giao dịch mua bán lại trái phiếu Chính phủ","325_","Giao dịch mua bán lại trái phiếu Chính phủ","đổi mã"]
["331_","Phải trả người bán dài hạn","331_","Phải trả người bán dài hạn","giữ nguyên"]
["332_","Người mua trả tiền trước dài hạn","332_","Người mua trả trước dài hạn","đổi tên"]
[null,null,"333_","Thuế và các khoản phải nộp Nhà nước dài hạn","thêm mã mới"]
["333_","Chi phí phải trả dài hạn","334_","Chi phí phải trả dài hạn","đổi mã"]
["334_","Phải trả nội bộ về vốn kinh doanh","335_","Phải trả nội bộ về vốn kinh doanh","đổi mã"]
["335_","Phải trả nội bộ dài hạn","336_","Phải trả nội bộ dài hạn","đổi mã"]
["336_","Doanh thu chưa thực hiện dài hạn","337_","Doanh thu chờ phân bổ dài hạn","đổi cả mã cả tên"]
["337_","Phải trả dài hạn khác","338_","Phải trả dài hạn khác","đổi mã"]
["338_","Vay và nợ thuê tài chính dài hạn","339_","Vay và nợ thuê tài chính dài hạn","đổi mã"]
["339_","Trái phiếu chuyển đổi","340_","Trái phiếu chuyển đổi","đổi mã"]
["340_","Cổ phiếu ưu đãi","341_","Cổ phiếu ưu đãi","đổi mã"]
["341_","Thuế thu nhập hoãn lại phải trả","342_","Thuế thu nhập hoãn lại phải trả","đổi mã"]
["342_","Dự phòng phải trả dài hạn","343_","Dự phòng phải trả dài hạn","đổi mã"]
["343_","Quỹ phát triển khoa học và công nghệ","344_","Quỹ phát triển khoa học và công nghệ","đổi mã"]
["41a_","Cổ phiếu phổ thông có quyền biểu quyết","41a_","Cổ phiếu phổ thông có quyền biểu quyết","giữ nguyên"]
["41b_","Cổ phiếu ưu đãi","41b_","Cổ phiếu ưu đãi","giữ nguyên"]
["412_","Thặng dư vốn cổ phần","412_","Thặng dư vốn cổ phần","giữ nguyên"]
["413_","Quyền chọn chuyển đổi trái phiếu","413_","Quyền chọn chuyển đổi trái phiếu","giữ nguyên"]
["414_","Vốn khác của chủ sở hữu","414_","Vốn khác của chủ sở hữu","giữ nguyên"]
["415_","Cổ phiếu quỹ (*)","415_","Cổ phiếu mua lại của chính mình *","đổi tên"]
["416_","Chênh lệch đánh giá lại tài sản","416_","Chênh lệch đánh giá lại tài sản","giữ nguyên"]
["417_","Chênh lệch tỷ giá hối đoái","417_","Chênh lệch tỷ giá hối đoái","giữ nguyên"]
["418_","Quỹ đầu tư phát triển","418_","Quỹ đầu tư phát triển","giữ nguyên"]
["419_","Quỹ hỗ trợ sắp xếp doanh nghiệp",null,null,"xóa mã cũ"]
["420_","Quỹ khác thuộc vốn chủ sở hữu","419_","Quỹ khác thuộc vốn chủ sở hữu","đổi mã"]
["42a_","LNST chưa phân phối lũy kế đến cuối kỳ trước","42a_","LNST chưa phân phối lũy kế đến cuối kỳ trước","giữ nguyên"]
["42b_","LNST chưa phân phối kỳ này","42b_","LNST chưa phân phối kỳ này","giữ nguyên"]
["429_","Lợi ích của cổ đông không kiểm soát","429_","Lợi ích của cổ đông không kiểm soát","giữ nguyên"]
[]
[]
[" '000_'",null," '000_'"]
[" '001_'",null," '001_'"]
[" '002_'",null," '002_'"]
[" '011_'",null," '011_'"]
[null,null," '021_'"]
[" '021_'",null," '022_'"]
[" '022_'",null," '023_'"]
[" '023_'",null," '024_'"]
[" '024_'",null," '029_'"]
[" '025_'",null," '025_'"]
[" '026_'",null," '026_'"]
[" '031_'",null," '031_'"]
[" '032_'",null," '032_'"]
[" '051_'",null," '051_'"]
[" '052_'",null," '052_'"]
[" '062_'",null," '062_'"]
[" '111_'",null," '111_'"]
[" '112_'",null," '112_'"]
[" '121_'",null," '121_'"]
[" '122_'",null," '122_'"]
[" '123_'",null," '123_'"]
[null,null," '124_'"]
[null,null," '125_'"]
[null,null," '126_'"]
[" '131_'",null," '131_'"]
[" '132_'",null," '132_'"]
[" '133_'",null," '133_'"]
[" '134_'",null," '134_'"]
[" '135_'"]
[" '136_'",null," '135_'"]
[" '137_'",null," '136_'"]
[" '139_'",null," '137_'"]
[" '141_'",null," '141_'"]
[" '149_'",null," '142_'"]
[null,null," '151_'"]
[null,null," '152_'"]
[null,null," '153_'"]
[" '151_'",null," '161_'"]
[" '152_'",null," '162_'"]
[" '153_'",null," '163_'"]
[" '154_'",null," '164_'"]
[" '155_'",null," '165_'"]
[" '211_'",null," '211_'"]
[" '212_'",null," '212_'"]
[" '213_'",null," '213_'"]
[" '214_'",null," '214_'"]
[" '215_'"]
[" '216_'",null," '215_'"]
[" '219_'",null," '216_'"]
[" '222_'",null," '222_'"]
[" '223_'",null," '223_'"]
[" '225_'",null," '225_'"]
[" '226_'",null," '226_'"]
[" '228_'",null," '228_'"]
[" '229_'",null," '229_'"]
[null,null," '232_'"]
[null,null," '234_'"]
[null,null," '235_'"]
[null,null," '236_'"]
[null,null," '237_'"]
[null,null," '238_'"]
[" '231_'",null," '241_'"]
[" '232_'",null," '242_'"]
[" '241_'",null," '251_'"]
[" '242_'",null," '252_'"]
[" '251_'",null," '261_'"]
[" '252_'",null," '262_'"]
[" '253_'",null," '263_'"]
[" '254_'",null," '264_'"]
[" '255_'",null," '265_'"]
[null,null," '266_'"]
[" '261_'",null," '271_'"]
[" '262_'",null," '272_'"]
[" '263_'",null," '273_'"]
[" '268_'",null," '274_'"]
[" '269_'",null," '279_'"]
[" '311_'",null," '311_'"]
[" '312_'",null," '312_'"]
[null,null," '313_'"]
[" '313_'",null," '314_'"]
[" '314_'",null," '315_'"]
[" '315_'",null," '316_'"]
[" '316_'",null," '317_'"]
[" '317_'",null," '318_'"]
[" '318_'",null," '319_'"]
[" '319_'",null," '320_'"]
[" '320_'",null," '321_'"]
[" '321_'",null," '322_'"]
[" '322_'",null," '323_'"]
[" '323_'",null," '324_'"]
[" '324_'",null," '325_'"]
[" '331_'",null," '331_'"]
[" '332_'",null," '332_'"]
[null,null," '333_'"]
[" '333_'",null," '334_'"]
[" '334_'",null," '335_'"]
[" '335_'",null," '336_'"]
[" '336_'",null," '337_'"]
[" '337_'",null," '338_'"]
[" '338_'",null," '339_'"]
[" '339_'",null," '340_'"]
[" '340_'",null," '341_'"]
[" '341_'",null," '342_'"]
[" '342_'",null," '343_'"]
[" '343_'",null," '344_'"]
[" '41a_'",null," '41a_'"]
[" '41b_'",null," '41b_'"]
[" '412_'",null," '412_'"]
[" '413_'",null," '413_'"]
[" '414_'",null," '414_'"]
[" '415_'",null," '415_'"]
[" '416_'",null," '416_'"]
[" '417_'",null," '417_'"]
[" '418_'",null," '418_'"]
[" '419_'"]
[" '420_'",null," '419_'"]
[" '42a_'",null," '42a_'"]
[" '42b_'",null," '42b_'"]
[" '429_'",null," '429_'"]

{"sheet":"~cttm","index":13,"n_rows":151,"n_cols":5,"rows_kept":151,"cut":false,"hidden":false,"merged":[]}
["FILE:",{"$f":"'~ctbc'!B1","v":"https://docs.google.com/spreadsheets/d/e/2PACX-1vT_xdizaM6xU82PsBTJ7T7HATJlPSLeVfWs_vFQyJPSH8UMu-X72xvw4pGSxe1IUQ/pub?output=xlsx"},"SQL:","SELECT * FROM [cttm$A1:E]"]
["Opt:","HEAD filter","To:",{"$f":"[1]!QRange(A5)","v":{"$error":"#NAME?"}}]
[]
[]
["MÃ TRƯỚC","CHỈ TIÊU TRƯỚC","MÃ SAU","CHỈ TIÊU SAU","THAY ĐỔI"]
["010_","Tiền và tương đương tiền","010_","Tiền và tương đương tiền","giữ nguyên"]
["021_","Đầu tư nắm giữ đến ngày đáo hạn ngắn hạn","021_","Đầu tư nắm giữ đến ngày đáo hạn ngắn hạn","giữ nguyên"]
["022_","Đầu tư nắm giữ đến ngày đáo hạn dài hạn","022_","Đầu tư nắm giữ đến ngày đáo hạn dài hạn","giữ nguyên"]
["023_","Đầu tư vào công ty con","023_","Đầu tư vào công ty con","giữ nguyên"]
["024_","Đầu tư vào công ty liên kết","024_","Đầu tư vào công ty liên kết","giữ nguyên"]
["025_","Đầu tư góp vốn vào đơn vị khác","025_","Đầu tư góp vốn vào đơn vị khác","giữ nguyên"]
["026_","Chứng khoán kinh doanh","026_","Chứng khoán kinh doanh","giữ nguyên"]
["027_","Dự phòng giảm giá chứng khoán kinh doanh (*)","027_","Dự phòng giảm giá chứng khoán kinh doanh *","đổi tên"]
["028_","Dự phòng đầu tư tài chính dài hạn (*)","028_","Dự phòng đầu tư tài chính dài hạn *","đổi tên"]
["031_","Phải thu của khách hàng ngắn hạn","031_","Phải thu ngắn hạn của khách hàng","đổi tên"]
["031x","Phải thu của khách hàng ngắn hạn","031s","Phải thu ngắn hạn của khách hàng","đổi cả mã cả tên"]
["032_","Phải thu của khách hàng dài hạn","032_","Phải thu dài hạn của khách hàng","đổi tên"]
["032x","Phải thu của khách hàng dài hạn","032s","Phải thu dài hạn của khách hàng","đổi cả mã cả tên"]
["033_","Trả trước cho người bán ngắn hạn","033_","Trả trước cho người bán ngắn hạn","giữ nguyên"]
["033x","Trả trước cho người bán ngắn hạn","033s","Trả trước cho người bán ngắn hạn","đổi mã"]
["034_","Trả trước cho người bán dài hạn","034_","Trả trước cho người bán dài hạn","giữ nguyên"]
["034x","Trả trước cho người bán dài hạn","034s","Trả trước cho người bán dài hạn","đổi mã"]
["041_","Phải thu khác ngắn hạn","041_","Phải thu khác ngắn hạn","giữ nguyên"]
["041x","Phải thu khác ngắn hạn","041s","Phải thu khác ngắn hạn","đổi mã"]
["042_","Phải thu khác dài hạn","042_","Phải thu khác dài hạn","giữ nguyên"]
["042x","Phải thu khác dài hạn","042s","Phải thu khác dài hạn","đổi mã"]
["043_","Phải thu về cho vay ngắn hạn","029_","Dự phòng đầu tư nắm giữ đến ngày đáo hạn ngắn hạn *","đổi mã"]
["044_","Phải thu về cho vay dài hạn","059_","Dự phòng đầu tư nắm giữ đến ngày đáo hạn dài hạn *","đổi mã"]
["045_","Dự phòng phải thu khó đòi ngắn hạn (*)","043_","Dự phòng phải thu ngắn hạn khó đòi *","đổi cả mã cả tên"]
["046_","Dự phòng phải thu khó đòi dài hạn (*)","044_","Dự phòng phải thu dài hạn khó đòi *","đổi cả mã cả tên"]
["050_","Tài sản thiếu chờ xử lý","050_","Tài sản thiếu chờ xử lý","giữ nguyên"]
[null,null,"051_","Nợ xấu","thêm mã mới"]
["061_","Tài sản khác ngắn hạn","061_","Tài sản khác ngắn hạn","giữ nguyên"]
["062_","Tài sản khác dài hạn","062_","Tài sản khác dài hạn","giữ nguyên"]
["063_","Phải thu nội bộ ngắn hạn","063_","Phải thu nội bộ ngắn hạn","giữ nguyên"]
["064_","Phải thu nội bộ dài hạn","064_","Phải thu nội bộ dài hạn","giữ nguyên"]
["065_","Phải thu theo tiến độ kế hoạch HĐXD","065_","Phải thu theo tiến độ HĐXD","đổi tên"]
["071_","Hàng tồn kho","071_","Hàng tồn kho","giữ nguyên"]
["072_","Dự phòng giảm giá hàng tồn kho (*)","072_","Dự phòng giảm giá hàng tồn kho *","đổi tên"]
["081_","Chi phí SXKD dở dang dài hạn","081_","Chi phí SXKD dở dang dài hạn","giữ nguyên"]
["082_","Chi phí XDCB dở dang","082_","Chi phí XDCB dở dang","giữ nguyên"]
["091_","TSCĐ hữu hình - Nguyên giá","091_","TSCĐ hữu hình - Nguyên giá","giữ nguyên"]
["091x","NG TSCĐ HH đã KH hết đang sử dụng","091s","NG TSCĐ HH đã KH hết đang sử dụng","đổi mã"]
["092_","TSCĐ hữu hình - Hao mòn lũy kế (*)","092_","TSCĐ hữu hình - Hao mòn lũy kế *","đổi tên"]
["101_","TSCĐ vô hình - Nguyên giá","101_","TSCĐ vô hình - Nguyên giá","giữ nguyên"]
["101x","NG TSCĐ VH đã KH hết đang sử dụng","101s","NG TSCĐ VH đã KH hết đang sử dụng","đổi mã"]
["102_","TSCĐ vô hình - Hao mòn lũy kế (*)","102_","TSCĐ vô hình - Hao mòn lũy kế *","đổi tên"]
["111_","TSCĐ thuê tài chính - Nguyên giá","111_","TSCĐ thuê tài chính - Nguyên giá","giữ nguyên"]
["112_","TSCĐ thuê tài chính - Hao mòn lũy kế (*)","112_","TSCĐ thuê tài chính - Hao mòn lũy kế *","đổi tên"]
[null,null,"121_","Tài sản sinh học khác","thêm mã mới"]
[null,null,"122_","Con vật cho SP định kỳ đạt đến GĐ trưởng thành - Nguyên giá","thêm mã mới"]
[null,null,"123_","Con vật cho SP định kỳ đạt đến GĐ trưởng thành - Khấu hao lũy kế","thêm mã mới"]
["121_","BĐS đầu tư - Nguyên giá","131_","BĐS đầu tư - Nguyên giá","đổi mã"]
["122_","BĐS đầu tư - Hao mòn lũy kế (*)","132_","BĐS đầu tư - Hao mòn lũy kế *","đổi cả mã cả tên"]
["131_","Chi phí trả trước ngắn hạn","141_","Chi phí chờ phân bổ ngắn hạn","đổi cả mã cả tên"]
["132_","Chi phí trả trước dài hạn","142_","Chi phí chờ phân bổ dài hạn","đổi cả mã cả tên"]
["141_","Lợi thế thương mại","151_","Lợi thế thương mại","đổi mã"]
["151_","Vay ngắn hạn","161_","Vay và nợ thuê tài chính ngắn hạn","đổi cả mã cả tên"]
["152_","Vay dài hạn","162_","Vay và nợ thuê tài chính dài hạn","đổi cả mã cả tên"]
["161_","Phải trả người bán ngắn hạn","171_","Phải trả người bán ngắn hạn","đổi mã"]
["161x","Phải trả người bán ngắn hạn","171s","Phải trả người bán ngắn hạn","đổi mã"]
["162_","Phải trả người bán dài hạn","172_","Phải trả người bán dài hạn","đổi mã"]
["162x","Phải trả người bán dài hạn","172s","Phải trả người bán dài hạn","đổi mã"]
["163_","Người mua trả trước ngắn hạn","173_","Người mua trả trước ngắn hạn","đổi mã"]
["163x","Người mua trả trước ngắn hạn","173s","Người mua trả trước ngắn hạn","đổi mã"]
["164_","Người mua trả trước dài hạn","174_","Người mua trả trước dài hạn","đổi mã"]
["164x","Người mua trả trước dài hạn","174s","Người mua trả trước dài hạn","đổi mã"]
[null,null,"181_","Phải trả về cổ tức, lợi nhuận","thêm mã mới"]
[null,null,"182_","Quỹ khen thưởng, phúc lợi","thêm mã mới"]
["170_","Thuế và các khoản phải nộp Nhà nước","191_","Thuế và các khoản phải nộp Nhà nước","đổi mã"]
[null,null,"192_","Thuế GTGT được khấu trừ","thêm mã mới"]
["181_","Chi phí phải trả ngắn hạn","201_","Chi phí phải trả ngắn hạn","đổi mã"]
["182_","Chi phí phải trả dài hạn","202_","Chi phí phải trả dài hạn","đổi mã"]
["191_","Phải trả khác ngắn hạn","211_","Phải trả ngắn hạn khác","đổi cả mã cả tên"]
["191x","Phải trả khác ngắn hạn","211s","Phải trả ngắn hạn khác","đổi cả mã cả tên"]
["192_","Phải trả khác dài hạn","212_","Phải trả dài hạn khác","đổi cả mã cả tên"]
["192x","Phải trả khác dài hạn","212s","Phải trả dài hạn khác","đổi cả mã cả tên"]
["193_","Phải trả nội bộ ngắn hạn","213_","Phải trả nội bộ ngắn hạn","đổi mã"]
["194_","Phải trả nội bộ dài hạn","214_","Phải trả nội bộ dài hạn","đổi mã"]
["195_","Phải trả theo tiến độ kế hoạch HĐXD","215_","Phải trả theo tiến độ HĐXD","đổi cả mã cả tên"]
["201_","Doanh thu chưa thực hiện ngắn hạn","221_","Doanh thu chờ phân bổ ngắn hạn","đổi cả mã cả tên"]
["202_","Doanh thu chưa thực hiện dài hạn","222_","Doanh thu chờ phân bổ dài hạn","đổi cả mã cả tên"]
[null,null,"231_","Trái phiếu thường","thêm mã mới"]
[null,null,"232_","Trái phiếu chuyển đổi","thêm mã mới"]
[null,null,"241_","Cổ phiếu ưu đãi phân loại là nợ phải trả","thêm mã mới"]
["211_","Dự phòng phải trả ngắn hạn","251_","Dự phòng phải trả ngắn hạn","đổi mã"]
["212_","Dự phòng phải trả dài hạn","252_","Dự phòng phải trả dài hạn","đổi mã"]
["241_","Tài sản thuế TNDN hoãn lại","261_","Tài sản thuế TNDN hoãn lại","đổi mã"]
["242_","Thuế TNDN hoãn lại phải trả","262_","Thuế TNDN hoãn lại phải trả","đổi mã"]
["250_","Vốn chủ sở hữu","270_","Vốn chủ sở hữu","đổi mã"]
["250x","Vốn chủ sở hữu (năm trước)","270s","Vốn chủ sở hữu (năm trước)","đổi mã"]
["251_","Quỹ không thuộc CSH","271_","Quỹ không thuộc CSH","đổi mã"]
["252_","Nguồn kinh phí","272_","Nguồn kinh phí","đổi mã"]
[null,null,"281_","Chênh lệch đánh giá lại tài sản","thêm mã mới"]
[null,null,"291_","Chênh lệch tỷ giá","thêm mã mới"]
["311_","Doanh thu bán hàng","311_","Doanh thu bán hàng","giữ nguyên"]
["311x","Doanh thu bán hàng","311s","Doanh thu bán hàng","đổi mã"]
["312_","Giảm trừ doanh thu","312_","Giảm trừ doanh thu","giữ nguyên"]
["320_","Giá vốn hàng bán","320_","Giá vốn hàng bán","giữ nguyên"]
["320x","Giá vốn hàng bán","320s","Giá vốn hàng bán","đổi mã"]
["331_","Doanh thu tài chính","331_","Doanh thu tài chính","giữ nguyên"]
["332_","Chi phí tài chính","332_","Chi phí tài chính","giữ nguyên"]
["341_","Chi phí bán hàng","341_","Chi phí bán hàng","giữ nguyên"]
["342_","Chi phí QLDN","342_","Chi phí QLDN","giữ nguyên"]
["351_","Thu nhập khác","351_","Thu nhập khác","giữ nguyên"]
["352_","Chi phí khác","352_","Chi phí khác","giữ nguyên"]
["361_","Chi phí thuế TNDN hiện hành","361_","Chi phí thuế TNDN hiện hành","giữ nguyên"]
["362_","Chi phí thuế TNDN hoãn lại","362_","Chi phí thuế TNDN hoãn lại","giữ nguyên"]
["370_","Chi phí SXKD theo yếu tố","370_","Chi phí SXKD theo yếu tố","giữ nguyên"]
["381_","Doanh thu bộ phận","381_","Doanh thu bộ phận","giữ nguyên"]
["382_","LN sau thuế bộ phận","382_","LN sau thuế bộ phận","giữ nguyên"]
["383_","Tài sản bộ phận","383_","Tài sản bộ phận","giữ nguyên"]
["384_","Nợ phải trả bộ phận","384_","Nợ phải trả bộ phận","giữ nguyên"]
[]
[null,null,"407_","Cam kết đi thuê","thêm mã mới"]
[null,null,"441_","Cam kết cho thuê","thêm mã mới"]
[null,null,"425_","Số người lao động","thêm mã mới"]
[null,null,"409_","Chuyển lỗ","thêm mã mới"]
[null,null,"404_","CP lãi vay bị khống chế chuyển năm sau","thêm mã mới"]
[null,null,"410_"]
[null,null,"445_"]
[null,null,"467_"]
[null,null,"440_"]
[null,null,"458_"]
[null,null,"411_"]
[null,null,"482_"]
[null,null,"449_"]
[null,null,"465_"]
[null,null,"430_"]
[null,null,"429_"]
[null,null,"456_"]
[null,null,"442_"]
[null,null,"479_"]
[null,null,"408_"]
[null,null,"485_"]
[null,null,"455_"]
[null,null,"461_"]
[null,null,"468_"]
[null,null,"405_"]
[null,null,"469_"]
[null,null,"415_"]
[null,null,"481_"]
[null,null,"450_"]
[null,null,"486_"]
[null,null,"417_"]
[null,null,"483_"]
[null,null,"464_"]
[null,null,"472_"]
[null,null,"401_"]
[null,null,"436_"]
[null,null,"478_"]